{"text_format":"1","workbook":"xlsx","n_sheets":14,"sheets":["1. Info","2021 List","Sheet1","2. Table of Contents","3. RRR Data","4. UTRs and Sub-Transmission","5. Historical Wholesale","6. Current Wholesale","7. Forecast Wholesale","8. RTSR Rates to Forecast","RateClasses","DELETE 3. Rate Classes","2 1 5 TotalConsumptionData_Dist","hidden1"],"not_rendered":{"charts":0,"images":3,"macros":1,"external_links":8,"defined_names":139,"comments":0,"pivot_tables":0},"unopened":[],"bounds":{"document_bytes":16777216,"sheet_cells":100000,"rows_first":2000,"rows_last":500,"rows_between":2000,"halvings":0,"cell_chars":16384,"cell_head_chars":4096},"cells_cut":0,"cells_raw":0,"read":"whole","date_system":"1900"}

{"sheet":"1. Info","index":0,"n_rows":73,"n_cols":29,"rows_kept":73,"cut":false,"hidden":false,"merged":[[22,3,22,4],[18,3,18,4],[1,2,1,9],[2,2,2,9],[3,2,3,9],[4,2,4,9],[14,3,14,4]]}
[null,null,null,null,null,null,null,null,null,null,null,null,null,null,null,null,null,null,null,null,null,null,null,null,null,null,null,"Alectra Utilities Corporation-Brampton Rate Zone","2021 RTSR Workform \nfor Electricity Distributors\n"]
[null,null,null,null,null,null,null,null,null,null,null,null,null,null,null,null,null,null,null,null,null,null,null,null,null,null,null,"Alectra Utilities Corporation-Enersource Rate Zone","v 1.0\n"]
[null,null,null,null,null,null,null,null,null,null,null,null,null,null,null,null,null,null,null,null,null,null,null,null,null,null,null,"Alectra Utilities Corporation-Horizon Utilities Rate Zone"]
[null,null,null,null,null,null,null,null,null,null,null,null,null,null,null,null,null,null,null,null,null,null,null,null,null,null,null,"Alectra Utilities Corporation-PowerStream Rate Zone"]
[null,null,null,null,null,null,null,null,null,null,null,null,null,null,null,null,null,null,null,null,null,null,null,null,null,null,null,"Alectra Utilities Corporation-Guelph Rate Zone"]
[null,null,null,null,null,null,null,null,null,null,null,null,null,null,null,null,null,null,null,null,null,null,null,null,null,null,null,"Algoma Power Inc."]
[null,null,null,null,null,null,null,null,null,null,null,null,null,null,null,null,null,null,null,null,null,null,null,null,null,null,null,"Atikokan Hydro Inc."]
[null,null,null,null,null,null,null,null,null,null,null,null,null,null,null,null,null,null,null,null,null,null,null,null,null,null,null,"Bluewater Power Distribution Corporation"]
[null,null,null,null,null,null,null,null,null,null,null,null,null,null,null,null,null,null,null,null,null,null,null,null,null,null,null,"Brantford Power Inc."]
[null,null,null,null,null,null,null,null,null,null,null,null,null,null,null,null,null,null,null,null,null,null,null,null,null,null,null,"Burlington Hydro Inc."]
[null,null,null,null,null,null,null,null,null,null,null,null,null,null,null,null,null,null,null,null,null,null,null,null,null,null,null,"Canadian Niagara Power Inc."]
[null,null,null,null,null,null,null,null,null,null,null,null,null,null,null,null,null,null,null,null,null,null,null,null,null,null,null,"Centre Wellington Hydro Ltd."]
["Drop-down lists are shaded blue; Input cells are shaded green.",null,null,null,null,null,null,null,null,null,null,null,null,null,null,null,null,null,null,null,null,null,null,null,null,null,null,"Chapleau Public Utilities Corporation"]
[null,null,null,null,null,null,null,null,null,null,null,null,null,null,null,null,null,null,null,null,null,null,null,null,null,null,null,"Cooperative Hydro Embrun Inc."]
[null,null,"Utility Name   ","Cooperative Hydro Embrun Inc.",null,null,null,null,null,null,null,null,null,null,null,null,null,null,null,null,null,null,null,null,null,null,null,"E.L.K. Energy Inc."]
[null,null,null,null,null,null,null,null,null,null,null,null,null,null,null,null,null,null,null,null,null,null,null,null,null,null,null,"Elexicon Energy Inc.-Whitby Rate Zone"]
[null,null,"Assigned EB Number",null,null,null,null,null,null,null,null,null,null,null,null,null,null,null,null,null,null,null,null,null,null,null,null,"Elexicon Energy Inc.-Veridian Rate Zone"]
[null,null,null,null,null,null,null,null,null,null,null,null,null,null,null,null,null,null,null,null,null,null,null,null,null,null,null,"Energy+ Inc."]
[null,null,"Name and Title of Contact",null,null,null,null,null,null,null,null,null,null,null,null,null,null,null,null,null,null,null,null,null,null,null,null,"Entegrus Powerlines Inc.-For Entegrus-Main Rate Zone"]
[null,null,null,null,null,null,null,null,null,null,null,null,null,null,null,null,null,null,null,null,null,null,null,null,null,null,null,"Entegrus Powerlines Inc.-For Former St. Thomas Energy Rate Zone"]
[null,null,"Phone Number",null,null,null,null,null,null,null,null,null,null,null,null,null,null,null,null,null,null,null,null,null,null,null,null,"ENWIN Utilities Ltd."]
[null,null,null,null,null,null,null,null,null,null,null,null,null,null,null,null,null,null,null,null,null,null,null,null,null,null,null,"EPCOR Electricity Distribution Ontario Inc."]
[null,null,"Email Address",null,null,null,null,null,null,null,null,null,null,null,null,null,null,null,null,null,null,null,null,null,null,null,null,"ERTH Power Corporation - ERTH Power Main Rate Zone"]
[null,null,null,null,null,null,null,null,null,null,null,null,null,null,null,null,null,null,null,null,null,null,null,null,null,null,null,"ERTH POWER CORPORATION – GODERICH RATE ZONE"]
[null,null,"Last COS Re-based Year",2018,null,null,null,null,null,null,null,null,null,null,null,null,null,null,null,null,null,null,null,null,null,null,null,"Essex Powerlines Corporation"]
[null,null,null,null,null,null,null,null,null,null,null,null,null,null,null,null,null,null,null,null,null,null,null,null,null,null,null,"Festival Hydro Inc."]
[null,null,null,null,null,null,null,null,null,null,null,null,null,null,null,null,null,null,null,null,null,null,null,null,null,null,null,"Fort Frances Power Corporation"]
[null,null,null,null,null,null,null,null,null,null,null,null,null,null,null,null,null,null,null,null,null,null,null,null,null,null,null,"Greater Sudbury Hydro Inc."]
[null,null,null,null,null,null,null,null,null,null,null,null,null,null,null,null,null,null,null,null,null,null,null,null,null,null,null,"Grimsby Power Incorporated"]
[null,null,null,null,null,null,null,null,null,null,null,null,null,null,null,null,null,null,null,null,null,null,null,null,null,null,null,"Halton Hills Hydro Inc."]
[null,null,null,null,null,null,null,null,null,null,null,null,null,null,null,null,null,null,null,null,null,null,null,null,null,null,null,"Hearst Power Distribution Co. Ltd."]
[null,null,null,null,null,null,null,null,null,null,null,null,null,null,null,null,null,null,null,null,null,null,null,null,null,null,null,"Hydro 2000 Inc."]
[null,null,null,null,null,null,null,null,null,null,null,null,null,null,null,null,null,null,null,null,null,null,null,null,null,null,null,"Hydro Hawkesbury Inc."]
[null,null,null,null,null,null,null,null,null,null,null,null,null,null,null,null,null,null,null,null,null,null,null,null,null,null,null,"Hydro One Networks Inc."]
[null,null,null,null,null,null,null,null,null,null,null,null,null,null,null,null,null,null,null,null,null,null,null,null,null,null,null,"Hydro One Networks Inc.-Former Haldimand County Hydro Inc. Service Area"]
[null,null,null,null,null,null,null,null,null,null,null,null,null,null,null,null,null,null,null,null,null,null,null,null,null,null,null,"Hydro One Networks Inc.-Former Norfolk Power Distribution Inc. Service Area"]
[null,null,null,null,null,null,null,null,null,null,null,null,null,null,null,null,null,null,null,null,null,null,null,null,null,null,null,"Hydro One Networks Inc.-Former Woodstock Hydro Services Inc. Service Area"]
[null,null,null,null,null,null,null,null,null,null,null,null,null,null,null,null,null,null,null,null,null,null,null,null,null,null,null,"Hydro One Remote Communites Inc."]
[null,null,null,null,null,null,null,null,null,null,null,null,null,null,null,null,null,null,null,null,null,null,null,null,null,null,null,"Hydro Ottawa Limited"]
[null,null,null,null,null,null,null,null,null,null,null,null,null,null,null,null,null,null,null,null,null,null,null,null,null,null,null,"InnPower Corporation"]
[null,null,null,null,null,null,null,null,null,null,null,null,null,null,null,null,null,null,null,null,null,null,null,null,null,null,null,"Kingston Hydro Corporation"]
[null,null,null,null,null,null,null,null,null,null,null,null,null,null,null,null,null,null,null,null,null,null,null,null,null,null,null,"Kitchener-Wilmot Hydro Inc."]
[null,null,null,null,null,null,null,null,null,null,null,null,null,null,null,null,null,null,null,null,null,null,null,null,null,null,null,"Lakefront Utilities Inc."]
[null,null,null,null,null,null,null,null,null,null,null,null,null,null,null,null,null,null,null,null,null,null,null,null,null,null,null,"Lakeland Power Distribution Ltd."]
[null,null,null,null,null,null,null,null,null,null,null,null,null,null,null,null,null,null,null,null,null,null,null,null,null,null,null,"Lakeland Power Distribution Ltd.-Parry Sound Service Area"]
[null,null,null,null,null,null,null,null,null,null,null,null,null,null,null,null,null,null,null,null,null,null,null,null,null,null,null,"London Hydro Inc."]
[null,null,null,null,null,null,null,null,null,null,null,null,null,null,null,null,null,null,null,null,null,null,null,null,null,null,null,"Milton Hydro Distribution Inc."]
[null,null,null,null,null,null,null,null,null,null,null,null,null,null,null,null,null,null,null,null,null,null,null,null,null,null,null,"Newmarket-Tay Power Distribution Ltd.-For Former Midland Power Utility Rate Zone"]
[null,null,null,null,null,null,null,null,null,null,null,null,null,null,null,null,null,null,null,null,null,null,null,null,null,null,null,"Newmarket-Tay Power Distribution Ltd.-For Newmarket-Tay Power Main Rate Zone"]
[null,null,null,null,null,null,null,null,null,null,null,null,null,null,null,null,null,null,null,null,null,null,null,null,null,null,null,"Niagara Peninsula Energy Inc."]
[null,null,null,null,null,null,null,null,null,null,null,null,null,null,null,null,null,null,null,null,null,null,null,null,null,null,null,"Niagara-on-the-Lake Hydro Inc."]
[null,null,null,null,null,null,null,null,null,null,null,null,null,null,null,null,null,null,null,null,null,null,null,null,null,null,null,"North Bay Hydro Distribution Limited - Espanola service territory"]
[null,null,null,null,null,null,null,null,null,null,null,null,null,null,null,null,null,null,null,null,null,null,null,null,null,null,null,"North Bay Hydro Distribution Limited - North Bay service territory"]
[null,null,null,null,null,null,null,null,null,null,null,null,null,null,null,null,null,null,null,null,null,null,null,null,null,null,null,"Northern Ontario Wires Inc."]
[null,null,null,null,null,null,null,null,null,null,null,null,null,null,null,null,null,null,null,null,null,null,null,null,null,null,null,"Oakville Hydro Electricity Distribution Inc."]
[null,null,null,null,null,null,null,null,null,null,null,null,null,null,null,null,null,null,null,null,null,null,null,null,null,null,null,"Orangeville Hydro Limited"]
[null,null,null,null,null,null,null,null,null,null,null,null,null,null,null,null,null,null,null,null,null,null,null,null,null,null,null,"Orillia Power Distribution Corporation"]
[null,null,null,null,null,null,null,null,null,null,null,null,null,null,null,null,null,null,null,null,null,null,null,null,null,null,null,"Oshawa PUC Networks Inc."]
[null,null,null,null,null,null,null,null,null,null,null,null,null,null,null,null,null,null,null,null,null,null,null,null,null,null,null,"Ottawa River Power Corporation"]
[null,null,null,null,null,null,null,null,null,null,null,null,null,null,null,null,null,null,null,null,null,null,null,null,null,null,null,"Peterborough Distribution Incorporated"]
[null,null,null,null,null,null,null,null,null,null,null,null,null,null,null,null,null,null,null,null,null,null,null,null,null,null,null,"PUC Distribution Inc."]
[null,null,null,null,null,null,null,null,null,null,null,null,null,null,null,null,null,null,null,null,null,null,null,null,null,null,null,"Renfrew Hydro Inc."]
[null,null,null,null,null,null,null,null,null,null,null,null,null,null,null,null,null,null,null,null,null,null,null,null,null,null,null,"Rideau St. Lawrence Distribution Inc."]
[null,null,null,null,null,null,null,null,null,null,null,null,null,null,null,null,null,null,null,null,null,null,null,null,null,null,null,"Sioux Lookout Hydro Inc."]
[null,null,null,null,null,null,null,null,null,null,null,null,null,null,null,null,null,null,null,null,null,null,null,null,null,null,null,"Synergy North Corporation-Kenora Rate Zone"]
[null,null,null,null,null,null,null,null,null,null,null,null,null,null,null,null,null,null,null,null,null,null,null,null,null,null,null,"Synergy North Corporation-Thunder Bay Rate Zone "]
[null,null,null,null,null,null,null,null,null,null,null,null,null,null,null,null,null,null,null,null,null,null,null,null,null,null,null,"Tillsonburg Hydro Inc."]
[null,null,null,null,null,null,null,null,null,null,null,null,null,null,null,null,null,null,null,null,null,null,null,null,null,null,null,"Toronto Hydro-Electric System Limited"]
[null,null,null,null,null,null,null,null,null,null,null,null,null,null,null,null,null,null,null,null,null,null,null,null,null,null,null,"Wasaga Distribution Inc."]
[null,null,null,null,null,null,null,null,null,null,null,null,null,null,null,null,null,null,null,null,null,null,null,null,null,null,null,"Waterloo North Hydro Inc."]
[null,null,null,null,null,null,null,null,null,null,null,null,null,null,null,null,null,null,null,null,null,null,null,null,null,null,null,"Welland Hydro-Electric System Corp."]
[null,null,null,null,null,null,null,null,null,null,null,null,null,null,null,null,null,null,null,null,null,null,null,null,null,null,null,"Wellington North Power Inc."]
[null,null,null,null,null,null,null,null,null,null,null,null,null,null,null,null,null,null,null,null,null,null,null,null,null,null,null,"Westario Power Inc."]

{"sheet":"2021 List","index":1,"n_rows":73,"n_cols":2,"rows_kept":73,"cut":false,"hidden":true,"merged":[]}
["Alectra Utilities Corporation-Brampton Rate Zone","HHPNS717"]
["Alectra Utilities Corporation-Enersource Rate Zone","HHPNS717"]
["Alectra Utilities Corporation-Horizon Utilities Rate Zone","HHPNS717"]
["Alectra Utilities Corporation-PowerStream Rate Zone","HHPNS717"]
["Alectra Utilities Corporation-Guelph Rate Zone","HHPNS717"]
["Algoma Power Inc.","WKBSV849"]
["Atikokan Hydro Inc.","NJYBW716"]
["Bluewater Power Distribution Corporation","GQQHM388"]
["Brantford Power Inc.","SFXZP935"]
["Burlington Hydro Inc.","OARZC118"]
["Canadian Niagara Power Inc.","HJHBH994"]
["Centre Wellington Hydro Ltd.","KQEEH473"]
["Chapleau Public Utilities Corporation","CPEFQ593"]
["Cooperative Hydro Embrun Inc.","QXHJU641"]
["E.L.K. Energy Inc.","AVXSO594"]
["Elexicon Energy Inc.-Whitby Rate Zone","JMNNR431"]
["Elexicon Energy Inc.-Veridian Rate Zone","JMNNR431"]
["Energy+ Inc.","JKBZG525"]
["Entegrus Powerlines Inc.-For Entegrus-Main Rate Zone","YEOQG654"]
["Entegrus Powerlines Inc.-For Former St. Thomas Energy Rate Zone","YEOQG654"]
["ENWIN Utilities Ltd.","PTLUC812"]
["EPCOR Electricity Distribution Ontario Inc.","ADICB565"]
["ERTH Power Corporation - ERTH Power Main Rate Zone","LRECV427"]
["ERTH POWER CORPORATION – GODERICH RATE ZONE","KTCNY552"]
["Espanola Regional Hydro Distribution Corporation","YEPCI143"]
["Essex Powerlines Corporation","GRHTW113"]
["Festival Hydro Inc.","GMGHU415"]
["Fort Frances Power Corporation","YTPWF351"]
["Greater Sudbury Hydro Inc.","YCYKQ642"]
["Grimsby Power Incorporated","ADZFM459"]
["Halton Hills Hydro Inc.","RVWKN794"]
["Hearst Power Distribution Co. Ltd.","KESKM585"]
["Hydro 2000 Inc.","MQFNL784"]
["Hydro Hawkesbury Inc.","FNDHH648"]
["Hydro One Networks Inc.","PTREM828"]
["Hydro One Networks Inc.-Former Haldimand County Hydro Inc. Service Area","PTREM828"]
["Hydro One Networks Inc.-Former Norfolk Power Distribution Inc. Service Area","PTREM828"]
["Hydro One Networks Inc.-Former Woodstock Hydro Services Inc. Service Area","PTREM828"]
["Hydro One Remote Communites Inc.","UBBYF452"]
["Hydro Ottawa Limited","NSBED625"]
["InnPower Corporation","TXKTT167"]
["Kingston Hydro Corporation","ZHKLA874"]
["Kitchener-Wilmot Hydro Inc.","YLJHT264"]
["Lakefront Utilities Inc.","YLCEC559"]
["Lakeland Power Distribution Ltd.","NHKJF259"]
["Lakeland Power Distribution Ltd.-Parry Sound Service Area","NHKJF259"]
["London Hydro Inc.","SLRXO177"]
["Milton Hydro Distribution Inc.","UIFEM157"]
["Newmarket-Tay Power Distribution Ltd.-For Former Midland Power Utility Rate Zone","RUZIU984"]
["Newmarket-Tay Power Distribution Ltd.-For Newmarket-Tay Power Main Rate Zone","RUZIU984"]
["Niagara Peninsula Energy Inc.","KSUYD122"]
["Niagara-on-the-Lake Hydro Inc.","QHCKN852"]
["North Bay Hydro Distribution Limited","FUIJX538"]
["Northern Ontario Wires Inc.","PWKJP953"]
["Oakville Hydro Electricity Distribution Inc.","JEGGW178"]
["Orangeville Hydro Limited","TVKSH414"]
["Orillia Power Distribution Corporation","DUISI693"]
["Oshawa PUC Networks Inc.","PQZCY963"]
["Ottawa River Power Corporation","GTLBW445"]
["Peterborough Distribution Incorporated","XCFPH269"]
["PUC Distribution Inc.","MLWYG784"]
["Renfrew Hydro Inc.","QDKIF127"]
["Rideau St. Lawrence Distribution Inc.","AMZEN437"]
["Sioux Lookout Hydro Inc.","ACEVX242"]
["Synergy North Corporation-Kenora Rate Zone","DSPWZ318"]
["Synergy North Corporation-Thunder Bay Rate Zone ","DSPWZ318"]
["Tillsonburg Hydro Inc.","OLIUU862"]
["Toronto Hydro-Electric System Limited","NIOJF461"]
["Wasaga Distribution Inc.","ZYZFO848"]
["Waterloo North Hydro Inc.","ASEGZ471"]
["Welland Hydro-Electric System Corp.","IOKHC383"]
["Wellington North Power Inc.","SKVKJ649"]
["Westario Power Inc.","TPFNQ593"]

{"sheet":"Sheet1","index":2,"n_rows":11,"n_cols":2,"rows_kept":11,"cut":false,"hidden":true,"merged":[]}
[]
[]
[]
[]
["2. Table of Contents","X"]
["3. RRR Data","X"]
["4. UTRs and Sub-Transmission","X"]
["5. Historical Wholesale","X"]
["6. Current Wholesale","X"]
["7. Forecast Wholesale","X"]
["8. RTSR Rates to Forecast","X"]

{"sheet":"2. Table of Contents","index":3,"n_rows":26,"n_cols":9,"rows_kept":26,"cut":false,"hidden":false,"merged":[]}
[]
[]
[]
[]
[]
[]
[]
[]
[]
[]
[]
[]
[]
[]
[]
[]
[]
[]
[]
[null,null,null,"1. Info",null,null,null,null,"5. Historical Wholesale"]
[]
[null,null,null,"2. Table of Contents",null,null,null,null,"6. Current Wholesale"]
[]
[null,null,null,"3. RRR Data",null,null,null,null,"7. Forecast Wholesale"]
[]
[null,null,null,"4. UTRs and Sub-Transmission",null,null,null,null,"8. RTSR Rates to Forecast"]

{"sheet":"3. RRR Data","index":4,"n_rows":26,"n_cols":52,"rows_kept":26,"cut":false,"hidden":false,"merged":[[12,1,12,8]]}
[null,null,null,null,null,null,null,null,null,null,null,null,null,null,null,null,null,null,null,null,null,null,null,null,null,null,null,null,null,null,null,null,null,null,null,null,null,null,null,null,null,null,null,null,null,null,null,null,null,null,null,1]
[]
[]
[]
[]
[]
[]
[]
[]
[]
[]
[]
[]
[]
[null,"Rate Class","Rate Description","Unit","Rate","Non-Loss Adjusted Metered kWh","Non-Loss Adjusted Metered kW","Applicable \nLoss Factor\neg: (1.0325)","Loss Adjusted Billed kWh"]
[]
[null,"RESIDENTIAL SERVICE CLASSIFICATION","Retail Transmission Rate - Network Service Rate","$/kWh",7.7000000000000002E-3,21654999,0,1.0749,{"$f":"F17*H17","v":23276958.425099999}]
[null,"RESIDENTIAL SERVICE CLASSIFICATION","Retail Transmission Rate - Line and Transformation Connection Service Rate","$/kWh",6.4999999999999997E-3,21654999,0,1.0749,23276958.425099999]
[null,"GENERAL SERVICE LESS THAN 50 KW SERVICE CLASSIFICATION","Retail Transmission Rate - Network Service Rate","$/kWh",7.0000000000000001E-3,4350730,0,1.0749,4676599.6770000001]
[null,"GENERAL SERVICE LESS THAN 50 KW SERVICE CLASSIFICATION","Retail Transmission Rate - Line and Transformation Connection Service Rate","$/kWh",5.5999999999999999E-3,4350730,0,1.0749,4676599.6770000001]
[null,"GENERAL SERVICE 50 to 4,999 kW SERVICE CLASSIFICATION","Retail Transmission Rate - Network Service Rate","$/kW",2.8323999999999998,3959238,9472,1.0749,4255784.9261999996]
[null,"GENERAL SERVICE 50 to 4,999 kW SERVICE CLASSIFICATION","Retail Transmission Rate - Line and Transformation Connection Service Rate","$/kW",2.2698999999999998,3959238,9472,1.0749,4255784.9261999996]
[null,"UNMETERED SCATTERED LOAD SERVICE CLASSIFICATION","Retail Transmission Rate - Network Service Rate","$/kWh",7.0000000000000001E-3,93084,0,1.0749,100055.99159999999]
[null,"UNMETERED SCATTERED LOAD SERVICE CLASSIFICATION","Retail Transmission Rate - Line and Transformation Connection Service Rate","$/kWh",5.5999999999999999E-3,93084,0,1.0749,100055.99159999999]
[null,"STREET LIGHTING SERVICE CLASSIFICATION","Retail Transmission Rate - Network Service Rate","$/kW",2.1362000000000001,214544,592,1.0749,230613.3456]
[null,"STREET LIGHTING SERVICE CLASSIFICATION","Retail Transmission Rate - Line and Transformation Connection Service Rate","$/kW",1.7546999999999999,214544,592,1.0749,230613.3456]

{"sheet":"4. UTRs and Sub-Transmission","index":5,"n_rows":76,"n_cols":12,"rows_kept":76,"cut":false,"hidden":false,"merged":[[29,7,29,9],[45,7,45,9],[51,7,51,9],[53,7,53,9],[36,7,36,9],[38,7,38,9],[40,7,40,9],[42,7,42,9],[34,7,34,9],[57,7,57,9],[49,7,49,9],[60,7,60,9],[64,7,64,9],[66,7,66,9],[55,7,55,9],[68,7,68,9],[70,7,70,9],[72,7,72,9],[74,7,74,9],[75,7,75,9]]}
[]
[]
[]
[]
[]
[]
[]
[]
[]
[]
[]
[]
[]
[]
[]
[]
[]
[null,"Uniform Transmission Rates","Unit",null,2021,null,null,2022,null,2022,null,2023]
[null,null,null,null,null,null,null,"Jan to Jun",null,"Jul to Dec"]
[]
[null,"Rate Description",null,null,"Rate",null,null,"Rate",null,"Rate",null,"Rate"]
[]
[null,"Network Service Rate","kW",null,4.67,null,null,4.67,null,5.13,null,5.46]
[]
[null,"Line Connection Service Rate","kW",null,0.77,null,null,0.77,null,0.8,null,0.88]
[]
[null,"Transformation Connection Service Rate","kW",null,2.5299999999999998,null,null,2.5299999999999998,null,2.81,null,{"$f":"J27","v":2.81}]
[]
[]
[null,"Hydro One Sub-Transmission Rates","Unit",null,2021,null,null,2022,null,null,null,2023]
[]
[]
[]
[]
[null,"Rate Description",null,null,"Rate",null,null,"Rate",null,null,null,"Rate"]
[]
[null,"Network Service Rate","kW",null,3.4777999999999998,null,null,3.4777999999999998,null,null,null,4.3472999999999997]
[]
[null,"Line Connection Service Rate","kW",null,0.81279999999999997,null,null,0.81279999999999997,null,null,null,0.67879999999999996]
[]
[null,"Transformation Connection Service Rate","kW",null,2.0457999999999998,null,null,2.0457999999999998,null,null,null,2.3267000000000002]
[]
[null,"Both Line and Transformation Connection Service Rate","kW",null,{"$f":"E41+E39","v":2.8586},null,null,{"$f":"SUM(H41,H39)","v":2.8586},null,null,null,{"$f":"SUM(L41,L39)","v":3.0055000000000001}]
[]
[]
[null,"If needed, add extra host here. (I)","Unit",null,2021,null,null,2022,null,null,null,2023]
[]
[]
[]
[null,"Rate Description",null,null,"Rate",null,null,"Rate",null,null,null,"Rate"]
[]
[null,"Network Service Rate","kW"]
[]
[null,"Line Connection Service Rate","kW"]
[]
[null,"Transformation Connection Service Rate","kW"]
[]
[null,"Both Line and Transformation Connection Service Rate","kW",null,{"$f":"SUM(E54,E56)","v":0},null,null,{"$f":"SUM(H54,H56)","v":0},null,null,null,{"$f":"L56+L54","v":0}]
[]
[]
[null,"If needed, add extra host here. (II)","Unit",null,2021,null,null,2022,null,null,null,2023]
[]
[]
[]
[null,"Rate Description",null,null,"Rate",null,null,"Rate",null,null,null,"Rate"]
[]
[null,"Network Service Rate","kW"]
[]
[null,"Line Connection Service Rate","kW"]
[]
[null,"Transformation Connection Service Rate","kW"]
[]
[null,"Both Line and Transformation Connection Service Rate","kW",null,{"$f":"SUM(E69,E71)","v":0},null,null,{"$f":"SUM(H69,H71)","v":0},null,null,null,{"$f":"L71+L69","v":0}]
[]
[null,null,null,null,2021,null,null,"Current 2022",null,null,null,"Forecast 2023"]
[null,"Low Voltage Switchgear Credit (if applicable, enter as a negative value)","$"]

{"sheet":"5. Historical Wholesale","index":6,"n_rows":117,"n_cols":16,"rows_kept":117,"cut":false,"hidden":false,"merged":[[95,7,95,9],[95,11,95,13],[96,7,96,9],[96,11,96,13],[20,3,20,5],[20,7,20,9],[20,11,20,13],[96,3,96,5],[38,3,38,5],[38,7,38,9],[38,11,38,13],[95,3,95,5],[57,3,57,5],[57,7,57,9],[57,11,57,13],[76,3,76,5],[76,7,76,9],[76,11,76,13]]}
[]
[]
[]
[]
[]
[]
[]
[]
[]
[]
[]
[]
[]
[]
[]
[]
[]
[]
[]
[]
[null,"IESO",null,"Network",null,null,null,"Line Connection",null,null,null,"Transformation Connection",null,null,null,"Total Connection"]
[null,"Month",null,"Units Billed","Rate","Amount",null,"Units Billed","Rate","Amount",null,"Units Billed","Rate","Amount",null,"Amount"]
[]
[null,"January",null,null,{"$f":"IF(D24<>0,F24/D24,0)","v":0},null,null,null,{"$f":"IF(H24<>0,J24/H24,0)","v":0},null,null,null,{"$f":"IF(L24<>0,N24/L24,0)","v":0},null,null,{"$f":"J24+N24","v":0}]
[null,"February",null,null,0,null,null,null,0,null,null,null,0,null,null,0]
[null,"March",null,null,0,null,null,null,0,null,null,null,0,null,null,0]
[null,"April",null,null,0,null,null,null,0,null,null,null,0,null,null,0]
[null,"May",null,null,0,null,null,null,0,null,null,null,0,null,null,0]
[null,"June",null,null,0,null,null,null,0,null,null,null,0,null,null,0]
[null,"July",null,null,0,null,null,null,0,null,null,null,0,null,null,0]
[null,"August",null,null,0,null,null,null,0,null,null,null,0,null,null,0]
[null,"September",null,null,0,null,null,null,0,null,null,null,0,null,null,0]
[null,"October",null,null,0,null,null,null,0,null,null,null,0,null,null,0]
[null,"November",null,null,0,null,null,null,0,null,null,null,0,null,null,0]
[null,"December",null,null,0,null,null,null,0,null,null,null,0,null,null,0]
[]
[null,"Total",null,{"$f":"SUM(D24:D35)","v":0},{"$f":"IF(D37<>0,F37/D37,0)","v":0},{"$f":"SUM(F24:F35)","v":0},null,{"$f":"SUM(H24:H35)","v":0},{"$f":"IF(H37<>0,J37/H37,0)","v":0},{"$f":"SUM(J24:J35)","v":0},null,{"$f":"SUM(L24:L35)","v":0},{"$f":"IF(L37<>0,N37/L37,0)","v":0},{"$f":"SUM(N24:N35)","v":0},null,{"$f":"SUM(P24:P35)","v":0}]
[]
[null,"Hydro One",null,"Network",null,null,null,"Line Connection",null,null,null,"Transformation Connection",null,null,null,"Total Connection"]
[]
[null,"Month",null,"Units Billed","Rate","Amount",null,"Units Billed","Rate","Amount",null,"Units Billed","Rate","Amount",null,"Amount"]
[]
[null,"January",null,5572.02,{"$f":"ROUND(IF(D43<>0,F43/D43,0),4)","v":3.4777999999999998},19378.37,null,5891.32,{"$f":"ROUND(IF(H43<>0,J43/H43,0),4)","v":0.81279999999999997},4788.46,null,5891.32,{"$f":"ROUND(IF(L43<>0,N43/L43,0),4)","v":2.0457999999999998},12052.46,null,{"$f":"J43+N43","v":16840.919999999998}]
[null,"February",null,5509.15,{"$f":"ROUND(IF(D44<>0,F44/D44,0),4)","v":3.4777999999999998},19159.73,null,5686.17,{"$f":"ROUND(IF(H44<>0,J44/H44,0),4)","v":0.81279999999999997},4621.72,null,5686.17,{"$f":"ROUND(IF(L44<>0,N44/L44,0),4)","v":2.0457999999999998},11632.77,null,16254.490000000002]
[null,"March",null,5199.78,3.4777999999999998,18083.79,null,5214.67,0.81279999999999997,4238.4799999999996,null,5214.67,2.0457999999999998,10668.17,null,14906.65]
[null,"April",null,4163.3,3.4777999999999998,14479.12,null,4284.07,0.81279999999999997,3482.09,null,4284.07,2.0457999999999998,8764.35,null,12246.44]
[null,"May",null,5663.84,3.4777999999999998,19697.7,null,5773.86,0.81279999999999997,4692.99,null,5773.86,2.0457999999999998,11812.15,null,16505.14]
[null,"June",null,6955.1,3.4777999999999998,24188.44,null,6955.1,0.81279999999999997,5653.1,null,6955.1,2.0457999999999998,14228.74,null,19881.84]
[null,"July",null,6395.08,3.4777999999999998,22240.82,null,6395.08,0.81279999999999997,5197.92,null,6395.08,2.0457999999999998,13083.06,null,18280.98]
[null,"August",null,7186.71,3.4777999999999998,24993.95,null,7205.74,0.81279999999999997,5856.82,null,7205.74,2.0457999999999998,14741.5,null,20598.32]
[null,"September",null,4813.4799999999996,3.4777999999999998,16740.310000000001,null,4813.4799999999996,0.81279999999999997,3912.39,null,4813.4799999999996,2.0457999999999998,9847.41,null,13759.8]
[null,"October",null,4346.1099999999997,3.4777999999999998,15114.9,null,4346,0.81279999999999997,3532.52,null,4346.1099999999997,2.0457999999999998,8891.27,null,12423.79]
[null,"November",null,5234.5200000000004,3.4777999999999998,18204.62,null,5543.89,0.81279999999999997,4506.08,null,5543.89,2.0457999999999998,11341.7,null,15847.78]
[null,"December",null,5777.99,3.4777999999999998,20094.7,null,5795.36,0.81279999999999997,4710.47,null,5795.36,2.0457999999999998,11856.15,null,16566.62]
[]
[null,"Total",null,{"$f":"SUM(D43:D54)","v":66817.080000000016},{"$f":"IF(D56<>0,F56/D56,0)","v":3.477800137330155},{"$f":"SUM(F43:F54)","v":232376.45},null,{"$f":"SUM(H43:H54)","v":67904.740000000005},{"$f":"IF(H56<>0,J56/H56,0)","v":0.8128009915066311},{"$f":"SUM(J43:J54)","v":55193.039999999994},null,{"$f":"SUM(L43:L54)","v":67904.850000000006},{"$f":"IF(L56<>0,N56/L56,0)","v":2.0457998213676931},{"$f":"SUM(N43:N54)","v":138919.73000000001},null,{"$f":"SUM(P43:P54)","v":194112.77}]
[]
[null,"Add Extra Host Here (I)",null,"Network",null,null,null,"Line Connection",null,null,null,"Transformation Connection",null,null,null,"Total Connection"]
[null,"(if needed)"]
[null,"Month",null,"Units Billed","Rate","Amount",null,"Units Billed","Rate","Amount",null,"Units Billed","Rate","Amount",null,"Amount"]
[]
[null,"January",null,null,{"$f":"IF(D62<>0,F62/D62,0)","v":0},null,null,null,{"$f":"IF(H62<>0,J62/H62,0)","v":0},null,null,null,{"$f":"IF(L62<>0,N62/L62,0)","v":0},null,null,{"$f":"J62+N62","v":0}]
[null,"February",null,null,0,null,null,null,0,null,null,null,0,null,null,0]
[null,"March",null,null,0,null,null,null,0,null,null,null,0,null,null,0]
[null,"April",null,null,0,null,null,null,0,null,null,null,0,null,null,0]
[null,"May",null,null,0,null,null,null,0,null,null,null,0,null,null,0]
[null,"June",null,null,0,null,null,null,0,null,null,null,0,null,null,0]
[null,"July",null,null,0,null,null,null,0,null,null,null,0,null,null,0]
[null,"August",null,null,0,null,null,null,0,null,null,null,0,null,null,0]
[null,"September",null,null,0,null,null,null,0,null,null,null,0,null,null,0]
[null,"October",null,null,0,null,null,null,0,null,null,null,0,null,null,0]
[null,"November",null,null,0,null,null,null,0,null,null,null,0,null,null,0]
[null,"December",null,null,0,null,null,null,0,null,null,null,0,null,null,0]
[]
[null,"Total",null,{"$f":"SUM(D62:D73)","v":0},{"$f":"IF(D75<>0,F75/D75,0)","v":0},{"$f":"SUM(F62:F73)","v":0},null,{"$f":"SUM(H62:H73)","v":0},{"$f":"IF(H75<>0,J75/H75,0)","v":0},{"$f":"SUM(J62:J73)","v":0},null,{"$f":"SUM(L62:L73)","v":0},{"$f":"IF(L75<>0,N75/L75,0)","v":0},{"$f":"SUM(N62:N73)","v":0},null,{"$f":"SUM(P62:P73)","v":0}]
[]
[null,"Add Extra Host Here (II)",null,"Network",null,null,null,"Line Connection",null,null,null,"Transformation Connection",null,null,null,"Total Connection"]
[null,"(if needed)"]
[null,"Month",null,"Units Billed","Rate","Amount",null,"Units Billed","Rate","Amount",null,"Units Billed","Rate","Amount",null,"Amount"]
[]
[null,"January",null,null,{"$f":"IF(D81<>0,F81/D81,0)","v":0},null,null,null,{"$f":"IF(H81<>0,J81/H81,0)","v":0},null,null,null,{"$f":"IF(L81<>0,N81/L81,0)","v":0},null,null,{"$f":"J81+N81","v":0}]
[null,"February",null,null,0,null,null,null,0,null,null,null,0,null,null,0]
[null,"March",null,null,0,null,null,null,0,null,null,null,0,null,null,0]
[null,"April",null,null,0,null,null,null,0,null,null,null,0,null,null,0]
[null,"May",null,null,0,null,null,null,0,null,null,null,0,null,null,0]
[null,"June",null,null,0,null,null,null,0,null,null,null,0,null,null,0]
[null,"July",null,null,0,null,null,null,0,null,null,null,0,null,null,0]
[null,"August",null,null,0,null,null,null,0,null,null,null,0,null,null,0]
[null,"September",null,null,0,null,null,null,0,null,null,null,0,null,null,0]
[null,"October",null,null,0,null,null,null,0,null,null,null,0,null,null,0]
[null,"November",null,null,0,null,null,null,0,null,null,null,0,null,null,0]
[null,"December",null,null,0,null,null,null,0,null,null,null,0,null,null,0]
[]
[null,"Total",null,{"$f":"SUM(D81:D92)","v":0},{"$f":"IF(D94<>0,F94/D94,0)","v":0},{"$f":"SUM(F81:F92)","v":0},null,{"$f":"SUM(H81:H92)","v":0},{"$f":"IF(H94<>0,J94/H94,0)","v":0},{"$f":"SUM(J81:J92)","v":0},null,{"$f":"SUM(L81:L92)","v":0},{"$f":"IF(L94<>0,N94/L94,0)","v":0},{"$f":"SUM(N81:N92)","v":0},null,{"$f":"SUM(P81:P92)","v":0}]
[]
[null,"Total",null,"Network",null,null,null,"Line Connection",null,null,null,"Transformation Connection",null,null,null,"Total Connection"]
[]
[null,"Month",null,"Units Billed","Rate","Amount",null,"Units Billed","Rate","Amount",null,"Units Billed","Rate","Amount",null,"Amount"]
[]
[null,"January",null,{"$f":"D24+D43+D62+D81","v":5572.02},{"$f":"IF(D100<>0,F100/D100,0)","v":3.4777997925348432},{"$f":"F24+F43+F62+F81","v":19378.37},null,{"$f":"H24+H43+H62+H81","v":5891.32},{"$f":"IF(H100<>0,J100/H100,0)","v":0.81279916894685744},{"$f":"J24+J43+J62+J81","v":4788.46},null,{"$f":"L24+L43+L62+L81","v":5891.32},{"$f":"IF(L100<>0,N100/L100,0)","v":2.0457995831154987},{"$f":"N24+N43+N62+N81","v":12052.46},null,{"$f":"J100+N100","v":16840.919999999998}]
[null,"February",null,{"$f":"D25+D44+D63+D82","v":5509.15},3.4778014757267455,{"$f":"F25+F44+F63+F82","v":19159.73},null,{"$f":"H25+H44+H63+H82","v":5686.17},0.81280018008606847,{"$f":"J25+J44+J63+J82","v":4621.72},null,{"$f":"L25+L44+L63+L82","v":5686.17},2.0458006004041387,{"$f":"N25+N44+N63+N82","v":11632.77},null,16254.490000000002]
[null,"March",null,5199.78,3.4777990607294926,18083.79,null,5214.67,0.81279927588898238,4238.4799999999996,null,5214.67,2.0457996383280244,10668.17,null,14906.65]
[null,"April",null,4163.3,3.4777988614800761,14479.12,null,4284.07,0.81279951074562284,3482.09,null,4284.07,2.0457999052303069,8764.35,null,12246.44]
[null,"May",null,5663.84,3.477799514110568,19697.7,null,5773.86,0.81279940975361376,4692.99,null,5773.86,2.0457977851904965,11812.15,null,16505.14]
[null,"June",null,6955.1,3.47779902517577,24188.44,null,6955.1,0.81279924084484767,5653.1,null,6955.1,2.0457994852698018,14228.74,null,19881.84]
[null,"July",null,6395.08,3.4778016850453786,22240.82,null,6395.08,0.81279983987690541,5197.92,null,6395.08,2.0458008343914384,13083.06,null,18280.98]
[null,"August",null,7186.71,3.4778013861697494,24993.95,null,7205.74,0.8127992406054062,5856.82,null,7205.74,2.045799598653296,14741.5,null,20598.32]
[null,"September",null,4813.4799999999996,3.4777977679350496,16740.310000000001,null,4813.4799999999996,0.81279864048463901,3912.39,null,4813.4799999999996,2.045798465974721,9847.41,null,13759.8]
[null,"October",null,4346.1099999999997,3.4777996875366708,15114.9,null,4346,0.81282098481362175,3532.52,null,4346.1099999999997,2.0457995770930788,8891.27,null,12423.79]
[null,"November",null,5234.5200000000004,3.4778012119544863,18204.62,null,5543.89,0.81280111979133784,4506.08,null,5543.89,2.0458017745662342,11341.7,null,15847.78]
[null,"December",null,5777.99,3.4778011038440706,20094.7,null,5795.36,0.8128002401921538,4710.47,null,5795.36,2.0458004334502085,11856.15,null,16566.62]
[]
[null,"Total",null,{"$f":"SUM(D100:D111)","v":66817.080000000016},{"$f":"IF(D113<>0,F113/D113,0)","v":3.477800137330155},{"$f":"SUM(F100:F111)","v":232376.45},null,{"$f":"SUM(H100:H111)","v":67904.740000000005},{"$f":"IF(H113<>0,J113/H113,0)","v":0.8128009915066311},{"$f":"SUM(J100:J111)","v":55193.039999999994},null,{"$f":"SUM(L100:L111)","v":67904.850000000006},{"$f":"IF(L113<>0,N113/L113,0)","v":2.0457998213676931},{"$f":"SUM(N100:N111)","v":138919.73000000001},null,{"$f":"SUM(P100:P111)","v":194112.77}]
[]
[null,null,null,null,null,null,null,null,null,null,null,null,null,"Low Voltage Switchgear Credit (if applicable)",null,{"$f":"'4. UTRs and Sub-Transmission'!E76","v":0}]
[]
[null,null,null,null,null,null,null,null,null,null,null,null,null,"Total including deduction for Low Voltage Switchgear Credit",null,{"$f":"P113+P115","v":194112.77}]

{"sheet":"6. Current Wholesale","index":7,"n_rows":117,"n_cols":16,"rows_kept":117,"cut":false,"hidden":false,"merged":[[12,1,12,11],[19,3,19,5],[19,7,19,9],[19,11,19,13],[38,3,38,5],[38,7,38,9],[38,11,38,13],[96,7,96,9],[96,11,96,13],[20,3,20,5],[20,7,20,9],[20,11,20,13],[96,3,96,5],[95,3,95,5],[95,7,95,9],[95,11,95,13],[57,3,57,5],[57,7,57,9],[57,11,57,13],[76,3,76,5],[76,7,76,9],[76,11,76,13]]}
[]
[]
[]
[]
[]
[]
[]
[]
[]
[]
[]
[]
[null,"The purpose of this sheet is to calculate the expected billing when current 2021 Uniform Transmission Rates and Hydro One Sub-transmission Rates are applied against historical 2020 transmission units."]
[]
[]
[]
[]
[]
[]
[null,"IESO",null,"Network",null,null,null,"Line Connection",null,null,null,"Transformation Connection",null,null,null,"Total Connection"]
[]
[null,"Month",null,"Units Billed","Rate","Amount",null,"Units Billed","Rate","Amount",null,"Units Billed","Rate","Amount",null,"Amount"]
[]
[null,"January",null,{"$f":"'5. Historical Wholesale'!D24","v":0},{"$f":"'4. UTRs and Sub-Transmission'!H23","v":4.67},{"$f":"D24*E24","v":0},null,{"$f":"'5. Historical Wholesale'!H24","v":0},{"$f":"'4. UTRs and Sub-Transmission'!H25","v":0.77},{"$f":"H24*I24","v":0},null,{"$f":"'5. Historical Wholesale'!L24","v":0},{"$f":"'4. UTRs and Sub-Transmission'!H27","v":2.5299999999999998},{"$f":"L24*M24","v":0},null,{"$f":"J24+N24","v":0}]
[null,"February",null,{"$f":"'5. Historical Wholesale'!D25","v":0},{"$f":"E24","v":4.67},{"$f":"D25*E25","v":0},null,{"$f":"'5. Historical Wholesale'!H25","v":0},{"$f":"I24","v":0.77},{"$f":"H25*I25","v":0},null,{"$f":"'5. Historical Wholesale'!L25","v":0},{"$f":"M24","v":2.5299999999999998},{"$f":"L25*M25","v":0},null,0]
[null,"March",null,{"$f":"'5. Historical Wholesale'!D26","v":0},{"$f":"E25","v":4.67},0,null,{"$f":"'5. Historical Wholesale'!H26","v":0},{"$f":"I25","v":0.77},0,null,{"$f":"'5. Historical Wholesale'!L26","v":0},{"$f":"M25","v":2.5299999999999998},0,null,0]
[null,"April",null,{"$f":"'5. Historical Wholesale'!D27","v":0},4.67,0,null,{"$f":"'5. Historical Wholesale'!H27","v":0},0.77,0,null,{"$f":"'5. Historical Wholesale'!L27","v":0},2.5299999999999998,0,null,0]
[null,"May",null,{"$f":"'5. Historical Wholesale'!D28","v":0},4.67,0,null,{"$f":"'5. Historical Wholesale'!H28","v":0},0.77,0,null,{"$f":"'5. Historical Wholesale'!L28","v":0},2.5299999999999998,0,null,0]
[null,"June",null,{"$f":"'5. Historical Wholesale'!D29","v":0},4.67,0,null,{"$f":"'5. Historical Wholesale'!H29","v":0},0.77,0,null,{"$f":"'5. Historical Wholesale'!L29","v":0},2.5299999999999998,0,null,0]
[null,"July",null,{"$f":"'5. Historical Wholesale'!D30","v":0},{"$f":"'4. UTRs and Sub-Transmission'!J23","v":5.13},0,null,{"$f":"'5. Historical Wholesale'!H30","v":0},{"$f":"'4. UTRs and Sub-Transmission'!J25","v":0.8},0,null,{"$f":"'5. Historical Wholesale'!L30","v":0},{"$f":"'4. UTRs and Sub-Transmission'!J27","v":2.81},0,null,0]
[null,"August",null,{"$f":"'5. Historical Wholesale'!D31","v":0},5.13,0,null,{"$f":"'5. Historical Wholesale'!H31","v":0},0.8,0,null,{"$f":"'5. Historical Wholesale'!L31","v":0},2.81,0,null,0]
[null,"September",null,{"$f":"'5. Historical Wholesale'!D32","v":0},5.13,0,null,{"$f":"'5. Historical Wholesale'!H32","v":0},0.8,0,null,{"$f":"'5. Historical Wholesale'!L32","v":0},2.81,0,null,0]
[null,"October",null,{"$f":"'5. Historical Wholesale'!D33","v":0},5.13,0,null,{"$f":"'5. Historical Wholesale'!H33","v":0},0.8,0,null,{"$f":"'5. Historical Wholesale'!L33","v":0},2.81,0,null,0]
[null,"November",null,{"$f":"'5. Historical Wholesale'!D34","v":0},5.13,0,null,{"$f":"'5. Historical Wholesale'!H34","v":0},0.8,0,null,{"$f":"'5. Historical Wholesale'!L34","v":0},2.81,0,null,0]
[null,"December",null,{"$f":"'5. Historical Wholesale'!D35","v":0},5.13,0,null,{"$f":"'5. Historical Wholesale'!H35","v":0},0.8,0,null,{"$f":"'5. Historical Wholesale'!L35","v":0},2.81,0,null,0]
[]
[null,"Total",null,{"$f":"SUM(D24:D35)","v":0},{"$f":"IF(D37<>0,F37/D37,0)","v":0},{"$f":"SUM(F24:F35)","v":0},null,{"$f":"SUM(H24:H35)","v":0},{"$f":"IF(H37<>0,J37/H37,0)","v":0},{"$f":"SUM(J24:J35)","v":0},null,{"$f":"SUM(L24:L35)","v":0},{"$f":"IF(L37<>0,N37/L37,0)","v":0},{"$f":"SUM(N24:N35)","v":0},null,{"$f":"SUM(P24:P35)","v":0}]
[]
[null,"Hydro One",null,"Network",null,null,null,"Line Connection",null,null,null,"Transformation Connection",null,null,null,"Total Connection"]
[]
[null,"Month",null,"Units Billed","Rate","Amount",null,"Units Billed","Rate","Amount",null,"Units Billed","Rate","Amount",null,"Amount"]
[]
[null,"January",null,{"$f":"'5. Historical Wholesale'!D43","v":5572.02},{"$f":"'4. UTRs and Sub-Transmission'!H37","v":3.4777999999999998},{"$f":"D43*E43","v":19378.371156000001},null,{"$f":"'5. Historical Wholesale'!H43","v":5891.32},{"$f":"'4. UTRs and Sub-Transmission'!H39","v":0.81279999999999997},{"$f":"H43*I43","v":4788.4648959999995},null,{"$f":"'5. Historical Wholesale'!L43","v":5891.32},{"$f":"'4. UTRs and Sub-Transmission'!H41","v":2.0457999999999998},{"$f":"L43*M43","v":12052.462455999999},null,{"$f":"J43+N43","v":16840.927351999999}]
[null,"February",null,{"$f":"'5. Historical Wholesale'!D44","v":5509.15},{"$f":"E43","v":3.4777999999999998},{"$f":"D44*E44","v":19159.721869999998},null,{"$f":"'5. Historical Wholesale'!H44","v":5686.17},{"$f":"I43","v":0.81279999999999997},{"$f":"H44*I44","v":4621.7189760000001},null,{"$f":"'5. Historical Wholesale'!L44","v":5686.17},{"$f":"M43","v":2.0457999999999998},{"$f":"L44*M44","v":11632.766586},null,16254.485562]
[null,"March",null,{"$f":"'5. Historical Wholesale'!D45","v":5199.78},3.4777999999999998,18083.794883999999,null,{"$f":"'5. Historical Wholesale'!H45","v":5214.67},0.81279999999999997,4238.483776,null,{"$f":"'5. Historical Wholesale'!L45","v":5214.67},{"$f":"M44","v":2.0457999999999998},10668.171886,null,14906.655662000001]
[null,"April",null,{"$f":"'5. Historical Wholesale'!D46","v":4163.3},3.4777999999999998,14479.124739999999,null,{"$f":"'5. Historical Wholesale'!H46","v":4284.07},0.81279999999999997,3482.0920959999994,null,{"$f":"'5. Historical Wholesale'!L46","v":4284.07},{"$f":"M45","v":2.0457999999999998},8764.3504059999996,null,12246.442501999998]
[null,"May",null,{"$f":"'5. Historical Wholesale'!D47","v":5663.84},3.4777999999999998,19697.702752000001,null,{"$f":"'5. Historical Wholesale'!H47","v":5773.86},0.81279999999999997,4692.9934079999994,null,{"$f":"'5. Historical Wholesale'!L47","v":5773.86},2.0457999999999998,11812.162787999998,null,16505.156195999996]
[null,"June",null,{"$f":"'5. Historical Wholesale'!D48","v":6955.1},3.4777999999999998,24188.446779999998,null,{"$f":"'5. Historical Wholesale'!H48","v":6955.1},0.81279999999999997,5653.1052799999998,null,{"$f":"'5. Historical Wholesale'!L48","v":6955.1},2.0457999999999998,14228.74358,null,19881.848859999998]
[null,"July",null,{"$f":"'5. Historical Wholesale'!D49","v":6395.08},3.4777999999999998,22240.809223999997,null,{"$f":"'5. Historical Wholesale'!H49","v":6395.08},0.81279999999999997,5197.9210239999993,null,{"$f":"'5. Historical Wholesale'!L49","v":6395.08},2.0457999999999998,13083.054663999999,null,18280.975687999999]
[null,"August",null,{"$f":"'5. Historical Wholesale'!D50","v":7186.71},3.4777999999999998,24993.940037999997,null,{"$f":"'5. Historical Wholesale'!H50","v":7205.74},0.81279999999999997,5856.8254719999995,null,{"$f":"'5. Historical Wholesale'!L50","v":7205.74},2.0457999999999998,14741.502891999999,null,20598.328363999997]
[null,"September",null,{"$f":"'5. Historical Wholesale'!D51","v":4813.4799999999996},3.4777999999999998,16740.320743999997,null,{"$f":"'5. Historical Wholesale'!H51","v":4813.4799999999996},0.81279999999999997,3912.3965439999993,null,{"$f":"'5. Historical Wholesale'!L51","v":4813.4799999999996},2.0457999999999998,9847.4173839999985,null,13759.813927999998]
[null,"October",null,{"$f":"'5. Historical Wholesale'!D52","v":4346.1099999999997},3.4777999999999998,15114.901357999997,null,{"$f":"'5. Historical Wholesale'!H52","v":4346},0.81279999999999997,3532.4287999999997,null,{"$f":"'5. Historical Wholesale'!L52","v":4346.1099999999997},2.0457999999999998,8891.2718379999988,null,12423.700637999998]
[null,"November",null,{"$f":"'5. Historical Wholesale'!D53","v":5234.5200000000004},3.4777999999999998,18204.613656000001,null,{"$f":"'5. Historical Wholesale'!H53","v":5543.89},0.81279999999999997,4506.0737920000001,null,{"$f":"'5. Historical Wholesale'!L53","v":5543.89},2.0457999999999998,11341.690161999999,null,15847.763953999998]
[null,"December",null,{"$f":"'5. Historical Wholesale'!D54","v":5777.99},3.4777999999999998,20094.693621999999,null,{"$f":"'5. Historical Wholesale'!H54","v":5795.36},0.81279999999999997,4710.4686079999992,null,{"$f":"'5. Historical Wholesale'!L54","v":5795.36},2.0457999999999998,11856.147487999999,null,16566.616095999998]
[]
[null,"Total",null,{"$f":"SUM(D43:D54)","v":66817.080000000016},{"$f":"IF(D56<>0,F56/D56,0)","v":3.4777999999999989},{"$f":"SUM(F43:F54)","v":232376.44082399999},null,{"$f":"SUM(H43:H54)","v":67904.740000000005},{"$f":"IF(H56<>0,J56/H56,0)","v":0.81279999999999974},{"$f":"SUM(J43:J54)","v":55192.972671999989},null,{"$f":"SUM(L43:L54)","v":67904.850000000006},{"$f":"IF(L56<>0,N56/L56,0)","v":2.0457999999999998},{"$f":"SUM(N43:N54)","v":138919.74213},null,{"$f":"SUM(P43:P54)","v":194112.71480199997}]
[]
[null,{"$f":"'5. Historical Wholesale'!B58","v":"Add Extra Host Here (I)"},null,"Network",null,null,null,"Line Connection",null,null,null,"Transformation Connection",null,null,null,"Total Connection"]
[]
[null,"Month",null,"Units Billed","Rate","Amount",null,"Units Billed","Rate","Amount",null,"Units Billed","Rate","Amount",null,"Amount"]
[]
[null,"January",null,{"$f":"'5. Historical Wholesale'!D62","v":0},{"$f":"'4. UTRs and Sub-Transmission'!H52","v":0},{"$f":"D62*E62","v":0},null,{"$f":"'5. Historical Wholesale'!H62","v":0},{"$f":"'4. UTRs and Sub-Transmission'!H54","v":0},{"$f":"H62*I62","v":0},null,{"$f":"'5. Historical Wholesale'!L62","v":0},{"$f":"'4. UTRs and Sub-Transmission'!H56","v":0},{"$f":"L62*M62","v":0},null,{"$f":"J62+N62","v":0}]
[null,"February",null,{"$f":"'5. Historical Wholesale'!D63","v":0},{"$f":"E62","v":0},{"$f":"D63*E63","v":0},null,{"$f":"'5. Historical Wholesale'!H63","v":0},{"$f":"I62","v":0},{"$f":"H63*I63","v":0},null,{"$f":"'5. Historical Wholesale'!L63","v":0},{"$f":"M62","v":0},{"$f":"L63*M63","v":0},null,0]
[null,"March",null,{"$f":"'5. Historical Wholesale'!D64","v":0},{"$f":"E63","v":0},0,null,{"$f":"'5. Historical Wholesale'!H64","v":0},{"$f":"I63","v":0},0,null,{"$f":"'5. Historical Wholesale'!L64","v":0},{"$f":"M63","v":0},0,null,0]
[null,"April",null,{"$f":"'5. Historical Wholesale'!D65","v":0},0,0,null,{"$f":"'5. Historical Wholesale'!H65","v":0},0,0,null,{"$f":"'5. Historical Wholesale'!L65","v":0},{"$f":"M64","v":0},0,null,0]
[null,"May",null,{"$f":"'5. Historical Wholesale'!D66","v":0},0,0,null,{"$f":"'5. Historical Wholesale'!H66","v":0},0,0,null,{"$f":"'5. Historical Wholesale'!L66","v":0},0,0,null,0]
[null,"June",null,{"$f":"'5. Historical Wholesale'!D67","v":0},0,0,null,{"$f":"'5. Historical Wholesale'!H67","v":0},0,0,null,{"$f":"'5. Historical Wholesale'!L67","v":0},0,0,null,0]
[null,"July",null,{"$f":"'5. Historical Wholesale'!D68","v":0},0,0,null,{"$f":"'5. Historical Wholesale'!H68","v":0},0,0,null,{"$f":"'5. Historical Wholesale'!L68","v":0},0,0,null,0]
[null,"August",null,{"$f":"'5. Historical Wholesale'!D69","v":0},0,0,null,{"$f":"'5. Historical Wholesale'!H69","v":0},0,0,null,{"$f":"'5. Historical Wholesale'!L69","v":0},0,0,null,0]
[null,"September",null,{"$f":"'5. Historical Wholesale'!D70","v":0},0,0,null,{"$f":"'5. Historical Wholesale'!H70","v":0},0,0,null,{"$f":"'5. Historical Wholesale'!L70","v":0},0,0,null,0]
[null,"October",null,{"$f":"'5. Historical Wholesale'!D71","v":0},0,0,null,{"$f":"'5. Historical Wholesale'!H71","v":0},0,0,null,{"$f":"'5. Historical Wholesale'!L71","v":0},0,0,null,0]
[null,"November",null,{"$f":"'5. Historical Wholesale'!D72","v":0},0,0,null,{"$f":"'5. Historical Wholesale'!H72","v":0},0,0,null,{"$f":"'5. Historical Wholesale'!L72","v":0},0,0,null,0]
[null,"December",null,{"$f":"'5. Historical Wholesale'!D73","v":0},0,0,null,{"$f":"'5. Historical Wholesale'!H73","v":0},0,0,null,{"$f":"'5. Historical Wholesale'!L73","v":0},0,0,null,0]
[]
[null,"Total",null,{"$f":"SUM(D62:D73)","v":0},{"$f":"IF(D75<>0,F75/D75,0)","v":0},{"$f":"SUM(F62:F73)","v":0},null,{"$f":"SUM(H62:H73)","v":0},{"$f":"IF(H75<>0,J75/H75,0)","v":0},{"$f":"SUM(J62:J73)","v":0},null,{"$f":"SUM(L62:L73)","v":0},{"$f":"IF(L75<>0,N75/L75,0)","v":0},{"$f":"SUM(N62:N73)","v":0},null,{"$f":"SUM(P62:P73)","v":0}]
[]
[null,{"$f":"'5. Historical Wholesale'!B77","v":"Add Extra Host Here (II)"},null,"Network",null,null,null,"Line Connection",null,null,null,"Transformation Connection",null,null,null,"Total Connection"]
[]
[null,"Month",null,"Units Billed","Rate","Amount",null,"Units Billed","Rate","Amount",null,"Units Billed","Rate","Amount",null,"Amount"]
[]
[null,"January",null,{"$f":"'5. Historical Wholesale'!D81","v":0},{"$f":"'4. UTRs and Sub-Transmission'!H67","v":0},{"$f":"D81*E81","v":0},null,{"$f":"'5. Historical Wholesale'!H81","v":0},{"$f":"'4. UTRs and Sub-Transmission'!H69","v":0},{"$f":"H81*I81","v":0},null,{"$f":"'5. Historical Wholesale'!L81","v":0},{"$f":"'4. UTRs and Sub-Transmission'!H71","v":0},{"$f":"L81*M81","v":0},null,{"$f":"J81+N81","v":0}]
[null,"February",null,{"$f":"'5. Historical Wholesale'!D82","v":0},{"$f":"E81","v":0},{"$f":"D82*E82","v":0},null,{"$f":"'5. Historical Wholesale'!H82","v":0},{"$f":"I81","v":0},{"$f":"H82*I82","v":0},null,{"$f":"'5. Historical Wholesale'!L82","v":0},{"$f":"M81","v":0},{"$f":"L82*M82","v":0},null,0]
[null,"March",null,{"$f":"'5. Historical Wholesale'!D83","v":0},{"$f":"E82","v":0},0,null,{"$f":"'5. Historical Wholesale'!H83","v":0},{"$f":"I82","v":0},0,null,{"$f":"'5. Historical Wholesale'!L83","v":0},{"$f":"M82","v":0},0,null,0]
[null,"April",null,{"$f":"'5. Historical Wholesale'!D84","v":0},0,0,null,{"$f":"'5. Historical Wholesale'!H84","v":0},0,0,null,{"$f":"'5. Historical Wholesale'!L84","v":0},{"$f":"M83","v":0},0,null,0]
[null,"May",null,{"$f":"'5. Historical Wholesale'!D85","v":0},0,0,null,{"$f":"'5. Historical Wholesale'!H85","v":0},0,0,null,{"$f":"'5. Historical Wholesale'!L85","v":0},0,0,null,0]
[null,"June",null,{"$f":"'5. Historical Wholesale'!D86","v":0},0,0,null,{"$f":"'5. Historical Wholesale'!H86","v":0},0,0,null,{"$f":"'5. Historical Wholesale'!L86","v":0},0,0,null,0]
[null,"July",null,{"$f":"'5. Historical Wholesale'!D87","v":0},0,0,null,{"$f":"'5. Historical Wholesale'!H87","v":0},0,0,null,{"$f":"'5. Historical Wholesale'!L87","v":0},0,0,null,0]
[null,"August",null,{"$f":"'5. Historical Wholesale'!D88","v":0},0,0,null,{"$f":"'5. Historical Wholesale'!H88","v":0},0,0,null,{"$f":"'5. Historical Wholesale'!L88","v":0},0,0,null,0]
[null,"September",null,{"$f":"'5. Historical Wholesale'!D89","v":0},0,0,null,{"$f":"'5. Historical Wholesale'!H89","v":0},0,0,null,{"$f":"'5. Historical Wholesale'!L89","v":0},0,0,null,0]
[null,"October",null,{"$f":"'5. Historical Wholesale'!D90","v":0},0,0,null,{"$f":"'5. Historical Wholesale'!H90","v":0},0,0,null,{"$f":"'5. Historical Wholesale'!L90","v":0},0,0,null,0]
[null,"November",null,{"$f":"'5. Historical Wholesale'!D91","v":0},0,0,null,{"$f":"'5. Historical Wholesale'!H91","v":0},0,0,null,{"$f":"'5. Historical Wholesale'!L91","v":0},0,0,null,0]
[null,"December",null,{"$f":"'5. Historical Wholesale'!D92","v":0},0,0,null,{"$f":"'5. Historical Wholesale'!H92","v":0},0,0,null,{"$f":"'5. Historical Wholesale'!L92","v":0},0,0,null,0]
[]
[null,"Total",null,{"$f":"SUM(D81:D92)","v":0},{"$f":"IF(D94<>0,F94/D94,0)","v":0},{"$f":"SUM(F81:F92)","v":0},null,{"$f":"SUM(H81:H92)","v":0},{"$f":"IF(H94<>0,J94/H94,0)","v":0},{"$f":"SUM(J81:J92)","v":0},null,{"$f":"SUM(L81:L92)","v":0},{"$f":"IF(L94<>0,N94/L94,0)","v":0},{"$f":"SUM(N81:N92)","v":0},null,{"$f":"SUM(P81:P92)","v":0}]
[]
[null,"Total",null,"Network",null,null,null,"Line Connection",null,null,null,"Transformation Connection",null,null,null,"Total Connection"]
[]
[null,"Month",null,"Units Billed","Rate","Amount",null,"Units Billed","Rate","Amount",null,"Units Billed","Rate","Amount",null,"Amount"]
[]
[null,"January",null,{"$f":"D24+D43+D62+D81","v":5572.02},{"$f":"IF(D100<>0,F100/D100,0)","v":3.4777999999999998},{"$f":"F24+F43+F62+F81","v":19378.371156000001},null,{"$f":"H24+H43+H62+H81","v":5891.32},{"$f":"IF(H100<>0,J100/H100,0)","v":0.81279999999999997},{"$f":"J24+J43+J62+J81","v":4788.4648959999995},null,{"$f":"L24+L43+L62+L81","v":5891.32},{"$f":"IF(L100<>0,N100/L100,0)","v":2.0457999999999998},{"$f":"N24+N43+N62+N81","v":12052.462455999999},null,{"$f":"J100+N100","v":16840.927351999999}]
[null,"February",null,{"$f":"D25+D44+D63+D82","v":5509.15},3.4777999999999998,{"$f":"F25+F44+F63+F82","v":19159.721869999998},null,{"$f":"H25+H44+H63+H82","v":5686.17},0.81279999999999997,{"$f":"J25+J44+J63+J82","v":4621.7189760000001},null,{"$f":"L25+L44+L63+L82","v":5686.17},2.0457999999999998,{"$f":"N25+N44+N63+N82","v":11632.766586},null,16254.485562]
[null,"March",null,5199.78,3.4777999999999998,18083.794883999999,null,5214.67,0.81279999999999997,4238.483776,null,5214.67,2.0457999999999998,10668.171886,null,14906.655662000001]
[null,"April",null,4163.3,3.4777999999999998,14479.124739999999,null,4284.07,0.81279999999999997,3482.0920959999994,null,4284.07,2.0457999999999998,8764.3504059999996,null,12246.442501999998]
[null,"May",null,5663.84,3.4778000000000002,19697.702752000001,null,5773.86,0.81279999999999997,4692.9934079999994,null,5773.86,2.0457999999999998,11812.162787999998,null,16505.156195999996]
[null,"June",null,6955.1,3.4777999999999998,24188.446779999998,null,6955.1,0.81279999999999997,5653.1052799999998,null,6955.1,2.0457999999999998,14228.74358,null,19881.848859999998]
[null,"July",null,6395.08,3.4777999999999993,22240.809223999997,null,6395.08,0.81279999999999986,5197.9210239999993,null,6395.08,2.0457999999999998,13083.054663999999,null,18280.975687999999]
[null,"August",null,7186.71,3.4777999999999998,24993.940037999997,null,7205.74,0.81279999999999997,5856.8254719999995,null,7205.74,2.0457999999999998,14741.502891999999,null,20598.328363999997]
[null,"September",null,4813.4799999999996,3.4777999999999998,16740.320743999997,null,4813.4799999999996,0.81279999999999997,3912.3965439999993,null,4813.4799999999996,2.0457999999999998,9847.4173839999985,null,13759.813927999998]
[null,"October",null,4346.1099999999997,3.4777999999999998,15114.901357999997,null,4346,0.81279999999999997,3532.4287999999997,null,4346.1099999999997,2.0457999999999998,8891.2718379999988,null,12423.700637999998]
[null,"November",null,5234.5200000000004,3.4777999999999998,18204.613656000001,null,5543.89,0.81279999999999997,4506.0737920000001,null,5543.89,2.0457999999999998,11341.690161999999,null,15847.763953999998]
[null,"December",null,5777.99,3.4777999999999998,20094.693621999999,null,5795.36,0.81279999999999997,4710.4686079999992,null,5795.36,2.0457999999999998,11856.147487999999,null,16566.616095999998]
[]
[null,"Total",null,{"$f":"SUM(D100:D111)","v":66817.080000000016},{"$f":"IF(D113<>0,F113/D113,0)","v":3.4777999999999989},{"$f":"SUM(F100:F111)","v":232376.44082399999},null,{"$f":"SUM(H100:H111)","v":67904.740000000005},{"$f":"IF(H113<>0,J113/H113,0)","v":0.81279999999999974},{"$f":"SUM(J100:J111)","v":55192.972671999989},null,{"$f":"SUM(L100:L111)","v":67904.850000000006},{"$f":"IF(L113<>0,N113/L113,0)","v":2.0457999999999998},{"$f":"SUM(N100:N111)","v":138919.74213},null,{"$f":"SUM(P100:P111)","v":194112.71480199997}]
[]
[null,null,null,null,null,null,null,null,null,null,null,null,null,"Low Voltage Switchgear Credit (if applicable)",null,{"$f":"'4. UTRs and Sub-Transmission'!H76","v":0}]
[]
[null,null,null,null,null,null,null,null,null,null,null,null,null,"Total including deduction for Low Voltage Switchgear Credit",null,{"$f":"P113+P115","v":194112.71480199997}]

{"sheet":"7. Forecast Wholesale","index":8,"n_rows":117,"n_cols":16,"rows_kept":117,"cut":false,"hidden":false,"merged":[[12,1,12,12],[19,3,19,5],[19,7,19,9],[19,11,19,13],[38,3,38,5],[38,7,38,9],[38,11,38,13],[96,7,96,9],[96,11,96,13],[20,3,20,5],[20,7,20,9],[20,11,20,13],[96,3,96,5],[95,3,95,5],[95,7,95,9],[95,11,95,13],[57,3,57,5],[57,7,57,9],[57,11,57,13],[76,3,76,5],[76,7,76,9],[76,11,76,13]]}
[]
[]
[]
[]
[]
[]
[]
[]
[]
[]
[]
[]
[null,"The purpose of this sheet is to calculate the expected billing when forecasted 2022 Uniform Transmission Rates and Hydro One Sub-transmission Rates are applied against historical 2020 transmission units."]
[]
[]
[]
[]
[]
[]
[null,"IESO",null,"Network",null,null,null,"Line Connection",null,null,null,"Transformation Connection",null,null,null,"Total Connection"]
[]
[null,"Month",null,"Units Billed","Rate","Amount",null,"Units Billed","Rate","Amount",null,"Units Billed","Rate","Amount",null,"Amount"]
[]
[null,"January",null,{"$f":"'5. Historical Wholesale'!D24","v":0},{"$f":"'4. UTRs and Sub-Transmission'!L23","v":5.46},{"$f":"D24*E24","v":0},null,{"$f":"'5. Historical Wholesale'!H24","v":0},{"$f":"'4. UTRs and Sub-Transmission'!L25","v":0.88},{"$f":"H24*I24","v":0},null,{"$f":"'5. Historical Wholesale'!L24","v":0},{"$f":"'4. UTRs and Sub-Transmission'!L27","v":2.81},{"$f":"L24*M24","v":0},null,{"$f":"J24+N24","v":0}]
[null,"February",null,{"$f":"'5. Historical Wholesale'!D25","v":0},{"$f":"E24","v":5.46},0,null,{"$f":"'5. Historical Wholesale'!H25","v":0},{"$f":"I24","v":0.88},0,null,{"$f":"'5. Historical Wholesale'!L25","v":0},{"$f":"M24","v":2.81},0,null,0]
[null,"March",null,{"$f":"'5. Historical Wholesale'!D26","v":0},5.46,0,null,{"$f":"'5. Historical Wholesale'!H26","v":0},0.88,0,null,{"$f":"'5. Historical Wholesale'!L26","v":0},2.81,0,null,0]
[null,"April",null,{"$f":"'5. Historical Wholesale'!D27","v":0},5.46,0,null,{"$f":"'5. Historical Wholesale'!H27","v":0},0.88,0,null,{"$f":"'5. Historical Wholesale'!L27","v":0},2.81,0,null,0]
[null,"May",null,{"$f":"'5. Historical Wholesale'!D28","v":0},5.46,0,null,{"$f":"'5. Historical Wholesale'!H28","v":0},0.88,0,null,{"$f":"'5. Historical Wholesale'!L28","v":0},2.81,0,null,0]
[null,"June",null,{"$f":"'5. Historical Wholesale'!D29","v":0},5.46,0,null,{"$f":"'5. Historical Wholesale'!H29","v":0},0.88,0,null,{"$f":"'5. Historical Wholesale'!L29","v":0},2.81,0,null,0]
[null,"July",null,{"$f":"'5. Historical Wholesale'!D30","v":0},5.46,0,null,{"$f":"'5. Historical Wholesale'!H30","v":0},0.88,0,null,{"$f":"'5. Historical Wholesale'!L30","v":0},2.81,0,null,0]
[null,"August",null,{"$f":"'5. Historical Wholesale'!D31","v":0},5.46,0,null,{"$f":"'5. Historical Wholesale'!H31","v":0},0.88,0,null,{"$f":"'5. Historical Wholesale'!L31","v":0},2.81,0,null,0]
[null,"September",null,{"$f":"'5. Historical Wholesale'!D32","v":0},5.46,0,null,{"$f":"'5. Historical Wholesale'!H32","v":0},0.88,0,null,{"$f":"'5. Historical Wholesale'!L32","v":0},2.81,0,null,0]
[null,"October",null,{"$f":"'5. Historical Wholesale'!D33","v":0},5.46,0,null,{"$f":"'5. Historical Wholesale'!H33","v":0},0.88,0,null,{"$f":"'5. Historical Wholesale'!L33","v":0},2.81,0,null,0]
[null,"November",null,{"$f":"'5. Historical Wholesale'!D34","v":0},5.46,0,null,{"$f":"'5. Historical Wholesale'!H34","v":0},0.88,0,null,{"$f":"'5. Historical Wholesale'!L34","v":0},2.81,0,null,0]
[null,"December",null,{"$f":"'5. Historical Wholesale'!D35","v":0},5.46,0,null,{"$f":"'5. Historical Wholesale'!H35","v":0},0.88,0,null,{"$f":"'5. Historical Wholesale'!L35","v":0},2.81,0,null,0]
[]
[null,"Total",null,{"$f":"SUM(D24:D35)","v":0},{"$f":"IF(D37<>0,F37/D37,0)","v":0},{"$f":"SUM(F24:F35)","v":0},null,{"$f":"SUM(H24:H35)","v":0},{"$f":"IF(H37<>0,J37/H37,0)","v":0},{"$f":"SUM(J24:J35)","v":0},null,{"$f":"SUM(L24:L35)","v":0},{"$f":"IF(L37<>0,N37/L37,0)","v":0},{"$f":"SUM(N24:N35)","v":0},null,{"$f":"SUM(P24:P35)","v":0}]
[]
[null,"Hydro One",null,"Network",null,null,null,"Line Connection",null,null,null,"Transformation Connection",null,null,null,"Total Connection"]
[]
[null,"Month",null,"Units Billed","Rate","Amount",null,"Units Billed","Rate","Amount",null,"Units Billed","Rate","Amount",null,"Amount"]
[]
[null,"January",null,{"$f":"'5. Historical Wholesale'!D43","v":5572.02},{"$f":"'4. UTRs and Sub-Transmission'!L37","v":4.3472999999999997},{"$f":"D43*E43","v":24223.242546000001},null,{"$f":"'5. Historical Wholesale'!H43","v":5891.32},{"$f":"'4. UTRs and Sub-Transmission'!L39","v":0.67879999999999996},{"$f":"H43*I43","v":3999.0280159999998},null,{"$f":"'5. Historical Wholesale'!L43","v":5891.32},{"$f":"'4. UTRs and Sub-Transmission'!L41","v":2.3267000000000002},{"$f":"L43*M43","v":13707.334244},null,{"$f":"J43+N43","v":17706.362259999998}]
[null,"February",null,{"$f":"'5. Historical Wholesale'!D44","v":5509.15},{"$f":"E43","v":4.3472999999999997},23949.927794999996,null,{"$f":"'5. Historical Wholesale'!H44","v":5686.17},{"$f":"I43","v":0.67879999999999996},3859.7721959999999,null,{"$f":"'5. Historical Wholesale'!L44","v":5686.17},{"$f":"M43","v":2.3267000000000002},13230.011739000001,null,17089.783934999999]
[null,"March",null,{"$f":"'5. Historical Wholesale'!D45","v":5199.78},4.3472999999999997,22605.003593999998,null,{"$f":"'5. Historical Wholesale'!H45","v":5214.67},0.67879999999999996,3539.7179959999999,null,{"$f":"'5. Historical Wholesale'!L45","v":5214.67},2.3267000000000002,12132.972689000002,null,15672.690685000001]
[null,"April",null,{"$f":"'5. Historical Wholesale'!D46","v":4163.3},4.3472999999999997,18099.114089999999,null,{"$f":"'5. Historical Wholesale'!H46","v":4284.07},0.67879999999999996,2908.0267159999999,null,{"$f":"'5. Historical Wholesale'!L46","v":4284.07},2.3267000000000002,9967.7456689999999,null,12875.772385]
[null,"May",null,{"$f":"'5. Historical Wholesale'!D47","v":5663.84},4.3472999999999997,24622.411631999999,null,{"$f":"'5. Historical Wholesale'!H47","v":5773.86},0.67879999999999996,3919.2961679999994,null,{"$f":"'5. Historical Wholesale'!L47","v":5773.86},2.3267000000000002,13434.040062,null,17353.336230000001]
[null,"June",null,{"$f":"'5. Historical Wholesale'!D48","v":6955.1},4.3472999999999997,30235.906230000001,null,{"$f":"'5. Historical Wholesale'!H48","v":6955.1},0.67879999999999996,4721.1218799999997,null,{"$f":"'5. Historical Wholesale'!L48","v":6955.1},2.3267000000000002,16182.431170000002,null,20903.553050000002]
[null,"July",null,{"$f":"'5. Historical Wholesale'!D49","v":6395.08},4.3472999999999997,27801.331283999996,null,{"$f":"'5. Historical Wholesale'!H49","v":6395.08},0.67879999999999996,4340.9803039999997,null,{"$f":"'5. Historical Wholesale'!L49","v":6395.08},2.3267000000000002,14879.432636000001,null,19220.412940000002]
[null,"August",null,{"$f":"'5. Historical Wholesale'!D50","v":7186.71},4.3472999999999997,31242.784382999998,null,{"$f":"'5. Historical Wholesale'!H50","v":7205.74},0.67879999999999996,4891.2563119999995,null,{"$f":"'5. Historical Wholesale'!L50","v":7205.74},2.3267000000000002,16765.595258000001,null,21656.851569999999]
[null,"September",null,{"$f":"'5. Historical Wholesale'!D51","v":4813.4799999999996},4.3472999999999997,20925.641603999997,null,{"$f":"'5. Historical Wholesale'!H51","v":4813.4799999999996},0.67879999999999996,3267.3902239999993,null,{"$f":"'5. Historical Wholesale'!L51","v":4813.4799999999996},2.3267000000000002,11199.523916,null,14466.914139999999]
[null,"October",null,{"$f":"'5. Historical Wholesale'!D52","v":4346.1099999999997},4.3472999999999997,18893.844002999998,null,{"$f":"'5. Historical Wholesale'!H52","v":4346},0.67879999999999996,2950.0647999999997,null,{"$f":"'5. Historical Wholesale'!L52","v":4346.1099999999997},2.3267000000000002,10112.094137,null,13062.158937]
[null,"November",null,{"$f":"'5. Historical Wholesale'!D53","v":5234.5200000000004},4.3472999999999997,22756.028795999999,null,{"$f":"'5. Historical Wholesale'!H53","v":5543.89},0.67879999999999996,3763.192532,null,{"$f":"'5. Historical Wholesale'!L53","v":5543.89},2.3267000000000002,12898.968863000002,null,16662.161395000003]
[null,"December",null,{"$f":"'5. Historical Wholesale'!D54","v":5777.99},4.3472999999999997,25118.655926999996,null,{"$f":"'5. Historical Wholesale'!H54","v":5795.36},0.67879999999999996,3933.8903679999994,null,{"$f":"'5. Historical Wholesale'!L54","v":5795.36},2.3267000000000002,13484.064112,null,17417.95448]
[]
[null,"Total",null,{"$f":"SUM(D43:D54)","v":66817.080000000016},{"$f":"IF(D56<>0,F56/D56,0)","v":4.3472999999999988},{"$f":"SUM(F43:F54)","v":290473.89188399998},null,{"$f":"SUM(H43:H54)","v":67904.740000000005},{"$f":"IF(H56<>0,J56/H56,0)","v":0.67879999999999996},{"$f":"SUM(J43:J54)","v":46093.737512},null,{"$f":"SUM(L43:L54)","v":67904.850000000006},{"$f":"IF(L56<>0,N56/L56,0)","v":2.3267000000000002},{"$f":"SUM(N43:N54)","v":157994.21449500002},null,{"$f":"SUM(P43:P54)","v":204087.95200699999}]
[]
[null,{"$f":"'5. Historical Wholesale'!B58","v":"Add Extra Host Here (I)"},null,"Network",null,null,null,"Line Connection",null,null,null,"Transformation Connection",null,null,null,"Total Connection"]
[]
[null,"Month",null,"Units Billed","Rate","Amount",null,"Units Billed","Rate","Amount",null,"Units Billed","Rate","Amount",null,"Amount"]
[]
[null,"January",null,{"$f":"'5. Historical Wholesale'!D62","v":0},{"$f":"'4. UTRs and Sub-Transmission'!L52","v":0},{"$f":"D62*E62","v":0},null,{"$f":"'5. Historical Wholesale'!H62","v":0},{"$f":"'4. UTRs and Sub-Transmission'!L54","v":0},{"$f":"H62*I62","v":0},null,{"$f":"'5. Historical Wholesale'!L62","v":0},{"$f":"'4. UTRs and Sub-Transmission'!L56","v":0},{"$f":"L62*M62","v":0},null,{"$f":"J62+N62","v":0}]
[null,"February",null,{"$f":"'5. Historical Wholesale'!D63","v":0},{"$f":"E62","v":0},0,null,{"$f":"'5. Historical Wholesale'!H63","v":0},{"$f":"I62","v":0},0,null,{"$f":"'5. Historical Wholesale'!L63","v":0},{"$f":"M62","v":0},0,null,0]
[null,"March",null,{"$f":"'5. Historical Wholesale'!D64","v":0},0,0,null,{"$f":"'5. Historical Wholesale'!H64","v":0},0,0,null,{"$f":"'5. Historical Wholesale'!L64","v":0},0,0,null,0]
[null,"April",null,{"$f":"'5. Historical Wholesale'!D65","v":0},0,0,null,{"$f":"'5. Historical Wholesale'!H65","v":0},0,0,null,{"$f":"'5. Historical Wholesale'!L65","v":0},0,0,null,0]
[null,"May",null,{"$f":"'5. Historical Wholesale'!D66","v":0},0,0,null,{"$f":"'5. Historical Wholesale'!H66","v":0},0,0,null,{"$f":"'5. Historical Wholesale'!L66","v":0},0,0,null,0]
[null,"June",null,{"$f":"'5. Historical Wholesale'!D67","v":0},0,0,null,{"$f":"'5. Historical Wholesale'!H67","v":0},0,0,null,{"$f":"'5. Historical Wholesale'!L67","v":0},0,0,null,0]
[null,"July",null,{"$f":"'5. Historical Wholesale'!D68","v":0},0,0,null,{"$f":"'5. Historical Wholesale'!H68","v":0},0,0,null,{"$f":"'5. Historical Wholesale'!L68","v":0},0,0,null,0]
[null,"August",null,{"$f":"'5. Historical Wholesale'!D69","v":0},0,0,null,{"$f":"'5. Historical Wholesale'!H69","v":0},0,0,null,{"$f":"'5. Historical Wholesale'!L69","v":0},0,0,null,0]
[null,"September",null,{"$f":"'5. Historical Wholesale'!D70","v":0},0,0,null,{"$f":"'5. Historical Wholesale'!H70","v":0},0,0,null,{"$f":"'5. Historical Wholesale'!L70","v":0},0,0,null,0]
[null,"October",null,{"$f":"'5. Historical Wholesale'!D71","v":0},0,0,null,{"$f":"'5. Historical Wholesale'!H71","v":0},0,0,null,{"$f":"'5. Historical Wholesale'!L71","v":0},0,0,null,0]
[null,"November",null,{"$f":"'5. Historical Wholesale'!D72","v":0},0,0,null,{"$f":"'5. Historical Wholesale'!H72","v":0},0,0,null,{"$f":"'5. Historical Wholesale'!L72","v":0},0,0,null,0]
[null,"December",null,{"$f":"'5. Historical Wholesale'!D73","v":0},0,0,null,{"$f":"'5. Historical Wholesale'!H73","v":0},0,0,null,{"$f":"'5. Historical Wholesale'!L73","v":0},0,0,null,0]
[]
[null,"Total",null,{"$f":"SUM(D62:D73)","v":0},{"$f":"IF(D75<>0,F75/D75,0)","v":0},{"$f":"SUM(F62:F73)","v":0},null,{"$f":"SUM(H62:H73)","v":0},{"$f":"IF(H75<>0,J75/H75,0)","v":0},{"$f":"SUM(J62:J73)","v":0},null,{"$f":"SUM(L62:L73)","v":0},{"$f":"IF(L75<>0,N75/L75,0)","v":0},{"$f":"SUM(N62:N73)","v":0},null,{"$f":"SUM(P62:P73)","v":0}]
[]
[null,{"$f":"'5. Historical Wholesale'!B77","v":"Add Extra Host Here (II)"},null,"Network",null,null,null,"Line Connection",null,null,null,"Transformation Connection",null,null,null,"Total Connection"]
[]
[null,"Month",null,"Units Billed","Rate","Amount",null,"Units Billed","Rate","Amount",null,"Units Billed","Rate","Amount",null,"Amount"]
[]
[null,"January",null,{"$f":"'5. Historical Wholesale'!D81","v":0},{"$f":"'4. UTRs and Sub-Transmission'!L67","v":0},{"$f":"D81*E81","v":0},null,{"$f":"'5. Historical Wholesale'!H81","v":0},{"$f":"'4. UTRs and Sub-Transmission'!L69","v":0},{"$f":"H81*I81","v":0},null,{"$f":"'5. Historical Wholesale'!L81","v":0},{"$f":"'4. UTRs and Sub-Transmission'!L71","v":0},{"$f":"L81*M81","v":0},null,{"$f":"J81+N81","v":0}]
[null,"February",null,{"$f":"'5. Historical Wholesale'!D82","v":0},{"$f":"E81","v":0},0,null,{"$f":"'5. Historical Wholesale'!H82","v":0},{"$f":"I81","v":0},0,null,{"$f":"'5. Historical Wholesale'!L82","v":0},{"$f":"M81","v":0},0,null,0]
[null,"March",null,{"$f":"'5. Historical Wholesale'!D83","v":0},0,0,null,{"$f":"'5. Historical Wholesale'!H83","v":0},0,0,null,{"$f":"'5. Historical Wholesale'!L83","v":0},0,0,null,0]
[null,"April",null,{"$f":"'5. Historical Wholesale'!D84","v":0},0,0,null,{"$f":"'5. Historical Wholesale'!H84","v":0},0,0,null,{"$f":"'5. Historical Wholesale'!L84","v":0},0,0,null,0]
[null,"May",null,{"$f":"'5. Historical Wholesale'!D85","v":0},0,0,null,{"$f":"'5. Historical Wholesale'!H85","v":0},0,0,null,{"$f":"'5. Historical Wholesale'!L85","v":0},0,0,null,0]
[null,"June",null,{"$f":"'5. Historical Wholesale'!D86","v":0},0,0,null,{"$f":"'5. Historical Wholesale'!H86","v":0},0,0,null,{"$f":"'5. Historical Wholesale'!L86","v":0},0,0,null,0]
[null,"July",null,{"$f":"'5. Historical Wholesale'!D87","v":0},0,0,null,{"$f":"'5. Historical Wholesale'!H87","v":0},0,0,null,{"$f":"'5. Historical Wholesale'!L87","v":0},0,0,null,0]
[null,"August",null,{"$f":"'5. Historical Wholesale'!D88","v":0},0,0,null,{"$f":"'5. Historical Wholesale'!H88","v":0},0,0,null,{"$f":"'5. Historical Wholesale'!L88","v":0},0,0,null,0]
[null,"September",null,{"$f":"'5. Historical Wholesale'!D89","v":0},0,0,null,{"$f":"'5. Historical Wholesale'!H89","v":0},0,0,null,{"$f":"'5. Historical Wholesale'!L89","v":0},0,0,null,0]
[null,"October",null,{"$f":"'5. Historical Wholesale'!D90","v":0},0,0,null,{"$f":"'5. Historical Wholesale'!H90","v":0},0,0,null,{"$f":"'5. Historical Wholesale'!L90","v":0},0,0,null,0]
[null,"November",null,{"$f":"'5. Historical Wholesale'!D91","v":0},0,0,null,{"$f":"'5. Historical Wholesale'!H91","v":0},0,0,null,{"$f":"'5. Historical Wholesale'!L91","v":0},0,0,null,0]
[null,"December",null,{"$f":"'5. Historical Wholesale'!D92","v":0},0,0,null,{"$f":"'5. Historical Wholesale'!H92","v":0},0,0,null,{"$f":"'5. Historical Wholesale'!L92","v":0},0,0,null,0]
[]
[null,"Total",null,{"$f":"SUM(D81:D92)","v":0},{"$f":"IF(D94<>0,F94/D94,0)","v":0},{"$f":"SUM(F81:F92)","v":0},null,{"$f":"SUM(H81:H92)","v":0},{"$f":"IF(H94<>0,J94/H94,0)","v":0},{"$f":"SUM(J81:J92)","v":0},null,{"$f":"SUM(L81:L92)","v":0},{"$f":"IF(L94<>0,N94/L94,0)","v":0},{"$f":"SUM(N81:N92)","v":0},null,{"$f":"SUM(P81:P92)","v":0}]
[]
[null,"Total",null,"Network",null,null,null,"Line Connection",null,null,null,"Transformation Connection",null,null,null,"Total Connection"]
[]
[null,"Month",null,"Units Billed","Rate","Amount",null,"Units Billed","Rate","Amount",null,"Units Billed","Rate","Amount",null,"Amount"]
[]
[null,"January",null,{"$f":"D24+D43+D62+D81","v":5572.02},{"$f":"IF(D100<>0,F100/D100,0)","v":4.3472999999999997},{"$f":"F24+F43+F62+F81","v":24223.242546000001},null,{"$f":"H24+H43+H62+H81","v":5891.32},{"$f":"IF(H100<>0,J100/H100,0)","v":0.67879999999999996},{"$f":"J24+J43+J62+J81","v":3999.0280159999998},null,{"$f":"L24+L43+L62+L81","v":5891.32},{"$f":"IF(L100<>0,N100/L100,0)","v":2.3267000000000002},{"$f":"N24+N43+N62+N81","v":13707.334244},null,{"$f":"J100+N100","v":17706.362259999998}]
[null,"February",null,{"$f":"D25+D44+D63+D82","v":5509.15},4.3472999999999997,23949.927794999996,null,{"$f":"H25+H44+H63+H82","v":5686.17},0.67879999999999996,{"$f":"J25+J44+J63+J82","v":3859.7721959999999},null,{"$f":"L25+L44+L63+L82","v":5686.17},2.3267000000000002,{"$f":"N25+N44+N63+N82","v":13230.011739000001},null,17089.783934999999]
[null,"March",null,5199.78,4.3472999999999997,22605.003593999998,null,{"$f":"H26+H45+H64+H83","v":5214.67},0.67879999999999996,{"$f":"J26+J45+J64+J83","v":3539.7179959999999},null,{"$f":"L26+L45+L64+L83","v":5214.67},2.3267000000000002,{"$f":"N26+N45+N64+N83","v":12132.972689000002},null,15672.690685000001]
[null,"April",null,4163.3,4.3472999999999997,18099.114089999999,null,{"$f":"H27+H46+H65+H84","v":4284.07},0.67879999999999996,{"$f":"J27+J46+J65+J84","v":2908.0267159999999},null,{"$f":"L27+L46+L65+L84","v":4284.07},2.3267000000000002,{"$f":"N27+N46+N65+N84","v":9967.7456689999999},null,12875.772385]
[null,"May",null,5663.84,4.3472999999999997,24622.411631999999,null,{"$f":"H28+H47+H66+H85","v":5773.86},0.67879999999999996,{"$f":"J28+J47+J66+J85","v":3919.2961679999994},null,{"$f":"L28+L47+L66+L85","v":5773.86},2.3267000000000002,{"$f":"N28+N47+N66+N85","v":13434.040062},null,17353.336230000001]
[null,"June",null,6955.1,4.3472999999999997,30235.906230000001,null,{"$f":"H29+H48+H67+H86","v":6955.1},0.67879999999999996,{"$f":"J29+J48+J67+J86","v":4721.1218799999997},null,{"$f":"L29+L48+L67+L86","v":6955.1},2.3267000000000002,{"$f":"N29+N48+N67+N86","v":16182.431170000002},null,20903.553050000002]
[null,"July",null,6395.08,4.3472999999999997,27801.331283999996,null,{"$f":"H30+H49+H68+H87","v":6395.08},0.67879999999999996,{"$f":"J30+J49+J68+J87","v":4340.9803039999997},null,{"$f":"L30+L49+L68+L87","v":6395.08},2.3267000000000002,{"$f":"N30+N49+N68+N87","v":14879.432636000001},null,19220.412940000002]
[null,"August",null,7186.71,4.3472999999999997,31242.784382999998,null,{"$f":"H31+H50+H69+H88","v":7205.74},0.67879999999999996,{"$f":"J31+J50+J69+J88","v":4891.2563119999995},null,{"$f":"L31+L50+L69+L88","v":7205.74},2.3267000000000002,{"$f":"N31+N50+N69+N88","v":16765.595258000001},null,21656.851569999999]
[null,"September",null,4813.4799999999996,4.3472999999999997,20925.641603999997,null,{"$f":"H32+H51+H70+H89","v":4813.4799999999996},0.67879999999999996,{"$f":"J32+J51+J70+J89","v":3267.3902239999993},null,{"$f":"L32+L51+L70+L89","v":4813.4799999999996},2.3267000000000002,{"$f":"N32+N51+N70+N89","v":11199.523916},null,14466.914139999999]
[null,"October",null,4346.1099999999997,4.3472999999999997,18893.844002999998,null,{"$f":"H33+H52+H71+H90","v":4346},0.67879999999999996,{"$f":"J33+J52+J71+J90","v":2950.0647999999997},null,{"$f":"L33+L52+L71+L90","v":4346.1099999999997},2.3267000000000002,{"$f":"N33+N52+N71+N90","v":10112.094137},null,13062.158937]
[null,"November",null,5234.5200000000004,4.3472999999999997,22756.028795999999,null,{"$f":"H34+H53+H72+H91","v":5543.89},0.67879999999999996,{"$f":"J34+J53+J72+J91","v":3763.192532},null,{"$f":"L34+L53+L72+L91","v":5543.89},2.3267000000000002,{"$f":"N34+N53+N72+N91","v":12898.968863000002},null,16662.161395000003]
[null,"December",null,5777.99,4.3472999999999997,25118.655926999996,null,{"$f":"H35+H54+H73+H92","v":5795.36},0.67879999999999996,{"$f":"J35+J54+J73+J92","v":3933.8903679999994},null,{"$f":"L35+L54+L73+L92","v":5795.36},2.3267000000000002,{"$f":"N35+N54+N73+N92","v":13484.064112},null,17417.95448]
[]
[null,"Total",null,{"$f":"SUM(D100:D111)","v":66817.080000000016},{"$f":"IF(D113<>0,F113/D113,0)","v":4.3472999999999988},{"$f":"SUM(F100:F111)","v":290473.89188399998},null,{"$f":"SUM(H100:H111)","v":67904.740000000005},{"$f":"IF(H113<>0,J113/H113,0)","v":0.67879999999999996},{"$f":"SUM(J100:J111)","v":46093.737512},null,{"$f":"SUM(L100:L111)","v":67904.850000000006},{"$f":"IF(L113<>0,N113/L113,0)","v":2.3267000000000002},{"$f":"SUM(N100:N111)","v":157994.21449500002},null,{"$f":"SUM(P100:P111)","v":204087.95200699999}]
[]
[null,null,null,null,null,null,null,null,null,null,null,null,null,"Low Voltage Switchgear Credit (if applicable)",null,{"$f":"'4. UTRs and Sub-Transmission'!L76","v":0}]
[]
[null,null,null,null,null,null,null,null,null,null,null,null,null,"Total including deduction for Low Voltage Switchgear Credit",null,{"$f":"P113+P115","v":204087.95200699999}]

{"sheet":"8. RTSR Rates to Forecast","index":9,"n_rows":48,"n_cols":10,"rows_kept":48,"cut":false,"hidden":false,"merged":[]}
[]
[]
[]
[]
[]
[]
[]
[]
[]
[]
[]
[]
["The purpose of this sheet is to re-align the current RTS Network Rates to recover current wholesale network costs."]
[]
["Rate Class","Rate Description","Unit","Current RTSR-Network","Loss Adjusted Billed kWh","Billed kW","Billed Amount","Billed Amount %","Current Wholesale Billing","Adjusted RTSR Network"]
[]
["RESIDENTIAL SERVICE CLASSIFICATION","Retail Transmission Rate - Network Service Rate","$/kWh",7.7000000000000002E-3,23276958.425099999,0,{"$f":"ROUND(D17*E17, 2)","v":179232.58},{"$f":"G17/240762.29","v":0.74443792672016862},{"$f":"H17*total_current_wholesale_network","v":172989.83582563049},{"$f":"IF(ISERROR(I17/E17), 0, I17/E17)","v":7.4318058513646772E-3}]
["GENERAL SERVICE LESS THAN 50 KW SERVICE CLASSIFICATION","Retail Transmission Rate - Network Service Rate","$/kWh",7.0000000000000001E-3,4676599.6770000001,0,{"$f":"ROUND(D18*E18, 2)","v":32736.2},{"$f":"G18/240762.29","v":0.13596896756547713},{"$f":"H18*total_current_wholesale_network","v":31595.984745379472},{"$f":"IF(ISERROR(I18/E18), 0, I18/E18)","v":6.756187599458595E-3}]
["GENERAL SERVICE 50 to 4,999 kW SERVICE CLASSIFICATION","Retail Transmission Rate - Network Service Rate","$/kW",2.8323999999999998,4255784.9261999996,9472,{"$f":"ROUND(D19*F19, 2)","v":26828.49},{"$f":"G19/240762.29","v":0.11143144551416254},{"$f":"H19*total_current_wholesale_network","v":25894.042704454569},{"$f":"IF(ISERROR(I19/F19), 0, I19/F19)","v":2.7337460625479908}]
["UNMETERED SCATTERED LOAD SERVICE CLASSIFICATION","Retail Transmission Rate - Network Service Rate","$/kWh",7.0000000000000001E-3,100055.99159999999,0,{"$f":"ROUND(D20*E20, 2)","v":700.39},{"$f":"G20/240762.29","v":2.9090519117424907E-3},{"$f":"H20*total_current_wholesale_network","v":675.99512942297292},{"$f":"IF(ISERROR(I20/E20), 0, I20/E20)","v":6.7561684074397095E-3}]
["STREET LIGHTING SERVICE CLASSIFICATION","Retail Transmission Rate - Network Service Rate","$/kW",2.1362000000000001,230613.3456,592,{"$f":"ROUND(D21*F21, 2)","v":1264.6300000000001},{"$f":"G21/240762.29","v":5.2526082884491593E-3},{"$f":"H21*total_current_wholesale_network","v":1220.582419112458},{"$f":"IF(ISERROR(I21/F21), 0, I21/F21)","v":2.061794626879152}]
[]
["The purpose of this table is to re-align the current RTS Connection Rates to recover current wholesale connection costs."]
["Rate Class","Rate Description","Unit","Current RTSR-Connection","Loss Adjusted Billed kWh","Billed kW","Billed Amount","Billed Amount %","Current Wholesale Billing","Adjusted RTSR-Connection"]
[]
["RESIDENTIAL SERVICE CLASSIFICATION","Retail Transmission Rate - Line and Transformation Connection Service Rate","$/kWh",6.4999999999999997E-3,23276958.425099999,0,{"$f":"ROUND(D26*E26, 2)","v":151300.23000000001},{"$f":"G26/200588.77","v":0.75428066087647883},{"$f":"H26*Total_Current_Wholesale_Lineplus","v":146415.46680537998},{"$f":"IF(ISERROR(I26/E26), 0, I26/E26)","v":6.2901459946544105E-3}]
["GENERAL SERVICE LESS THAN 50 KW SERVICE CLASSIFICATION","Retail Transmission Rate - Line and Transformation Connection Service Rate","$/kWh",5.5999999999999999E-3,4676599.6770000001,0,{"$f":"ROUND(D27*E27, 2)","v":26188.959999999999},{"$f":"G27/200588.77","v":0.13056044962038504},{"$f":"H27*Total_Current_Wholesale_Lineplus","v":25343.443321582687},{"$f":"IF(ISERROR(I27/E27), 0, I27/E27)","v":5.4192030688930588E-3}]
["GENERAL SERVICE 50 to 4,999 kW SERVICE CLASSIFICATION","Retail Transmission Rate - Line and Transformation Connection Service Rate","$/kW",2.2698999999999998,4255784.9261999996,9472,{"$f":"ROUND(D28*F28, 2)","v":21500.49},{"$f":"G28/200588.77","v":0.10718690782140995},{"$f":"H28*Total_Current_Wholesale_Lineplus","v":20806.34166844561},{"$f":"IF(ISERROR(I28/F28), 0, I28/F28)","v":2.1966154633071802}]
["UNMETERED SCATTERED LOAD SERVICE CLASSIFICATION","Retail Transmission Rate - Line and Transformation Connection Service Rate","$/kWh",5.5999999999999999E-3,100055.99159999999,0,{"$f":"ROUND(D29*E29, 2)","v":560.30999999999995},{"$f":"G29/200588.77","v":2.7933268647093255E-3},{"$f":"H29*Total_Current_Wholesale_Lineplus","v":542.22026103808605},{"$f":"IF(ISERROR(I29/E29), 0, I29/E29)","v":5.4191683313254586E-3}]
["STREET LIGHTING SERVICE CLASSIFICATION","Retail Transmission Rate - Line and Transformation Connection Service Rate","$/kW",1.7546999999999999,230613.3456,592,{"$f":"ROUND(D30*F30, 2)","v":1038.78},{"$f":"G30/200588.77","v":5.178654817016925E-3},{"$f":"H30*Total_Current_Wholesale_Lineplus","v":1005.2427455536098},{"$f":"IF(ISERROR(I30/F30), 0, I30/F30)","v":1.6980451783000166}]
[]
["The purpose of this table is to update the re-aligned RTS Network Rates to recover future wholesale network costs."]
["Rate Class","Rate Description","Unit","Adjusted RTSR-Network","Loss Adjusted Billed kWh","Billed kW","Billed Amount","Billed Amount %","Forecast Wholesale Billing","Proposed RTSR-Network"]
[]
["RESIDENTIAL SERVICE CLASSIFICATION","Retail Transmission Rate - Network Service Rate","$/kWh",7.4318058513646772E-3,23276958.425099999,0,{"$f":"IF(ISERROR(D35*E35), 0, ROUND(D35*E35, 2))","v":172989.84},{"$f":"G35/232376.44","v":0.74443794732374757},{"$f":"H35*forecast_wholesale_network","v":216239.78782526511},{"$f":"IF(ISERROR(I35/E35), 0, I35/E35)","v":9.2898644176848087E-3}]
["GENERAL SERVICE LESS THAN 50 KW SERVICE CLASSIFICATION","Retail Transmission Rate - Network Service Rate","$/kWh",6.756187599458595E-3,4676599.6770000001,0,{"$f":"IF(ISERROR(D36*E36), 0, ROUND(D36*E36, 2))","v":31595.98},{"$f":"G36/232376.44","v":0.13596894762653219},{"$f":"H36*forecast_wholesale_network","v":39495.429392450569},{"$f":"IF(ISERROR(I36/E36), 0, I36/E36)","v":8.4453303939383915E-3}]
["GENERAL SERVICE 50 to 4,999 kW SERVICE CLASSIFICATION","Retail Transmission Rate - Network Service Rate","$/kW",2.7337460625479908,4255784.9261999996,9472,{"$f":"ROUND(D37*F37, 2)","v":25894.04},{"$f":"G37/232376.44","v":0.11143143427104744},{"$f":"H37*forecast_wholesale_network","v":32367.922390927284},{"$f":"IF(ISERROR(I37/F37), 0, I37/F37)","v":3.4172215362043161}]
["UNMETERED SCATTERED LOAD SERVICE CLASSIFICATION","Retail Transmission Rate - Network Service Rate","$/kWh",6.7561684074397095E-3,100055.99159999999,0,{"$f":"IF(ISERROR(D38*E38), 0, ROUND(D38*E38, 2))","v":676},{"$f":"G38/232376.44","v":2.9090728819152235E-3},{"$f":"H38*forecast_wholesale_network","v":845.00972178411894},{"$f":"IF(ISERROR(I38/E38), 0, I38/E38)","v":8.4453685208804533E-3}]
["STREET LIGHTING SERVICE CLASSIFICATION","Retail Transmission Rate - Network Service Rate","$/kW",2.061794626879152,230613.3456,592,{"$f":"ROUND(D39*F39, 2)","v":1220.58},{"$f":"G39/232376.44","v":5.2525978967575193E-3},{"$f":"H39*forecast_wholesale_network","v":1525.7425535728694},{"$f":"IF(ISERROR(I39/F39), 0, I39/F39)","v":2.5772678269811982}]
[]
["The purpose of this table is to update the re-aligned RTS Connection Rates to recover future wholesale connection costs."]
["Rate Class","Rate Description","Unit","Adjusted RTSR-Connection","Loss Adjusted Billed kWh","Billed kW","Billed Amount","Billed Amount %","Forecast Wholesale Billing","Proposed RTSR-Connection"]
[]
["RESIDENTIAL SERVICE CLASSIFICATION","Retail Transmission Rate - Line and Transformation Connection Service Rate","$/kWh",6.2901459946544105E-3,23276958.425099999,0,{"$f":"ROUND(D44*E44, 2)","v":146415.47},{"$f":"G44/194112.71","v":0.75428069599358027},{"$f":"H44*forecast_wholesale_lineplus","v":153939.60248374435},{"$f":"IF(ISERROR(I44/E44), 0, I44/E44)","v":6.6133899314675185E-3}]
["GENERAL SERVICE LESS THAN 50 KW SERVICE CLASSIFICATION","Retail Transmission Rate - Line and Transformation Connection Service Rate","$/kWh",5.4192030688930588E-3,4676599.6770000001,0,{"$f":"ROUND(D45*E45, 2)","v":25343.439999999999},{"$f":"G45/194112.71","v":0.13056043573859744},{"$f":"H45*forecast_wholesale_lineplus","v":26645.81194303188},{"$f":"IF(ISERROR(I45/E45), 0, I45/E45)","v":5.6976893006426728E-3}]
["GENERAL SERVICE 50 to 4,999 kW SERVICE CLASSIFICATION","Retail Transmission Rate - Line and Transformation Connection Service Rate","$/kW",2.1966154633071802,4255784.9261999996,9472,{"$f":"ROUND(D46*F46, 2)","v":20806.34},{"$f":"G46/194112.71","v":0.10718690187778018},{"$f":"H46*forecast_wholesale_lineplus","v":21875.55528621142},{"$f":"IF(ISERROR(I46/F46), 0, I46/F46)","v":2.3094969685611719}]
["UNMETERED SCATTERED LOAD SERVICE CLASSIFICATION","Retail Transmission Rate - Line and Transformation Connection Service Rate","$/kWh",5.4191683313254586E-3,100055.99159999999,0,{"$f":"ROUND(D47*E47, 2)","v":542.22},{"$f":"G47/194112.71","v":2.7933255890353601E-3},{"$f":"H47*forecast_wholesale_lineplus","v":570.08409875497352},{"$f":"IF(ISERROR(I47/E47), 0, I47/E47)","v":5.6976507817146412E-3}]
["STREET LIGHTING SERVICE CLASSIFICATION","Retail Transmission Rate - Line and Transformation Connection Service Rate","$/kW",1.6980451783000166,230613.3456,592,{"$f":"ROUND(D48*F48, 2)","v":1005.24},{"$f":"G48/194112.71","v":5.1786408010067965E-3},{"$f":"H48*forecast_wholesale_lineplus","v":1056.898195257367},{"$f":"IF(ISERROR(I48/F48), 0, I48/F48)","v":1.7853010055023091}]

{"sheet":"RateClasses","index":10,"n_rows":76,"n_cols":28,"rows_kept":76,"cut":false,"hidden":true,"merged":[]}
[]
["Alectra Utilities Corporation-Brampton Rate Zone","RESIDENTIAL SERVICE CLASSIFICATION~Retail Transmission Rate - Network Service Rate","RESIDENTIAL SERVICE CLASSIFICATION~Retail Transmission Rate - Line and Transformation Connection Service Rate","GENERAL SERVICE LESS THAN 50 KW SERVICE CLASSIFICATION~Retail Transmission Rate - Network Service Rate","GENERAL SERVICE LESS THAN 50 KW SERVICE CLASSIFICATION~Retail Transmission Rate - Line and Transformation Connection Service Rate","GENERAL SERVICE 50 TO 699 KW SERVICE CLASSIFICATION~Retail Transmission Rate - Network Service Rate","GENERAL SERVICE 50 TO 699 KW SERVICE CLASSIFICATION~Retail Transmission Rate - Line and Transformation Connection Service Rate","GENERAL SERVICE 700 TO 4,999 KW SERVICE CLASSIFICATION~Retail Transmission Rate - Network Service Rate","GENERAL SERVICE 700 TO 4,999 KW SERVICE CLASSIFICATION~Retail Transmission Rate - Line and Transformation Connection Service Rate","LARGE USE SERVICE CLASSIFICATION~Retail Transmission Rate - Network Service Rate","LARGE USE SERVICE CLASSIFICATION~Retail Transmission Rate - Line and Transformation Connection Service Rate","UNMETERED SCATTERED LOAD SERVICE CLASSIFICATION~Retail Transmission Rate - Network Service Rate","UNMETERED SCATTERED LOAD SERVICE CLASSIFICATION~Retail Transmission Rate - Line and Transformation Connection Service Rate","STREET LIGHTING SERVICE CLASSIFICATION~Retail Transmission Rate - Network Service Rate","STREET LIGHTING SERVICE CLASSIFICATION~Retail Transmission Rate - Line and Transformation Connection Service Rate","EMBEDDED DISTRIBUTOR SERVICE CLASSIFICATION~Retail Transmission Rate - Network Service Rate","EMBEDDED DISTRIBUTOR SERVICE CLASSIFICATION~Retail Transmission Rate - Line and Transformation Connection Service Rate","DISTRIBUTED GENERATION [DGEN] SERVICE CLASSIFICATION~Retail Transmission Rate - Network Service Rate","DISTRIBUTED GENERATION [DGEN] SERVICE CLASSIFICATION~Retail Transmission Rate - Line and Transformation Connection Service Rate"]
["Alectra Utilities Corporation-Enersource Rate Zone","RESIDENTIAL SERVICE CLASSIFICATION~Retail Transmission Rate - Network Service Rate","RESIDENTIAL SERVICE CLASSIFICATION~Retail Transmission Rate - Line and Transformation Connection Service Rate","GENERAL SERVICE LESS THAN 50 KW SERVICE CLASSIFICATION~Retail Transmission Rate - Network Service Rate","GENERAL SERVICE LESS THAN 50 KW SERVICE CLASSIFICATION~Retail Transmission Rate - Line and Transformation Connection Service Rate","GENERAL SERVICE 50 TO 499 KW SERVICE CLASSIFICATION~Retail Transmission Rate - Network Service Rate","GENERAL SERVICE 50 TO 499 KW SERVICE CLASSIFICATION~Retail Transmission Rate - Line and Transformation Connection Service Rate","GENERAL SERVICE 500 TO 4,999 KW SERVICE CLASSIFICATION~Retail Transmission Rate - Network Service Rate ","GENERAL SERVICE 500 TO 4,999 KW SERVICE CLASSIFICATION~Retail Transmission Rate - Line and Transformation Connection Service Rate ","LARGE USE SERVICE CLASSIFICATION~Retail Transmission Rate - Network Service Rate – Interval Metered","LARGE USE SERVICE CLASSIFICATION~Retail Transmission Rate - Line and Transformation Connection Service Rate – Interval Metered ","UNMETERED SCATTERED LOAD SERVICE CLASSIFICATION~Retail Transmission Rate - Network Service Rate","UNMETERED SCATTERED LOAD SERVICE CLASSIFICATION~Retail Transmission Rate - Line and Transformation Connection Service Rate","STREET LIGHTING SERVICE CLASSIFICATION~Retail Transmission Rate - Network Service Rate","STREET LIGHTING SERVICE CLASSIFICATION~Retail Transmission Rate - Line and Transformation Connection Service Rate"]
["Alectra Utilities Corporation-Horizon Utilities Rate Zone","RESIDENTIAL SERVICE CLASSIFICATION~Retail Transmission Rate - Network Service Rate","RESIDENTIAL SERVICE CLASSIFICATION~Retail Transmission Rate - Line and Transformation Connection Service Rate","GENERAL SERVICE LESS THAN 50 KW SERVICE CLASSIFICATION~Retail Transmission Rate - Network Service Rate","GENERAL SERVICE LESS THAN 50 KW SERVICE CLASSIFICATION~Retail Transmission Rate - Line and Transformation Connection Service Rate","GENERAL SERVICE 50 to 4,999 kW SERVICE CLASSIFICATION~Retail Transmission Rate - Network Service Rate","GENERAL SERVICE 50 to 4,999 kW SERVICE CLASSIFICATION~Retail Transmission Rate - Line and Transformation Connection Service Rate","LARGE USE SERVICE CLASSIFICATION~Retail Transmission Rate - Network Service Rate","LARGE USE SERVICE CLASSIFICATION~Retail Transmission Rate - Line and Transformation Connection Service Rate","LARGE USE WITH DEDICATED ASSETS SERVICE CLASSIFICATION~Retail Transmission Rate - Network Service Rate","LARGE USE WITH DEDICATED ASSETS SERVICE CLASSIFICATION~Retail Transmission Rate - Line and Transformation Connection Service Rate","UNMETERED SCATTERED LOAD SERVICE CLASSIFICATION~Retail Transmission Rate - Network Service Rate","UNMETERED SCATTERED LOAD SERVICE CLASSIFICATION~Retail Transmission Rate - Line and Transformation Connection Service Rate","SENTINEL LIGHTING SERVICE CLASSIFICATION~Retail Transmission Rate - Network Service Rate","SENTINEL LIGHTING SERVICE CLASSIFICATION~Retail Transmission Rate - Line and Transformation Connection Service Rate","STREET LIGHTING SERVICE CLASSIFICATION~Retail Transmission Rate - Network Service Rate","STREET LIGHTING SERVICE CLASSIFICATION~Retail Transmission Rate - Line and Transformation Connection Service Rate"]
["Alectra Utilities Corporation-PowerStream Rate Zone","RESIDENTIAL SERVICE CLASSIFICATION~Retail Transmission Rate - Network Service Rate","RESIDENTIAL SERVICE CLASSIFICATION~Retail Transmission Rate - Line and Transformation Connection Service Rate","GENERAL SERVICE LESS THAN 50 KW SERVICE CLASSIFICATION~Retail Transmission Rate - Network Service Rate","GENERAL SERVICE LESS THAN 50 KW SERVICE CLASSIFICATION~Retail Transmission Rate - Line and Transformation Connection Service Rate","GENERAL SERVICE 50 to 4,999 kW SERVICE CLASSIFICATION~Retail Transmission Rate - Network Service Rate","GENERAL SERVICE 50 to 4,999 kW SERVICE CLASSIFICATION~Retail Transmission Rate - Line and Transformation Connection Service Rate","GENERAL SERVICE 50 to 4,999 kW SERVICE CLASSIFICATION~Retail Transmission Rate - Network Service Rate – Interval Metered","GENERAL SERVICE 50 to 4,999 kW SERVICE CLASSIFICATION~Retail Transmission Rate - Line and Transformation Connection Service Rate – Interval Metered","LARGE USE SERVICE CLASSIFICATION~Retail Transmission Rate - Network Service Rate","LARGE USE SERVICE CLASSIFICATION~Retail Transmission Rate - Line and Transformation Connection Service Rate","UNMETERED SCATTERED LOAD SERVICE CLASSIFICATION~Retail Transmission Rate - Network Service Rate","UNMETERED SCATTERED LOAD SERVICE CLASSIFICATION~Retail Transmission Rate - Line and Transformation Connection Service Rate","SENTINEL LIGHTING SERVICE CLASSIFICATION~Retail Transmission Rate - Network Service Rate","SENTINEL LIGHTING SERVICE CLASSIFICATION~Retail Transmission Rate - Line and Transformation Connection Service Rate","STREET LIGHTING SERVICE CLASSIFICATION~Retail Transmission Rate - Network Service Rate","STREET LIGHTING SERVICE CLASSIFICATION~Retail Transmission Rate - Line and Transformation Connection Service Rate"]
["Algoma Power Inc.","RESIDENTIAL R1 SERVICE CLASSIFICATION~Retail Transmission Rate - Network Service Rate","RESIDENTIAL R1 SERVICE CLASSIFICATION~Retail Transmission Rate - Line and Transformation Connection Service Rate","RESIDENTIAL R2 SERVICE CLASSIFICATION~Retail Transmission Rate - Network Service Rate","RESIDENTIAL R2 SERVICE CLASSIFICATION~Retail Transmission Rate - Line and Transformation Connection Service Rate","SEASONAL CUSTOMERS SERVICE CLASSIFICATION~Retail Transmission Rate - Network Service Rate","SEASONAL CUSTOMERS SERVICE CLASSIFICATION~Retail Transmission Rate - Line and Transformation Connection Service Rate","STREET LIGHTING SERVICE CLASSIFICATION~Retail Transmission Rate - Network Service Rate","STREET LIGHTING SERVICE CLASSIFICATION~Retail Transmission Rate - Line and Transformation Connection Service Rate"]
["Centre Wellington Hydro Ltd.","RESIDENTIAL SERVICE CLASSIFICATION~Retail Transmission Rate - Network Service Rate","RESIDENTIAL SERVICE CLASSIFICATION~Retail Transmission Rate - Line and Transformation Connection Service Rate","GENERAL SERVICE LESS THAN 50 KW SERVICE CLASSIFICATION~Retail Transmission Rate - Network Service Rate","GENERAL SERVICE LESS THAN 50 KW SERVICE CLASSIFICATION~Retail Transmission Rate - Line and Transformation Connection Service Rate","GENERAL SERVICE 50 TO 2,999 KW SERVICE CLASSIFICATION~Retail Transmission Rate - Network Service Rate","GENERAL SERVICE 50 TO 2,999 KW SERVICE CLASSIFICATION~Retail Transmission Rate - Line and Transformation Connection Service Rate","GENERAL SERVICE 3,000 TO 4,999 KW SERVICE CLASSIFICATION~Retail Transmission Rate - Network Service Rate","GENERAL SERVICE 3,000 TO 4,999 KW SERVICE CLASSIFICATION~Retail Transmission Rate - Line and Transformation Connection Service Rate","UNMETERED SCATTERED LOAD SERVICE CLASSIFICATION~Retail Transmission Rate - Network Service Rate","UNMETERED SCATTERED LOAD SERVICE CLASSIFICATION~Retail Transmission Rate - Line and Transformation Connection Service Rate","SENTINEL LIGHTING SERVICE CLASSIFICATION~Retail Transmission Rate - Network Service Rate","SENTINEL LIGHTING SERVICE CLASSIFICATION~Retail Transmission Rate - Line and Transformation Connection Service Rate","STREET LIGHTING SERVICE CLASSIFICATION~Retail Transmission Rate - Network Service Rate","STREET LIGHTING SERVICE CLASSIFICATION~Retail Transmission Rate - Line and Transformation Connection Service Rate"]
["Canadian Niagara Power Inc.","RESIDENTIAL SERVICE CLASSIFICATION~Retail Transmission Rate - Network Service Rate","RESIDENTIAL SERVICE CLASSIFICATION~Retail Transmission Rate - Line and Transformation Connection Service Rate","GENERAL SERVICE LESS THAN 50 KW SERVICE CLASSIFICATION~Retail Transmission Rate - Network Service Rate","GENERAL SERVICE LESS THAN 50 KW SERVICE CLASSIFICATION~Retail Transmission Rate - Line and Transformation Connection Service Rate","GENERAL SERVICE 50 to 4,999 kW SERVICE CLASSIFICATION~Retail Transmission Rate - Network Service Rate","GENERAL SERVICE 50 to 4,999 kW SERVICE CLASSIFICATION~Retail Transmission Rate - Line and Transformation Connection Service Rate","EMBEDDED DISTRIBUTOR SERVICE CLASSIFICATION~Retail Transmission Rate - Network Service Rate","EMBEDDED DISTRIBUTOR SERVICE CLASSIFICATION~Retail Transmission Rate - Line and Transformation Connection Service Rate","UNMETERED SCATTERED LOAD SERVICE CLASSIFICATION~Retail Transmission Rate - Network Service Rate","UNMETERED SCATTERED LOAD SERVICE CLASSIFICATION~Retail Transmission Rate - Line and Transformation Connection Service Rate","SENTINEL LIGHTING SERVICE CLASSIFICATION~Retail Transmission Rate - Network Service Rate","SENTINEL LIGHTING SERVICE CLASSIFICATION~Retail Transmission Rate - Line and Transformation Connection Service Rate","STREET LIGHTING SERVICE CLASSIFICATION~Retail Transmission Rate - Network Service Rate","STREET LIGHTING SERVICE CLASSIFICATION~Retail Transmission Rate - Line and Transformation Connection Service Rate"]
["Entegrus Powerlines Inc.","RESIDENTIAL SERVICE CLASSIFICATION~Retail Transmission Rate - Network Service Rate","RESIDENTIAL SERVICE CLASSIFICATION~Retail Transmission Rate - Line and Transformation Connection Service Rate","GENERAL SERVICE LESS THAN 50 KW SERVICE CLASSIFICATION~Retail Transmission Rate - Network Service Rate","GENERAL SERVICE LESS THAN 50 KW SERVICE CLASSIFICATION~Retail Transmission Rate - Line and Transformation Connection Service Rate","GENERAL SERVICE 50 to 4,999 kW SERVICE CLASSIFICATION~Retail Transmission Rate - Network Service Rate","GENERAL SERVICE 50 to 4,999 kW SERVICE CLASSIFICATION~Retail Transmission Rate - Line and Transformation Connection Service Rate (see Note 1)","LARGE USE SERVICE CLASSIFICATION~Retail Transmission Rate - Network Service Rate","LARGE USE SERVICE CLASSIFICATION~Retail Transmission Rate - Line and Transformation Connection Service Rate (see Note 1)","UNMETERED SCATTERED LOAD SERVICE CLASSIFICATION~Retail Transmission Rate - Network Service Rate","UNMETERED SCATTERED LOAD SERVICE CLASSIFICATION~Retail Transmission Rate - Line and Transformation Connection Service Rate","SENTINEL LIGHTING SERVICE CLASSIFICATION~Retail Transmission Rate - Network Service Rate","SENTINEL LIGHTING SERVICE CLASSIFICATION~Retail Transmission Rate - Line and Transformation Connection Service Rate","STREET LIGHTING SERVICE CLASSIFICATION~Retail Transmission Rate - Network Service Rate","STREET LIGHTING SERVICE CLASSIFICATION~Retail Transmission Rate - Line and Transformation Connection Service Rate","EMBEDDED DISTRIBUTOR SERVICE CLASSIFICATION~Retail Transmission Rate - Network Service Rate","EMBEDDED DISTRIBUTOR SERVICE CLASSIFICATION~Retail Transmission Rate - Line and Transformation Connection Service Rate"]
["Entegrus Powerlines Inc.-For Former St. Thomas Energy Rate Zone","RESIDENTIAL SERVICE CLASSIFICATION~Retail Transmission Rate - Network Service Rate","RESIDENTIAL SERVICE CLASSIFICATION~Retail Transmission Rate - Line and Transformation Connection Service Rate","GENERAL SERVICE LESS THAN 50 KW SERVICE CLASSIFICATION~Retail Transmission Rate - Network Service Rate","GENERAL SERVICE LESS THAN 50 KW SERVICE CLASSIFICATION~Retail Transmission Rate - Line and Transformation Connection Service Rate","GENERAL SERVICE 50 to 4,999 kW SERVICE CLASSIFICATION~Retail Transmission Rate - Network Service Rate","GENERAL SERVICE 50 to 4,999 kW SERVICE CLASSIFICATION~Retail Transmission Rate - Line and Transformation Connection Service Rate","SENTINEL LIGHTING SERVICE CLASSIFICATION~Retail Transmission Rate - Network Service Rate","SENTINEL LIGHTING SERVICE CLASSIFICATION~Retail Transmission Rate - Line and Transformation Connection Service Rate","STREET LIGHTING SERVICE CLASSIFICATION~Retail Transmission Rate - Network Service Rate","STREET LIGHTING SERVICE CLASSIFICATION~Retail Transmission Rate - Line and Transformation Connection Service Rate"]
["Festival Hydro Inc.","RESIDENTIAL SERVICE CLASSIFICATION~Retail Transmission Rate - Network Service Rate","RESIDENTIAL SERVICE CLASSIFICATION~Retail Transmission Rate - Line and Transformation Connection Service Rate","GENERAL SERVICE LESS THAN 50 KW SERVICE CLASSIFICATION~Retail Transmission Rate - Network Service Rate","GENERAL SERVICE LESS THAN 50 KW SERVICE CLASSIFICATION~Retail Transmission Rate - Line and Transformation Connection Service Rate","GENERAL SERVICE 50 to 4,999 kW SERVICE CLASSIFICATION~Retail Transmission Rate - Network Service Rate","GENERAL SERVICE 50 to 4,999 kW SERVICE CLASSIFICATION~Retail Transmission Rate - Line and Transformation Connection Service Rate","GENERAL SERVICE 50 to 4,999 kW SERVICE CLASSIFICATION~Retail Transmission Rate - Network Service Rate - Interval Metered","GENERAL SERVICE 50 to 4,999 kW SERVICE CLASSIFICATION~Retail Transmission Rate - Line and Transformation Connection Service Rate - Interval Metered","LARGE USE SERVICE CLASSIFICATION~Retail Transmission Rate - Network Service Rate - Interval Metered","LARGE USE SERVICE CLASSIFICATION~Retail Transmission Rate - Line and Transformation Connection Service Rate - Interval Metered","UNMETERED SCATTERED LOAD SERVICE CLASSIFICATION~Retail Transmission Rate - Network Service Rate","UNMETERED SCATTERED LOAD SERVICE CLASSIFICATION~Retail Transmission Rate - Line and Transformation Connection Service Rate","SENTINEL LIGHTING SERVICE CLASSIFICATION~Retail Transmission Rate - Network Service Rate","SENTINEL LIGHTING SERVICE CLASSIFICATION~Retail Transmission Rate - Line and Transformation Connection Service Rate","STREET LIGHTING SERVICE CLASSIFICATION~Retail Transmission Rate - Network Service Rate","STREET LIGHTING SERVICE CLASSIFICATION~Retail Transmission Rate - Line and Transformation Connection Service Rate"]
["Grimsby Power Incorporated","RESIDENTIAL SERVICE CLASSIFICATION~Retail Transmission Rate - Network Service Rate","RESIDENTIAL SERVICE CLASSIFICATION~Retail Transmission Rate - Line and Transformation Connection Service Rate","GENERAL SERVICE LESS THAN 50 KW SERVICE CLASSIFICATION~Retail Transmission Rate - Network Service Rate","GENERAL SERVICE LESS THAN 50 KW SERVICE CLASSIFICATION~Retail Transmission Rate - Line and Transformation Connection Service Rate","GENERAL SERVICE 50 to 4,999 kW SERVICE CLASSIFICATION~Retail Transmission Rate - Network Service Rate","GENERAL SERVICE 50 to 4,999 kW SERVICE CLASSIFICATION~Retail Transmission Rate - Line and Transformation Connection Service Rate","GENERAL SERVICE 50 to 4,999 kW SERVICE CLASSIFICATION~Retail Transmission Rate - Network Service Rate - Interval Metered","GENERAL SERVICE 50 to 4,999 kW SERVICE CLASSIFICATION~Retail Transmission Rate - Line and Transformation Connection Service Rate - Interval Metered","UNMETERED SCATTERED LOAD SERVICE CLASSIFICATION~Retail Transmission Rate - Network Service Rate","UNMETERED SCATTERED LOAD SERVICE CLASSIFICATION~Retail Transmission Rate - Line and Transformation Connection Service Rate","STREET LIGHTING SERVICE CLASSIFICATION~Retail Transmission Rate - Network Service Rate","STREET LIGHTING SERVICE CLASSIFICATION~Retail Transmission Rate - Line and Transformation Connection Service Rate","EMBEDDED DISTRIBUTOR SERVICE CLASSIFICATION~Retail Transmission Rate - Network Service Rate","EMBEDDED DISTRIBUTOR SERVICE CLASSIFICATION~Retail Transmission Rate - Line and Transformation Connection Service Rate"]
["Alectra Utilities Corporation-Guelph Rate Zone","RESIDENTIAL SERVICE CLASSIFICATION~Retail Transmission Rate - Network Service Rate","RESIDENTIAL SERVICE CLASSIFICATION~Retail Transmission Rate - Line and Transformation Connection Service Rate","GENERAL SERVICE LESS THAN 50 KW SERVICE CLASSIFICATION~Retail Transmission Rate - Network Service Rate","GENERAL SERVICE LESS THAN 50 KW SERVICE CLASSIFICATION~Retail Transmission Rate - Line and Transformation Connection Service Rate","GENERAL SERVICE 50 TO 999 KW SERVICE CLASSIFICATION~Retail Transmission Rate - Network Service Rate","GENERAL SERVICE 50 TO 999 KW SERVICE CLASSIFICATION~Retail Transmission Rate - Network Service Rate - Interval Metered","GENERAL SERVICE 50 TO 999 KW SERVICE CLASSIFICATION~Retail Transmission Rate - Line and Transformation Connection Service Rate","GENERAL SERVICE 50 TO 999 KW SERVICE CLASSIFICATION~Retail Transmission Rate - Line and Transformation Connection Service Rate - Interval Metered","GENERAL SERVICE 1,000 TO 4,999 KW SERVICE CLASSIFICATION~Retail Transmission Rate - Network Service Rate - Interval Metered","GENERAL SERVICE 1,000 TO 4,999 KW SERVICE CLASSIFICATION~Retail Transmission Rate - Line and Transformation Connection Service Rate - Interval Metered","LARGE USE SERVICE CLASSIFICATION~Retail Transmission Rate - Network Service Rate - Interval Metered","LARGE USE SERVICE CLASSIFICATION~Retail Transmission Rate - Line and Transformation Connection Service Rate - Interval Metered","UNMETERED SCATTERED LOAD SERVICE CLASSIFICATION~Retail Transmission Rate - Network Service Rate","UNMETERED SCATTERED LOAD SERVICE CLASSIFICATION~Retail Transmission Rate - Line and Transformation Connection Service Rate","SENTINEL LIGHTING SERVICE CLASSIFICATION~Retail Transmission Rate - Network Service Rate","SENTINEL LIGHTING SERVICE CLASSIFICATION~Retail Transmission Rate - Line and Transformation Connection Service Rate","STREET LIGHTING SERVICE CLASSIFICATION~Retail Transmission Rate - Network Service Rate","STREET LIGHTING SERVICE CLASSIFICATION~Retail Transmission Rate - Line and Transformation Connection Service Rate"]
["Hydro Hawkesbury Inc.","RESIDENTIAL SERVICE CLASSIFICATION~Retail Transmission Rate - Network Service Rate","RESIDENTIAL SERVICE CLASSIFICATION~Retail Transmission Rate - Line and Transformation Connection Service Rate","GENERAL SERVICE LESS THAN 50 KW SERVICE CLASSIFICATION~Retail Transmission Rate - Network Service Rate","GENERAL SERVICE LESS THAN 50 KW SERVICE CLASSIFICATION~Retail Transmission Rate - Line and Transformation Connection Service Rate","GENERAL SERVICE 50 to 4,999 kW SERVICE CLASSIFICATION~Retail Transmission Rate - Network Service Rate","GENERAL SERVICE 50 to 4,999 kW SERVICE CLASSIFICATION~Retail Transmission Rate - Line and Transformation Connection Service Rate","UNMETERED SCATTERED LOAD SERVICE CLASSIFICATION~Retail Transmission Rate - Network Service Rate","UNMETERED SCATTERED LOAD SERVICE CLASSIFICATION~Retail Transmission Rate - Line and Transformation Connection Service Rate","SENTINEL LIGHTING SERVICE CLASSIFICATION~Retail Transmission Rate - Network Service Rate","SENTINEL LIGHTING SERVICE CLASSIFICATION~Retail Transmission Rate - Line and Transformation Connection Service Rate","STREET LIGHTING SERVICE CLASSIFICATION~Retail Transmission Rate - Network Service Rate","STREET LIGHTING SERVICE CLASSIFICATION~Retail Transmission Rate - Line and Transformation Connection Service Rate"]
["Hydro Ottawa Limited","RESIDENTIAL SERVICE CLASSIFICATION~Retail Transmission Rate - Network Service Rate","RESIDENTIAL SERVICE CLASSIFICATION~Retail Transmission Rate - Line and Transformation Connection Service Rate","GENERAL SERVICE LESS THAN 50 KW SERVICE CLASSIFICATION~Retail Transmission Rate - Network Service Rate","GENERAL SERVICE LESS THAN 50 KW SERVICE CLASSIFICATION~Retail Transmission Rate - Line and Transformation Connection Service Rate","GENERAL SERVICE 50 TO 1,499 KW SERVICE CLASSIFICATION~Retail Transmission Rate - Network Service Rate","GENERAL SERVICE 50 TO 1,499 KW SERVICE CLASSIFICATION~Retail Transmission Rate - Line and Transformation Connection Service Rate","GENERAL SERVICE 1,500 TO 4,999 KW SERVICE CLASSIFICATION~Retail Transmission Rate - Network Service Rate","GENERAL SERVICE 1,500 TO 4,999 KW SERVICE CLASSIFICATION~Retail Transmission Rate - Line and Transformation Connection Service Rate","LARGE USE SERVICE CLASSIFICATION~Retail Transmission Rate - Network Service Rate","LARGE USE SERVICE CLASSIFICATION~Retail Transmission Rate - Line and Transformation Connection Service Rate","UNMETERED SCATTERED LOAD SERVICE CLASSIFICATION~Retail Transmission Rate - Network Service Rate","UNMETERED SCATTERED LOAD SERVICE CLASSIFICATION~Retail Transmission Rate - Line and Transformation Connection Service Rate","SENTINEL LIGHTING SERVICE CLASSIFICATION~Retail Transmission Rate - Network Service Rate","SENTINEL LIGHTING SERVICE CLASSIFICATION~Retail Transmission Rate - Line and Transformation Connection Service Rate","STREET LIGHTING SERVICE CLASSIFICATION~Retail Transmission Rate - Network Service Rate","STREET LIGHTING SERVICE CLASSIFICATION~Retail Transmission Rate - Line and Transformation Connection Service Rate"]
["InnPower Corporation","RESIDENTIAL SERVICE CLASSIFICATION~Retail Transmission Rate - Network Service Rate","RESIDENTIAL SERVICE CLASSIFICATION~Retail Transmission Rate - Line and Transformation Connection Service Rate","GENERAL SERVICE LESS THAN 50 KW SERVICE CLASSIFICATION~Retail Transmission Rate - Network Service Rate","GENERAL SERVICE LESS THAN 50 KW SERVICE CLASSIFICATION~Retail Transmission Rate - Line and Transformation Connection Service Rate","GENERAL SERVICE 50 to 4,999 kW SERVICE CLASSIFICATION~Retail Transmission Rate - Network Service Rate","GENERAL SERVICE 50 to 4,999 kW SERVICE CLASSIFICATION~Retail Transmission Rate - Line and Transformation Connection Service Rate ","GENERAL SERVICE 50 to 4,999 kW SERVICE CLASSIFICATION~Retail Transmission Rate - Network Service Rate - Interval Metered","GENERAL SERVICE 50 to 4,999 kW SERVICE CLASSIFICATION~Retail Transmission Rate - Line and Transformation Connection Service Rate - Interval Metered ","UNMETERED SCATTERED LOAD SERVICE CLASSIFICATION~Retail Transmission Rate - Network Service Rate","UNMETERED SCATTERED LOAD SERVICE CLASSIFICATION~Retail Transmission Rate - Line and Transformation Connection Service Rate","SENTINEL LIGHTING SERVICE CLASSIFICATION~Retail Transmission Rate - Network Service Rate","SENTINEL LIGHTING SERVICE CLASSIFICATION~Retail Transmission Rate - Line and Transformation Connection Service Rate","STREET LIGHTING SERVICE CLASSIFICATION~Retail Transmission Rate - Network Service Rate","STREET LIGHTING SERVICE CLASSIFICATION~Retail Transmission Rate - Line and Transformation Connection Service Rate"]
["Kingston Hydro Corporation","RESIDENTIAL SERVICE CLASSIFICATION~Retail Transmission Rate - Network Service Rate","RESIDENTIAL SERVICE CLASSIFICATION~Retail Transmission Rate - Line and Transformation Connection Service Rate","GENERAL SERVICE LESS THAN 50 KW SERVICE CLASSIFICATION~Retail Transmission Rate - Network Service Rate","GENERAL SERVICE LESS THAN 50 KW SERVICE CLASSIFICATION~Retail Transmission Rate - Line and Transformation Connection Service Rate","GENERAL SERVICE 50 to 4,999 kW SERVICE CLASSIFICATION~Retail Transmission Rate - Network Service Rate","GENERAL SERVICE 50 to 4,999 kW SERVICE CLASSIFICATION~Retail Transmission Rate - Line and Transformation Connection Service Rate","LARGE USE SERVICE CLASSIFICATION~Retail Transmission Rate - Network Service Rate","LARGE USE SERVICE CLASSIFICATION~Retail Transmission Rate - Line and Transformation Connection Service Rate","UNMETERED SCATTERED LOAD SERVICE CLASSIFICATION~Retail Transmission Rate - Network Service Rate","UNMETERED SCATTERED LOAD SERVICE CLASSIFICATION~Retail Transmission Rate - Line and Transformation Connection Service Rate","STREET LIGHTING SERVICE CLASSIFICATION~Retail Transmission Rate - Network Service Rate","STREET LIGHTING SERVICE CLASSIFICATION~Retail Transmission Rate - Line and Transformation Connection Service Rate"]
["Kitchener-Wilmot Hydro Inc.","RESIDENTIAL SERVICE CLASSIFICATION~Retail Transmission Rate - Network Service Rate","RESIDENTIAL SERVICE CLASSIFICATION~Retail Transmission Rate - Line and Transformation Connection Service Rate","GENERAL SERVICE LESS THAN 50 KW SERVICE CLASSIFICATION~Retail Transmission Rate - Network Service Rate","GENERAL SERVICE LESS THAN 50 KW SERVICE CLASSIFICATION~Retail Transmission Rate - Line and Transformation Connection Service Rate","GENERAL SERVICE 50 to 4,999 kW SERVICE CLASSIFICATION~Retail Transmission Rate - Network Service Rate","GENERAL SERVICE 50 to 4,999 kW SERVICE CLASSIFICATION~Retail Transmission Rate - Line and Transformation Connection Service Rate","LARGE USE SERVICE CLASSIFICATION~Retail Transmission Rate - Network Service Rate - Interval Metered","LARGE USE SERVICE CLASSIFICATION~Retail Transmission Rate - Line and Transformation Connection Service Rate - Interval Metered","UNMETERED SCATTERED LOAD SERVICE CLASSIFICATION~Retail Transmission Rate - Network Service Rate","UNMETERED SCATTERED LOAD SERVICE CLASSIFICATION~Retail Transmission Rate - Line and Transformation Connection Service Rate","STREET LIGHTING SERVICE CLASSIFICATION~Retail Transmission Rate - Network Service Rate","STREET LIGHTING SERVICE CLASSIFICATION~Retail Transmission Rate - Line and Transformation Connection Service Rate","EMBEDDED DISTRIBUTOR SERVICE CLASSIFICATION~Retail Transmission Rate - Network Service Rate","EMBEDDED DISTRIBUTOR SERVICE CLASSIFICATION~Retail Transmission Rate - Line and Transformation Connection Service Rate"]
["Renfrew Hydro Inc.","RESIDENTIAL SERVICE CLASSIFICATION~Retail Transmission Rate - Network Service Rate","RESIDENTIAL SERVICE CLASSIFICATION~Retail Transmission Rate - Line and Transformation Connection Service Rate","GENERAL SERVICE LESS THAN 50 KW SERVICE CLASSIFICATION~Retail Transmission Rate - Network Service Rate","GENERAL SERVICE LESS THAN 50 KW SERVICE CLASSIFICATION~Retail Transmission Rate - Line and Transformation Connection Service Rate","GENERAL SERVICE 50 to 4,999 kW SERVICE CLASSIFICATION~Retail Transmission Rate - Network Service Rate","GENERAL SERVICE 50 to 4,999 kW SERVICE CLASSIFICATION~Retail Transmission Rate - Line and Transformation Connection Service Rate","UNMETERED SCATTERED LOAD SERVICE CLASSIFICATION~Retail Transmission Rate - Network Service Rate","UNMETERED SCATTERED LOAD SERVICE CLASSIFICATION~Retail Transmission Rate - Line and Transformation Connection Service Rate","STREET LIGHTING SERVICE CLASSIFICATION~Retail Transmission Rate - Network Service Rate","STREET LIGHTING SERVICE CLASSIFICATION~Retail Transmission Rate - Line and Transformation Connection Service Rate"]
["Cooperative Hydro Embrun Inc.","RESIDENTIAL SERVICE CLASSIFICATION~Retail Transmission Rate - Network Service Rate","RESIDENTIAL SERVICE CLASSIFICATION~Retail Transmission Rate - Line and Transformation Connection Service Rate","GENERAL SERVICE LESS THAN 50 KW SERVICE CLASSIFICATION~Retail Transmission Rate - Network Service Rate","GENERAL SERVICE LESS THAN 50 KW SERVICE CLASSIFICATION~Retail Transmission Rate - Line and Transformation Connection Service Rate","GENERAL SERVICE 50 to 4,999 kW SERVICE CLASSIFICATION~Retail Transmission Rate - Network Service Rate","GENERAL SERVICE 50 to 4,999 kW SERVICE CLASSIFICATION~Retail Transmission Rate - Line and Transformation Connection Service Rate","UNMETERED SCATTERED LOAD SERVICE CLASSIFICATION~Retail Transmission Rate - Network Service Rate","UNMETERED SCATTERED LOAD SERVICE CLASSIFICATION~Retail Transmission Rate - Line and Transformation Connection Service Rate","STREET LIGHTING SERVICE CLASSIFICATION~Retail Transmission Rate - Network Service Rate","STREET LIGHTING SERVICE CLASSIFICATION~Retail Transmission Rate - Line and Transformation Connection Service Rate"]
["Lakefront Utilities Inc.","RESIDENTIAL SERVICE CLASSIFICATION~Retail Transmission Rate - Network Service Rate","RESIDENTIAL SERVICE CLASSIFICATION~Retail Transmission Rate - Line and Transformation Connection Service Rate","GENERAL SERVICE LESS THAN 50 KW SERVICE CLASSIFICATION~Retail Transmission Rate - Network Service Rate","GENERAL SERVICE LESS THAN 50 KW SERVICE CLASSIFICATION~Retail Transmission Rate - Line and Transformation Connection Service Rate","GENERAL SERVICE 50 TO 2,999 KW SERVICE CLASSIFICATION~Retail Transmission Rate - Network Service Rate","GENERAL SERVICE 50 TO 2,999 KW SERVICE CLASSIFICATION~Retail Transmission Rate - Line and Transformation Connection Service Rate","GENERAL SERVICE 3,000 TO 4,999 KW SERVICE CLASSIFICATION~Retail Transmission Rate - Network Service Rate","GENERAL SERVICE 3,000 TO 4,999 KW SERVICE CLASSIFICATION~Retail Transmission Rate - Line and Transformation Connection Service Rate","UNMETERED SCATTERED LOAD SERVICE CLASSIFICATION~Retail Transmission Rate - Network Service Rate","UNMETERED SCATTERED LOAD SERVICE CLASSIFICATION~Retail Transmission Rate - Line and Transformation Connection Service Rate","SENTINEL LIGHTING SERVICE CLASSIFICATION~Retail Transmission Rate - Network Service Rate","SENTINEL LIGHTING SERVICE CLASSIFICATION~Retail Transmission Rate - Line and Transformation Connection Service Rate","STREET LIGHTING SERVICE CLASSIFICATION~Retail Transmission Rate - Network Service Rate","STREET LIGHTING SERVICE CLASSIFICATION~Retail Transmission Rate - Line and Transformation Connection Service Rate"]
["Toronto Hydro-Electric System Limited","RESIDENTIAL SERVICE CLASSIFICATION~Retail Transmission Rate - Network Service Rate","RESIDENTIAL SERVICE CLASSIFICATION~Retail Transmission Rate - Line and Transformation Connection Service Rate","COMPETITIVE SECTOR MULTI-UNIT RESIDENTIAL SERVICE CLASSIFICATION~Retail Transmission Rate - Network Service Rate","COMPETITIVE SECTOR MULTI-UNIT RESIDENTIAL SERVICE CLASSIFICATION~Retail Transmission Rate - Line and Transformation Connection Service Rate","GENERAL SERVICE LESS THAN 50 KW SERVICE CLASSIFICATION~Retail Transmission Rate - Network Service Rate","GENERAL SERVICE LESS THAN 50 KW SERVICE CLASSIFICATION~Retail Transmission Rate - Line and Transformation Connection Service Rate","GENERAL SERVICE 50 TO 999 KW SERVICE CLASSIFICATION~Retail Transmission Rate - Network Service Rate","GENERAL SERVICE 50 TO 999 KW SERVICE CLASSIFICATION~Retail Transmission Rate - Line and Transformation Connection Service Rate","GENERAL SERVICE 1,000 TO 4,999 KW SERVICE CLASSIFICATION~Retail Transmission Rate - Network Service Rate","GENERAL SERVICE 1,000 TO 4,999 KW SERVICE CLASSIFICATION~Retail Transmission Rate - Line and Transformation Connection Service Rate","LARGE USE SERVICE CLASSIFICATION~Retail Transmission Rate - Network Service Rate","LARGE USE SERVICE CLASSIFICATION~Retail Transmission Rate - Line and Transformation Connection Service Rate","UNMETERED SCATTERED LOAD SERVICE CLASSIFICATION~Retail Transmission Rate - Network Service Rate","UNMETERED SCATTERED LOAD SERVICE CLASSIFICATION~Retail Transmission Rate - Line and Transformation Connection Service Rate","STREET LIGHTING SERVICE CLASSIFICATION~Retail Transmission Rate - Network Service Rate","STREET LIGHTING SERVICE CLASSIFICATION~Retail Transmission Rate - Line and Transformation Connection Service Rate"]
["Waterloo North Hydro Inc.","RESIDENTIAL SERVICE CLASSIFICATION~Retail Transmission Rate - Network Service Rate","RESIDENTIAL SERVICE CLASSIFICATION~Retail Transmission Rate - Line and Transformation Connection Service Rate","GENERAL SERVICE LESS THAN 50 KW SERVICE CLASSIFICATION~Retail Transmission Rate - Network Service Rate","GENERAL SERVICE LESS THAN 50 KW SERVICE CLASSIFICATION~Retail Transmission Rate - Line and Transformation Connection Service Rate","GENERAL SERVICE 50 to 4,999 kW SERVICE CLASSIFICATION~Retail Transmission Rate - Network Service Rate - (less than 1,000 kW)","GENERAL SERVICE 50 to 4,999 kW SERVICE CLASSIFICATION~Retail Transmission Rate - Network Service Rate - Interval Metered (less than 1,000 kW)","GENERAL SERVICE 50 to 4,999 kW SERVICE CLASSIFICATION~Retail Transmission Rate - Network Service Rate - Interval Metered (1,000 to 4,999 kW)","GENERAL SERVICE 50 to 4,999 kW SERVICE CLASSIFICATION~Retail Transmission Rate - Line and Transformation Connection Service Rate - (less than 1,000 kW)","GENERAL SERVICE 50 to 4,999 kW SERVICE CLASSIFICATION~Retail Transmission Rate - Line and Trans. Connection Service Rate - Interval Metered (less than 1,000 kW)","GENERAL SERVICE 50 to 4,999 kW SERVICE CLASSIFICATION~Retail Transmission Rate - Line and Trans. Connection Service Rate - Interval Metered (1,000 to 4,999 kW)","LARGE USE SERVICE CLASSIFICATION~Retail Transmission Rate - Network Service Rate - Interval Metered","LARGE USE SERVICE CLASSIFICATION~Retail Transmission Rate - Line and Transformation Connection Service Rate - Interval Metered","UNMETERED SCATTERED LOAD SERVICE CLASSIFICATION~Retail Transmission Rate - Network Service Rate","UNMETERED SCATTERED LOAD SERVICE CLASSIFICATION~Retail Transmission Rate - Line and Transformation Connection Service Rate","STREET LIGHTING SERVICE CLASSIFICATION~Retail Transmission Rate - Network Service Rate","STREET LIGHTING SERVICE CLASSIFICATION~Retail Transmission Rate - Line and Transformation Connection Service Rate"]
["Westario Power Inc.","RESIDENTIAL SERVICE CLASSIFICATION~Retail Transmission Rate - Network Service Rate","RESIDENTIAL SERVICE CLASSIFICATION~Retail Transmission Rate - Line and Transformation Connection Service Rate","GENERAL SERVICE LESS THAN 50 KW SERVICE CLASSIFICATION~Retail Transmission Rate - Network Service Rate","GENERAL SERVICE LESS THAN 50 KW SERVICE CLASSIFICATION~Retail Transmission Rate - Line and Transformation Connection Service Rate","GENERAL SERVICE 50 to 4,999 kW SERVICE CLASSIFICATION~Retail Transmission Rate - Network Service Rate","GENERAL SERVICE 50 to 4,999 kW SERVICE CLASSIFICATION~Retail Transmission Rate - Line and Transformation Connection Service Rate","UNMETERED SCATTERED LOAD SERVICE CLASSIFICATION~Retail Transmission Rate - Network Service Rate","UNMETERED SCATTERED LOAD SERVICE CLASSIFICATION~Retail Transmission Rate - Line and Transformation Connection Service Rate","SENTINEL LIGHTING SERVICE CLASSIFICATION~Retail Transmission Rate - Network Service Rate","SENTINEL LIGHTING SERVICE CLASSIFICATION~Retail Transmission Rate - Line and Transformation Connection Service Rate","STREET LIGHTING SERVICE CLASSIFICATION~Retail Transmission Rate - Network Service Rate","STREET LIGHTING SERVICE CLASSIFICATION~Retail Transmission Rate - Line and Transformation Connection Service Rate"]
["Elexicon Energy Inc.-Whitby Rate Zone","RESIDENTIAL SERVICE CLASSIFICATION~Retail Transmission Rate - Network Service Rate","RESIDENTIAL SERVICE CLASSIFICATION~Retail Transmission Rate - Line and Transformation Connection Service Rate","GENERAL SERVICE LESS THAN 50 KW SERVICE CLASSIFICATION~Retail Transmission Rate - Network Service Rate","GENERAL SERVICE LESS THAN 50 KW SERVICE CLASSIFICATION~Retail Transmission Rate - Line and Transformation Connection Service Rate","GENERAL SERVICE 50 to 4,999 kW SERVICE CLASSIFICATION~Retail Transmission Rate - Network Service Rate","GENERAL SERVICE 50 to 4,999 kW SERVICE CLASSIFICATION~Retail Transmission Rate - Line and Transformation Connection Service Rate","UNMETERED SCATTERED LOAD SERVICE CLASSIFICATION~Retail Transmission Rate - Network Service Rate","UNMETERED SCATTERED LOAD SERVICE CLASSIFICATION~Retail Transmission Rate - Line and Transformation Connection Service Rate","SENTINEL LIGHTING SERVICE CLASSIFICATION~Retail Transmission Rate - Network Service Rate","SENTINEL LIGHTING SERVICE CLASSIFICATION~Retail Transmission Rate - Line and Transformation Connection Service Rate","STREET LIGHTING SERVICE CLASSIFICATION~Retail Transmission Rate - Network Service Rate","STREET LIGHTING SERVICE CLASSIFICATION~Retail Transmission Rate - Line and Transformation Connection Service Rate"]
["Erie Thames Powerlines Corporation","RESIDENTIAL SERVICE CLASSIFICATION~Retail Transmission Rate - Network Service Rate","RESIDENTIAL SERVICE CLASSIFICATION~Retail Transmission Rate - Line and Transformation Connection Service Rate","GENERAL SERVICE LESS THAN 50 KW SERVICE CLASSIFICATION~Retail Transmission Rate - Network Service Rate","GENERAL SERVICE LESS THAN 50 KW SERVICE CLASSIFICATION~Retail Transmission Rate - Line and Transformation Connection Service Rate","GENERAL SERVICE 50 TO 999 KW SERVICE CLASSIFICATION~Retail Transmission Rate - Network Service Rate","GENERAL SERVICE 50 TO 999 KW SERVICE CLASSIFICATION~Retail Transmission Rate - Line and Transformation Connection Service Rate","GENERAL SERVICE 1,000 TO 4,999 KW SERVICE CLASSIFICATION~Retail Transmission Rate - Network Service Rate","GENERAL SERVICE 1,000 TO 4,999 KW SERVICE CLASSIFICATION~Retail Transmission Rate - Line and Transformation Connection Service Rate","LARGE USE SERVICE CLASSIFICATION~Retail Transmission Rate - Network Service Rate","LARGE USE SERVICE CLASSIFICATION~Retail Transmission Rate - Line and Transformation Connection Service Rate","UNMETERED SCATTERED LOAD SERVICE CLASSIFICATION~Retail Transmission Rate - Network Service Rate","UNMETERED SCATTERED LOAD SERVICE CLASSIFICATION~Retail Transmission Rate - Line and Transformation Connection Service Rate","SENTINEL LIGHTING SERVICE CLASSIFICATION~Retail Transmission Rate - Network Service Rate","SENTINEL LIGHTING SERVICE CLASSIFICATION~Retail Transmission Rate - Line and Transformation Connection Service Rate","STREET LIGHTING SERVICE CLASSIFICATION~Retail Transmission Rate - Network Service Rate","STREET LIGHTING SERVICE CLASSIFICATION~Retail Transmission Rate - Line and Transformation Connection Service Rate","EMBEDDED DISTRIBUTOR SERVICE CLASSIFICATION~Retail Transmission Rate - Network Service Rate","EMBEDDED DISTRIBUTOR SERVICE CLASSIFICATION~Retail Transmission Rate - Line and Transformation Connection Service Rate"]
["Entegrus Powerlines Inc.-For Entegrus-Main Rate Zone","RESIDENTIAL SERVICE CLASSIFICATION~Retail Transmission Rate - Network Service Rate","RESIDENTIAL SERVICE CLASSIFICATION~Retail Transmission Rate - Line and Transformation Connection Service Rate","GENERAL SERVICE LESS THAN 50 KW SERVICE CLASSIFICATION~Retail Transmission Rate - Network Service Rate","GENERAL SERVICE LESS THAN 50 KW SERVICE CLASSIFICATION~Retail Transmission Rate - Line and Transformation Connection Service Rate","GENERAL SERVICE 50 to 4,999 kW SERVICE CLASSIFICATION~Retail Transmission Rate - Network Service Rate","GENERAL SERVICE 50 to 4,999 kW SERVICE CLASSIFICATION~Retail Transmission Rate - Line and Transformation Connection Service Rate (see Note 1)","LARGE USE SERVICE CLASSIFICATION~Retail Transmission Rate - Network Service Rate","LARGE USE SERVICE CLASSIFICATION~Retail Transmission Rate - Line and Transformation Connection Service Rate (see Note 1)","UNMETERED SCATTERED LOAD SERVICE CLASSIFICATION~Retail Transmission Rate - Network Service Rate","UNMETERED SCATTERED LOAD SERVICE CLASSIFICATION~Retail Transmission Rate - Line and Transformation Connection Service Rate","SENTINEL LIGHTING SERVICE CLASSIFICATION~Retail Transmission Rate - Network Service Rate","SENTINEL LIGHTING SERVICE CLASSIFICATION~Retail Transmission Rate - Line and Transformation Connection Service Rate","STREET LIGHTING SERVICE CLASSIFICATION~Retail Transmission Rate - Network Service Rate","STREET LIGHTING SERVICE CLASSIFICATION~Retail Transmission Rate - Line and Transformation Connection Service Rate","EMBEDDED DISTRIBUTOR SERVICE CLASSIFICATION~Retail Transmission Rate - Network Service Rate","EMBEDDED DISTRIBUTOR SERVICE CLASSIFICATION~Retail Transmission Rate - Line and Transformation Connection Service Rate"]
["Lakeland Power Distribution Ltd.-Parry Sound Service Area","RESIDENTIAL SERVICE CLASSIFICATION~Retail Transmission Rate - Network Service Rate","RESIDENTIAL SERVICE CLASSIFICATION~Retail Transmission Rate - Line and Transformation Connection Service Rate","GENERAL SERVICE LESS THAN 50 KW SERVICE CLASSIFICATION~Retail Transmission Rate - Network Service Rate","GENERAL SERVICE LESS THAN 50 KW SERVICE CLASSIFICATION~Retail Transmission Rate - Line and Transformation Connection Service Rate","GENERAL SERVICE 50 to 4,999 kW SERVICE CLASSIFICATION~Retail Transmission Rate - Network Service Rate","GENERAL SERVICE 50 to 4,999 kW SERVICE CLASSIFICATION~Retail Transmission Rate - Line and Transformation Connection Service Rate","UNMETERED SCATTERED LOAD SERVICE CLASSIFICATION~Retail Transmission Rate - Network Service Rate","UNMETERED SCATTERED LOAD SERVICE CLASSIFICATION~Retail Transmission Rate - Line and Transformation Connection Service Rate","SENTINEL LIGHTING SERVICE CLASSIFICATION~Retail Transmission Rate - Network Service Rate","SENTINEL LIGHTING SERVICE CLASSIFICATION~Retail Transmission Rate - Line and Transformation Connection Service Rate","STREET LIGHTING SERVICE CLASSIFICATION~Retail Transmission Rate - Network Service Rate","STREET LIGHTING SERVICE CLASSIFICATION~Retail Transmission Rate - Line and Transformation Connection Service Rate"]
["Lakeland Power Distribution Ltd.","RESIDENTIAL SERVICE CLASSIFICATION~Retail Transmission Rate - Network Service Rate","RESIDENTIAL SERVICE CLASSIFICATION~Retail Transmission Rate - Line and Transformation Connection Service Rate","GENERAL SERVICE LESS THAN 50 KW SERVICE CLASSIFICATION~Retail Transmission Rate - Network Service Rate","GENERAL SERVICE LESS THAN 50 KW SERVICE CLASSIFICATION~Retail Transmission Rate - Line and Transformation Connection Service Rate","GENERAL SERVICE 50 to 4,999 kW SERVICE CLASSIFICATION~Retail Transmission Rate - Network Service Rate","GENERAL SERVICE 50 to 4,999 kW SERVICE CLASSIFICATION~Retail Transmission Rate - Line and Transformation Connection Service Rate","UNMETERED SCATTERED LOAD SERVICE CLASSIFICATION~Retail Transmission Rate - Network Service Rate","UNMETERED SCATTERED LOAD SERVICE CLASSIFICATION~Retail Transmission Rate - Line and Transformation Connection Service Rate","SENTINEL LIGHTING SERVICE CLASSIFICATION~Retail Transmission Rate - Network Service Rate","SENTINEL LIGHTING SERVICE CLASSIFICATION~Retail Transmission Rate - Line and Transformation Connection Service Rate","STREET LIGHTING SERVICE CLASSIFICATION~Retail Transmission Rate - Network Service Rate","STREET LIGHTING SERVICE CLASSIFICATION~Retail Transmission Rate - Line and Transformation Connection Service Rate"]
["Newmarket-Tay Power Distribution Ltd.-For Former Midland Power Utility Rate Zone","RESIDENTIAL SERVICE CLASSIFICATION~Retail Transmission Rate - Network Service Rate","RESIDENTIAL SERVICE CLASSIFICATION~Retail Transmission Rate - Line and Transformation Connection Service Rate","GENERAL SERVICE LESS THAN 50 KW SERVICE CLASSIFICATION~Retail Transmission Rate - Network Service Rate","GENERAL SERVICE LESS THAN 50 KW SERVICE CLASSIFICATION~Retail Transmission Rate - Line and Transformation Connection Service Rate","GENERAL SERVICE 50 to 4,999 kW SERVICE CLASSIFICATION~Retail Transmission Rate - Network Service Rate","GENERAL SERVICE 50 to 4,999 kW SERVICE CLASSIFICATION~Retail Transmission Rate - Line and Transformation Connection Service Rate ","UNMETERED SCATTERED LOAD SERVICE CLASSIFICATION~Retail Transmission Rate - Network Service Rate","UNMETERED SCATTERED LOAD SERVICE CLASSIFICATION~Retail Transmission Rate - Line and Transformation Connection Service Rate","STREET LIGHTING SERVICE CLASSIFICATION~Retail Transmission Rate - Network Service Rate","STREET LIGHTING SERVICE CLASSIFICATION~Retail Transmission Rate - Line and Transformation Connection Service Rate"]
["Newmarket-Tay Power Distribution Ltd.-For Newmarket-Tay Power Main Rate Zone","RESIDENTIAL SERVICE CLASSIFICATION~Retail Transmission Rate - Network Service Rate","RESIDENTIAL SERVICE CLASSIFICATION~Retail Transmission Rate - Line and Transformation Connection Service Rate","GENERAL SERVICE LESS THAN 50 KW SERVICE CLASSIFICATION~Retail Transmission Rate - Network Service Rate","GENERAL SERVICE LESS THAN 50 KW SERVICE CLASSIFICATION~Retail Transmission Rate - Line and Transformation Connection Service Rate","GENERAL SERVICE 50 to 4,999 kW SERVICE CLASSIFICATION~Retail Transmission Rate - Network Service Rate","GENERAL SERVICE 50 to 4,999 kW SERVICE CLASSIFICATION~Retail Transmission Rate - Line and Transformation Connection Service Rate","UNMETERED SCATTERED LOAD SERVICE CLASSIFICATION~Retail Transmission Rate - Network Service Rate","UNMETERED SCATTERED LOAD SERVICE CLASSIFICATION~Retail Transmission Rate - Line and Transformation Connection Service Rate","SENTINEL LIGHTING SERVICE CLASSIFICATION~Retail Transmission Rate - Network Service Rate","SENTINEL LIGHTING SERVICE CLASSIFICATION~Retail Transmission Rate - Line and Transformation Connection Service Rate","STREET LIGHTING SERVICE CLASSIFICATION~Retail Transmission Rate - Network Service Rate","STREET LIGHTING SERVICE CLASSIFICATION~Retail Transmission Rate - Line and Transformation Connection Service Rate"]
["Bluewater Power Distribution Corporation","RESIDENTIAL SERVICE CLASSIFICATION~Retail Transmission Rate - Network Service Rate","RESIDENTIAL SERVICE CLASSIFICATION~Retail Transmission Rate - Line and Transformation Connection Service Rate","GENERAL SERVICE LESS THAN 50 KW SERVICE CLASSIFICATION~Retail Transmission Rate - Network Service Rate","GENERAL SERVICE LESS THAN 50 KW SERVICE CLASSIFICATION~Retail Transmission Rate - Line and Transformation Connection Service Rate","GENERAL SERVICE 50 TO 999 KW SERVICE CLASSIFICATION~Retail Transmission Rate - Network Service Rate","GENERAL SERVICE 50 TO 999 KW SERVICE CLASSIFICATION~Retail Transmission Rate - Line and Transformation Connection Service Rate","GENERAL SERVICE 1,000 TO 4,999 KW SERVICE CLASSIFICATION~Retail Transmission Rate - Network Service Rate","GENERAL SERVICE 1,000 TO 4,999 KW SERVICE CLASSIFICATION~Retail Transmission Rate - Line and Transformation Connection Service Rate","LARGE USE SERVICE CLASSIFICATION~Retail Transmission Rate - Network Service Rate - Interval Metered","LARGE USE SERVICE CLASSIFICATION~Retail Transmission Rate - Line and Transformation Connection Service Rate - Interval Metered","UNMETERED SCATTERED LOAD SERVICE CLASSIFICATION~Retail Transmission Rate - Network Service Rate","UNMETERED SCATTERED LOAD SERVICE CLASSIFICATION~Retail Transmission Rate - Line and Transformation Connection Service Rate","SENTINEL LIGHTING SERVICE CLASSIFICATION~Retail Transmission Rate - Network Service Rate","SENTINEL LIGHTING SERVICE CLASSIFICATION~Retail Transmission Rate - Line and Transformation Connection Service Rate","STREET LIGHTING SERVICE CLASSIFICATION~Retail Transmission Rate - Network Service Rate","STREET LIGHTING SERVICE CLASSIFICATION~Retail Transmission Rate - Line and Transformation Connection Service Rate"]
["Atikokan Hydro Inc.","RESIDENTIAL SERVICE CLASSIFICATION~Retail Transmission Rate - Network Service Rate","RESIDENTIAL SERVICE CLASSIFICATION~Retail Transmission Rate - Transformation Connection Service Rate","GENERAL SERVICE LESS THAN 50 KW SERVICE CLASSIFICATION~Retail Transmission Rate - Network Service Rate","GENERAL SERVICE LESS THAN 50 KW SERVICE CLASSIFICATION~Retail Transmission Rate - Transformation Connection Service Rate","GENERAL SERVICE 50 to 4,999 kW SERVICE CLASSIFICATION~Retail Transmission Rate - Network Service Rate","GENERAL SERVICE 50 to 4,999 kW SERVICE CLASSIFICATION~Retail Transmission Rate - Line and Transformation Connection Service Rate","GENERAL SERVICE 50 to 4,999 kW SERVICE CLASSIFICATION~Retail Transmission Rate - Network Service Rate - Interval Metered","GENERAL SERVICE 50 to 4,999 kW SERVICE CLASSIFICATION~Retail Transmission Rate - Line and Transformation Connection Service Rate - Interval Metered","STREET LIGHTING SERVICE CLASSIFICATION~Retail Transmission Rate - Network Service Rate","STREET LIGHTING SERVICE CLASSIFICATION~Retail Transmission Rate - Line and Transformation Connection Service Rate"]
["Burlington Hydro Inc.","RESIDENTIAL SERVICE CLASSIFICATION~Retail Transmission Rate - Network Service Rate","RESIDENTIAL SERVICE CLASSIFICATION~Retail Transmission Rate - Line and Transformation Connection Service Rate","GENERAL SERVICE LESS THAN 50 KW SERVICE CLASSIFICATION~Retail Transmission Rate - Network Service Rate","GENERAL SERVICE LESS THAN 50 KW SERVICE CLASSIFICATION~Retail Transmission Rate - Line and Transformation Connection Service Rate","GENERAL SERVICE 50 to 4,999 kW SERVICE CLASSIFICATION~Retail Transmission Rate - Network Service Rate - Interval Metered","GENERAL SERVICE 50 to 4,999 kW SERVICE CLASSIFICATION~Retail Transmission Rate - Line and Transformation Connection Service Rate - Interval Metered ","UNMETERED SCATTERED LOAD SERVICE CLASSIFICATION~Retail Transmission Rate - Network Service Rate","UNMETERED SCATTERED LOAD SERVICE CLASSIFICATION~Retail Transmission Rate - Line and Transformation Connection Service Rate","STREET LIGHTING SERVICE CLASSIFICATION~Retail Transmission Rate - Network Service Rate","STREET LIGHTING SERVICE CLASSIFICATION~Retail Transmission Rate - Line Connection Service Rate"]
["E.L.K. Energy Inc.","RESIDENTIAL SERVICE CLASSIFICATION~Retail Transmission Rate - Network Service Rate","RESIDENTIAL SERVICE CLASSIFICATION~Retail Transmission Rate - Line and Transformation Connection Service Rate","GENERAL SERVICE LESS THAN 50 KW SERVICE CLASSIFICATION~Retail Transmission Rate - Network Service Rate","GENERAL SERVICE LESS THAN 50 KW SERVICE CLASSIFICATION~Retail Transmission Rate - Line and Transformation Connection Service Rate","GENERAL SERVICE 50 to 4,999 kW SERVICE CLASSIFICATION~Retail Transmission Rate - Network Service Rate","GENERAL SERVICE 50 to 4,999 kW SERVICE CLASSIFICATION~Retail Transmission Rate - Line and Transformation Connection Service Rate ","UNMETERED SCATTERED LOAD SERVICE CLASSIFICATION~Retail Transmission Rate - Network Service Rate","UNMETERED SCATTERED LOAD SERVICE CLASSIFICATION~Retail Transmission Rate - Line and Transformation Connection Service Rate","SENTINEL LIGHTING SERVICE CLASSIFICATION~Retail Transmission Rate - Network Service Rate","SENTINEL LIGHTING SERVICE CLASSIFICATION~Retail Transmission Rate - Line and Transformation Connection Service Rate","STREET LIGHTING SERVICE CLASSIFICATION~Retail Transmission Rate - Network Service Rate","STREET LIGHTING SERVICE CLASSIFICATION~Retail Transmission Rate - Line and Transformation Connection Service Rate","EMBEDDED DISTRIBUTOR SERVICE CLASSIFICATION~Retail Transmission Rate - Network Service Rate","EMBEDDED DISTRIBUTOR SERVICE CLASSIFICATION~Retail Transmission Rate - Line and Transformation Connection Service Rate"]
["EPCOR Electricity Distribution Ontario Inc.","RESIDENTIAL SERVICE CLASSIFICATION~Retail Transmission Rate - Network Service Rate","RESIDENTIAL SERVICE CLASSIFICATION~Retail Transmission Rate - Line and Transformation Connection Service Rate","GENERAL SERVICE LESS THAN 50 KW SERVICE CLASSIFICATION~Retail Transmission Rate - Network Service Rate","GENERAL SERVICE LESS THAN 50 KW SERVICE CLASSIFICATION~Retail Transmission Rate - Line and Transformation Connection Service Rate","GENERAL SERVICE 50 to 4,999 kW SERVICE CLASSIFICATION~Retail Transmission Rate - Network Service Rate","GENERAL SERVICE 50 to 4,999 kW SERVICE CLASSIFICATION~Retail Transmission Rate - Line and Transformation Connection Service Rate ","UNMETERED SCATTERED LOAD SERVICE CLASSIFICATION~Retail Transmission Rate - Network Service Rate","UNMETERED SCATTERED LOAD SERVICE CLASSIFICATION~Retail Transmission Rate - Line and Transformation Connection Service Rate","STREET LIGHTING SERVICE CLASSIFICATION~Retail Transmission Rate - Network Service Rate","STREET LIGHTING SERVICE CLASSIFICATION~Retail Transmission Rate - Line and Transformation Connection Service Rate"]
["Essex Powerlines Corporation","RESIDENTIAL SERVICE CLASSIFICATION~Retail Transmission Rate - Network Service Rate","RESIDENTIAL SERVICE CLASSIFICATION~Retail Transmission Rate - Line and Transformation Connection Service Rate","GENERAL SERVICE LESS THAN 50 KW SERVICE CLASSIFICATION~Retail Transmission Rate - Network Service Rate","GENERAL SERVICE LESS THAN 50 KW SERVICE CLASSIFICATION~Retail Transmission Rate - Line and Transformation Connection Service Rate","GENERAL SERVICE 50 to 4,999 kW SERVICE CLASSIFICATION~Retail Transmission Rate - Network Service Rate","GENERAL SERVICE 50 to 4,999 kW SERVICE CLASSIFICATION~Retail Transmission Rate - Line and Transformation Connection Service Rate","GENERAL SERVICE 50 to 4,999 kW SERVICE CLASSIFICATION~Retail Transmission Rate - Network Service Rate - Interval Metered","GENERAL SERVICE 50 to 4,999 kW SERVICE CLASSIFICATION~Retail Transmission Rate - Line and Transformation Connection Service Rate - Interval Metered","UNMETERED SCATTERED LOAD SERVICE CLASSIFICATION~Retail Transmission Rate - Network Service Rate","UNMETERED SCATTERED LOAD SERVICE CLASSIFICATION~Retail Transmission Rate - Line and Transformation Connection Service Rate","SENTINEL LIGHTING SERVICE CLASSIFICATION~Retail Transmission Rate - Network Service Rate","SENTINEL LIGHTING SERVICE CLASSIFICATION~Retail Transmission Rate - Line and Transformation Connection Service Rate","STREET LIGHTING SERVICE CLASSIFICATION~Retail Transmission Rate - Network Service Rate","STREET LIGHTING SERVICE CLASSIFICATION~Retail Transmission Rate - Line and Transformation Connection Service Rate"]
["Fort Frances Power Corporation","RESIDENTIAL SERVICE CLASSIFICATION~Retail Transmission Rate - Network Service Rate","RESIDENTIAL SERVICE CLASSIFICATION~Retail Transmission Rate - Line and Transformation Connection Service Rate","GENERAL SERVICE LESS THAN 50 KW SERVICE CLASSIFICATION~Retail Transmission Rate - Network Service Rate","GENERAL SERVICE LESS THAN 50 KW SERVICE CLASSIFICATION~Retail Transmission Rate - Line and Transformation Connection Service Rate","GENERAL SERVICE 50 to 4,999 kW SERVICE CLASSIFICATION~Retail Transmission Rate - Network Service Rate","GENERAL SERVICE 50 to 4,999 kW SERVICE CLASSIFICATION~Retail Transmission Rate - Line and Transformation Connection Service Rate","UNMETERED SCATTERED LOAD SERVICE CLASSIFICATION~Retail Transmission Rate - Network Service Rate","UNMETERED SCATTERED LOAD SERVICE CLASSIFICATION~Retail Transmission Rate - Line and Transformation Connection Service Rate","STREET LIGHTING SERVICE CLASSIFICATION~Retail Transmission Rate - Network Service Rate","STREET LIGHTING SERVICE CLASSIFICATION~Retail Transmission Rate - Line and Transformation Connection Service Rate"]
["Greater Sudbury Hydro Inc.","RESIDENTIAL SERVICE CLASSIFICATION~Retail Transmission Rate - Network Service Rate","RESIDENTIAL SERVICE CLASSIFICATION~Retail Transmission Rate - Line and Transformation Connection Service Rate","GENERAL SERVICE LESS THAN 50 KW SERVICE CLASSIFICATION~Retail Transmission Rate - Network Service Rate","GENERAL SERVICE LESS THAN 50 KW SERVICE CLASSIFICATION~Retail Transmission Rate - Line and Transformation Connection Service Rate","GENERAL SERVICE 50 to 4,999 kW SERVICE CLASSIFICATION~Retail Transmission Rate - Network Service Rate","GENERAL SERVICE 50 to 4,999 kW SERVICE CLASSIFICATION~Retail Transmission Rate - Line and Transformation Connection Service Rate","UNMETERED SCATTERED LOAD SERVICE CLASSIFICATION~Retail Transmission Rate - Network Service Rate","UNMETERED SCATTERED LOAD SERVICE CLASSIFICATION~Retail Transmission Rate - Line and Transformation Connection Service Rate","SENTINEL LIGHTING SERVICE CLASSIFICATION~Retail Transmission Rate - Network Service Rate","SENTINEL LIGHTING SERVICE CLASSIFICATION~Retail Transmission Rate - Line and Transformation Connection Service Rate","STREET LIGHTING SERVICE CLASSIFICATION~Retail Transmission Rate - Network Service Rate","STREET LIGHTING SERVICE CLASSIFICATION~Retail Transmission Rate - Line and Transformation Connection Service Rate"]
["Halton Hills Hydro Inc.","RESIDENTIAL SERVICE CLASSIFICATION~Retail Transmission Rate - Network Service Rate","RESIDENTIAL SERVICE CLASSIFICATION~Retail Transmission Rate - Line and Transformation Connection Service Rate","GENERAL SERVICE LESS THAN 50 KW SERVICE CLASSIFICATION~Retail Transmission Rate - Network Service Rate","GENERAL SERVICE LESS THAN 50 KW SERVICE CLASSIFICATION~Retail Transmission Rate - Line and Transformation Connection Service Rate","GENERAL SERVICE 50 TO 999 KW SERVICE CLASSIFICATION~Retail Transmission Rate - Network Service Rate","GENERAL SERVICE 50 TO 999 KW SERVICE CLASSIFICATION~Retail Transmission Rate - Line and Transformation Connection Service Rate","GENERAL SERVICE 1,000 TO 4,999 KW SERVICE CLASSIFICATION~Retail Transmission Rate - Network Service Rate","GENERAL SERVICE 1,000 TO 4,999 KW SERVICE CLASSIFICATION~Retail Transmission Rate - Line and Transformation Connection Service Rate","UNMETERED SCATTERED LOAD SERVICE CLASSIFICATION~Retail Transmission Rate - Network Service Rate","UNMETERED SCATTERED LOAD SERVICE CLASSIFICATION~Retail Transmission Rate - Line and Transformation Connection Service Rate","SENTINEL LIGHTING SERVICE CLASSIFICATION~Retail Transmission Rate - Network Service Rate","SENTINEL LIGHTING SERVICE CLASSIFICATION~Retail Transmission Rate - Line and Transformation Connection Service Rate","STREET LIGHTING SERVICE CLASSIFICATION~Retail Transmission Rate - Network Service Rate","STREET LIGHTING SERVICE CLASSIFICATION~Retail Transmission Rate - Line and Transformation Connection Service Rate"]
["Hydro One Networks Inc.-Former Haldimand County Hydro Inc. Service Area","RESIDENTIAL SERVICE CLASSIFICATION~Retail Transmission Rate - Network Service Rate","RESIDENTIAL SERVICE CLASSIFICATION~Retail Transmission Rate - Line and Transformation Connection Service Rate","GENERAL SERVICE LESS THAN 50 KW SERVICE CLASSIFICATION~Retail Transmission Rate - Network Service Rate","GENERAL SERVICE LESS THAN 50 KW SERVICE CLASSIFICATION~Retail Transmission Rate - Line and Transformation Connection Service Rate","GENERAL SERVICE 50 to 4,999 kW SERVICE CLASSIFICATION~Retail Transmission Rate - Network Service Rate","GENERAL SERVICE 50 to 4,999 kW SERVICE CLASSIFICATION~Retail Transmission Rate - Line and Transformation Connection Service Rate","UNMETERED SCATTERED LOAD SERVICE CLASSIFICATION~Retail Transmission Rate - Network Service Rate","UNMETERED SCATTERED LOAD SERVICE CLASSIFICATION~Retail Transmission Rate - Line and Transformation Connection Service Rate","SENTINEL LIGHTING SERVICE CLASSIFICATION~Retail Transmission Rate - Network Service Rate","SENTINEL LIGHTING SERVICE CLASSIFICATION~Retail Transmission Rate - Line and Transformation Connection Service Rate","STREET LIGHTING SERVICE CLASSIFICATION~Retail Transmission Rate - Network Service Rate","STREET LIGHTING SERVICE CLASSIFICATION~Retail Transmission Rate - Line and Transformation Connection Service Rate","EMBEDDED DISTRIBUTOR SERVICE CLASSIFICATION FOR HYDRO ONE NETWORKS INC.~Retail Transmission Rate - Network Service Rate","EMBEDDED DISTRIBUTOR SERVICE CLASSIFICATION FOR HYDRO ONE NETWORKS INC.~Retail Transmission Rate - Line and Transformation Connection Service Rate"]
["Hydro One Networks Inc.-Former Norfolk Power Distribution Inc. Service Area","RESIDENTIAL SERVICE CLASSIFICATION~Retail Transmission Rate - Network Service Rate","RESIDENTIAL SERVICE CLASSIFICATION~Retail Transmission Rate - Line and Transformation Connection Service Rate","GENERAL SERVICE LESS THAN 50 KW SERVICE CLASSIFICATION~Retail Transmission Rate - Network Service Rate","GENERAL SERVICE LESS THAN 50 KW SERVICE CLASSIFICATION~Retail Transmission Rate - Line and Transformation Connection Service Rate","GENERAL SERVICE 50 to 4,999 kW SERVICE CLASSIFICATION~Retail Transmission Rate - Network Service Rate","GENERAL SERVICE 50 to 4,999 kW SERVICE CLASSIFICATION~Retail Transmission Rate - Line and Transformation Connection Service Rate","UNMETERED SCATTERED LOAD SERVICE CLASSIFICATION~Retail Transmission Rate - Network Service Rate","UNMETERED SCATTERED LOAD SERVICE CLASSIFICATION~Retail Transmission Rate - Line and Transformation Connection Service Rate","SENTINEL LIGHTING SERVICE CLASSIFICATION~Retail Transmission Rate - Network Service Rate","SENTINEL LIGHTING SERVICE CLASSIFICATION~Retail Transmission Rate - Line and Transformation Connection Service Rate","STREET LIGHTING SERVICE CLASSIFICATION~Retail Transmission Rate - Network Service Rate","STREET LIGHTING SERVICE CLASSIFICATION~Retail Transmission Rate - Line and Transformation Connection Service Rate"]
["Hydro One Networks Inc.-Former Woodstock Hydro Services Inc. Service Area","RESIDENTIAL SERVICE CLASSIFICATION~Retail Transmission Rate - Network Service Rate","RESIDENTIAL SERVICE CLASSIFICATION~Retail Transmission Rate - Line and Transformation Connection Service Rate","GENERAL SERVICE LESS THAN 50 KW SERVICE CLASSIFICATION~Retail Transmission Rate - Network Service Rate","GENERAL SERVICE LESS THAN 50 KW SERVICE CLASSIFICATION~Retail Transmission Rate - Line and Transformation Connection Service Rate","GENERAL SERVICE 50 TO 999 KW SERVICE CLASSIFICATION~Retail Transmission Rate - Network Service Rate","GENERAL SERVICE 50 TO 999 KW SERVICE CLASSIFICATION~Retail Transmission Rate - Line and Transformation Connection Service Rate","GENERAL SERVICE GREATER THAN 1,000 KW SERVICE CLASSIFICATION~Retail Transmission Rate - Network Service Rate","GENERAL SERVICE GREATER THAN 1,000 KW SERVICE CLASSIFICATION~Retail Transmission Rate - Line and Transformation Connection Service Rate","UNMETERED SCATTERED LOAD SERVICE CLASSIFICATION~Retail Transmission Rate - Network Service Rate","UNMETERED SCATTERED LOAD SERVICE CLASSIFICATION~Retail Transmission Rate - Line and Transformation Connection Service Rate","STREET LIGHTING SERVICE CLASSIFICATION~Retail Transmission Rate - Network Service Rate","STREET LIGHTING SERVICE CLASSIFICATION~Retail Transmission Rate - Line and Transformation Connection Service Rate"]
["Synergy North Corporation-Kenora Rate Zone","RESIDENTIAL SERVICE CLASSIFICATION~Retail Transmission Rate - Network Service Rate","RESIDENTIAL SERVICE CLASSIFICATION~Retail Transmission Rate - Line and Transformation Connection Service Rate","GENERAL SERVICE LESS THAN 50 KW SERVICE CLASSIFICATION~Retail Transmission Rate - Network Service Rate","GENERAL SERVICE LESS THAN 50 KW SERVICE CLASSIFICATION~Retail Transmission Rate - Line and Transformation Connection Service Rate","GENERAL SERVICE 50 to 4,999 kW SERVICE CLASSIFICATION~Retail Transmission Rate - Network Service Rate","GENERAL SERVICE 50 to 4,999 kW SERVICE CLASSIFICATION~Retail Transmission Rate - Line and Transformation Connection Service Rate","UNMETERED SCATTERED LOAD SERVICE CLASSIFICATION~Retail Transmission Rate - Network Service Rate","UNMETERED SCATTERED LOAD SERVICE CLASSIFICATION~Retail Transmission Rate - Line and Transformation Connection Service Rate","STREET LIGHTING SERVICE CLASSIFICATION~Retail Transmission Rate - Network Service Rate","STREET LIGHTING SERVICE CLASSIFICATION~Retail Transmission Rate - Line and Transformation Connection Service Rate"]
["London Hydro Inc.","RESIDENTIAL SERVICE CLASSIFICATION~Retail Transmission Rate - Network Service Rate","RESIDENTIAL SERVICE CLASSIFICATION~Retail Transmission Rate - Line and Transformation Connection Service Rate","GENERAL SERVICE LESS THAN 50 KW SERVICE CLASSIFICATION~Retail Transmission Rate - Network Service Rate","GENERAL SERVICE LESS THAN 50 KW SERVICE CLASSIFICATION~Retail Transmission Rate - Line and Transformation Connection Service Rate ","GENERAL SERVICE 50 to 4,999 kW SERVICE CLASSIFICATION~Retail Transmission Rate - Network Service Rate","GENERAL SERVICE 50 to 4,999 kW SERVICE CLASSIFICATION~Retail Transmission Rate - Line and Transformation Connection Service Rate ","GENERAL SERVICE 50 to 4,999 kW SERVICE CLASSIFICATION~Retail Transmission Rate - Network Service Rate - Interval Metered","GENERAL SERVICE 50 to 4,999 kW SERVICE CLASSIFICATION~Retail Transmission Rate - Line and Transformation Connection Service Rate - Interval Metered ","GENERAL SERVICE 1,000 TO 4,999 KW (CO-GENERATION) SERVICE CLASSIFICATION~Retail Transmission Rate - Network Service Rate","GENERAL SERVICE 1,000 TO 4,999 KW (CO-GENERATION) SERVICE CLASSIFICATION~Retail Transmission Rate - Line and Transformation Connection Service Rate ","LARGE USE SERVICE CLASSIFICATION~Retail Transmission Rate - Network Service Rate - Interval Metered","LARGE USE SERVICE CLASSIFICATION~Retail Transmission Rate - Line and Transformation Connection Service Rate - Interval Metered ","STREET LIGHTING SERVICE CLASSIFICATION~Retail Transmission Rate - Network Service Rate","STREET LIGHTING SERVICE CLASSIFICATION~Retail Transmission Rate - Line and Transformation Connection Service Rate ","SENTINEL LIGHTING SERVICE CLASSIFICATION~Retail Transmission Rate - Network Service Rate","SENTINEL LIGHTING SERVICE CLASSIFICATION~Retail Transmission Rate - Line and Transformation Connection Service Rate","UNMETERED SCATTERED LOAD SERVICE CLASSIFICATION~Retail Transmission Rate - Network Service Rate","UNMETERED SCATTERED LOAD SERVICE CLASSIFICATION~Retail Transmission Rate - Line and Transformation Connection Service Rate"]
["Milton Hydro Distribution Inc.","RESIDENTIAL SERVICE CLASSIFICATION~Retail Transmission Rate - Network Service Rate","RESIDENTIAL SERVICE CLASSIFICATION~Retail Transmission Rate - Line and Transformation Connection Service Rate","GENERAL SERVICE LESS THAN 50 KW SERVICE CLASSIFICATION~Retail Transmission Rate - Network Service Rate","GENERAL SERVICE LESS THAN 50 KW SERVICE CLASSIFICATION~Retail Transmission Rate - Line and Transformation Connection Service Rate","GENERAL SERVICE 50 TO 999 KW SERVICE CLASSIFICATION~Retail Transmission Rate - Network Service Rate","GENERAL SERVICE 50 TO 999 KW SERVICE CLASSIFICATION~Retail Transmission Rate - Line and Transformation Connection Service Rate","GENERAL SERVICE 1,000 TO 4,999 KW SERVICE CLASSIFICATION~Retail Transmission Rate - Network Service Rate","GENERAL SERVICE 1,000 TO 4,999 KW SERVICE CLASSIFICATION~Retail Transmission Rate - Line and Transformation Connection Service Rate","LARGE USE SERVICE CLASSIFICATION~Retail Transmission Rate - Network Service Rate - Interval Metered","LARGE USE SERVICE CLASSIFICATION~Retail Transmission Rate - Line and Transformation Connection Service Rate - Interval Metered","UNMETERED SCATTERED LOAD SERVICE CLASSIFICATION~Retail Transmission Rate - Network Service Rate","UNMETERED SCATTERED LOAD SERVICE CLASSIFICATION~Retail Transmission Rate - Line and Transformation Connection Service Rate","SENTINEL LIGHTING SERVICE CLASSIFICATION~Retail Transmission Rate - Network Service Rate","SENTINEL LIGHTING SERVICE CLASSIFICATION~Retail Transmission Rate - Line and Transformation Connection Service Rate","STREET LIGHTING SERVICE CLASSIFICATION~Retail Transmission Rate - Network Service Rate","STREET LIGHTING SERVICE CLASSIFICATION~Retail Transmission Rate - Line and Transformation Connection Service Rate"]
["North Bay Hydro Distribution Limited","RESIDENTIAL SERVICE CLASSIFICATION~Retail Transmission Rate - Network Service Rate","RESIDENTIAL SERVICE CLASSIFICATION~Retail Transmission Rate - Line and Transformation Connection Service Rate","GENERAL SERVICE LESS THAN 50 KW SERVICE CLASSIFICATION~Retail Transmission Rate - Network Service Rate","GENERAL SERVICE LESS THAN 50 KW SERVICE CLASSIFICATION~Retail Transmission Rate - Line and Transformation Connection Service Rate","GENERAL SERVICE 50 TO 2,999 KW SERVICE CLASSIFICATION~Retail Transmission Rate - Network Service Rate","GENERAL SERVICE 50 TO 2,999 KW SERVICE CLASSIFICATION~Retail Transmission Rate - Line and Transformation Connection Service Rate","GENERAL SERVICE 3,000 TO 4,999 KW SERVICE CLASSIFICATION~Retail Transmission Rate - Network Service Rate - Interval Metered","GENERAL SERVICE 3,000 TO 4,999 KW SERVICE CLASSIFICATION~Retail Transmission Rate - Line and Transformation Connection Service Rate - Interval Metered","UNMETERED SCATTERED LOAD SERVICE CLASSIFICATION~Retail Transmission Rate - Network Service Rate","UNMETERED SCATTERED LOAD SERVICE CLASSIFICATION~Retail Transmission Rate - Line and Transformation Connection Service Rate","SENTINEL LIGHTING SERVICE CLASSIFICATION~Retail Transmission Rate - Network Service Rate","SENTINEL LIGHTING SERVICE CLASSIFICATION~Retail Transmission Rate - Line and Transformation Connection Service Rate","STREET LIGHTING SERVICE CLASSIFICATION~Retail Transmission Rate - Network Service Rate","STREET LIGHTING SERVICE CLASSIFICATION~Retail Transmission Rate - Line and Transformation Connection Service Rate"]
["Northern Ontario Wires Inc.","RESIDENTIAL SERVICE CLASSIFICATION~Retail Transmission Rate - Network Service Rate","RESIDENTIAL SERVICE CLASSIFICATION~Retail Transmission Rate - Line and Transformation Connection Service Rate","GENERAL SERVICE LESS THAN 50 KW SERVICE CLASSIFICATION~Retail Transmission Rate - Network Service Rate","GENERAL SERVICE LESS THAN 50 KW SERVICE CLASSIFICATION~Retail Transmission Rate - Line and Transformation Connection Service Rate","GENERAL SERVICE 50 to 4,999 kW SERVICE CLASSIFICATION~Retail Transmission Rate - Network Service Rate","GENERAL SERVICE 50 to 4,999 kW SERVICE CLASSIFICATION~Retail Transmission Rate - Line and Transformation Connection Service Rate ","UNMETERED SCATTERED LOAD SERVICE CLASSIFICATION~Retail Transmission Rate - Network Service Rate","UNMETERED SCATTERED LOAD SERVICE CLASSIFICATION~Retail Transmission Rate - Line and Transformation Connection Service Rate","STREET LIGHTING SERVICE CLASSIFICATION~Retail Transmission Rate - Network Service Rate","STREET LIGHTING SERVICE CLASSIFICATION~Retail Transmission Rate - Line and Transformation Connection Service Rate"]
["Niagara Peninsula Energy Inc.","RESIDENTIAL SERVICE CLASSIFICATION~Retail Transmission Rate - Network Service Rate","RESIDENTIAL SERVICE CLASSIFICATION~Retail Transmission Rate - Line and Transformation Connection Service Rate","GENERAL SERVICE LESS THAN 50 KW SERVICE CLASSIFICATION~Retail Transmission Rate - Network Service Rate","GENERAL SERVICE LESS THAN 50 KW SERVICE CLASSIFICATION~Retail Transmission Rate - Line and Transformation Connection Service Rate","GENERAL SERVICE 50 to 4,999 kW SERVICE CLASSIFICATION~Retail Transmission Rate - Network Service Rate","GENERAL SERVICE 50 to 4,999 kW SERVICE CLASSIFICATION~Retail Transmission Rate - Line and Transformation Connection Service Rate ","UNMETERED SCATTERED LOAD SERVICE CLASSIFICATION~Retail Transmission Rate - Network Service Rate","UNMETERED SCATTERED LOAD SERVICE CLASSIFICATION~Retail Transmission Rate - Line and Transformation Connection Service Rate","SENTINEL LIGHTING SERVICE CLASSIFICATION~Retail Transmission Rate - Network Service Rate","SENTINEL LIGHTING SERVICE CLASSIFICATION~Retail Transmission Rate - Line and Transformation Connection Service Rate","STREET LIGHTING SERVICE CLASSIFICATION~Retail Transmission Rate - Network Service Rate","STREET LIGHTING SERVICE CLASSIFICATION~Retail Transmission Rate - Line and Transformation Connection Service Rate"]
["Orangeville Hydro Limited","RESIDENTIAL SERVICE CLASSIFICATION~Retail Transmission Rate - Network Service Rate","RESIDENTIAL SERVICE CLASSIFICATION~Retail Transmission Rate - Line and Transformation Connection Service Rate","GENERAL SERVICE LESS THAN 50 KW SERVICE CLASSIFICATION~Retail Transmission Rate - Network Service Rate","GENERAL SERVICE LESS THAN 50 KW SERVICE CLASSIFICATION~Retail Transmission Rate - Line and Transformation Connection Service Rate","GENERAL SERVICE 50 to 4,999 kW SERVICE CLASSIFICATION~Retail Transmission Rate - Network Service Rate","GENERAL SERVICE 50 to 4,999 kW SERVICE CLASSIFICATION~Retail Transmission Rate - Line and Transformation Connection Service Rate","SENTINEL LIGHTING SERVICE CLASSIFICATION~Retail Transmission Rate - Network Service Rate","SENTINEL LIGHTING SERVICE CLASSIFICATION~Retail Transmission Rate - Line and Transformation Connection Service Rate","STREET LIGHTING SERVICE CLASSIFICATION~Retail Transmission Rate - Network Service Rate","STREET LIGHTING SERVICE CLASSIFICATION~Retail Transmission Rate - Line and Transformation Connection Service Rate","UNMETERED SCATTERED LOAD SERVICE CLASSIFICATION~Retail Transmission Rate - Network Service Rate","UNMETERED SCATTERED LOAD SERVICE CLASSIFICATION~Retail Transmission Rate - Line and Transformation Connection Service Rate"]
["Orillia Power Distribution Corporation","RESIDENTIAL SERVICE CLASSIFICATION~Retail Transmission Rate - Network Service Rate","RESIDENTIAL SERVICE CLASSIFICATION~Retail Transmission Rate - Line and Transformation Connection Service Rate","GENERAL SERVICE LESS THAN 50 KW SERVICE CLASSIFICATION~Retail Transmission Rate - Network Service Rate","GENERAL SERVICE LESS THAN 50 KW SERVICE CLASSIFICATION~Retail Transmission Rate - Line and Transformation Connection Service Rate","GENERAL SERVICE 50 to 4,999 kW SERVICE CLASSIFICATION~Retail Transmission Rate - Network Service Rate","GENERAL SERVICE 50 to 4,999 kW SERVICE CLASSIFICATION~Retail Transmission Rate - Line and Transformation Connection Service Rate","UNMETERED SCATTERED LOAD SERVICE CLASSIFICATION~Retail Transmission Rate - Network Service Rate","UNMETERED SCATTERED LOAD SERVICE CLASSIFICATION~Retail Transmission Rate - Line and Transformation Connection Service Rate","SENTINEL LIGHTING SERVICE CLASSIFICATION~Retail Transmission Rate - Network Service Rate","SENTINEL LIGHTING SERVICE CLASSIFICATION~Retail Transmission Rate - Line and Transformation Connection Service Rate","STREET LIGHTING SERVICE CLASSIFICATION~Retail Transmission Rate - Network Service Rate","STREET LIGHTING SERVICE CLASSIFICATION~Retail Transmission Rate - Line and Transformation Connection Service Rate"]
["Ottawa River Power Corporation","RESIDENTIAL SERVICE CLASSIFICATION~Retail Transmission Rate - Network Service Rate","RESIDENTIAL SERVICE CLASSIFICATION~Retail Transmission Rate - Line and Transformation Connection Service Rate","GENERAL SERVICE LESS THAN 50 KW SERVICE CLASSIFICATION~Retail Transmission Rate - Network Service Rate","GENERAL SERVICE LESS THAN 50 KW SERVICE CLASSIFICATION~Retail Transmission Rate - Line and Transformation Connection Service Rate","GENERAL SERVICE 50 to 4,999 kW SERVICE CLASSIFICATION~Retail Transmission Rate - Network Service Rate","GENERAL SERVICE 50 to 4,999 kW SERVICE CLASSIFICATION~Retail Transmission Rate - Line and Transformation Connection Service Rate","SENTINEL LIGHTING SERVICE CLASSIFICATION~Retail Transmission Rate - Network Service Rate","SENTINEL LIGHTING SERVICE CLASSIFICATION~Retail Transmission Rate - Line and Transformation Connection Service Rate","STREET LIGHTING SERVICE CLASSIFICATION~Retail Transmission Rate - Network Service Rate","STREET LIGHTING SERVICE CLASSIFICATION~Retail Transmission Rate - Line and Transformation Connection Service Rate","UNMETERED SCATTERED LOAD SERVICE CLASSIFICATION~Retail Transmission Rate - Network Service Rate","UNMETERED SCATTERED LOAD SERVICE CLASSIFICATION~Retail Transmission Rate - Line and Transformation Connection Service Rate"]
["Peterborough Distribution Incorporated","RESIDENTIAL SERVICE CLASSIFICATION~Retail Transmission Rate - Network Service Rate","RESIDENTIAL SERVICE CLASSIFICATION~Retail Transmission Rate - Line and Transformation Connection Service Rate","GENERAL SERVICE LESS THAN 50 KW SERVICE CLASSIFICATION~Retail Transmission Rate - Network Service Rate","GENERAL SERVICE LESS THAN 50 KW SERVICE CLASSIFICATION~Retail Transmission Rate - Line and Transformation Connection Service Rate","GENERAL SERVICE 50 to 4,999 kW SERVICE CLASSIFICATION~Retail Transmission Rate - Network Service Rate","GENERAL SERVICE 50 to 4,999 kW SERVICE CLASSIFICATION~Retail Transmission Rate - Line and Transformation Connection Service Rate","LARGE USE SERVICE CLASSIFICATION~Retail Transmission Rate - Network Service Rate","LARGE USE SERVICE CLASSIFICATION~Retail Transmission Rate - Line and Transformation Connection Service Rate","UNMETERED SCATTERED LOAD SERVICE CLASSIFICATION~Retail Transmission Rate - Network Service Rate","UNMETERED SCATTERED LOAD SERVICE CLASSIFICATION~Retail Transmission Rate - Line and Transformation Connection Service Rate","SENTINEL LIGHTING SERVICE CLASSIFICATION~Retail Transmission Rate - Network Service Rate","SENTINEL LIGHTING SERVICE CLASSIFICATION~Retail Transmission Rate - Line and Transformation Connection Service Rate","STREET LIGHTING SERVICE CLASSIFICATION~Retail Transmission Rate - Network Service Rate","STREET LIGHTING SERVICE CLASSIFICATION~Retail Transmission Rate - Line and Transformation Connection Service Rate"]
["Rideau St. Lawrence Distribution Inc.","RESIDENTIAL SERVICE CLASSIFICATION~Retail Transmission Rate - Network Service Rate ","RESIDENTIAL SERVICE CLASSIFICATION~Retail Transmission Rate - Line and Transformation Connection Service Rate ","GENERAL SERVICE LESS THAN 50 KW SERVICE CLASSIFICATION~Retail Transmission Rate - Network Service Rate ","GENERAL SERVICE LESS THAN 50 KW SERVICE CLASSIFICATION~Retail Transmission Rate - Line and Transformation Connection Service Rate ","GENERAL SERVICE 50 to 4,999 kW SERVICE CLASSIFICATION~Retail Transmission Rate - Network Service Rate ","GENERAL SERVICE 50 to 4,999 kW SERVICE CLASSIFICATION~Retail Transmission Rate - Line and Transformation Connection Service Rate","GENERAL SERVICE 50 to 4,999 kW SERVICE CLASSIFICATION~Retail Transmission Rate - Network Service Rate - Interval Metered ","GENERAL SERVICE 50 to 4,999 kW SERVICE CLASSIFICATION~Retail Transmission Rate - Line and Transformation Connection Service Rate - Interval Metered","UNMETERED SCATTERED LOAD SERVICE CLASSIFICATION~Retail Transmission Rate - Network Service Rate ","UNMETERED SCATTERED LOAD SERVICE CLASSIFICATION~Retail Transmission Rate - Line and Transformation Connection Service Rate ","SENTINEL LIGHTING SERVICE CLASSIFICATION~Retail Transmission Rate - Network Service Rate","SENTINEL LIGHTING SERVICE CLASSIFICATION~Retail Transmission Rate - Line and Transformation Connection Service Rate ","STREET LIGHTING SERVICE CLASSIFICATION~Retail Transmission Rate - Network Service Rate ","STREET LIGHTING SERVICE CLASSIFICATION~Retail Transmission Rate - Line and Transformation Connection Service Rate "]
["Sioux Lookout Hydro Inc.","RESIDENTIAL SERVICE CLASSIFICATION~Retail Transmission Rate - Network Service Rate","RESIDENTIAL SERVICE CLASSIFICATION~Retail Transmission Rate - Line and Transformation Connection Service Rate","GENERAL SERVICE LESS THAN 50 KW SERVICE CLASSIFICATION~Retail Transmission Rate - Network Service Rate","GENERAL SERVICE LESS THAN 50 KW SERVICE CLASSIFICATION~Retail Transmission Rate - Line and Transformation Connection Service Rate","GENERAL SERVICE 50 to 4,999 kW SERVICE CLASSIFICATION~Retail Transmission Rate - Network Service Rate","GENERAL SERVICE 50 to 4,999 kW SERVICE CLASSIFICATION~Retail Transmission Rate - Line and Transformation Connection Service Rate","GENERAL SERVICE 50 to 4,999 kW SERVICE CLASSIFICATION~Retail Transmission Rate - Network Service Rate - Interval Metered > 1,000 kW","GENERAL SERVICE 50 to 4,999 kW SERVICE CLASSIFICATION~Retail Transmission Rate - Line and Transformation Connection Service Rate - Interval Metered > 1,000 kW","STREET LIGHTING SERVICE CLASSIFICATION~Retail Transmission Rate - Network Service Rate","STREET LIGHTING SERVICE CLASSIFICATION~Retail Transmission Rate - Line and Transformation Connection Service Rate"]
["Synergy North Corporation-Thunder Bay Rate Zone","RESIDENTIAL SERVICE CLASSIFICATION~Retail Transmission Rate - Network Service Rate","RESIDENTIAL SERVICE CLASSIFICATION~Retail Transmission Rate - Line and Transformation Connection Service Rate","GENERAL SERVICE LESS THAN 50 KW SERVICE CLASSIFICATION~Retail Transmission Rate - Network Service Rate","GENERAL SERVICE LESS THAN 50 KW SERVICE CLASSIFICATION~Retail Transmission Rate - Line and Transformation Connection Service Rate","GENERAL SERVICE 50 TO 999 KW SERVICE CLASSIFICATION~Retail Transmission Rate - Network Service Rate","GENERAL SERVICE 50 TO 999 KW SERVICE CLASSIFICATION~Retail Transmission Rate - Line and Transformation Connection Service Rate ","GENERAL SERVICE 50 TO 999 KW SERVICE CLASSIFICATION~Retail Transmission Rate - Network Service Rate - Interval Metered","GENERAL SERVICE 50 TO 999 KW SERVICE CLASSIFICATION~Retail Transmission Rate - Line and Transformation Connection Service Rate - Interval Metered ","GENERAL SERVICE 1,000 KW OR GREATER SERVICE CLASSIFICATION~Retail Transmission Rate - Network Service Rate","GENERAL SERVICE 1,000 KW OR GREATER SERVICE CLASSIFICATION~Retail Transmission Rate - Line and Transformation Connection Service Rate ","UNMETERED SCATTERED LOAD SERVICE CLASSIFICATION~Retail Transmission Rate - Network Service Rate","UNMETERED SCATTERED LOAD SERVICE CLASSIFICATION~Retail Transmission Rate - Line and Transformation Connection Service Rate ","SENTINEL LIGHTING SERVICE CLASSIFICATION~Retail Transmission Rate - Network Service Rate","SENTINEL LIGHTING SERVICE CLASSIFICATION~Retail Transmission Rate - Line and Transformation Connection Service Rate ","STREET LIGHTING SERVICE CLASSIFICATION~Retail Transmission Rate - Network Service Rate","STREET LIGHTING SERVICE CLASSIFICATION~Retail Transmission Rate - Line and Transformation Connection Service Rate"]
["ENWIN Utilities Ltd.","RESIDENTIAL SERVICE CLASSIFICATION~Retail Transmission Rate - Network Service Rate","RESIDENTIAL SERVICE CLASSIFICATION~Retail Transmission Rate - Line and Transformation Connection Service Rate","GENERAL SERVICE LESS THAN 50 KW SERVICE CLASSIFICATION~Retail Transmission Rate - Network Service Rate","GENERAL SERVICE LESS THAN 50 KW SERVICE CLASSIFICATION~Retail Transmission Rate - Line and Transformation Connection Service Rate","GENERAL SERVICE 50 to 4,999 kW SERVICE CLASSIFICATION~Retail Transmission Rate - Network Service Rate","GENERAL SERVICE 50 to 4,999 kW SERVICE CLASSIFICATION~Retail Transmission Rate - Line and Transformation Connection Service Rate","GENERAL SERVICE 3,000 TO 4,999 KW - INTERMEDIATE USE SERVICE CLASSIFICATION~Retail Transmission Rate - Network Service Rate","GENERAL SERVICE 3,000 TO 4,999 KW - INTERMEDIATE USE SERVICE CLASSIFICATION~Retail Transmission Rate - Line and Transformation Connection Service Rate","LARGE USE - REGULAR SERVICE CLASSIFICATION~Retail Transmission Rate - Network Service Rate","LARGE USE - REGULAR SERVICE CLASSIFICATION~Retail Transmission Rate - Line Connection Service Rate","LARGE USE - REGULAR SERVICE CLASSIFICATION~Retail Transmission Rate - Transformation Connection Service Rate","LARGE USE - 3TS SERVICE CLASSIFICATION~Retail Transmission Rate - Network Service Rate","LARGE USE - 3TS SERVICE CLASSIFICATION~Retail Transmission Rate - Line Connection Service Rate","LARGE USE - FORD ANNEX SERVICE CLASSIFICATION~Retail Transmission Rate - Network Service Rate","LARGE USE - FORD ANNEX SERVICE CLASSIFICATION~Retail Transmission Rate - Line Connection Service Rate ","UNMETERED SCATTERED LOAD SERVICE CLASSIFICATION~Retail Transmission Rate - Network Service Rate","UNMETERED SCATTERED LOAD SERVICE CLASSIFICATION~Retail Transmission Rate - Line and Transformation Connection Service Rate","SENTINEL LIGHTING SERVICE CLASSIFICATION~Retail Transmission Rate - Network Service Rate","SENTINEL LIGHTING SERVICE CLASSIFICATION~Retail Transmission Rate - Line and Transformation Connection Service Rate","STREET LIGHTING SERVICE CLASSIFICATION~Retail Transmission Rate - Network Service Rate","STREET LIGHTING SERVICE CLASSIFICATION~Retail Transmission Rate - Line and Transformation Connection Service Rate"]
["Hearst Power Distribution Co. Ltd.","RESIDENTIAL SERVICE CLASSIFICATION~Retail Transmission Rate - Network Service Rate","RESIDENTIAL SERVICE CLASSIFICATION~Retail Transmission Rate - Line and Transformation Connection Service Rate","GENERAL SERVICE LESS THAN 50 KW SERVICE CLASSIFICATION~Retail Transmission Rate - Network Service Rate","GENERAL SERVICE LESS THAN 50 KW SERVICE CLASSIFICATION~Retail Transmission Rate - Line and Transformation Connection Service Rate","GENERAL SERVICE 50 TO 1,499 KW SERVICE CLASSIFICATION~Retail Transmission Rate - Network Service Rate","GENERAL SERVICE 50 TO 1,499 KW SERVICE CLASSIFICATION~Retail Transmission Rate - Line and Transformation Connection Service Rate ","INTERMEDIATE USER SERVICE CLASSIFICATION~Retail Transmission Rate - Network Service Rate","INTERMEDIATE USER SERVICE CLASSIFICATION~Retail Transmission Rate - Line and Transformation Connection Service Rate","SENTINEL LIGHTING SERVICE CLASSIFICATION~Retail Transmission Rate - Network Service Rate","SENTINEL LIGHTING SERVICE CLASSIFICATION~Retail Transmission Rate - Line and Transformation Connection Service Rate","STREET LIGHTING SERVICE CLASSIFICATION~Retail Transmission Rate - Network Service Rate","STREET LIGHTING SERVICE CLASSIFICATION~Retail Transmission Rate - Line and Transformation Connection Service Rate"]
["ERTH Power Corporation-ERTH Power Main Rate Zone","RESIDENTIAL SERVICE CLASSIFICATION~Retail Transmission Rate - Network Service Rate","RESIDENTIAL SERVICE CLASSIFICATION~Retail Transmission Rate - Line and Transformation Connection Service Rate","GENERAL SERVICE LESS THAN 50 KW SERVICE CLASSIFICATION~Retail Transmission Rate - Network Service Rate","GENERAL SERVICE LESS THAN 50 KW SERVICE CLASSIFICATION~Retail Transmission Rate - Line and Transformation Connection Service Rate","GENERAL SERVICE 50 TO 999 KW SERVICE CLASSIFICATION~Retail Transmission Rate - Network Service Rate","GENERAL SERVICE 50 TO 999 KW SERVICE CLASSIFICATION~Retail Transmission Rate - Line and Transformation Connection Service Rate","GENERAL SERVICE 1,000 TO 4,999 KW SERVICE CLASSIFICATION~Retail Transmission Rate - Network Service Rate","GENERAL SERVICE 1,000 TO 4,999 KW SERVICE CLASSIFICATION~Retail Transmission Rate - Line and Transformation Connection Service Rate","LARGE USE SERVICE CLASSIFICATION~Retail Transmission Rate - Network Service Rate","LARGE USE SERVICE CLASSIFICATION~Retail Transmission Rate - Line and Transformation Connection Service Rate","UNMETERED SCATTERED LOAD SERVICE CLASSIFICATION~Retail Transmission Rate - Network Service Rate","UNMETERED SCATTERED LOAD SERVICE CLASSIFICATION~Retail Transmission Rate - Line and Transformation Connection Service Rate","SENTINEL LIGHTING SERVICE CLASSIFICATION~Retail Transmission Rate - Network Service Rate","SENTINEL LIGHTING SERVICE CLASSIFICATION~Retail Transmission Rate - Line and Transformation Connection Service Rate","STREET LIGHTING SERVICE CLASSIFICATION~Retail Transmission Rate - Network Service Rate","STREET LIGHTING SERVICE CLASSIFICATION~Retail Transmission Rate - Line and Transformation Connection Service Rate","EMBEDDED DISTRIBUTOR SERVICE CLASSIFICATION~Retail Transmission Rate - Network Service Rate","EMBEDDED DISTRIBUTOR SERVICE CLASSIFICATION~Retail Transmission Rate - Line and Transformation Connection Service Rate"]
["Welland Hydro-Electric System Corp.","RESIDENTIAL SERVICE CLASSIFICATION~Retail Transmission Rate - Network Service Rate","RESIDENTIAL SERVICE CLASSIFICATION~Retail Transmission Rate - Line and Transformation Connection Service Rate","GENERAL SERVICE LESS THAN 50 KW SERVICE CLASSIFICATION~Retail Transmission Rate - Network Service Rate","GENERAL SERVICE LESS THAN 50 KW SERVICE CLASSIFICATION~Retail Transmission Rate - Line and Transformation Connection Service Rate","GENERAL SERVICE 50 to 4,999 kW SERVICE CLASSIFICATION~Retail Transmission Rate - Network Service Rate","GENERAL SERVICE 50 to 4,999 kW SERVICE CLASSIFICATION~Retail Transmission Rate - Line and Transformation Connection Service Rate ","UNMETERED SCATTERED LOAD SERVICE CLASSIFICATION~Retail Transmission Rate - Network Service Rate","UNMETERED SCATTERED LOAD SERVICE CLASSIFICATION~Retail Transmission Rate - Line and Transformation Connection Service Rate","SENTINEL LIGHTING SERVICE CLASSIFICATION~Retail Transmission Rate - Network Service Rate","SENTINEL LIGHTING SERVICE CLASSIFICATION~Retail Transmission Rate - Line and Transformation Connection Service Rate","STREET LIGHTING SERVICE CLASSIFICATION~Retail Transmission Rate - Network Service Rate","STREET LIGHTING SERVICE CLASSIFICATION~Retail Transmission Rate - Line and Transformation Connection Service Rate"]
["Wellington North Power Inc.","RESIDENTIAL SERVICE CLASSIFICATION~Retail Transmission Rate - Network Service Rate","RESIDENTIAL SERVICE CLASSIFICATION~Retail Transmission Rate - Line and Transformation Connection Service Rate","GENERAL SERVICE LESS THAN 50 KW SERVICE CLASSIFICATION~Retail Transmission Rate - Network Service Rate","GENERAL SERVICE LESS THAN 50 KW SERVICE CLASSIFICATION~Retail Transmission Rate - Line and Transformation Connection Service Rate","GENERAL SERVICE 50 TO 999 KW SERVICE CLASSIFICATION~Retail Transmission Rate - Network Service Rate","GENERAL SERVICE 50 TO 999 KW SERVICE CLASSIFICATION~Retail Transmission Rate - Line and Transformation Connection Service Rate","GENERAL SERVICE 1,000 TO 4,999 KW SERVICE CLASSIFICATION~Retail Transmission Rate - Network Service Rate","GENERAL SERVICE 1,000 TO 4,999 KW SERVICE CLASSIFICATION~Retail Transmission Rate - Line and Transformation Connection Service Rate","UNMETERED SCATTERED LOAD SERVICE CLASSIFICATION~Retail Transmission Rate - Network Service Rate","UNMETERED SCATTERED LOAD SERVICE CLASSIFICATION~Retail Transmission Rate - Line and Transformation Connection Service Rate","SENTINEL LIGHTING SERVICE CLASSIFICATION~Retail Transmission Rate - Network Service Rate","SENTINEL LIGHTING SERVICE CLASSIFICATION~Retail Transmission Rate - Line and Transformation Connection Service Rate","STREET LIGHTING SERVICE CLASSIFICATION~Retail Transmission Rate - Network Service Rate","STREET LIGHTING SERVICE CLASSIFICATION~Retail Transmission Rate - Line and Transformation Connection Service Rate"]
["Tillsonburg Hydro Inc.","RESIDENTIAL SERVICE CLASSIFICATION~Retail Transmission Rate - Network Service Rate","RESIDENTIAL SERVICE CLASSIFICATION~Retail Transmission Rate - Line and Transformation Connection Service Rate","GENERAL SERVICE LESS THAN 50 KW SERVICE CLASSIFICATION~Retail Transmission Rate - Network Service Rate","GENERAL SERVICE LESS THAN 50 KW SERVICE CLASSIFICATION~Retail Transmission Rate - Line and Transformation Connection Service Rate","GENERAL SERVICE 50 TO 499 KW SERVICE CLASSIFICATION~Retail Transmission Rate - Network Service Rate","GENERAL SERVICE 50 TO 499 KW SERVICE CLASSIFICATION~Retail Transmission Rate - Line and Transformation Connection Service Rate","GENERAL SERVICE 500 TO 1,499 KW SERVICE CLASSIFICATION~Retail Transmission Rate - Network Service Rate - Interval Metered","GENERAL SERVICE 500 TO 1,499 KW SERVICE CLASSIFICATION~Retail Transmission Rate - Line and Transformation Connection Service Rate - Interval Metered","GENERAL SERVICE EQUAL TO OR GREATER THAN 1,500 KW SERVICE CLASSIFICATION~Retail Transmission Rate - Network Service Rate - Interval Metered","GENERAL SERVICE EQUAL TO OR GREATER THAN 1,500 KW SERVICE CLASSIFICATION~Retail Transmission Rate - Line and Transformation Connection Service Rate - Interval Metered","UNMETERED SCATTERED LOAD SERVICE CLASSIFICATION~Retail Transmission Rate - Network Service Rate","UNMETERED SCATTERED LOAD SERVICE CLASSIFICATION~Retail Transmission Rate - Line and Transformation Connection Service Rate","SENTINEL LIGHTING SERVICE CLASSIFICATION~Retail Transmission Rate - Network Service Rate","SENTINEL LIGHTING SERVICE CLASSIFICATION~Retail Transmission Rate - Line and Transformation Connection Service Rate","STREET LIGHTING SERVICE CLASSIFICATION~Retail Transmission Rate - Network Service Rate","STREET LIGHTING SERVICE CLASSIFICATION~Retail Transmission Rate - Line and Transformation Connection Service Rate"]
["Elexicon Energy Inc.-Veridian Rate Zone","RESIDENTIAL SERVICE CLASSIFICATION~Retail Transmission Rate - Network Service Rate","RESIDENTIAL SERVICE CLASSIFICATION~Retail Transmission Rate - Line and Transformation Connection Service Rate","SEASONAL RESIDENTIAL SERVICE CLASSIFICATION~Retail Transmission Rate - Network Service Rate","SEASONAL RESIDENTIAL SERVICE CLASSIFICATION~Retail Transmission Rate - Line and Transformation Connection Service Rate","GENERAL SERVICE LESS THAN 50 KW SERVICE CLASSIFICATION~Retail Transmission Rate - Network Service Rate","GENERAL SERVICE LESS THAN 50 KW SERVICE CLASSIFICATION~Retail Transmission Rate - Line and Transformation Connection Service Rate","GENERAL SERVICE 50 TO 2,999 KW SERVICE CLASSIFICATION~Retail Transmission Rate - Network Service Rate","GENERAL SERVICE 50 TO 2,999 KW SERVICE CLASSIFICATION~Retail Transmission Rate - Line and Transformation Connection Service Rate","GENERAL SERVICE 3,000 TO 4,999 KW SERVICE CLASSIFICATION~Retail Transmission Rate - Network Service Rate","GENERAL SERVICE 3,000 TO 4,999 KW SERVICE CLASSIFICATION~Retail Transmission Rate - Line and Transformation Connection Service Rate ","LARGE USE SERVICE CLASSIFICATION~Retail Transmission Rate - Network Service Rate","LARGE USE SERVICE CLASSIFICATION~Retail Transmission Rate - Line and Transformation Connection Service Rate ","UNMETERED SCATTERED LOAD SERVICE CLASSIFICATION~Retail Transmission Rate - Network Service Rate","UNMETERED SCATTERED LOAD SERVICE CLASSIFICATION~Retail Transmission Rate - Line and Transformation Connection Service Rate","SENTINEL LIGHTING SERVICE CLASSIFICATION~Retail Transmission Rate - Network Service Rate","SENTINEL LIGHTING SERVICE CLASSIFICATION~Retail Transmission Rate - Line and Transformation Connection Service Rate","STREET LIGHTING SERVICE CLASSIFICATION~Retail Transmission Rate - Network Service Rate","STREET LIGHTING SERVICE CLASSIFICATION~Retail Transmission Rate - Line and Transformation Connection Service Rate"]
["Wasaga Distribution Inc.","RESIDENTIAL SERVICE CLASSIFICATION~Retail Transmission Rate - Network Service Rate","RESIDENTIAL SERVICE CLASSIFICATION~Retail Transmission Rate - Line and Transformation Connection Service Rate","GENERAL SERVICE LESS THAN 50 KW SERVICE CLASSIFICATION~Retail Transmission Rate - Network Service Rate","GENERAL SERVICE LESS THAN 50 KW SERVICE CLASSIFICATION~Retail Transmission Rate - Line and Transformation Connection Service Rate","GENERAL SERVICE 50 to 4,999 kW SERVICE CLASSIFICATION~Retail Transmission Rate - Network Service Rate","GENERAL SERVICE 50 to 4,999 kW SERVICE CLASSIFICATION~Retail Transmission Rate - Line and Transformation Connection Service Rate","UNMETERED SCATTERED LOAD SERVICE CLASSIFICATION~Retail Transmission Rate - Network Service Rate","UNMETERED SCATTERED LOAD SERVICE CLASSIFICATION~Retail Transmission Rate - Line and Transformation Connection Service Rate","STREET LIGHTING SERVICE CLASSIFICATION~Retail Transmission Rate - Network Service Rate","STREET LIGHTING SERVICE CLASSIFICATION~Retail Transmission Rate - Line and Transformation Connection Service Rate"]
["ERTH Power Corporation – Goderich Rate Zone","RESIDENTIAL SERVICE CLASSIFICATION~Retail Transmission Rate - Network Service Rate","RESIDENTIAL SERVICE CLASSIFICATION~Retail Transmission Rate - Line and Transformation Connection Service Rate","GENERAL SERVICE LESS THAN 50 KW SERVICE CLASSIFICATION~Retail Transmission Rate - Network Service Rate","GENERAL SERVICE LESS THAN 50 KW SERVICE CLASSIFICATION~Retail Transmission Rate - Line and Transformation Connection Service Rate","GENERAL SERVICE 50 TO 499 KW SERVICE CLASSIFICATION~Retail Transmission Rate - Network Service Rate","GENERAL SERVICE 50 TO 499 KW SERVICE CLASSIFICATION~Retail Transmission Rate - Line and Transformation Connection Service Rate","GENERAL SERVICE 500 TO 4,999 KW SERVICE CLASSIFICATION~Retail Transmission Rate - Network Service Rate","GENERAL SERVICE 500 TO 4,999 KW SERVICE CLASSIFICATION~Retail Transmission Rate - Line and Transformation Connection Service Rate","LARGE USE SERVICE CLASSIFICATION~Retail Transmission Rate - Network Service Rate","LARGE USE SERVICE CLASSIFICATION~Retail Transmission Rate - Line and Transformation Connection Service Rate","UNMETERED SCATTERED LOAD SERVICE CLASSIFICATION~Retail Transmission Rate - Network Service Rate","UNMETERED SCATTERED LOAD SERVICE CLASSIFICATION~Retail Transmission Rate - Line and Transformation Connection Service Rate","SENTINEL LIGHTING SERVICE CLASSIFICATION~Retail Transmission Rate - Network Service Rate","SENTINEL LIGHTING SERVICE CLASSIFICATION~Retail Transmission Rate - Line and Transformation Connection Service Rate","STREET LIGHTING SERVICE CLASSIFICATION~Retail Transmission Rate - Network Service Rate","STREET LIGHTING SERVICE CLASSIFICATION~Retail Transmission Rate - Line and Transformation Connection Service Rate"]
["Oshawa PUC Networks Inc.","RESIDENTIAL SERVICE CLASSIFICATION~Retail Transmission Rate - Network Service Rate","RESIDENTIAL SERVICE CLASSIFICATION~Retail Transmission Rate - Line and Transformation Connection Service Rate","GENERAL SERVICE LESS THAN 50 KW SERVICE CLASSIFICATION~Retail Transmission Rate - Network Service Rate","GENERAL SERVICE LESS THAN 50 KW SERVICE CLASSIFICATION~Retail Transmission Rate - Line and Transformation Connection Service Rate","GENERAL SERVICE 50 TO 999 KW SERVICE CLASSIFICATION~Retail Transmission Rate - Network Service Rate","GENERAL SERVICE 50 TO 999 KW SERVICE CLASSIFICATION~Retail Transmission Rate - Line and Transformation Connection Service Rate","GENERAL SERVICE 50 TO 999 KW SERVICE CLASSIFICATION~Retail Transmission Rate - Network Service Rate - Interval Metered","GENERAL SERVICE 50 TO 999 KW SERVICE CLASSIFICATION~Retail Transmission Rate - Line and Transformation Connection Service Rate - Interval Metered","GENERAL SERVICE 1,000 TO 4,999 KW SERVICE CLASSIFICATION~Retail Transmission Rate - Network Service Rate - Interval Metered","GENERAL SERVICE 1,000 TO 4,999 KW SERVICE CLASSIFICATION~Retail Transmission Rate - Line and Transformation Connection Service Rate - Interval Metered","LARGE USE SERVICE CLASSIFICATION~Retail Transmission Rate - Network Service Rate - Interval Metered","LARGE USE SERVICE CLASSIFICATION~Retail Transmission Rate - Line and Transformation Connection Service Rate - Interval Metered","UNMETERED SCATTERED LOAD SERVICE CLASSIFICATION~Retail Transmission Rate - Network Service Rate","UNMETERED SCATTERED LOAD SERVICE CLASSIFICATION~Retail Transmission Rate - Line and Transformation Connection Service Rate","SENTINEL LIGHTING SERVICE CLASSIFICATION~Retail Transmission Rate - Network Service Rate","SENTINEL LIGHTING SERVICE CLASSIFICATION~Retail Transmission Rate - Line and Transformation Connection Service Rate","STREET LIGHTING SERVICE CLASSIFICATION~Retail Transmission Rate - Network Service Rate","STREET LIGHTING SERVICE CLASSIFICATION~Retail Transmission Rate - Line and Transformation Connection Service Rate"]
["Brantford Power Inc.","RESIDENTIAL SERVICE CLASSIFICATION~Retail Transmission Rate - Network Service Rate","RESIDENTIAL SERVICE CLASSIFICATION~Retail Transmission Rate - Line and Transformation Connection Service Rate","GENERAL SERVICE LESS THAN 50 KW SERVICE CLASSIFICATION~Retail Transmission Rate - Network Service Rate","GENERAL SERVICE LESS THAN 50 KW SERVICE CLASSIFICATION~Retail Transmission Rate - Line and Transformation Connection Service Rate","GENERAL SERVICE 50 to 4,999 kW SERVICE CLASSIFICATION~Retail Transmission Rate - Network Service Rate","GENERAL SERVICE 50 to 4,999 kW SERVICE CLASSIFICATION~Retail Transmission Rate - Line and Transformation Connection Service Rate","EMBEDDED DISTRIBUTOR SERVICE CLASSIFICATION~Retail Transmission Rate - Network Service Rate","EMBEDDED DISTRIBUTOR SERVICE CLASSIFICATION~Retail Transmission Rate - Line and Transformation Connection Service Rate","SENTINEL LIGHTING SERVICE CLASSIFICATION~Retail Transmission Rate - Network Service Rate","SENTINEL LIGHTING SERVICE CLASSIFICATION~Retail Transmission Rate - Line and Transformation Connection Service Rate","STREET LIGHTING SERVICE CLASSIFICATION~Retail Transmission Rate - Network Service Rate","STREET LIGHTING SERVICE CLASSIFICATION~Retail Transmission Rate - Line and Transformation Connection Service Rate","UNMETERED SCATTERED LOAD SERVICE CLASSIFICATION~Retail Transmission Rate - Network Service Rate","UNMETERED SCATTERED LOAD SERVICE CLASSIFICATION~Retail Transmission Rate - Line and Transformation Connection Service Rate"]
["Oakville Hydro Electricity Distribution Inc.","RESIDENTIAL SERVICE CLASSIFICATION~Retail Transmission Rate - Network Service Rate","RESIDENTIAL SERVICE CLASSIFICATION~Retail Transmission Rate - Line and Transformation Connection Service Rate","GENERAL SERVICE LESS THAN 50 KW SERVICE CLASSIFICATION~Retail Transmission Rate - Network Service Rate","GENERAL SERVICE LESS THAN 50 KW SERVICE CLASSIFICATION~Retail Transmission Rate - Line and Transformation Connection Service Rate","GENERAL SERVICE 50 TO 999 KW SERVICE CLASSIFICATION~Retail Transmission Rate - Network Service Rate","GENERAL SERVICE 50 TO 999 KW SERVICE CLASSIFICATION~Retail Transmission Rate - Network Service Rate - Interval Metered","GENERAL SERVICE 50 TO 999 KW SERVICE CLASSIFICATION~Retail Transmission Rate - Line and Transformation Connection Service Rate","GENERAL SERVICE 50 TO 999 KW SERVICE CLASSIFICATION~Retail Transmission Rate - Line and Transformation Connection Service Rate - Interval Metered","GENERAL SERVICE 1,000 KW AND GREATER SERVICE CLASSIFICATION~Retail Transmission Rate - Network Service Rate - Interval Metered","GENERAL SERVICE 1,000 KW AND GREATER SERVICE CLASSIFICATION~Retail Transmission Rate - Line and Transformation Connection Service Rate - Interval Metered","UNMETERED SCATTERED LOAD SERVICE CLASSIFICATION~Retail Transmission Rate - Network Service Rate","UNMETERED SCATTERED LOAD SERVICE CLASSIFICATION~Retail Transmission Rate - Line and Transformation Connection Service Rate","SENTINEL LIGHTING SERVICE CLASSIFICATION~Retail Transmission Rate - Network Service Rate","SENTINEL LIGHTING SERVICE CLASSIFICATION~Retail Transmission Rate - Line and Transformation Connection Service Rate","STREET LIGHTING SERVICE CLASSIFICATION~Retail Transmission Rate - Network Service Rate","STREET LIGHTING SERVICE CLASSIFICATION~Retail Transmission Rate - Line and Transformation Connection Service Rate","EMBEDDED DISTRIBUTOR SERVICE CLASSIFICATION~Retail Transmission Rate - Network Service Rate","EMBEDDED DISTRIBUTOR SERVICE CLASSIFICATION~Retail Transmission Rate - Line and Transformation Connection Service Rate"]
["Chapleau Public Utilities Corporation","RESIDENTIAL SERVICE CLASSIFICATION~Retail Transmission Rate - Network Service Rate","RESIDENTIAL SERVICE CLASSIFICATION~Retail Transmission Rate - Line and Transformation Connection Service Rate","GENERAL SERVICE LESS THAN 50 kW SERVICE CLASSIFICATION~Retail Transmission Rate - Network Service Rate","GENERAL SERVICE LESS THAN 50 kW SERVICE CLASSIFICATION~Retail Transmission Rate - Line and Transformation Connection Service Rate","GENERAL SERVICE 50 TO 4,999 KW SERVICE CLASSIFICATION~Retail Transmission Rate - Network Service Rate","GENERAL SERVICE 50 TO 4,999 KW SERVICE CLASSIFICATION~Retail Transmission Rate - Line and Transformation Connection Service Rate","UNMETERED SCATTERED LOAD SERVICE CLASSIFICATION~Retail Transmission Rate - Network Service Rate","UNMETERED SCATTERED LOAD SERVICE CLASSIFICATION~Retail Transmission Rate - Line and Transformation Connection Service Rate","SENTINEL LIGHTING SERVICE CLASSIFICATION~Retail Transmission Rate - Network Service Rate","SENTINEL LIGHTING SERVICE CLASSIFICATION~Retail Transmission Rate - Line and Transformation Connection Service Rate","STREET LIGHTING SERVICE CLASSIFICATION~Retail Transmission Rate - Network Service Rate","STREET LIGHTING SERVICE CLASSIFICATION~Retail Transmission Rate - Line and Transformation Connection Service Rate"]
["Espanola Regional Hydro Distribution Corporation","RESIDENTIAL SERVICE CLASSIFICATION~Retail Transmission Rate - Network Service Rate","RESIDENTIAL SERVICE CLASSIFICATION~Retail Transmission Rate - Line and Transformation Connection Service Rate","GENERAL SERVICE LESS THAN 50 kW SERVICE CLASSIFICATION~Retail Transmission Rate - Network Service Rate","GENERAL SERVICE LESS THAN 50 kW SERVICE CLASSIFICATION~Retail Transmission Rate - Line and Transformation Connection Service Rate","GENERAL SERVICE 50 TO 4,999 KW SERVICE CLASSIFICATION~Retail Transmission Rate - Network Service Rate","GENERAL SERVICE 50 TO 4,999 KW SERVICE CLASSIFICATION~Retail Transmission Rate - Line and Transformation Connection Service Rate","GENERAL SERVICE 50 TO 4,999 KW SERVICE CLASSIFICATION~Retail Transmission Rate - Network Service Rate - Interval Metered","GENERAL SERVICE 50 TO 4,999 KW SERVICE CLASSIFICATION~Retail Transmission Rate - Line and Transformation Connection Service Rate - Interval Metered","UNMETERED SCATTERED LOAD SERVICE CLASSIFICATION~Retail Transmission Rate - Network Service Rate","UNMETERED SCATTERED LOAD SERVICE CLASSIFICATION~Retail Transmission Rate - Line and Transformation Connection Service Rate","SENTINEL LIGHTING SERVICE CLASSIFICATION~Retail Transmission Rate - Network Service Rate","SENTINEL LIGHTING SERVICE CLASSIFICATION~Retail Transmission Rate - Line and Transformation Connection Service Rate","STREET LIGHTING SERVICE CLASSIFICATION~Retail Transmission Rate - Network Service Rate","STREET LIGHTING SERVICE CLASSIFICATION~Retail Transmission Rate - Line and Transformation Connection Service Rate"]
["Energy+ Inc.-For Former Brant County Power Service Area","RESIDENTIAL SERVICE CLASSIFICATION~Retail Transmission Rate - Network Service Rate","RESIDENTIAL SERVICE CLASSIFICATION~Retail Transmission Rate - Line and Transformation Connection Service Rate","GENERAL SERVICE LESS THAN 50 KW SERVICE CLASSIFICATION~Retail Transmission Rate - Network Service Rate","GENERAL SERVICE LESS THAN 50 KW SERVICE CLASSIFICATION~Retail Transmission Rate - Line and Transformation Connection Service Rate","GENERAL SERVICE 50 to 4,999 kW SERVICE CLASSIFICATION~Retail Transmission Rate - Network Service Rate","GENERAL SERVICE 50 to 4,999 kW SERVICE CLASSIFICATION~Retail Transmission Rate - Line and Transformation Connection Service Rate","GENERAL SERVICE 50 to 4,999 kW SERVICE CLASSIFICATION~Retail Transmission Rate - Network Service Rate - Interval Metered < 1,000 kW","GENERAL SERVICE 50 to 4,999 kW SERVICE CLASSIFICATION~Retail Transmission Rate - Line and Transformation Connection Service Rate - Interval Metered < 1,000 kW","GENERAL SERVICE 50 to 4,999 kW SERVICE CLASSIFICATION~Retail Transmission Rate - Network Service Rate - Interval Metered > 1,000 kW","GENERAL SERVICE 50 to 4,999 kW SERVICE CLASSIFICATION~Retail Transmission Rate - Line and Transformation Connection Service Rate - Interval Metered > 1,000 kW","UNMETERED SCATTERED LOAD SERVICE CLASSIFICATION~Retail Transmission Rate - Network Service Rate","UNMETERED SCATTERED LOAD SERVICE CLASSIFICATION~Retail Transmission Rate - Line and Transformation Connection Service Rate","SENTINEL LIGHTING SERVICE CLASSIFICATION~Retail Transmission Rate - Network Service Rate","SENTINEL LIGHTING SERVICE CLASSIFICATION~Retail Transmission Rate - Line and Transformation Connection Service Rate","STREET LIGHTING SERVICE CLASSIFICATION~Retail Transmission Rate - Network Service Rate","STREET LIGHTING SERVICE CLASSIFICATION~Retail Transmission Rate - Line and Transformation Connection Service Rate"]
["Energy+ Inc.-For Former Cambridge and North Dumfries Hydro Service Area","RESIDENTIAL SERVICE CLASSIFICATION~Retail Transmission Rate - Network Service Rate","RESIDENTIAL SERVICE CLASSIFICATION~Retail Transmission Rate - Line and Transformation Connection Service Rate","GENERAL SERVICE LESS THAN 50 KW SERVICE CLASSIFICATION~Retail Transmission Rate - Network Service Rate","GENERAL SERVICE LESS THAN 50 KW SERVICE CLASSIFICATION~Retail Transmission Rate - Line and Transformation Connection Service Rate","GENERAL SERVICE 50 TO 999 KW SERVICE CLASSIFICATION~Retail Transmission Rate - Network Service Rate","GENERAL SERVICE 50 TO 999 KW SERVICE CLASSIFICATION~Retail Transmission Rate - Line and Transformation Connection Service Rate","GENERAL SERVICE 1,000 TO 4,999 KW SERVICE CLASSIFICATION~Retail Transmission Rate - Network Service Rate","GENERAL SERVICE 1,000 TO 4,999 KW SERVICE CLASSIFICATION~Retail Transmission Rate - Line and Transformation Connection Service Rate","LARGE USE SERVICE CLASSIFICATION~Retail Transmission Rate - Network Service Rate","LARGE USE SERVICE CLASSIFICATION~Retail Transmission Rate - Line and Transformation Connection Service Rate","UNMETERED SCATTERED LOAD SERVICE CLASSIFICATION~Retail Transmission Rate - Network Service Rate","UNMETERED SCATTERED LOAD SERVICE CLASSIFICATION~Retail Transmission Rate - Line and Transformation Connection Service Rate","STREET LIGHTING SERVICE CLASSIFICATION~Retail Transmission Rate - Network Service Rate","STREET LIGHTING SERVICE CLASSIFICATION~Retail Transmission Rate - Line and Transformation Connection Service Rate","EMBEDDED DISTRIBUTOR SERVICE CLASSIFICATION~Retail Transmission Rate - Network Service Rate","EMBEDDED DISTRIBUTOR SERVICE CLASSIFICATION~Retail Transmission Rate - Line and Transformation Connection Service Rate"]
["Hydro 2000 Inc.","RESIDENTIAL SERVICE CLASSIFICATION~Retail Transmission Rate - Network Service Rate","RESIDENTIAL SERVICE CLASSIFICATION~Retail Transmission Rate - Line and Transformation Connection Service Rate","GENERAL SERVICE LESS THAN 50 kW SERVICE CLASSIFICATION~Retail Transmission Rate - Network Service Rate","GENERAL SERVICE LESS THAN 50 kW SERVICE CLASSIFICATION~Retail Transmission Rate - Line and Transformation Connection Service Rate","GENERAL SERVICE 50 TO 4,999 KW SERVICE CLASSIFICATION~Retail Transmission Rate - Network Service Rate","GENERAL SERVICE 50 TO 4,999 KW SERVICE CLASSIFICATION~Retail Transmission Rate - Line and Transformation Connection Service Rate","STREET LIGHTING SERVICE CLASSIFICATION~Retail Transmission Rate - Network Service Rate","STREET LIGHTING SERVICE CLASSIFICATION~Retail Transmission Rate - Line and Transformation Connection Service Rate","UNMETERED SCATTERED LOAD SERVICE CLASSIFICATION~Retail Transmission Rate - Network Service Rate","UNMETERED SCATTERED LOAD SERVICE CLASSIFICATION~Retail Transmission Rate - Line and Transformation Connection Service Rate"]
["Niagara-on-the-Lake Hydro Inc.","RESIDENTIAL SERVICE CLASSIFICATION~Retail Transmission Rate - Network Service Rate","RESIDENTIAL SERVICE CLASSIFICATION~Retail Transmission Rate - Line and Transformation Connection Service Rate","GENERAL SERVICE LESS THAN 50 KW SERVICE CLASSIFICATION~Retail Transmission Rate - Network Service Rate","GENERAL SERVICE LESS THAN 50 KW SERVICE CLASSIFICATION~Retail Transmission Rate - Line and Transformation Connection Service Rate","GENERAL SERVICE 50 to 4,999 kW SERVICE CLASSIFICATION~Retail Transmission Rate - Network Service Rate","GENERAL SERVICE 50 to 4,999 kW SERVICE CLASSIFICATION~Retail Transmission Rate - Line and Transformation Connection Service Rate","GENERAL SERVICE 50 to 4,999 kW SERVICE CLASSIFICATION~Retail Transmission Rate - Network Service Rate - Interval Metered","GENERAL SERVICE 50 to 4,999 kW SERVICE CLASSIFICATION~Retail Transmission Rate - Line and Transformation Connection Service Rate - Interval Metered","UNMETERED SCATTERED LOAD SERVICE CLASSIFICATION~Retail Transmission Rate - Network Service Rate","UNMETERED SCATTERED LOAD SERVICE CLASSIFICATION~Retail Transmission Rate - Line and Transformation Connection Service Rate","STREET LIGHTING SERVICE CLASSIFICATION~Retail Transmission Rate - Network Service Rate","STREET LIGHTING SERVICE CLASSIFICATION~Retail Transmission Rate - Line and Transformation Connection Service Rate"]
["PUC Distribution Inc.","RESIDENTIAL SERVICE CLASSIFICATION~Retail Transmission Rate - Network Service Rate","GENERAL SERVICE LESS THAN 50 KW SERVICE CLASSIFICATION~Retail Transmission Rate - Network Service Rate","GENERAL SERVICE 50 to 4,999 kW SERVICE CLASSIFICATION~Retail Transmission Rate - Network Service Rate","GENERAL SERVICE 50 to 4,999 kW SERVICE CLASSIFICATION~Retail Transmission Rate - Network Service Rate - Interval Metered","UNMETERED SCATTERED LOAD SERVICE CLASSIFICATION~Retail Transmission Rate - Network Service Rate","SENTINEL LIGHTING SERVICE CLASSIFICATION~Retail Transmission Rate - Network Service Rate","STREET LIGHTING SERVICE CLASSIFICATION~Retail Transmission Rate - Network Service Rate"]
["Hydro One Networks Inc.","YEAR-ROUND URBAN DENSITY - UR SERVICE CLASSIFICATION~Retail Transmission Rate - Network Service Rate","YEAR-ROUND URBAN DENSITY - UR SERVICE CLASSIFICATION~Retail Transmission Rate - Line and Transformation Connection Service Rate","YEAR-ROUND MEDIUM DENSITY - R1 SERVICE CLASSIFICATION~Retail Transmission Rate - Network Service Rate","YEAR-ROUND MEDIUM DENSITY - R1 SERVICE CLASSIFICATION~Retail Transmission Rate - Line and Transformation Connection Service Rate","YEAR-ROUND LOW DENSITY - R2 SERVICE CLASSIFICATION~Retail Transmission Rate - Network Service Rate","YEAR-ROUND LOW DENSITY - R2 SERVICE CLASSIFICATION~Retail Transmission Rate - Line and Transformation Connection Service Rate","SEASONAL SERVICE CLASSIFICATION~Retail Transmission Rate - Network Service Rate","SEASONAL SERVICE CLASSIFICATION~Retail Transmission Rate - Line and Transformation Connection Service Rate","URBAN GENERAL SERVICE ENERGY BILLED - UGe SERVICE CLASSIFICATION~Retail Transmission Rate - Network Service Rate","URBAN GENERAL SERVICE ENERGY BILLED - UGe SERVICE CLASSIFICATION~Retail Transmission Rate - Line and Transformation Connection Service Rate","GENERAL SERVICE ENERGY BILLED - GSe SERVICE CLASSIFICATION~Retail Transmission Rate - Network Service Rate","GENERAL SERVICE ENERGY BILLED - GSe SERVICE CLASSIFICATION~Retail Transmission Rate - Line and Transformation Connection Service Rate","URBAN GENERAL SERVICE DEMAND BILLED - UGd SERVICE CLASSIFICATION~Retail Transmission Rate - Network Service Rate","URBAN GENERAL SERVICE DEMAND BILLED - UGd SERVICE CLASSIFICATION~Retail Transmission Rate - Line and Transformation Connection Service Rate","GENERAL SERVICE DEMAND BILLED - GSd SERVICE CLASSIFICATION~Retail Transmission Rate - Network Service Rate","GENERAL SERVICE DEMAND BILLED - GSd SERVICE CLASSIFICATION~Retail Transmission Rate - Line and Transformation Connection Service Rate","DISTRIBUTED GENERATION - DGen SERVICE CLASSIFICATION~Retail Transmission Rate - Network Service Rate","DISTRIBUTED GENERATION - DGen SERVICE CLASSIFICATION~Retail Transmission Rate - Line and Transformation Connection Service Rate","SUB TRANSMISSION - ST SERVICE CLASSIFICATION~Retail Transmission Rate - Network Service Rate","SUB TRANSMISSION - ST SERVICE CLASSIFICATION~Retail Transmission Rate - Line Connection Service Rate","SUB TRANSMISSION - ST SERVICE CLASSIFICATION~Retail Transmission Rate - Transformation Connection Service Rate","UNMETERED SCATTERED LOAD SERVICE CLASSIFICATION~Retail Transmission Rate - Network Service Rate","UNMETERED SCATTERED LOAD SERVICE CLASSIFICATION~Retail Transmission Rate - Line and Transformation Connection Service Rate","SENTINEL LIGHTING SERVICE CLASSIFICATION~Retail Transmission Rate - Network Service Rate","SENTINEL LIGHTING SERVICE CLASSIFICATION~Retail Transmission Rate - Line and Transformation Connection Service Rate","STREET LIGHTING SERVICE CLASSIFICATION~Retail Transmission Rate - Network Service Rate","STREET LIGHTING SERVICE CLASSIFICATION~Retail Transmission Rate - Line and Transformation Connection Service Rate"]

{"sheet":"DELETE 3. Rate Classes","index":11,"n_rows":100,"n_cols":23,"rows_kept":100,"cut":false,"hidden":true,"merged":[[12,2,12,8]]}
[]
[]
[]
[]
[]
[]
[]
[]
[]
[]
[]
[]
[null,null,"1.  Select the appropriate rate classes that appear on your most recent OEB-Approved Tariff of Rates and Charges.\n2.  Enter the RTSR Network and Connection Rate as it appears on the Tariff of Rates and Charges"]
[]
[null,null,"Rate Class",null,"Unit",null,"RTSR-Network",null,"RTSR-Connection"]
[]
[null,null,null,null,null,null,null,null,null,null,null,{"$f":"IF(OR(ISBLANK(C17), ISERROR(FIND(\"Choose\", C17))=FALSE), 0, 1)","v":0},{"$f":"\"C\" & ROW(C17)","v":"C17"},{"$f":"IF(OR(C17=\"General Service Intermediate Rate Class 1,000 To 4,999 kW (formerly General Service > 50 kW Customers)\", C17=\"General Service Intermediate Rate Class 1,000 To 4,999 kW (formerly Large Use Customers)\"), \"x\", \"\")","v":""},null,null,null,null,null,null,null,null,"Choose Rate Class"]
[null,null,null,null,null,null,null,null,null,null,null,0,"C18",{"$f":"IF(OR(C18=\"General Service Intermediate Rate Class 1,000 To 4,999 kW (formerly General Service > 50 kW Customers)\", C18=\"General Service Intermediate Rate Class 1,000 To 4,999 kW (formerly Large Use Customers)\"), \"x\", \"\")","v":""},null,null,null,null,null,null,null,null,"Residential"]
[null,null,null,null,null,null,null,null,null,null,null,0,"C19","",null,null,null,null,null,null,null,null,"Residential Regular"]
[null,null,null,null,null,null,null,null,null,null,null,0,"C20","",null,null,null,null,null,null,null,null,"Residential Urban"]
[null,null,null,null,null,null,null,null,null,null,null,0,"C21","",null,null,null,null,null,null,null,null,"Residential Urban Year-Round"]
[null,null,null,null,null,null,null,null,null,null,null,{"$f":"IF(OR(ISBLANK(C22), ISERROR(FIND(\"Choose\", C22))=FALSE), 0, 1)","v":0},"C22","",null,null,null,null,null,null,null,null,"Residential Suburban"]
[null,null,null,null,null,null,null,null,null,null,null,0,"C23","",null,null,null,null,null,null,null,null,"Residential Suburban Seasonal"]
[null,null,null,null,null,null,null,null,null,null,null,0,"C24","",null,null,null,null,null,null,null,null,"Residential Suburban Year Round"]
[null,null,null,null,null,null,null,null,null,null,null,0,"C25","",null,null,null,null,null,null,null,null,"Residential - Time of Use"]
[null,null,null,null,null,null,null,null,null,null,null,0,"C26","",null,null,null,null,null,null,null,null,"Residential - Hensall"]
[null,null,null,null,null,null,null,null,null,null,null,0,"C27","",null,null,null,null,null,null,null,null,"Residential – High Density [R1]"]
[null,null,null,null,null,null,null,null,null,null,null,0,"C28","",null,null,null,null,null,null,null,null,"Residential – Normal Density [R2]"]
[null,null,null,null,null,null,null,null,null,null,null,0,"C29","",null,null,null,null,null,null,null,null,"Seasonal Residential – High Density [R3]"]
[null,null,null,null,null,null,null,null,null,null,null,0,"C30","",null,null,null,null,null,null,null,null,"Seasonal Residential – Normal Density [R4]"]
[null,null,null,null,null,null,null,null,null,null,null,0,"C31","",null,null,null,null,null,null,null,null,"Residential – Urban [UR]"]
[null,null,null,null,null,null,null,null,null,null,null,0,"C32","",null,null,null,null,null,null,null,null,"General Service Less Than 50 kW"]
[null,null,null,null,null,null,null,null,null,null,null,0,"C33","",null,null,null,null,null,null,null,null,"General Service Less Than 50 kW – Single Phase energy-billed [G1]"]
[null,null,null,null,null,null,null,null,null,null,null,0,"C34","",null,null,null,null,null,null,null,null,"General Service Less Than 50 kW – Three Phase energy-billed [G3]"]
[null,null,null,null,null,null,null,null,null,null,null,0,"C35","",null,null,null,null,null,null,null,null,"General Service Less Than 50 kW – Transmission Class energy-billed [T]"]
[null,null,null,null,null,null,null,null,null,null,null,0,"C36","",null,null,null,null,null,null,null,null,"General Service Less Than 50 kW – Urban energy-billed [UG]"]
[null,null,null,null,null,null,null,null,null,null,null,0,"C37","",null,null,null,null,null,null,null,null,"Westport Sewage Treatment Plant"]
[null,null,null,null,null,null,null,null,null,null,null,0,"C38","",null,null,null,null,null,null,null,null,"Small Commercial and USL - per meter"]
[null,null,null,null,null,null,null,null,null,null,null,null,null,{"$f":"COUNTIF(N17:N38, \"x\")","v":0},null,null,null,null,null,null,null,null,"Small Commercial and USL - per connection"]
[null,null,null,null,null,null,null,null,null,null,null,null,null,null,null,null,null,null,null,null,null,null,"Farms – Single Phase energy-billed [F1]"]
[null,null,null,null,null,null,null,null,null,null,null,null,null,null,null,null,null,null,null,null,null,null,"General Service 50 to 499 kW"]
[null,null,null,null,null,null,null,null,null,null,null,null,null,null,null,null,null,null,null,null,null,null,"General Service 50 to 699 kW"]
[null,null,null,null,null,null,null,null,null,null,null,null,null,null,null,null,null,null,null,null,null,null,"General Service 50 to 999 kW"]
[null,null,null,null,null,null,null,null,null,null,null,null,null,null,null,null,null,null,null,null,null,null,"General Service 50 to 999 kW - Interval Metered"]
[null,null,null,null,null,null,null,null,null,null,null,null,null,null,null,null,null,null,null,null,null,null,"General Service 50 to 1,000 kW"]
[null,null,null,null,null,null,null,null,null,null,null,null,null,null,null,null,null,null,null,null,null,null,"General Service 50 to 1,000 kW - Interval Meters"]
[null,null,null,null,null,null,null,null,null,null,null,null,null,null,null,null,null,null,null,null,null,null,"General Service 50 to 1,000 kW - Non Interval Meters"]
[null,null,null,null,null,null,null,null,null,null,null,null,null,null,null,null,null,null,null,null,null,null,"General Service 50 to 1,499 kW"]
[null,null,null,null,null,null,null,null,null,null,null,null,null,null,null,null,null,null,null,null,null,null,"General Service 50 to 1,499 kW - Interval Metered"]
[null,null,null,null,null,null,null,null,null,null,null,null,null,null,null,null,null,null,null,null,null,null,"General Service  50 to 2,499 kW"]
[null,null,null,null,null,null,null,null,null,null,null,null,null,null,null,null,null,null,null,null,null,null,"General Service 50 to 2,999 kW"]
[null,null,null,null,null,null,null,null,null,null,null,null,null,null,null,null,null,null,null,null,null,null,"General Service 50 to 2,999 kW - Time of Use"]
[null,null,null,null,null,null,null,null,null,null,null,null,null,null,null,null,null,null,null,null,null,null,"General Service 50 to 4,999 kW"]
[null,null,null,null,null,null,null,null,null,null,null,null,null,null,null,null,null,null,null,null,null,null,"General Service 50 to 4,999 kW – Interval Metered"]
[null,null,null,null,null,null,null,null,null,null,null,null,null,null,null,null,null,null,null,null,null,null,"General Service 50 to 4,999 kW - Time of Use"]
[null,null,null,null,null,null,null,null,null,null,null,null,null,null,null,null,null,null,null,null,null,null,"General Service 50 to 4,999 kW (CoGeneration)"]
[null,null,null,null,null,null,null,null,null,null,null,null,null,null,null,null,null,null,null,null,null,null,"General Service 50 to 4,999 kW (formerly Time of Use)"]
[null,null,null,null,null,null,null,null,null,null,null,null,null,null,null,null,null,null,null,null,null,null,"General Service 500 to 4,999 kW"]
[null,null,null,null,null,null,null,null,null,null,null,null,null,null,null,null,null,null,null,null,null,null,"General Service 700 to 4,999 kW"]
[null,null,null,null,null,null,null,null,null,null,null,null,null,null,null,null,null,null,null,null,null,null,"General Service 1,000 to 2,999 kW"]
[null,null,null,null,null,null,null,null,null,null,null,null,null,null,null,null,null,null,null,null,null,null,"General Service 1,000 to 4,999 kW"]
[null,null,null,null,null,null,null,null,null,null,null,null,null,null,null,null,null,null,null,null,null,null,"General Service 1,000 to 4,999 kW - Interval Meters"]
[null,null,null,null,null,null,null,null,null,null,null,null,null,null,null,null,null,null,null,null,null,null,"General Service 1,000 To 4,999 kW (co-generation)"]
[null,null,null,null,null,null,null,null,null,null,null,null,null,null,null,null,null,null,null,null,null,null,"General Service Greater Than 1,000 kW"]
[null,null,null,null,null,null,null,null,null,null,null,null,null,null,null,null,null,null,null,null,null,null,"General Service Intermediate Rate Class 1,000 To 4,999 kW (formerly Large Use Customers)"]
[null,null,null,null,null,null,null,null,null,null,null,null,null,null,null,null,null,null,null,null,null,null,"General Service Intermediate Rate Class 1,000 To 4,999 kW (formerly General Service > 50 kW Customers)"]
[null,null,null,null,null,null,null,null,null,null,null,null,null,null,null,null,null,null,null,null,null,null,"General Service 1,500 to 4,999 kW"]
[null,null,null,null,null,null,null,null,null,null,null,null,null,null,null,null,null,null,null,null,null,null,"General Service Equal To Or Greater Than 1,500 kW"]
[null,null,null,null,null,null,null,null,null,null,null,null,null,null,null,null,null,null,null,null,null,null,"General Service Equal To Or Greater Than 1,500 kW - Interval Metered"]
[null,null,null,null,null,null,null,null,null,null,null,null,null,null,null,null,null,null,null,null,null,null,"General Service Intermediate 1,000 To 4,999 kW"]
[null,null,null,null,null,null,null,null,null,null,null,null,null,null,null,null,null,null,null,null,null,null,"General Service 2,500 to 4,999 kW"]
[null,null,null,null,null,null,null,null,null,null,null,null,null,null,null,null,null,null,null,null,null,null,"General Service 3,000 to 4,999 kW"]
[null,null,null,null,null,null,null,null,null,null,null,null,null,null,null,null,null,null,null,null,null,null,"General Service 3,000 to 4,999 kW - Interval Metered"]
[null,null,null,null,null,null,null,null,null,null,null,null,null,null,null,null,null,null,null,null,null,null,"General Service 3,000 to 4,999 kW - Intermediate Use"]
[null,null,null,null,null,null,null,null,null,null,null,null,null,null,null,null,null,null,null,null,null,null,"General Service 3,000 to 4,999 kW - Time of Use"]
[null,null,null,null,null,null,null,null,null,null,null,null,null,null,null,null,null,null,null,null,null,null,"Intermediate With Self Generation"]
[null,null,null,null,null,null,null,null,null,null,null,null,null,null,null,null,null,null,null,null,null,null,"General Service - Commercial"]
[null,null,null,null,null,null,null,null,null,null,null,null,null,null,null,null,null,null,null,null,null,null,"General Service - Institutional"]
[null,null,null,null,null,null,null,null,null,null,null,null,null,null,null,null,null,null,null,null,null,null,"Farms – Three Phase energy-billed [F3]"]
[null,null,null,null,null,null,null,null,null,null,null,null,null,null,null,null,null,null,null,null,null,null,"Large Use"]
[null,null,null,null,null,null,null,null,null,null,null,null,null,null,null,null,null,null,null,null,null,null,"Large Use - Regular"]
[null,null,null,null,null,null,null,null,null,null,null,null,null,null,null,null,null,null,null,null,null,null,"Large Use > 5000 kW"]
[null,null,null,null,null,null,null,null,null,null,null,null,null,null,null,null,null,null,null,null,null,null,"Large Use - 3TS"]
[null,null,null,null,null,null,null,null,null,null,null,null,null,null,null,null,null,null,null,null,null,null,"Large Use - Ford Annex"]
[null,null,null,null,null,null,null,null,null,null,null,null,null,null,null,null,null,null,null,null,null,null,"Unmetered Scattered Load"]
[null,null,null,null,null,null,null,null,null,null,null,null,null,null,null,null,null,null,null,null,null,null,"Sentinel Lighting"]
[null,null,null,null,null,null,null,null,null,null,null,null,null,null,null,null,null,null,null,null,null,null,"Street Lighting"]
[null,null,null,null,null,null,null,null,null,null,null,null,null,null,null,null,null,null,null,null,null,null,"Embedded Distributor"]
[null,null,null,null,null,null,null,null,null,null,null,null,null,null,null,null,null,null,null,null,null,null,"Low Voltage Wheeling Charge Rate"]
[null,null,null,null,null,null,null,null,null,null,null,null,null,null,null,null,null,null,null,null,null,null,"Stand-By"]
[null,null,null,null,null,null,null,null,null,null,null,null,null,null,null,null,null,null,null,null,null,null,"Standby Power"]
[null,null,null,null,null,null,null,null,null,null,null,null,null,null,null,null,null,null,null,null,null,null,"Standby Power – INTERIM APPROVAL"]
[null,null,null,null,null,null,null,null,null,null,null,null,null,null,null,null,null,null,null,null,null,null,"Standby Power - APPROVED ON AN INTERIM BASIS"]
[null,null,null,null,null,null,null,null,null,null,null,null,null,null,null,null,null,null,null,null,null,null,"Standby - General Service 50 - 1,000 kW"]
[null,null,null,null,null,null,null,null,null,null,null,null,null,null,null,null,null,null,null,null,null,null,"Standby Power General Service 50 to 1,499 kW"]
[null,null,null,null,null,null,null,null,null,null,null,null,null,null,null,null,null,null,null,null,null,null,"Standby - General Service 1,000 - 5,000 kW"]
[null,null,null,null,null,null,null,null,null,null,null,null,null,null,null,null,null,null,null,null,null,null,"Standby Power General Service 1,500 to 4,999 kW"]
[null,null,null,null,null,null,null,null,null,null,null,null,null,null,null,null,null,null,null,null,null,null,"Standby - Large Use"]
[null,null,null,null,null,null,null,null,null,null,null,null,null,null,null,null,null,null,null,null,null,null,"Standby Power General Service Large Use"]
[null,null,null,null,null,null,null,null,null,null,null,null,null,null,null,null,null,null,null,null,null,null,"Standby Distribution Service"]

{"sheet":"2 1 5 TotalConsumptionData_Dist","index":12,"n_rows":557,"n_cols":20,"rows_kept":557,"cut":false,"hidden":true,"merged":[[0,0,0,3],[1,0,1,3]]}
["2.1.5 TotalConsumptionData_Dist_Ret_Total_Combined_2020_v2 (REVIEW)"]
["Time run: 5/27/2021 3:15:18 PM"]
[""]
["Filing_Year","Company_Name","Rate_Class","Rate_Class_Detail","Company_DetailClass",null,"Ret_Metered_consumption_in_kWhs","Ret_Metered_consumption_in_kWs","Dist_RPPMeterCustkWh","Dist_RPPMeterCustkW","Dist_NonRPPMeterCustkWh","Dist_NonRPPMeterCustkW","IESOMeterCustkWh","IESOMeterCustKW","Class_A_Consumption_kWhs","Class_A_Consumption_kWs","TotConsmptionforDistCustkWh","TotConsmptionforDistCustkW","Calculated_TOTAL_KWH","Calculated_TOTAL_KW"]
["2021","1937680 ONTARIO INC.","GENERAL SERVICE EQUAL TO OR GREATER THAN 50 KW","GENERAL SERVICE 50 TO 4,999 KW","1937680 ONTARIO INC._GENERAL SERVICE 50 TO 4,999 KW SERVICE CLASSIFICATION","1937680 ONTARIO INC._GENERAL SERVICE 50 TO 4,999 KW SERVICE CLASSIFICATION",57388830,133781,50350402,127116,198785078,482951,0,5278,0,0,249135480,615345,306524310,749126]
["2021","1937680 ONTARIO INC.","GENERAL SERVICE LESS THAN 50 KW","GENERAL SERVICE LESS THAN 50 KW","1937680 ONTARIO INC._GENERAL SERVICE LESS THAN 50 KW SERVICE CLASSIFICATION","1937680 ONTARIO INC._GENERAL SERVICE LESS THAN 50 KW SERVICE CLASSIFICATION",14023767,0,87375637,0,118150,0,0,0,0,0,87493787,0,101517554,0]
["2021","1937680 ONTARIO INC.","LARGE USER","LARGE USE","1937680 ONTARIO INC._LARGE USE SERVICE CLASSIFICATION","1937680 ONTARIO INC._LARGE USE SERVICE CLASSIFICATION",30021547,56369,0,0,3874166,8703,0,0,0,0,3874166,8703,33895713,65072]
["2021","1937680 ONTARIO INC.","NO RATE CLASS","NO RATE CLASS","1937680 ONTARIO INC._NO RATE CLASS SERVICE CLASSIFICATION","1937680 ONTARIO INC._NO RATE CLASS SERVICE CLASSIFICATION",0,0,0,0,0,0,0,0,115957904,242416,0,0,0,0]
["2021","1937680 ONTARIO INC.","RESIDENTIAL","RESIDENTIAL","1937680 ONTARIO INC._RESIDENTIAL SERVICE CLASSIFICATION","1937680 ONTARIO INC._RESIDENTIAL SERVICE CLASSIFICATION",4187154,0,299617565,0,0,0,0,0,0,0,299617565,0,303804719,0]
["2021","1937680 ONTARIO INC.","SENTINEL LIGHTING CONNECTIONS","SENTINEL LIGHTING","1937680 ONTARIO INC._SENTINEL LIGHTING SERVICE CLASSIFICATION","1937680 ONTARIO INC._SENTINEL LIGHTING SERVICE CLASSIFICATION",194157,505,336163,895,0,0,0,0,0,0,336163,895,530320,1400]
["2021","1937680 ONTARIO INC.","STREET LIGHTING CONNECTIONS","STREET LIGHTING","1937680 ONTARIO INC._STREET LIGHTING SERVICE CLASSIFICATION","1937680 ONTARIO INC._STREET LIGHTING SERVICE CLASSIFICATION",2377634,6842,0,0,157159,452,0,0,0,0,157159,452,2534793,7294]
["2021","1937680 ONTARIO INC.","UNMETERED SCATTERED LOAD CONNECTIONS","UNMETERED SCATTERED LOAD","1937680 ONTARIO INC._UNMETERED SCATTERED LOAD SERVICE CLASSIFICATION","1937680 ONTARIO INC._UNMETERED SCATTERED LOAD SERVICE CLASSIFICATION",2071178,0,136447,0,0,0,0,0,0,0,136447,0,2207625,0]
["2021","ALECTRA UTILITIES CORPORATION","EMBEDDED DISTRIBUTOR(S)","HYDRO ONE BRAMPTON_EMBEDDED DISTRIBUTOR","ALECTRA UTILITIES CORPORATION_HYDRO ONE BRAMPTON_EMBEDDED DISTRIBUTOR SERVICE CLASSIFICATION","ALECTRA UTILITIES CORPORATION_HYDRO ONE BRAMPTON_EMBEDDED DISTRIBUTOR SERVICE CLASSIFICATION",0,0,0,0,35560789.630000003,0,0,0,0,0,35560789.630000003,0,35560789.630000003,0]
["2021","ALECTRA UTILITIES CORPORATION","GENERAL SERVICE EQUAL TO OR GREATER THAN 50 KW","ENERSOURCE_GENERAL SERVICE 50 TO 499 KW","ALECTRA UTILITIES CORPORATION_ENERSOURCE_GENERAL SERVICE 50 TO 499 KW SERVICE CLASSIFICATION","ALECTRA UTILITIES CORPORATION_ENERSOURCE_GENERAL SERVICE 50 TO 499 KW SERVICE CLASSIFICATION",293763670,833858,267910905.94999999,756345.7,1263634301.8699999,3575739.36,0,0,0,0,1531545207.8199999,4332085.0599999996,1825308877.8199999,5165943.0599999996]
["2021","ALECTRA UTILITIES CORPORATION","GENERAL SERVICE EQUAL TO OR GREATER THAN 50 KW","ENERSOURCE_GENERAL SERVICE 500 TO 4,999 KW","ALECTRA UTILITIES CORPORATION_ENERSOURCE_GENERAL SERVICE 500 TO 4,999 KW SERVICE CLASSIFICATION","ALECTRA UTILITIES CORPORATION_ENERSOURCE_GENERAL SERVICE 500 TO 4,999 KW SERVICE CLASSIFICATION",392027781,883453,144465619.03999999,337786.83,1356863315.76,3079243.18,13813153,26926.890625,0,0,1515142088.1099999,3443956.9,1907169869.1099999,4327409.9000000004]
["2021","ALECTRA UTILITIES CORPORATION","GENERAL SERVICE EQUAL TO OR GREATER THAN 50 KW","GENERAL SERVICE 1,000 TO 4,999 KW - GUELPH HYDRO","ALECTRA UTILITIES CORPORATION_GENERAL SERVICE 1,000 TO 4,999 KW - GUELPH HYDRO SERVICE CLASSIFICATION","ALECTRA UTILITIES CORPORATION_GENERAL SERVICE 1,000 TO 4,999 KW - GUELPH HYDRO SERVICE CLASSIFICATION",20465146,37614,0,0,410071085.95999998,953835.95,38484.0390625,154.74000549316401,0,0,410109570,953990.69,430574716,991604.69]
["2021","ALECTRA UTILITIES CORPORATION","GENERAL SERVICE EQUAL TO OR GREATER THAN 50 KW","GENERAL SERVICE 50 TO 999 KW - GUELPH HYDRO","ALECTRA UTILITIES CORPORATION_GENERAL SERVICE 50 TO 999 KW - GUELPH HYDRO SERVICE CLASSIFICATION","ALECTRA UTILITIES CORPORATION_GENERAL SERVICE 50 TO 999 KW - GUELPH HYDRO SERVICE CLASSIFICATION",60983527,175839,52017282.700000003,141558.79999999999,240540618.80000001,663151.69999999995,5820228.5,12473.4599609375,0,0,298378129.80000001,817183.96,359361656.80000001,993022.96]
["2021","ALECTRA UTILITIES CORPORATION","GENERAL SERVICE EQUAL TO OR GREATER THAN 50 KW","HORIZON_GENERAL SERVICE 50 TO 4,999 KW","ALECTRA UTILITIES CORPORATION_HORIZON_GENERAL SERVICE 50 TO 4,999 KW SERVICE CLASSIFICATION","ALECTRA UTILITIES CORPORATION_HORIZON_GENERAL SERVICE 50 TO 4,999 KW SERVICE CLASSIFICATION",215232054,611688,196062262.40000001,533608.22,1292576211.8,3575714.93,9369961,17309.23046875,0,0,1498008434.72,4126632.38,1713240488.72,4738320.38]
["2021","ALECTRA UTILITIES CORPORATION","GENERAL SERVICE EQUAL TO OR GREATER THAN 50 KW","HYDRO ONE BRAMPTON_ENERGY FROM WASTE","ALECTRA UTILITIES CORPORATION_HYDRO ONE BRAMPTON_ENERGY FROM WASTE SERVICE CLASSIFICATION","ALECTRA UTILITIES CORPORATION_HYDRO ONE BRAMPTON_ENERGY FROM WASTE SERVICE CLASSIFICATION",0,0,0,0,0,0,0,0,0,0,0,0,0,0]
["2021","ALECTRA UTILITIES CORPORATION","GENERAL SERVICE EQUAL TO OR GREATER THAN 50 KW","HYDRO ONE BRAMPTON_GENERAL SERVICE 50 TO 699 KW","ALECTRA UTILITIES CORPORATION_HYDRO ONE BRAMPTON_GENERAL SERVICE 50 TO 699 KW SERVICE CLASSIFICATION","ALECTRA UTILITIES CORPORATION_HYDRO ONE BRAMPTON_GENERAL SERVICE 50 TO 699 KW SERVICE CLASSIFICATION",154134849,432672,134794024.87,386097.94,753476801.60000002,2158225.06,3522828.25,18612.900390625,0,0,891793654.71000004,2562935.9,1045928503.71,2995607.9]
["2021","ALECTRA UTILITIES CORPORATION","GENERAL SERVICE EQUAL TO OR GREATER THAN 50 KW","HYDRO ONE BRAMPTON_GENERAL SERVICE 700 TO 4,999 KW","ALECTRA UTILITIES CORPORATION_HYDRO ONE BRAMPTON_GENERAL SERVICE 700 TO 4,999 KW SERVICE CLASSIFICATION","ALECTRA UTILITIES CORPORATION_HYDRO ONE BRAMPTON_GENERAL SERVICE 700 TO 4,999 KW SERVICE CLASSIFICATION",140189918,363997,3360250.98,8013.68,583665590.13,1391951.87,63728888,111373.078125,0,0,650754727.72000003,1511338.63,790944645.72000003,1875335.63]
["2021","ALECTRA UTILITIES CORPORATION","GENERAL SERVICE EQUAL TO OR GREATER THAN 50 KW","POWERSTREAM_GENERAL SERVICE 50 TO 4,999 KW","ALECTRA UTILITIES CORPORATION_POWERSTREAM_GENERAL SERVICE 50 TO 4,999 KW SERVICE CLASSIFICATION","ALECTRA UTILITIES CORPORATION_POWERSTREAM_GENERAL SERVICE 50 TO 4,999 KW SERVICE CLASSIFICATION",502056911,1455832,331221320.13,912338.95,3539415466.0700002,9502236.6400000006,30900444,76058.2734375,0,0,3901537230.46,10490633.859999999,4403594141.46,11946465.859999999]
["2021","ALECTRA UTILITIES CORPORATION","GENERAL SERVICE LESS THAN 50 KW","ENERSOURCE_GENERAL SERVICE LESS THAN 50 KW","ALECTRA UTILITIES CORPORATION_ENERSOURCE_GENERAL SERVICE LESS THAN 50 KW SERVICE CLASSIFICATION","ALECTRA UTILITIES CORPORATION_ENERSOURCE_GENERAL SERVICE LESS THAN 50 KW SERVICE CLASSIFICATION",87757153,0,537048760.09000003,0,0,0,0,0,0,0,537048760.09000003,0,624805913.09000003,0]
["2021","ALECTRA UTILITIES CORPORATION","GENERAL SERVICE LESS THAN 50 KW","GENERAL SERVICE LESS THAN 50 KW - GUELPH HYDRO","ALECTRA UTILITIES CORPORATION_GENERAL SERVICE LESS THAN 50 KW - GUELPH HYDRO SERVICE CLASSIFICATION","ALECTRA UTILITIES CORPORATION_GENERAL SERVICE LESS THAN 50 KW - GUELPH HYDRO SERVICE CLASSIFICATION",22032319,0,101878547.92,0,0,0,0,0,0,0,101878547.92,0,123910866.92,0]
["2021","ALECTRA UTILITIES CORPORATION","GENERAL SERVICE LESS THAN 50 KW","HORIZON_GENERAL SERVICE LESS THAN 50 KW","ALECTRA UTILITIES CORPORATION_HORIZON_GENERAL SERVICE LESS THAN 50 KW SERVICE CLASSIFICATION","ALECTRA UTILITIES CORPORATION_HORIZON_GENERAL SERVICE LESS THAN 50 KW SERVICE CLASSIFICATION",86252018,0,452844458.62,0,1708489.09,0,0,0,0,0,454552947.70999998,0,540804965.71000004,0]
["2021","ALECTRA UTILITIES CORPORATION","GENERAL SERVICE LESS THAN 50 KW","HYDRO ONE BRAMPTON_DISTRIBUTED GENERATION - DGEN","ALECTRA UTILITIES CORPORATION_HYDRO ONE BRAMPTON_DISTRIBUTED GENERATION - DGEN SERVICE CLASSIFICATION","ALECTRA UTILITIES CORPORATION_HYDRO ONE BRAMPTON_DISTRIBUTED GENERATION - DGEN SERVICE CLASSIFICATION",0,0,0,0,299139.34999999998,0,0,0,0,0,299139.34999999998,0,299139.34999999998,0]
["2021","ALECTRA UTILITIES CORPORATION","GENERAL SERVICE LESS THAN 50 KW","HYDRO ONE BRAMPTON_GENERAL SERVICE LESS THAN 50 KW","ALECTRA UTILITIES CORPORATION_HYDRO ONE BRAMPTON_GENERAL SERVICE LESS THAN 50 KW SERVICE CLASSIFICATION","ALECTRA UTILITIES CORPORATION_HYDRO ONE BRAMPTON_GENERAL SERVICE LESS THAN 50 KW SERVICE CLASSIFICATION",56131241,0,265146833.72,0,0,0,0,0,0,0,265146833.72,0,321278074.72000003,0]
["2021","ALECTRA UTILITIES CORPORATION","GENERAL SERVICE LESS THAN 50 KW","POWERSTREAM_GENERAL SERVICE LESS THAN 50 KW","ALECTRA UTILITIES CORPORATION_POWERSTREAM_GENERAL SERVICE LESS THAN 50 KW SERVICE CLASSIFICATION","ALECTRA UTILITIES CORPORATION_POWERSTREAM_GENERAL SERVICE LESS THAN 50 KW SERVICE CLASSIFICATION",120355879,0,824515459.42999995,0,4495962.82,0,0,0,0,0,829011422.25,0,949367301.25,0]
["2021","ALECTRA UTILITIES CORPORATION","LARGE USER","ENERSOURCE_LARGE USE","ALECTRA UTILITIES CORPORATION_ENERSOURCE_LARGE USE SERVICE CLASSIFICATION","ALECTRA UTILITIES CORPORATION_ENERSOURCE_LARGE USE SERVICE CLASSIFICATION",139200955,254151,0,0,825229633.63,1418844.52,0,0,0,0,825229633.63,1418844.52,964430588.63,1672995.52]
["2021","ALECTRA UTILITIES CORPORATION","LARGE USER","HORIZON_LARGE USE","ALECTRA UTILITIES CORPORATION_HORIZON_LARGE USE SERVICE CLASSIFICATION","ALECTRA UTILITIES CORPORATION_HORIZON_LARGE USE SERVICE CLASSIFICATION",29298174,70465,0,0,158534626.38999999,262106.16,0,0,0,0,158534626.38999999,262106.16,187832800.38999999,332571.15999999997]
["2021","ALECTRA UTILITIES CORPORATION","LARGE USER","HORIZON_LARGE USE WITH DEDICATED ASSETS","ALECTRA UTILITIES CORPORATION_HORIZON_LARGE USE WITH DEDICATED ASSETS SERVICE CLASSIFICATION","ALECTRA UTILITIES CORPORATION_HORIZON_LARGE USE WITH DEDICATED ASSETS SERVICE CLASSIFICATION",0,0,0,0,291341686.16000003,650244.19999999995,699813376,1132057,0,0,991155088.16999996,1782301.19,991155088.16999996,1782301.19]
["2021","ALECTRA UTILITIES CORPORATION","LARGE USER","HYDRO ONE BRAMPTON_LARGE USE","ALECTRA UTILITIES CORPORATION_HYDRO ONE BRAMPTON_LARGE USE SERVICE CLASSIFICATION","ALECTRA UTILITIES CORPORATION_HYDRO ONE BRAMPTON_LARGE USE SERVICE CLASSIFICATION",34031248,60576,0,0,296938521.37,561282.92000000004,0,0,0,0,296938521.37,561282.92000000004,330969769.37,621858.92000000004]
["2021","ALECTRA UTILITIES CORPORATION","LARGE USER","LARGE USE - GUELPH HYDRO","ALECTRA UTILITIES CORPORATION_LARGE USE - GUELPH HYDRO SERVICE CLASSIFICATION","ALECTRA UTILITIES CORPORATION_LARGE USE - GUELPH HYDRO SERVICE CLASSIFICATION",0,0,0,0,215971623.96000001,449799.15,0,0,0,0,215971623.96000001,449799.15,215971623.96000001,449799.15]
["2021","ALECTRA UTILITIES CORPORATION","LARGE USER","POWERSTREAM_LARGE USE","ALECTRA UTILITIES CORPORATION_POWERSTREAM_LARGE USE SERVICE CLASSIFICATION","ALECTRA UTILITIES CORPORATION_POWERSTREAM_LARGE USE SERVICE CLASSIFICATION",0,0,0,0,71050346.569999993,122613.72,0,0,0,0,71050346.569999993,122613.72,71050346.569999993,122613.72]
["2021","ALECTRA UTILITIES CORPORATION","NO RATE CLASS","NO RATE CLASS","ALECTRA UTILITIES CORPORATION_NO RATE CLASS SERVICE CLASSIFICATION","ALECTRA UTILITIES CORPORATION_NO RATE CLASS SERVICE CLASSIFICATION",0,0,0,0,0,0,0,0,5946341376,12262885,0,0,0,0]
["2021","ALECTRA UTILITIES CORPORATION","RESIDENTIAL","ENERSOURCE_RESIDENTIAL","ALECTRA UTILITIES CORPORATION_ENERSOURCE_RESIDENTIAL SERVICE CLASSIFICATION","ALECTRA UTILITIES CORPORATION_ENERSOURCE_RESIDENTIAL SERVICE CLASSIFICATION",31288955,0,1548581401.29,0,0,0,0,0,0,0,1548581401.29,0,1579870356.29,0]
["2021","ALECTRA UTILITIES CORPORATION","RESIDENTIAL","HORIZON_RESIDENTIAL","ALECTRA UTILITIES CORPORATION_HORIZON_RESIDENTIAL SERVICE CLASSIFICATION","ALECTRA UTILITIES CORPORATION_HORIZON_RESIDENTIAL SERVICE CLASSIFICATION",39327078,0,1709513536.5699999,0,0,0,0,0,0,0,1709513536.5699999,0,1748840614.5699999,0]
["2021","ALECTRA UTILITIES CORPORATION","RESIDENTIAL","HYDRO ONE BRAMPTON_RESIDENTIAL","ALECTRA UTILITIES CORPORATION_HYDRO ONE BRAMPTON_RESIDENTIAL SERVICE CLASSIFICATION","ALECTRA UTILITIES CORPORATION_HYDRO ONE BRAMPTON_RESIDENTIAL SERVICE CLASSIFICATION",35344797,0,1468144661.0699999,0,0,0,0,0,0,0,1468144661.0699999,0,1503489458.0699999,0]
["2021","ALECTRA UTILITIES CORPORATION","RESIDENTIAL","POWERSTREAM_RESIDENTIAL","ALECTRA UTILITIES CORPORATION_POWERSTREAM_RESIDENTIAL SERVICE CLASSIFICATION","ALECTRA UTILITIES CORPORATION_POWERSTREAM_RESIDENTIAL SERVICE CLASSIFICATION",54748346,0,2936278909.5300002,0,0,0,0,0,0,0,2936278909.5300002,0,2991027255.5300002,0]
["2021","ALECTRA UTILITIES CORPORATION","RESIDENTIAL","RESIDENTIAL - GUELPH HYDRO","ALECTRA UTILITIES CORPORATION_RESIDENTIAL - GUELPH HYDRO SERVICE CLASSIFICATION","ALECTRA UTILITIES CORPORATION_RESIDENTIAL - GUELPH HYDRO SERVICE CLASSIFICATION",7693533,0,393587103.81999999,0,0,0,0,0,0,0,393587103.81999999,0,401280636.81999999,0]
["2021","ALECTRA UTILITIES CORPORATION","SENTINEL LIGHTING CONNECTIONS","HORIZON_SENTINEL LIGHTING","ALECTRA UTILITIES CORPORATION_HORIZON_SENTINEL LIGHTING SERVICE CLASSIFICATION","ALECTRA UTILITIES CORPORATION_HORIZON_SENTINEL LIGHTING SERVICE CLASSIFICATION",4573,11,334151.73,838.39,66340.070000000007,166.45,0,0,0,0,400491.8,1004.84,405064.8,1015.84]
["2021","ALECTRA UTILITIES CORPORATION","SENTINEL LIGHTING CONNECTIONS","POWERSTREAM_SENTINEL LIGHTING","ALECTRA UTILITIES CORPORATION_POWERSTREAM_SENTINEL LIGHTING SERVICE CLASSIFICATION","ALECTRA UTILITIES CORPORATION_POWERSTREAM_SENTINEL LIGHTING SERVICE CLASSIFICATION",8502,11,239019.8,688.3,20985.49,27.97,0,0,0,0,260005.29,716.27,268507.28999999998,727.27]
["2021","ALECTRA UTILITIES CORPORATION","SENTINEL LIGHTING CONNECTIONS","SENTINEL LIGHTING - GUELPH HYDRO","ALECTRA UTILITIES CORPORATION_SENTINEL LIGHTING - GUELPH HYDRO SERVICE CLASSIFICATION","ALECTRA UTILITIES CORPORATION_SENTINEL LIGHTING - GUELPH HYDRO SERVICE CLASSIFICATION",0,0,18007.099999999999,50.25,0,0,0,0,0,0,18007.099999999999,50.25,18007.099999999999,50.25]
["2021","ALECTRA UTILITIES CORPORATION","STREET LIGHTING CONNECTIONS","ENERSOURCE_STREET LIGHTING","ALECTRA UTILITIES CORPORATION_ENERSOURCE_STREET LIGHTING SERVICE CLASSIFICATION","ALECTRA UTILITIES CORPORATION_ENERSOURCE_STREET LIGHTING SERVICE CLASSIFICATION",0,0,0,0,13842866.6,38254.29,0,0,0,0,13842866.6,38254.29,13842866.6,38254.29]
["2021","ALECTRA UTILITIES CORPORATION","STREET LIGHTING CONNECTIONS","HORIZON_STREET LIGHTING","ALECTRA UTILITIES CORPORATION_HORIZON_STREET LIGHTING SERVICE CLASSIFICATION","ALECTRA UTILITIES CORPORATION_HORIZON_STREET LIGHTING SERVICE CLASSIFICATION",0,0,226280.95999999999,638.91,16670620.75,47069.58,0,0,0,0,16896901.710000001,47708.49,16896901.710000001,47708.49]
["2021","ALECTRA UTILITIES CORPORATION","STREET LIGHTING CONNECTIONS","HYDRO ONE BRAMPTON_STREET LIGHTING","ALECTRA UTILITIES CORPORATION_HYDRO ONE BRAMPTON_STREET LIGHTING SERVICE CLASSIFICATION","ALECTRA UTILITIES CORPORATION_HYDRO ONE BRAMPTON_STREET LIGHTING SERVICE CLASSIFICATION",0,0,0,0,24263115.059999999,68623.87,0,0,0,0,24263115.059999999,68623.87,24263115.059999999,68623.87]
["2021","ALECTRA UTILITIES CORPORATION","STREET LIGHTING CONNECTIONS","POWERSTREAM_STREET LIGHTING","ALECTRA UTILITIES CORPORATION_POWERSTREAM_STREET LIGHTING SERVICE CLASSIFICATION","ALECTRA UTILITIES CORPORATION_POWERSTREAM_STREET LIGHTING SERVICE CLASSIFICATION",327537,889,633105.42000000004,1792.71,47003218.899999999,130244.95,0,0,0,0,47636324.32,132037.66,47963861.32,132926.66]
["2021","ALECTRA UTILITIES CORPORATION","STREET LIGHTING CONNECTIONS","STREET LIGHTING - GUELPH HYDRO","ALECTRA UTILITIES CORPORATION_STREET LIGHTING - GUELPH HYDRO SERVICE CLASSIFICATION","ALECTRA UTILITIES CORPORATION_STREET LIGHTING - GUELPH HYDRO SERVICE CLASSIFICATION",169796,462,0,0,4800520.99,13113.88,0,0,0,0,4800520.99,13113.88,4970316.99,13575.88]
["2021","ALECTRA UTILITIES CORPORATION","UNMETERED SCATTERED LOAD CONNECTIONS","ENERSOURCE_UNMETERED SCATTERED LOAD","ALECTRA UTILITIES CORPORATION_ENERSOURCE_UNMETERED SCATTERED LOAD SERVICE CLASSIFICATION","ALECTRA UTILITIES CORPORATION_ENERSOURCE_UNMETERED SCATTERED LOAD SERVICE CLASSIFICATION",466752,0,10834601.039999999,0,0,0,0,0,0,0,10834601.039999999,0,11301353.039999999,0]
["2021","ALECTRA UTILITIES CORPORATION","UNMETERED SCATTERED LOAD CONNECTIONS","HORIZON_UNMETERED SCATTERED LOAD","ALECTRA UTILITIES CORPORATION_HORIZON_UNMETERED SCATTERED LOAD SERVICE CLASSIFICATION","ALECTRA UTILITIES CORPORATION_HORIZON_UNMETERED SCATTERED LOAD SERVICE CLASSIFICATION",1386242,0,9809496.8699999992,0,0,0,0,0,0,0,9809496.8699999992,0,11195738.869999999,0]
["2021","ALECTRA UTILITIES CORPORATION","UNMETERED SCATTERED LOAD CONNECTIONS","HYDRO ONE BRAMPTON_UNMETERED SCATTERED LOAD","ALECTRA UTILITIES CORPORATION_HYDRO ONE BRAMPTON_UNMETERED SCATTERED LOAD SERVICE CLASSIFICATION","ALECTRA UTILITIES CORPORATION_HYDRO ONE BRAMPTON_UNMETERED SCATTERED LOAD SERVICE CLASSIFICATION",464219,0,5625101.3499999996,0,0,0,0,0,0,0,5625101.3499999996,0,6089320.3499999996,0]
["2021","ALECTRA UTILITIES CORPORATION","UNMETERED SCATTERED LOAD CONNECTIONS","POWERSTREAM_UNMETERED SCATTERED LOAD","ALECTRA UTILITIES CORPORATION_POWERSTREAM_UNMETERED SCATTERED LOAD SERVICE CLASSIFICATION","ALECTRA UTILITIES CORPORATION_POWERSTREAM_UNMETERED SCATTERED LOAD SERVICE CLASSIFICATION",223030,0,13737611.4,0,0,0,0,0,0,0,13737611.4,0,13960641.4,0]
["2021","ALECTRA UTILITIES CORPORATION","UNMETERED SCATTERED LOAD CONNECTIONS","UNMETERED SCATTERED LOAD - GUELPH HYDRO","ALECTRA UTILITIES CORPORATION_UNMETERED SCATTERED LOAD - GUELPH HYDRO SERVICE CLASSIFICATION","ALECTRA UTILITIES CORPORATION_UNMETERED SCATTERED LOAD - GUELPH HYDRO SERVICE CLASSIFICATION",376530,0,1517362.19,0,0,0,0,0,0,0,1517362.19,0,1893892.19,0]
["2021","ALGOMA POWER INC.","GENERAL SERVICE EQUAL TO OR GREATER THAN 50 KW","RESIDENTIAL - R2","ALGOMA POWER INC._RESIDENTIAL - R2 SERVICE CLASSIFICATION","ALGOMA POWER INC._RESIDENTIAL - R2 SERVICE CLASSIFICATION",3762926.89,9840,3842564.95,13674.34,95791433.469999999,209382.23,0,0,0,0,99633998.420000002,223056.57,103396925.31,232896.94]
["2021","ALGOMA POWER INC.","NO RATE CLASS","NO RATE CLASS","ALGOMA POWER INC._NO RATE CLASS SERVICE CLASSIFICATION","ALGOMA POWER INC._NO RATE CLASS SERVICE CLASSIFICATION",0,0,0,0,0,0,0,0,78703752,147690.21875,0,0,0,0]
["2021","ALGOMA POWER INC.","RESIDENTIAL","RESIDENTIAL - R1","ALGOMA POWER INC._RESIDENTIAL - R1 SERVICE CLASSIFICATION","ALGOMA POWER INC._RESIDENTIAL - R1 SERVICE CLASSIFICATION",3398941.09,0,115222508.58,0,0,0,0,0,0,0,115222508.58,0,118621449.67,0]
["2021","ALGOMA POWER INC.","RESIDENTIAL","RESIDENTIAL - SEASONAL","ALGOMA POWER INC._RESIDENTIAL - SEASONAL SERVICE CLASSIFICATION","ALGOMA POWER INC._RESIDENTIAL - SEASONAL SERVICE CLASSIFICATION",25769.97,0,6503492.79,0,0,0,0,0,0,0,6503492.79,0,6529262.7599999998,0]
["2021","ALGOMA POWER INC.","STREET LIGHTING CONNECTIONS","STREET LIGHTING","ALGOMA POWER INC._STREET LIGHTING SERVICE CLASSIFICATION","ALGOMA POWER INC._STREET LIGHTING SERVICE CLASSIFICATION",126759.1,0,0,0,465823,1643,0,0,0,0,465823,1643,592582.1,1643]
["2021","ATIKOKAN HYDRO INC.","GENERAL SERVICE EQUAL TO OR GREATER THAN 50 KW","GENERAL SERVICE 50 TO 4,999 KW","ATIKOKAN HYDRO INC._GENERAL SERVICE 50 TO 4,999 KW SERVICE CLASSIFICATION","ATIKOKAN HYDRO INC._GENERAL SERVICE 50 TO 4,999 KW SERVICE CLASSIFICATION",1000160,2121,0,0,15578203.1,45048.480000000003,0,0,0,0,15578203.1,45048.480000000003,16578363.1,47169.919999999998]
["2021","ATIKOKAN HYDRO INC.","GENERAL SERVICE LESS THAN 50 KW","GENERAL SERVICE LESS THAN 50 KW","ATIKOKAN HYDRO INC._GENERAL SERVICE LESS THAN 50 KW SERVICE CLASSIFICATION","ATIKOKAN HYDRO INC._GENERAL SERVICE LESS THAN 50 KW SERVICE CLASSIFICATION",66150.929999999993,0,4185355.38,0,0,0,0,0,0,0,4185355.38,0,4251506.3099999996,0]
["2021","ATIKOKAN HYDRO INC.","NO RATE CLASS","NO RATE CLASS","ATIKOKAN HYDRO INC._NO RATE CLASS SERVICE CLASSIFICATION","ATIKOKAN HYDRO INC._NO RATE CLASS SERVICE CLASSIFICATION",0,0,0,0,0,0,0,0,11196734,35416.671875,0,0,0,0]
["2021","ATIKOKAN HYDRO INC.","RESIDENTIAL","RESIDENTIAL","ATIKOKAN HYDRO INC._RESIDENTIAL SERVICE CLASSIFICATION","ATIKOKAN HYDRO INC._RESIDENTIAL SERVICE CLASSIFICATION",21682,0,9240627.0999999996,0,0,0,0,0,0,0,9240627.0999999996,0,9262309.0999999996,0]
["2021","ATIKOKAN HYDRO INC.","STREET LIGHTING CONNECTIONS","STREET LIGHTING","ATIKOKAN HYDRO INC._STREET LIGHTING SERVICE CLASSIFICATION","ATIKOKAN HYDRO INC._STREET LIGHTING SERVICE CLASSIFICATION",0,0,0,0,405749.4,1253.28,0,0,0,0,405749.4,1253.28,405749.4,1253.28]
["2021","BLUEWATER POWER DISTRIBUTION CORPORATION","GENERAL SERVICE EQUAL TO OR GREATER THAN 50 KW","GENERAL SERVICE 1,000 TO 4,999 KW","BLUEWATER POWER DISTRIBUTION CORPORATION_GENERAL SERVICE 1,000 TO 4,999 KW SERVICE CLASSIFICATION","BLUEWATER POWER DISTRIBUTION CORPORATION_GENERAL SERVICE 1,000 TO 4,999 KW SERVICE CLASSIFICATION",0,0,0,0,121864255,241408,0,0,0,0,121864255,241408,121864255,241408]
["2021","BLUEWATER POWER DISTRIBUTION CORPORATION","GENERAL SERVICE EQUAL TO OR GREATER THAN 50 KW","GENERAL SERVICE 50 TO 999 KW","BLUEWATER POWER DISTRIBUTION CORPORATION_GENERAL SERVICE 50 TO 999 KW SERVICE CLASSIFICATION","BLUEWATER POWER DISTRIBUTION CORPORATION_GENERAL SERVICE 50 TO 999 KW SERVICE CLASSIFICATION",30758558,98535,41602010,121280,106149086,283809,4083594,7776,0,0,151834690,412865,182593248,511400]
["2021","BLUEWATER POWER DISTRIBUTION CORPORATION","GENERAL SERVICE LESS THAN 50 KW","GENERAL SERVICE LESS THAN 50 KW","BLUEWATER POWER DISTRIBUTION CORPORATION_GENERAL SERVICE LESS THAN 50 KW SERVICE CLASSIFICATION","BLUEWATER POWER DISTRIBUTION CORPORATION_GENERAL SERVICE LESS THAN 50 KW SERVICE CLASSIFICATION",15994136,0,78737963,0,88451,0,0,0,0,0,78826414,0,94820550,0]
["2021","BLUEWATER POWER DISTRIBUTION CORPORATION","LARGE USER","LARGE USE","BLUEWATER POWER DISTRIBUTION CORPORATION_LARGE USE SERVICE CLASSIFICATION","BLUEWATER POWER DISTRIBUTION CORPORATION_LARGE USE SERVICE CLASSIFICATION",0,0,0,0,175067525,283327,106137320,178166,0,0,281204845,461493,281204845,461493]
["2021","BLUEWATER POWER DISTRIBUTION CORPORATION","NO RATE CLASS","NO RATE CLASS","BLUEWATER POWER DISTRIBUTION CORPORATION_NO RATE CLASS SERVICE CLASSIFICATION","BLUEWATER POWER DISTRIBUTION CORPORATION_NO RATE CLASS SERVICE CLASSIFICATION",0,0,0,0,0,0,0,0,299485024,530547,0,0,0,0]
["2021","BLUEWATER POWER DISTRIBUTION CORPORATION","RESIDENTIAL","RESIDENTIAL","BLUEWATER POWER DISTRIBUTION CORPORATION_RESIDENTIAL SERVICE CLASSIFICATION","BLUEWATER POWER DISTRIBUTION CORPORATION_RESIDENTIAL SERVICE CLASSIFICATION",6585604,0,263752998,0,0,0,0,0,0,0,263752998,0,270338602,0]
["2021","BLUEWATER POWER DISTRIBUTION CORPORATION","SENTINEL LIGHTING CONNECTIONS","SENTINEL LIGHTING","BLUEWATER POWER DISTRIBUTION CORPORATION_SENTINEL LIGHTING SERVICE CLASSIFICATION","BLUEWATER POWER DISTRIBUTION CORPORATION_SENTINEL LIGHTING SERVICE CLASSIFICATION",31731,87,407376,1109,0,0,0,0,0,0,407376,1109,439107,1196]
["2021","BLUEWATER POWER DISTRIBUTION CORPORATION","STREET LIGHTING CONNECTIONS","STREET LIGHTING","BLUEWATER POWER DISTRIBUTION CORPORATION_STREET LIGHTING SERVICE CLASSIFICATION","BLUEWATER POWER DISTRIBUTION CORPORATION_STREET LIGHTING SERVICE CLASSIFICATION",0,0,0,0,3449208,9569,0,0,0,0,3449208,9569,3449208,9569]
["2021","BLUEWATER POWER DISTRIBUTION CORPORATION","UNMETERED SCATTERED LOAD CONNECTIONS","UNMETERED SCATTERED LOAD","BLUEWATER POWER DISTRIBUTION CORPORATION_UNMETERED SCATTERED LOAD SERVICE CLASSIFICATION","BLUEWATER POWER DISTRIBUTION CORPORATION_UNMETERED SCATTERED LOAD SERVICE CLASSIFICATION",331566,0,1877549,0,0,0,0,0,0,0,1877549,0,2209115,0]
["2021","BRANTFORD POWER INC.","EMBEDDED DISTRIBUTOR(S)","EMBEDDED DISTRIBUTOR","BRANTFORD POWER INC._EMBEDDED DISTRIBUTOR SERVICE CLASSIFICATION","BRANTFORD POWER INC._EMBEDDED DISTRIBUTOR SERVICE CLASSIFICATION",0,0,0,0,0,0,43029560,100586.921875,0,0,43029561.789999999,100586.92,43029561.789999999,100586.92]
["2021","BRANTFORD POWER INC.","GENERAL SERVICE EQUAL TO OR GREATER THAN 50 KW","GENERAL SERVICE 50 TO 4,999 KW","BRANTFORD POWER INC._GENERAL SERVICE 50 TO 4,999 KW SERVICE CLASSIFICATION","BRANTFORD POWER INC._GENERAL SERVICE 50 TO 4,999 KW SERVICE CLASSIFICATION",70949050.519999996,223306,29101030.510000002,77246.289999999994,421437015.80000001,1127584.3999999999,6029967.5,11674.009765625,0,0,456568013.88999999,1216504.7,527517064.41000003,1439810.73]
["2021","BRANTFORD POWER INC.","GENERAL SERVICE LESS THAN 50 KW","GENERAL SERVICE LESS THAN 50 KW","BRANTFORD POWER INC._GENERAL SERVICE LESS THAN 50 KW SERVICE CLASSIFICATION","BRANTFORD POWER INC._GENERAL SERVICE LESS THAN 50 KW SERVICE CLASSIFICATION",14270845.27,0,72422683.329999998,0,533805.34,0,0,0,0,0,72956488.670000002,0,87227333.939999998,0]
["2021","BRANTFORD POWER INC.","NO RATE CLASS","NO RATE CLASS","BRANTFORD POWER INC._NO RATE CLASS SERVICE CLASSIFICATION","BRANTFORD POWER INC._NO RATE CLASS SERVICE CLASSIFICATION",0,0,0,0,0,0,0,0,208309024,424940,0,0,0,0]
["2021","BRANTFORD POWER INC.","RESIDENTIAL","RESIDENTIAL","BRANTFORD POWER INC._RESIDENTIAL SERVICE CLASSIFICATION","BRANTFORD POWER INC._RESIDENTIAL SERVICE CLASSIFICATION",7786314.8399999999,0,307987822.79000002,0,0,0,0,0,0,0,307987822.79000002,0,315774137.63,0]
["2021","BRANTFORD POWER INC.","SENTINEL LIGHTING CONNECTIONS","SENTINEL LIGHTING","BRANTFORD POWER INC._SENTINEL LIGHTING SERVICE CLASSIFICATION","BRANTFORD POWER INC._SENTINEL LIGHTING SERVICE CLASSIFICATION",5959.86,0,181778.87,554.29,0,0,0,0,0,0,181778.87,554.29,187738.73,554.29]
["2021","BRANTFORD POWER INC.","STREET LIGHTING CONNECTIONS","STREET LIGHTING","BRANTFORD POWER INC._STREET LIGHTING SERVICE CLASSIFICATION","BRANTFORD POWER INC._STREET LIGHTING SERVICE CLASSIFICATION",0,0,0,0,6961906.8399999999,21543.26,0,0,0,0,6961906.8399999999,21543.26,6961906.8399999999,21543.26]
["2021","BRANTFORD POWER INC.","UNMETERED SCATTERED LOAD CONNECTIONS","UNMETERED SCATTERED LOAD","BRANTFORD POWER INC._UNMETERED SCATTERED LOAD SERVICE CLASSIFICATION","BRANTFORD POWER INC._UNMETERED SCATTERED LOAD SERVICE CLASSIFICATION",0,0,1510015.92,0,0,0,0,0,0,0,1510015.92,0,1510015.92,0]
["2021","BURLINGTON HYDRO INC.","GENERAL SERVICE EQUAL TO OR GREATER THAN 50 KW","GENERAL SERVICE 50 TO 4,999 KW","BURLINGTON HYDRO INC._GENERAL SERVICE 50 TO 4,999 KW SERVICE CLASSIFICATION","BURLINGTON HYDRO INC._GENERAL SERVICE 50 TO 4,999 KW SERVICE CLASSIFICATION",96733417,299098,122091054,334922,568808477,1549197,0,0,0,0,690899531,1884119,787632948,2183217]
["2021","BURLINGTON HYDRO INC.","GENERAL SERVICE LESS THAN 50 KW","GENERAL SERVICE LESS THAN 50 KW","BURLINGTON HYDRO INC._GENERAL SERVICE LESS THAN 50 KW SERVICE CLASSIFICATION","BURLINGTON HYDRO INC._GENERAL SERVICE LESS THAN 50 KW SERVICE CLASSIFICATION",21303728,0,131855332,0,163513,0,0,0,0,0,132018845,0,153322573,0]
["2021","BURLINGTON HYDRO INC.","NO RATE CLASS","NO RATE CLASS","BURLINGTON HYDRO INC._NO RATE CLASS SERVICE CLASSIFICATION","BURLINGTON HYDRO INC._NO RATE CLASS SERVICE CLASSIFICATION",0,0,0,0,0,0,0,0,188143328,482407,0,0,0,0]
["2021","BURLINGTON HYDRO INC.","RESIDENTIAL","RESIDENTIAL","BURLINGTON HYDRO INC._RESIDENTIAL SERVICE CLASSIFICATION","BURLINGTON HYDRO INC._RESIDENTIAL SERVICE CLASSIFICATION",6287703,0,548998927,0,0,0,0,0,0,0,548998927,0,555286630,0]
["2021","BURLINGTON HYDRO INC.","STREET LIGHTING CONNECTIONS","STREET LIGHTING","BURLINGTON HYDRO INC._STREET LIGHTING SERVICE CLASSIFICATION","BURLINGTON HYDRO INC._STREET LIGHTING SERVICE CLASSIFICATION",0,0,47125,131,5362712,15328,0,0,0,0,5409837,15459,5409837,15459]
["2021","BURLINGTON HYDRO INC.","UNMETERED SCATTERED LOAD CONNECTIONS","UNMETERED SCATTERED LOAD","BURLINGTON HYDRO INC._UNMETERED SCATTERED LOAD SERVICE CLASSIFICATION","BURLINGTON HYDRO INC._UNMETERED SCATTERED LOAD SERVICE CLASSIFICATION",0,0,3140725,0,0,0,0,0,0,0,3140725,0,3140725,0]
["2021","CANADIAN NIAGARA POWER INC.","EMBEDDED DISTRIBUTOR(S)","EMBEDDED DISTRIBUTOR","CANADIAN NIAGARA POWER INC._EMBEDDED DISTRIBUTOR SERVICE CLASSIFICATION","CANADIAN NIAGARA POWER INC._EMBEDDED DISTRIBUTOR SERVICE CLASSIFICATION",0,0,0,0,5321960,14339.56,0,0,0,0,5321960,14339.56,5321960,14339.56]
["2021","CANADIAN NIAGARA POWER INC.","GENERAL SERVICE EQUAL TO OR GREATER THAN 50 KW","GENERAL SERVICE 50 TO 4,999 KW","CANADIAN NIAGARA POWER INC._GENERAL SERVICE 50 TO 4,999 KW SERVICE CLASSIFICATION","CANADIAN NIAGARA POWER INC._GENERAL SERVICE 50 TO 4,999 KW SERVICE CLASSIFICATION",8198175.2400000002,31042,16495603.33,48553.38,144936988.38999999,447888.45,0,0,0,0,161432591.72,496441.83,169630766.96000001,527483.82999999996]
["2021","CANADIAN NIAGARA POWER INC.","GENERAL SERVICE LESS THAN 50 KW","GENERAL SERVICE LESS THAN 50 KW","CANADIAN NIAGARA POWER INC._GENERAL SERVICE LESS THAN 50 KW SERVICE CLASSIFICATION","CANADIAN NIAGARA POWER INC._GENERAL SERVICE LESS THAN 50 KW SERVICE CLASSIFICATION",9768968.4800000004,0,53450153.189999998,0,0,0,0,0,0,0,53450153.189999998,0,63219121.670000002,0]
["2021","CANADIAN NIAGARA POWER INC.","NO RATE CLASS","NO RATE CLASS","CANADIAN NIAGARA POWER INC._NO RATE CLASS SERVICE CLASSIFICATION","CANADIAN NIAGARA POWER INC._NO RATE CLASS SERVICE CLASSIFICATION",0,0,0,0,0,0,0,0,69967992,229622.34375,0,0,0,0]
["2021","CANADIAN NIAGARA POWER INC.","RESIDENTIAL","RESIDENTIAL","CANADIAN NIAGARA POWER INC._RESIDENTIAL SERVICE CLASSIFICATION","CANADIAN NIAGARA POWER INC._RESIDENTIAL SERVICE CLASSIFICATION",4306687.5,0,215893532.16,0,0,0,0,0,0,0,215893532.16,0,220200219.66,0]
["2021","CANADIAN NIAGARA POWER INC.","SENTINEL LIGHTING CONNECTIONS","SENTINEL LIGHTING","CANADIAN NIAGARA POWER INC._SENTINEL LIGHTING SERVICE CLASSIFICATION","CANADIAN NIAGARA POWER INC._SENTINEL LIGHTING SERVICE CLASSIFICATION",395.44,1,525519.34,1721.61,0,0,0,0,0,0,525519.34,1721.61,525914.78,1722.91]
["2021","CANADIAN NIAGARA POWER INC.","STREET LIGHTING CONNECTIONS","STREET LIGHTING","CANADIAN NIAGARA POWER INC._STREET LIGHTING SERVICE CLASSIFICATION","CANADIAN NIAGARA POWER INC._STREET LIGHTING SERVICE CLASSIFICATION",0,0,79299.53,261.47000000000003,1346544.79,4087.02,0,0,0,0,1425844.32,4348.49,1425844.32,4348.49]
["2021","CANADIAN NIAGARA POWER INC.","UNMETERED SCATTERED LOAD CONNECTIONS","UNMETERED SCATTERED LOAD","CANADIAN NIAGARA POWER INC._UNMETERED SCATTERED LOAD SERVICE CLASSIFICATION","CANADIAN NIAGARA POWER INC._UNMETERED SCATTERED LOAD SERVICE CLASSIFICATION",885451.26,0,422198.32,0,0,0,0,0,0,0,422198.32,0,1307649.58,0]
["2021","CENTRE WELLINGTON HYDRO LTD.","GENERAL SERVICE EQUAL TO OR GREATER THAN 50 KW","GENERAL SERVICE 3,000 TO 4,999 KW","CENTRE WELLINGTON HYDRO LTD._GENERAL SERVICE 3,000 TO 4,999 KW SERVICE CLASSIFICATION","CENTRE WELLINGTON HYDRO LTD._GENERAL SERVICE 3,000 TO 4,999 KW SERVICE CLASSIFICATION",0,0,0,0,14539030.800000001,38002.36,0,0,0,0,14539030.800000001,38002.36,14539030.800000001,38002.36]
["2021","CENTRE WELLINGTON HYDRO LTD.","GENERAL SERVICE EQUAL TO OR GREATER THAN 50 KW","GENERAL SERVICE 50 TO 2,999 KW","CENTRE WELLINGTON HYDRO LTD._GENERAL SERVICE 50 TO 2,999 KW SERVICE CLASSIFICATION","CENTRE WELLINGTON HYDRO LTD._GENERAL SERVICE 50 TO 2,999 KW SERVICE CLASSIFICATION",9851545,28201,1451155,4386.3,39154301.090000004,105887.93,2742231.75,5245.35009765625,0,0,43347687.909999996,115519.58,53199232.909999996,143721.22]
["2021","CENTRE WELLINGTON HYDRO LTD.","GENERAL SERVICE LESS THAN 50 KW","GENERAL SERVICE LESS THAN 50 KW","CENTRE WELLINGTON HYDRO LTD._GENERAL SERVICE LESS THAN 50 KW SERVICE CLASSIFICATION","CENTRE WELLINGTON HYDRO LTD._GENERAL SERVICE LESS THAN 50 KW SERVICE CLASSIFICATION",4866493,0,18353746,0,19842,0,0,0,0,0,18373588,0,23240081,0]
["2021","CENTRE WELLINGTON HYDRO LTD.","NO RATE CLASS","NO RATE CLASS","CENTRE WELLINGTON HYDRO LTD._NO RATE CLASS SERVICE CLASSIFICATION","CENTRE WELLINGTON HYDRO LTD._NO RATE CLASS SERVICE CLASSIFICATION",0,0,0,0,0,0,0,0,18333712,47599.30078125,0,0,0,0]
["2021","CENTRE WELLINGTON HYDRO LTD.","RESIDENTIAL","RESIDENTIAL","CENTRE WELLINGTON HYDRO LTD._RESIDENTIAL SERVICE CLASSIFICATION","CENTRE WELLINGTON HYDRO LTD._RESIDENTIAL SERVICE CLASSIFICATION",831365,0,48665387,0,0,0,0,0,0,0,48665387,0,49496752,0]
["2021","CENTRE WELLINGTON HYDRO LTD.","SENTINEL LIGHTING CONNECTIONS","SENTINEL LIGHTING","CENTRE WELLINGTON HYDRO LTD._SENTINEL LIGHTING SERVICE CLASSIFICATION","CENTRE WELLINGTON HYDRO LTD._SENTINEL LIGHTING SERVICE CLASSIFICATION",12956,35,22624.240000000002,62.84,0,0,0,0,0,0,22624.240000000002,62.84,35580.239999999998,98.83]
["2021","CENTRE WELLINGTON HYDRO LTD.","STREET LIGHTING CONNECTIONS","STREET LIGHTING","CENTRE WELLINGTON HYDRO LTD._STREET LIGHTING SERVICE CLASSIFICATION","CENTRE WELLINGTON HYDRO LTD._STREET LIGHTING SERVICE CLASSIFICATION",0,0,0,0,525998.68999999994,1445.09,0,0,0,0,525998.68999999994,1445.09,525998.68999999994,1445.09]
["2021","CENTRE WELLINGTON HYDRO LTD.","UNMETERED SCATTERED LOAD CONNECTIONS","UNMETERED SCATTERED LOAD","CENTRE WELLINGTON HYDRO LTD._UNMETERED SCATTERED LOAD SERVICE CLASSIFICATION","CENTRE WELLINGTON HYDRO LTD._UNMETERED SCATTERED LOAD SERVICE CLASSIFICATION",90336,0,498805,0,0,0,0,0,0,0,498805,0,589141,0]
["2021","CHAPLEAU PUBLIC UTILITIES CORPORATION","GENERAL SERVICE EQUAL TO OR GREATER THAN 50 KW","GENERAL SERVICE 50 TO 4,999 KW","CHAPLEAU PUBLIC UTILITIES CORPORATION_GENERAL SERVICE 50 TO 4,999 KW SERVICE CLASSIFICATION","CHAPLEAU PUBLIC UTILITIES CORPORATION_GENERAL SERVICE 50 TO 4,999 KW SERVICE CLASSIFICATION",323940,1284,0,0,4378625,12918,0,0,0,0,4378625,12918,4702565,14202.4]
["2021","CHAPLEAU PUBLIC UTILITIES CORPORATION","GENERAL SERVICE LESS THAN 50 KW","GENERAL SERVICE LESS THAN 50 KW","CHAPLEAU PUBLIC UTILITIES CORPORATION_GENERAL SERVICE LESS THAN 50 KW SERVICE CLASSIFICATION","CHAPLEAU PUBLIC UTILITIES CORPORATION_GENERAL SERVICE LESS THAN 50 KW SERVICE CLASSIFICATION",376787,0,4043238,0,0,0,0,0,0,0,4043238,0,4420025,0]
["2021","CHAPLEAU PUBLIC UTILITIES CORPORATION","NO RATE CLASS","NO RATE CLASS","CHAPLEAU PUBLIC UTILITIES CORPORATION_NO RATE CLASS SERVICE CLASSIFICATION","CHAPLEAU PUBLIC UTILITIES CORPORATION_NO RATE CLASS SERVICE CLASSIFICATION",0,0,0,0,0,0,0,0,0,0,0,0,0,0]
["2021","CHAPLEAU PUBLIC UTILITIES CORPORATION","RESIDENTIAL","RESIDENTIAL","CHAPLEAU PUBLIC UTILITIES CORPORATION_RESIDENTIAL SERVICE CLASSIFICATION","CHAPLEAU PUBLIC UTILITIES CORPORATION_RESIDENTIAL SERVICE CLASSIFICATION",13707,0,14029698,0,0,0,0,0,0,0,14029698,0,14043405,0]
["2021","CHAPLEAU PUBLIC UTILITIES CORPORATION","SENTINEL LIGHTING CONNECTIONS","SENTINEL LIGHTING","CHAPLEAU PUBLIC UTILITIES CORPORATION_SENTINEL LIGHTING SERVICE CLASSIFICATION","CHAPLEAU PUBLIC UTILITIES CORPORATION_SENTINEL LIGHTING SERVICE CLASSIFICATION",0,0,19761,55,0,0,0,0,0,0,19761,55,19761,55]
["2021","CHAPLEAU PUBLIC UTILITIES CORPORATION","STREET LIGHTING CONNECTIONS","STREET LIGHTING","CHAPLEAU PUBLIC UTILITIES CORPORATION_STREET LIGHTING SERVICE CLASSIFICATION","CHAPLEAU PUBLIC UTILITIES CORPORATION_STREET LIGHTING SERVICE CLASSIFICATION",0,0,261112,738,0,0,0,0,0,0,261112,738,261112,738]
["2021","CHAPLEAU PUBLIC UTILITIES CORPORATION","UNMETERED SCATTERED LOAD CONNECTIONS","UNMETERED SCATTERED LOAD","CHAPLEAU PUBLIC UTILITIES CORPORATION_UNMETERED SCATTERED LOAD SERVICE CLASSIFICATION","CHAPLEAU PUBLIC UTILITIES CORPORATION_UNMETERED SCATTERED LOAD SERVICE CLASSIFICATION",0,0,2892,0,0,0,0,0,0,0,2892,0,2892,0]
["2021","COOPERATIVE HYDRO EMBRUN INC.","GENERAL SERVICE EQUAL TO OR GREATER THAN 50 KW","GENERAL SERVICE 50 TO 4,999 KW","COOPERATIVE HYDRO EMBRUN INC._GENERAL SERVICE 50 TO 4,999 KW SERVICE CLASSIFICATION","COOPERATIVE HYDRO EMBRUN INC._GENERAL SERVICE 50 TO 4,999 KW SERVICE CLASSIFICATION",29477,0,784878,0,2208090,9472,0,0,0,0,2992968,9472,3022445,9472]
["2021","COOPERATIVE HYDRO EMBRUN INC.","GENERAL SERVICE LESS THAN 50 KW","GENERAL SERVICE LESS THAN 50 KW","COOPERATIVE HYDRO EMBRUN INC._GENERAL SERVICE LESS THAN 50 KW SERVICE CLASSIFICATION","COOPERATIVE HYDRO EMBRUN INC._GENERAL SERVICE LESS THAN 50 KW SERVICE CLASSIFICATION",763380,0,3521987,0,0,0,0,0,0,0,3521987,0,4285367,0]
["2021","COOPERATIVE HYDRO EMBRUN INC.","NO RATE CLASS","NO RATE CLASS","COOPERATIVE HYDRO EMBRUN INC._NO RATE CLASS SERVICE CLASSIFICATION","COOPERATIVE HYDRO EMBRUN INC._NO RATE CLASS SERVICE CLASSIFICATION",0,0,0,0,0,0,0,0,0,0,0,0,0,0]
["2021","COOPERATIVE HYDRO EMBRUN INC.","RESIDENTIAL","RESIDENTIAL","COOPERATIVE HYDRO EMBRUN INC._RESIDENTIAL SERVICE CLASSIFICATION","COOPERATIVE HYDRO EMBRUN INC._RESIDENTIAL SERVICE CLASSIFICATION",166074,0,21136140,0,0,0,0,0,0,0,21136140,0,21302214,0]
["2021","COOPERATIVE HYDRO EMBRUN INC.","STREET LIGHTING CONNECTIONS","STREET LIGHTING","COOPERATIVE HYDRO EMBRUN INC._STREET LIGHTING SERVICE CLASSIFICATION","COOPERATIVE HYDRO EMBRUN INC._STREET LIGHTING SERVICE CLASSIFICATION",0,0,0,0,212836,592,0,0,0,0,212836,592,212836,592]
["2021","COOPERATIVE HYDRO EMBRUN INC.","UNMETERED SCATTERED LOAD CONNECTIONS","UNMETERED SCATTERED LOAD","COOPERATIVE HYDRO EMBRUN INC._UNMETERED SCATTERED LOAD SERVICE CLASSIFICATION","COOPERATIVE HYDRO EMBRUN INC._UNMETERED SCATTERED LOAD SERVICE CLASSIFICATION",0,0,93084,0,0,0,0,0,0,0,93084,0,93084,0]
["2021","CORNWALL STREET RAILWAY LIGHT AND POWER COMPANY LIMITED","NO RATE CLASS","NO RATE CLASS","CORNWALL STREET RAILWAY LIGHT AND POWER COMPANY LIMITED_NO RATE CLASS SERVICE CLASSIFICATION","CORNWALL STREET RAILWAY LIGHT AND POWER COMPANY LIMITED_NO RATE CLASS SERVICE CLASSIFICATION",0,0,0,0,0,0,0,0,null,null,0,0,0,0]
["2021","E.L.K. ENERGY INC.","EMBEDDED DISTRIBUTOR(S)","EMBEDDED DISTRIBUTOR","E.L.K. ENERGY INC._EMBEDDED DISTRIBUTOR SERVICE CLASSIFICATION","E.L.K. ENERGY INC._EMBEDDED DISTRIBUTOR SERVICE CLASSIFICATION",0,0,0,0,60666329,139224,0,0,0,0,60666329,139224,60666329,139224]
["2021","E.L.K. ENERGY INC.","GENERAL SERVICE EQUAL TO OR GREATER THAN 50 KW","GENERAL SERVICE 50 TO 4,999 KW","E.L.K. ENERGY INC._GENERAL SERVICE 50 TO 4,999 KW SERVICE CLASSIFICATION","E.L.K. ENERGY INC._GENERAL SERVICE 50 TO 4,999 KW SERVICE CLASSIFICATION",0,0,18683361,5078,33364288,121871,0,0,0,0,52047649,126949,52047649,126949]
["2021","E.L.K. ENERGY INC.","GENERAL SERVICE LESS THAN 50 KW","GENERAL SERVICE LESS THAN 50 KW","E.L.K. ENERGY INC._GENERAL SERVICE LESS THAN 50 KW SERVICE CLASSIFICATION","E.L.K. ENERGY INC._GENERAL SERVICE LESS THAN 50 KW SERVICE CLASSIFICATION",0,0,22976951,0,3433337,0,0,0,0,0,26410288,0,26410288,0]
["2021","E.L.K. ENERGY INC.","NO RATE CLASS","NO RATE CLASS","E.L.K. ENERGY INC._NO RATE CLASS SERVICE CLASSIFICATION","E.L.K. ENERGY INC._NO RATE CLASS SERVICE CLASSIFICATION",0,0,0,0,0,0,0,0,18907938,63611.51953125,0,0,0,0]
["2021","E.L.K. ENERGY INC.","RESIDENTIAL","RESIDENTIAL","E.L.K. ENERGY INC._RESIDENTIAL SERVICE CLASSIFICATION","E.L.K. ENERGY INC._RESIDENTIAL SERVICE CLASSIFICATION",0,0,96339840,0,1966119,0,0,0,0,0,98305959,0,98305959,0]
["2021","E.L.K. ENERGY INC.","SENTINEL LIGHTING CONNECTIONS","SENTINEL LIGHTING","E.L.K. ENERGY INC._SENTINEL LIGHTING SERVICE CLASSIFICATION","E.L.K. ENERGY INC._SENTINEL LIGHTING SERVICE CLASSIFICATION",0,0,0,0,141998,385,0,0,0,0,141998,385,141998,385]
["2021","E.L.K. ENERGY INC.","STREET LIGHTING CONNECTIONS","STREET LIGHTING","E.L.K. ENERGY INC._STREET LIGHTING SERVICE CLASSIFICATION","E.L.K. ENERGY INC._STREET LIGHTING SERVICE CLASSIFICATION",0,0,0,0,1283668,3927,0,0,0,0,1283668,3927,1283668,3927]
["2021","E.L.K. ENERGY INC.","UNMETERED SCATTERED LOAD CONNECTIONS","UNMETERED SCATTERED LOAD","E.L.K. ENERGY INC._UNMETERED SCATTERED LOAD SERVICE CLASSIFICATION","E.L.K. ENERGY INC._UNMETERED SCATTERED LOAD SERVICE CLASSIFICATION",0,0,0,0,246885,0,0,0,0,0,246885,0,246885,0]
["2021","ELEXICON ENERGY INC.","GENERAL SERVICE EQUAL TO OR GREATER THAN 50 KW","GENERAL SERVICE 3,000 TO 4,999 KW - VERIDIAN","ELEXICON ENERGY INC._GENERAL SERVICE 3,000 TO 4,999 KW - VERIDIAN SERVICE CLASSIFICATION","ELEXICON ENERGY INC._GENERAL SERVICE 3,000 TO 4,999 KW - VERIDIAN SERVICE CLASSIFICATION",0,0,0,0,92205359,204116,0,0,0,0,92205359,204116,92205359,204116]
["2021","ELEXICON ENERGY INC.","GENERAL SERVICE EQUAL TO OR GREATER THAN 50 KW","GENERAL SERVICE 50 TO 2,999 KW - VERIDIAN","ELEXICON ENERGY INC._GENERAL SERVICE 50 TO 2,999 KW - VERIDIAN SERVICE CLASSIFICATION","ELEXICON ENERGY INC._GENERAL SERVICE 50 TO 2,999 KW - VERIDIAN SERVICE CLASSIFICATION",113082442,298137,93597983,242112,683432934,1633061,34521920,62435,0,0,811552839,1937608,924635281,2235745]
["2021","ELEXICON ENERGY INC.","GENERAL SERVICE EQUAL TO OR GREATER THAN 50 KW","GENERAL SERVICE 50 TO 4,999 KW - WHITBY","ELEXICON ENERGY INC._GENERAL SERVICE 50 TO 4,999 KW - WHITBY SERVICE CLASSIFICATION","ELEXICON ENERGY INC._GENERAL SERVICE 50 TO 4,999 KW - WHITBY SERVICE CLASSIFICATION",57167614,144887,42681661,114006,284310650,660991,4228894,8344,0,0,331221205,783341,388388819,928228]
["2021","ELEXICON ENERGY INC.","GENERAL SERVICE LESS THAN 50 KW","GENERAL SERVICE < 50 KW - VERIDIAN","ELEXICON ENERGY INC._GENERAL SERVICE < 50 KW - VERIDIAN SERVICE CLASSIFICATION","ELEXICON ENERGY INC._GENERAL SERVICE < 50 KW - VERIDIAN SERVICE CLASSIFICATION",47246818,0,224839956,0,276897,0,0,0,0,0,225116853,0,272363671,0]
["2021","ELEXICON ENERGY INC.","GENERAL SERVICE LESS THAN 50 KW","GENERAL SERVICE < 50 KW - WHITBY","ELEXICON ENERGY INC._GENERAL SERVICE < 50 KW - WHITBY SERVICE CLASSIFICATION","ELEXICON ENERGY INC._GENERAL SERVICE < 50 KW - WHITBY SERVICE CLASSIFICATION",13497062,0,68185328,359,0,0,0,0,0,0,68185328,359,81682390,359]
["2021","ELEXICON ENERGY INC.","LARGE USER","LARGE USE - VERIDIAN","ELEXICON ENERGY INC._LARGE USE - VERIDIAN SERVICE CLASSIFICATION","ELEXICON ENERGY INC._LARGE USE - VERIDIAN SERVICE CLASSIFICATION",0,0,0,0,261353050,453257,0,0,0,0,261353050,453257,261353050,453257]
["2021","ELEXICON ENERGY INC.","NO RATE CLASS","NO RATE CLASS","ELEXICON ENERGY INC._NO RATE CLASS SERVICE CLASSIFICATION","ELEXICON ENERGY INC._NO RATE CLASS SERVICE CLASSIFICATION",0,0,0,0,0,0,0,0,736462336,1424447,0,0,0,0]
["2021","ELEXICON ENERGY INC.","RESIDENTIAL","RESIDENTIAL - VERIDIAN","ELEXICON ENERGY INC._RESIDENTIAL - VERIDIAN SERVICE CLASSIFICATION","ELEXICON ENERGY INC._RESIDENTIAL - VERIDIAN SERVICE CLASSIFICATION",28319591,0,999299132,0,0,0,0,0,0,0,999299132,0,1027618723,0]
["2021","ELEXICON ENERGY INC.","RESIDENTIAL","RESIDENTIAL - WHITBY","ELEXICON ENERGY INC._RESIDENTIAL - WHITBY SERVICE CLASSIFICATION","ELEXICON ENERGY INC._RESIDENTIAL - WHITBY SERVICE CLASSIFICATION",5977829,0,387605490,0,0,0,0,0,0,0,387605490,0,393583319,0]
["2021","ELEXICON ENERGY INC.","RESIDENTIAL","RESIDENTIAL SEASONAL - VERIDIAN","ELEXICON ENERGY INC._RESIDENTIAL SEASONAL - VERIDIAN SERVICE CLASSIFICATION","ELEXICON ENERGY INC._RESIDENTIAL SEASONAL - VERIDIAN SERVICE CLASSIFICATION",59271,0,12142158,0,0,0,0,0,0,0,12142158,0,12201429,0]
["2021","ELEXICON ENERGY INC.","SENTINEL LIGHTING CONNECTIONS","SENTINEL LIGHTING - VERIDIAN","ELEXICON ENERGY INC._SENTINEL LIGHTING - VERIDIAN SERVICE CLASSIFICATION","ELEXICON ENERGY INC._SENTINEL LIGHTING - VERIDIAN SERVICE CLASSIFICATION",68389,190,141117,392,21440,60,0,0,0,0,162557,452,230946,642]
["2021","ELEXICON ENERGY INC.","SENTINEL LIGHTING CONNECTIONS","SENTINEL LIGHTING - WHITBY","ELEXICON ENERGY INC._SENTINEL LIGHTING - WHITBY SERVICE CLASSIFICATION","ELEXICON ENERGY INC._SENTINEL LIGHTING - WHITBY SERVICE CLASSIFICATION",756,2,25155,12,0,0,0,0,0,0,25155,12,25911,14]
["2021","ELEXICON ENERGY INC.","STREET LIGHTING CONNECTIONS","STREET LIGHTING - VERIDIAN","ELEXICON ENERGY INC._STREET LIGHTING - VERIDIAN SERVICE CLASSIFICATION","ELEXICON ENERGY INC._STREET LIGHTING - VERIDIAN SERVICE CLASSIFICATION",2511218,6981,0,0,8857022,24660,0,0,0,0,8857022,24660,11368240,31641]
["2021","ELEXICON ENERGY INC.","STREET LIGHTING CONNECTIONS","STREET LIGHTING - WHITBY","ELEXICON ENERGY INC._STREET LIGHTING - WHITBY SERVICE CLASSIFICATION","ELEXICON ENERGY INC._STREET LIGHTING - WHITBY SERVICE CLASSIFICATION",0,0,0,0,3017860,9339,0,0,0,0,3017860,9339,3017860,9339]
["2021","ELEXICON ENERGY INC.","UNMETERED SCATTERED LOAD CONNECTIONS","UNMETERED SCATTERED LOAD - VERIDIAN","ELEXICON ENERGY INC._UNMETERED SCATTERED LOAD - VERIDIAN SERVICE CLASSIFICATION","ELEXICON ENERGY INC._UNMETERED SCATTERED LOAD - VERIDIAN SERVICE CLASSIFICATION",223044,0,4388259,0,0,0,0,0,0,0,4388259,0,4611303,0]
["2021","ELEXICON ENERGY INC.","UNMETERED SCATTERED LOAD CONNECTIONS","UNMETERED SCATTERED LOAD - WHITBY","ELEXICON ENERGY INC._UNMETERED SCATTERED LOAD - WHITBY SERVICE CLASSIFICATION","ELEXICON ENERGY INC._UNMETERED SCATTERED LOAD - WHITBY SERVICE CLASSIFICATION",0,0,1782352,0,0,0,0,0,0,0,1782352,0,1782352,0]
["2021","ENERGY+ INC.","EMBEDDED DISTRIBUTOR(S)","EMBEDDED DISTRIBUTOR - HYDRO ONE #1","ENERGY+ INC._EMBEDDED DISTRIBUTOR - HYDRO ONE #1 SERVICE CLASSIFICATION","ENERGY+ INC._EMBEDDED DISTRIBUTOR - HYDRO ONE #1 SERVICE CLASSIFICATION",0,0,0,0,13480201,28259.23,0,0,0,0,13480201,28259.23,13480201,28259.23]
["2021","ENERGY+ INC.","EMBEDDED DISTRIBUTOR(S)","EMBEDDED DISTRIBUTOR - HYDRO ONE #2","ENERGY+ INC._EMBEDDED DISTRIBUTOR - HYDRO ONE #2 SERVICE CLASSIFICATION","ENERGY+ INC._EMBEDDED DISTRIBUTOR - HYDRO ONE #2 SERVICE CLASSIFICATION",0,0,0,0,57760152.5,147984.5,0,0,0,0,57760152.5,147984.5,57760152.5,147984.5]
["2021","ENERGY+ INC.","EMBEDDED DISTRIBUTOR(S)","EMBEDDED DISTRIBUTOR - BRANTFORD","ENERGY+ INC._EMBEDDED DISTRIBUTOR - BRANTFORD SERVICE CLASSIFICATION","ENERGY+ INC._EMBEDDED DISTRIBUTOR - BRANTFORD SERVICE CLASSIFICATION",0,0,0,0,259880.23,850.21,0,0,0,0,259880.23,850.21,259880.23,850.21]
["2021","ENERGY+ INC.","EMBEDDED DISTRIBUTOR(S)","EMBEDDED DISTRIBUTOR - HYDRO ONE CND","ENERGY+ INC._EMBEDDED DISTRIBUTOR - HYDRO ONE CND SERVICE CLASSIFICATION","ENERGY+ INC._EMBEDDED DISTRIBUTOR - HYDRO ONE CND SERVICE CLASSIFICATION",0,0,0,0,14009337.16,28344.49,0,0,0,0,14009337.16,28344.49,14009337.16,28344.49]
["2021","ENERGY+ INC.","EMBEDDED DISTRIBUTOR(S)","EMBEDDED DISTRIBUTOR - WATERLOO NORTH HYDRO","ENERGY+ INC._EMBEDDED DISTRIBUTOR - WATERLOO NORTH HYDRO SERVICE CLASSIFICATION","ENERGY+ INC._EMBEDDED DISTRIBUTOR - WATERLOO NORTH HYDRO SERVICE CLASSIFICATION",0,0,0,0,0,0,63043756,119075.6875,0,0,63043756.130000003,119075.69,63043756.130000003,119075.69]
["2021","ENERGY+ INC.","GENERAL SERVICE EQUAL TO OR GREATER THAN 50 KW","GENERAL SERVICE 1,000 TO 4,999 KW","ENERGY+ INC._GENERAL SERVICE 1,000 TO 4,999 KW SERVICE CLASSIFICATION","ENERGY+ INC._GENERAL SERVICE 1,000 TO 4,999 KW SERVICE CLASSIFICATION",60990454.549999997,144443,0,0,153188012.30000001,376259.34,26068998,531807.5625,0,0,179257011.19,908066.93,240247465.74000001,1052510.02]
["2021","ENERGY+ INC.","GENERAL SERVICE EQUAL TO OR GREATER THAN 50 KW","GENERAL SERVICE 50 TO 999 KW","ENERGY+ INC._GENERAL SERVICE 50 TO 999 KW SERVICE CLASSIFICATION","ENERGY+ INC._GENERAL SERVICE 50 TO 999 KW SERVICE CLASSIFICATION",78225456.560000002,262798,48835034.890000001,171398.44,312585072.06999999,970990,9230610,283379.75,0,0,370650717.32999998,1425768.19,448876173.88999999,1688566.79]
["2021","ENERGY+ INC.","GENERAL SERVICE LESS THAN 50 KW","GENERAL SERVICE LESS THAN 50 KW","ENERGY+ INC._GENERAL SERVICE LESS THAN 50 KW SERVICE CLASSIFICATION","ENERGY+ INC._GENERAL SERVICE LESS THAN 50 KW SERVICE CLASSIFICATION",25793618.289999999,0,170430770.41999999,12.23,85484.41,4093.88,0,0,0,0,170516254.83000001,4106.1099999999997,196309873.12,4106.1099999999997]
["2021","ENERGY+ INC.","LARGE USER","LARGE USER","ENERGY+ INC._LARGE USER SERVICE CLASSIFICATION","ENERGY+ INC._LARGE USER SERVICE CLASSIFICATION",0,0,0,0,143311258.59999999,350604.49,0,0,0,0,143311258.59999999,350604.49,143311258.59999999,350604.49]
["2021","ENERGY+ INC.","NO RATE CLASS","NO RATE CLASS","ENERGY+ INC._NO RATE CLASS SERVICE CLASSIFICATION","ENERGY+ INC._NO RATE CLASS SERVICE CLASSIFICATION",0,0,0,0,0,0,0,0,329931328,837085.6875,0,0,0,0]
["2021","ENERGY+ INC.","RESIDENTIAL","RESIDENTIAL","ENERGY+ INC._RESIDENTIAL SERVICE CLASSIFICATION","ENERGY+ INC._RESIDENTIAL SERVICE CLASSIFICATION",8134017.8200000003,0,513172632.81999999,0,0,0,0,0,0,0,513172632.81999999,0,521306650.63999999,0]
["2021","ENERGY+ INC.","SENTINEL LIGHTING CONNECTIONS","SENTINEL LIGHTING","ENERGY+ INC._SENTINEL LIGHTING SERVICE CLASSIFICATION","ENERGY+ INC._SENTINEL LIGHTING SERVICE CLASSIFICATION",0,0,4361.3999999999996,0,0,0,0,0,0,0,4361.3999999999996,0,4361.3999999999996,0]
["2021","ENERGY+ INC.","STREET LIGHTING CONNECTIONS","STREET LIGHTING","ENERGY+ INC._STREET LIGHTING SERVICE CLASSIFICATION","ENERGY+ INC._STREET LIGHTING SERVICE CLASSIFICATION",701157.58,1972,471252.1,1312.45,4725907.04,13161.04,0,0,0,0,5197159.1399999997,14473.49,5898316.7199999997,16446.009999999998]
["2021","ENERGY+ INC.","UNMETERED SCATTERED LOAD CONNECTIONS","UNMETERED SCATTERED LOAD","ENERGY+ INC._UNMETERED SCATTERED LOAD SERVICE CLASSIFICATION","ENERGY+ INC._UNMETERED SCATTERED LOAD SERVICE CLASSIFICATION",209748,0,1991248.31,0,0,0,0,0,0,0,1991248.31,0,2200996.31,0]
["2021","ENTEGRUS POWERLINES INC.","EMBEDDED DISTRIBUTOR(S)","EMBEDDED DISTRIBUTOR - MAIN","ENTEGRUS POWERLINES INC._EMBEDDED DISTRIBUTOR - MAIN SERVICE CLASSIFICATION","ENTEGRUS POWERLINES INC._EMBEDDED DISTRIBUTOR - MAIN SERVICE CLASSIFICATION",0,0,0,0,3559120,11728,0,0,0,0,3559120,11728,3559120,11728]
["2021","ENTEGRUS POWERLINES INC.","GENERAL SERVICE EQUAL TO OR GREATER THAN 50 KW","GENERAL SERVICE 50 TO 4,999 KW - MAIN","ENTEGRUS POWERLINES INC._GENERAL SERVICE 50 TO 4,999 KW - MAIN SERVICE CLASSIFICATION","ENTEGRUS POWERLINES INC._GENERAL SERVICE 50 TO 4,999 KW - MAIN SERVICE CLASSIFICATION",106244006,267535,27580556,98060,288554110,781854,6542298,18369,0,0,322676964,898283,428920970,1165818]
["2021","ENTEGRUS POWERLINES INC.","GENERAL SERVICE EQUAL TO OR GREATER THAN 50 KW","GENERAL SERVICE 50 TO 4,999 KW - ST. THOMAS ENERGY","ENTEGRUS POWERLINES INC._GENERAL SERVICE 50 TO 4,999 KW - ST. THOMAS ENERGY SERVICE CLASSIFICATION","ENTEGRUS POWERLINES INC._GENERAL SERVICE 50 TO 4,999 KW - ST. THOMAS ENERGY SERVICE CLASSIFICATION",29318471,71323,8472026,30358,73170373,208132,3449045,6494,0,0,85091444,244984,114409915,316307]
["2021","ENTEGRUS POWERLINES INC.","GENERAL SERVICE LESS THAN 50 KW","GENERAL SERVICE LESS THAN 50 KW - MAIN","ENTEGRUS POWERLINES INC._GENERAL SERVICE LESS THAN 50 KW - MAIN SERVICE CLASSIFICATION","ENTEGRUS POWERLINES INC._GENERAL SERVICE LESS THAN 50 KW - MAIN SERVICE CLASSIFICATION",19249070,0,86659464,0,0,0,0,0,0,0,86659464,0,105908534,0]
["2021","ENTEGRUS POWERLINES INC.","GENERAL SERVICE LESS THAN 50 KW","GENERAL SERVICE LESS THAN 50 KW - ST. THOMAS ENERGY","ENTEGRUS POWERLINES INC._GENERAL SERVICE LESS THAN 50 KW - ST. THOMAS ENERGY SERVICE CLASSIFICATION","ENTEGRUS POWERLINES INC._GENERAL SERVICE LESS THAN 50 KW - ST. THOMAS ENERGY SERVICE CLASSIFICATION",7338168,0,30297286,0,0,0,0,0,0,0,30297286,0,37635454,0]
["2021","ENTEGRUS POWERLINES INC.","LARGE USER","LARGE USE - MAIN","ENTEGRUS POWERLINES INC._LARGE USE - MAIN SERVICE CLASSIFICATION","ENTEGRUS POWERLINES INC._LARGE USE - MAIN SERVICE CLASSIFICATION",0,0,0,0,37618741,109366,0,0,0,0,37618741,109366,37618741,109366]
["2021","ENTEGRUS POWERLINES INC.","NO RATE CLASS","NO RATE CLASS","ENTEGRUS POWERLINES INC._NO RATE CLASS SERVICE CLASSIFICATION","ENTEGRUS POWERLINES INC._NO RATE CLASS SERVICE CLASSIFICATION",0,0,0,0,0,0,0,0,256610384,583352,0,0,0,0]
["2021","ENTEGRUS POWERLINES INC.","RESIDENTIAL","RESIDENTIAL - MAIN","ENTEGRUS POWERLINES INC._RESIDENTIAL - MAIN SERVICE CLASSIFICATION","ENTEGRUS POWERLINES INC._RESIDENTIAL - MAIN SERVICE CLASSIFICATION",8657781,0,298221481,0,0,0,0,0,0,0,298221481,0,306879262,0]
["2021","ENTEGRUS POWERLINES INC.","RESIDENTIAL","RESIDENTIAL - ST. THOMAS ENERGY","ENTEGRUS POWERLINES INC._RESIDENTIAL - ST. THOMAS ENERGY SERVICE CLASSIFICATION","ENTEGRUS POWERLINES INC._RESIDENTIAL - ST. THOMAS ENERGY SERVICE CLASSIFICATION",6652390,0,125636709,0,0,0,0,0,0,0,125636709,0,132289099,0]
["2021","ENTEGRUS POWERLINES INC.","SENTINEL LIGHTING CONNECTIONS","SENTINEL LIGHTING - MAIN","ENTEGRUS POWERLINES INC._SENTINEL LIGHTING - MAIN SERVICE CLASSIFICATION","ENTEGRUS POWERLINES INC._SENTINEL LIGHTING - MAIN SERVICE CLASSIFICATION",59225,169,236734,658,67877,189,0,0,0,0,304611,847,363836,1016]
["2021","ENTEGRUS POWERLINES INC.","SENTINEL LIGHTING CONNECTIONS","SENTINEL LIGHTING - ST. THOMAS ENERGY","ENTEGRUS POWERLINES INC._SENTINEL LIGHTING - ST. THOMAS ENERGY SERVICE CLASSIFICATION","ENTEGRUS POWERLINES INC._SENTINEL LIGHTING - ST. THOMAS ENERGY SERVICE CLASSIFICATION",2457,7,95305,0,0,0,0,0,0,0,95305,0,97762,7]
["2021","ENTEGRUS POWERLINES INC.","STREET LIGHTING CONNECTIONS","STREET LIGHTING - MAIN","ENTEGRUS POWERLINES INC._STREET LIGHTING - MAIN SERVICE CLASSIFICATION","ENTEGRUS POWERLINES INC._STREET LIGHTING - MAIN SERVICE CLASSIFICATION",0,0,0,0,3540950,10447,0,0,0,0,3540950,10447,3540950,10447]
["2021","ENTEGRUS POWERLINES INC.","STREET LIGHTING CONNECTIONS","STREET LIGHTING - ST. THOMAS ENERGY","ENTEGRUS POWERLINES INC._STREET LIGHTING - ST. THOMAS ENERGY SERVICE CLASSIFICATION","ENTEGRUS POWERLINES INC._STREET LIGHTING - ST. THOMAS ENERGY SERVICE CLASSIFICATION",0,0,0,0,1796871,4991,0,0,0,0,1796871,4991,1796871,4991]
["2021","ENTEGRUS POWERLINES INC.","UNMETERED SCATTERED LOAD CONNECTIONS","UNMETERED SCATTERED LOAD - MAIN","ENTEGRUS POWERLINES INC._UNMETERED SCATTERED LOAD - MAIN SERVICE CLASSIFICATION","ENTEGRUS POWERLINES INC._UNMETERED SCATTERED LOAD - MAIN SERVICE CLASSIFICATION",737241,0,535178,0,0,0,0,0,0,0,535178,0,1272419,0]
["2021","ENWIN UTILITIES LTD.","GENERAL SERVICE EQUAL TO OR GREATER THAN 50 KW","GENERAL SERVICE 3,000 TO 4,999 KW - INTERMEDIATE USE","ENWIN UTILITIES LTD._GENERAL SERVICE 3,000 TO 4,999 KW - INTERMEDIATE USE SERVICE CLASSIFICATION","ENWIN UTILITIES LTD._GENERAL SERVICE 3,000 TO 4,999 KW - INTERMEDIATE USE SERVICE CLASSIFICATION",0,0,0,0,0,0,0,0,0,0,0,0,0,0]
["2021","ENWIN UTILITIES LTD.","GENERAL SERVICE EQUAL TO OR GREATER THAN 50 KW","GENERAL SERVICE 50 TO 4,999 KW","ENWIN UTILITIES LTD._GENERAL SERVICE 50 TO 4,999 KW SERVICE CLASSIFICATION","ENWIN UTILITIES LTD._GENERAL SERVICE 50 TO 4,999 KW SERVICE CLASSIFICATION",101486002.42,269988,159223650.75999999,397894.64,585117337.88999999,1512885.51,10501675,19508.41015625,0,0,754842663.53999996,1930288.56,856328665.96000004,2200276.69]
["2021","ENWIN UTILITIES LTD.","GENERAL SERVICE LESS THAN 50 KW","GENERAL SERVICE LESS THAN 50 KW","ENWIN UTILITIES LTD._GENERAL SERVICE LESS THAN 50 KW SERVICE CLASSIFICATION","ENWIN UTILITIES LTD._GENERAL SERVICE LESS THAN 50 KW SERVICE CLASSIFICATION",25417684.649999999,0,164139108.97999999,0,0,0,0,0,0,0,164139108.97999999,0,189556793.63,0]
["2021","ENWIN UTILITIES LTD.","LARGE USER","LARGE USE - 3TS","ENWIN UTILITIES LTD._LARGE USE - 3TS SERVICE CLASSIFICATION","ENWIN UTILITIES LTD._LARGE USE - 3TS SERVICE CLASSIFICATION",0,0,0,0,135458379.5,282378.99,83265920,152036.296875,0,0,218724298.19,434415.29,218724298.19,434415.29]
["2021","ENWIN UTILITIES LTD.","LARGE USER","LARGE USE - FORD ANNEX","ENWIN UTILITIES LTD._LARGE USE - FORD ANNEX SERVICE CLASSIFICATION","ENWIN UTILITIES LTD._LARGE USE - FORD ANNEX SERVICE CLASSIFICATION",0,0,0,0,0,0,0,0,0,0,0,0,0,0]
["2021","ENWIN UTILITIES LTD.","LARGE USER","LARGE USE - REGULAR","ENWIN UTILITIES LTD._LARGE USE - REGULAR SERVICE CLASSIFICATION","ENWIN UTILITIES LTD._LARGE USE - REGULAR SERVICE CLASSIFICATION",0,0,0,0,132446720.41,316384.18,91604872,165044.796875,0,0,224051591.78999999,481428.98,224051591.78999999,481428.98]
["2021","ENWIN UTILITIES LTD.","NO RATE CLASS","NO RATE CLASS","ENWIN UTILITIES LTD._NO RATE CLASS SERVICE CLASSIFICATION","ENWIN UTILITIES LTD._NO RATE CLASS SERVICE CLASSIFICATION",0,0,0,0,0,0,0,0,504101760,1160873,0,0,0,0]
["2021","ENWIN UTILITIES LTD.","RESIDENTIAL","RESIDENTIAL","ENWIN UTILITIES LTD._RESIDENTIAL SERVICE CLASSIFICATION","ENWIN UTILITIES LTD._RESIDENTIAL SERVICE CLASSIFICATION",13089822.65,0,642608761.07000005,0,0,0,0,0,0,0,642608761.07000005,0,655698583.72000003,0]
["2021","ENWIN UTILITIES LTD.","SENTINEL LIGHTING CONNECTIONS","SENTINEL LIGHTING","ENWIN UTILITIES LTD._SENTINEL LIGHTING SERVICE CLASSIFICATION","ENWIN UTILITIES LTD._SENTINEL LIGHTING SERVICE CLASSIFICATION",59939.24,167,664291.4,1854.36,0,0,0,0,0,0,664291.4,1854.36,724230.64,2021.84]
["2021","ENWIN UTILITIES LTD.","STREET LIGHTING CONNECTIONS","STREET LIGHTING","ENWIN UTILITIES LTD._STREET LIGHTING SERVICE CLASSIFICATION","ENWIN UTILITIES LTD._STREET LIGHTING SERVICE CLASSIFICATION",0,0,18438.04,53.04,6583177.8799999999,18920.38,0,0,0,0,6601615.9199999999,18973.419999999998,6601615.9199999999,18973.419999999998]
["2021","ENWIN UTILITIES LTD.","UNMETERED SCATTERED LOAD CONNECTIONS","UNMETERED SCATTERED LOAD","ENWIN UTILITIES LTD._UNMETERED SCATTERED LOAD SERVICE CLASSIFICATION","ENWIN UTILITIES LTD._UNMETERED SCATTERED LOAD SERVICE CLASSIFICATION",0,0,93291.36,0,2168405.75,0,0,0,0,0,2261697.11,0,2261697.11,0]
["2021","EPCOR ELECTRICITY DISTRIBUTION ONTARIO INC.","GENERAL SERVICE EQUAL TO OR GREATER THAN 50 KW","GENERAL SERVICE 50 TO 4,999 KW","EPCOR ELECTRICITY DISTRIBUTION ONTARIO INC._GENERAL SERVICE 50 TO 4,999 KW SERVICE CLASSIFICATION","EPCOR ELECTRICITY DISTRIBUTION ONTARIO INC._GENERAL SERVICE 50 TO 4,999 KW SERVICE CLASSIFICATION",20763733.329999998,48565,8290364.2999999998,22742.91,86779971,212241.44,2539213,4917.27001953125,0,0,97609548.319999993,239901.62,118373281.65000001,288467.51]
["2021","EPCOR ELECTRICITY DISTRIBUTION ONTARIO INC.","GENERAL SERVICE LESS THAN 50 KW","GENERAL SERVICE LESS THAN 50 KW","EPCOR ELECTRICITY DISTRIBUTION ONTARIO INC._GENERAL SERVICE LESS THAN 50 KW SERVICE CLASSIFICATION","EPCOR ELECTRICITY DISTRIBUTION ONTARIO INC._GENERAL SERVICE LESS THAN 50 KW SERVICE CLASSIFICATION",6289005.4500000002,0,35880838.399999999,0,363730.26,0,0,0,0,0,36244568.659999996,0,42533574.109999999,0]
["2021","EPCOR ELECTRICITY DISTRIBUTION ONTARIO INC.","NO RATE CLASS","NO RATE CLASS","EPCOR ELECTRICITY DISTRIBUTION ONTARIO INC._NO RATE CLASS SERVICE CLASSIFICATION","EPCOR ELECTRICITY DISTRIBUTION ONTARIO INC._NO RATE CLASS SERVICE CLASSIFICATION",0,0,0,0,0,0,0,0,48385448,106918.8515625,0,0,0,0]
["2021","EPCOR ELECTRICITY DISTRIBUTION ONTARIO INC.","RESIDENTIAL","RESIDENTIAL","EPCOR ELECTRICITY DISTRIBUTION ONTARIO INC._RESIDENTIAL SERVICE CLASSIFICATION","EPCOR ELECTRICITY DISTRIBUTION ONTARIO INC._RESIDENTIAL SERVICE CLASSIFICATION",2685384.24,0,132092167.61,0,0,0,0,0,0,0,132092167.61,0,134777551.84999999,0]
["2021","EPCOR ELECTRICITY DISTRIBUTION ONTARIO INC.","STREET LIGHTING CONNECTIONS","STREET LIGHTING","EPCOR ELECTRICITY DISTRIBUTION ONTARIO INC._STREET LIGHTING SERVICE CLASSIFICATION","EPCOR ELECTRICITY DISTRIBUTION ONTARIO INC._STREET LIGHTING SERVICE CLASSIFICATION",0,0,0,0,1224244.72,3430.2,0,0,0,0,1224244.72,3430.2,1224244.72,3430.2]
["2021","EPCOR ELECTRICITY DISTRIBUTION ONTARIO INC.","UNMETERED SCATTERED LOAD CONNECTIONS","UNMETERED SCATTERED LOAD","EPCOR ELECTRICITY DISTRIBUTION ONTARIO INC._UNMETERED SCATTERED LOAD SERVICE CLASSIFICATION","EPCOR ELECTRICITY DISTRIBUTION ONTARIO INC._UNMETERED SCATTERED LOAD SERVICE CLASSIFICATION",5394,0,390839.27,0,0,0,0,0,0,0,390839.27,0,396233.27,0]
["2021","ERTH POWER CORPORATION","EMBEDDED DISTRIBUTOR(S)","EMBEDDED DISTRIBUTOR - MAIN","ERTH POWER CORPORATION_EMBEDDED DISTRIBUTOR - MAIN SERVICE CLASSIFICATION","ERTH POWER CORPORATION_EMBEDDED DISTRIBUTOR - MAIN SERVICE CLASSIFICATION",0,0,0,0,16786736,37381,0,0,0,0,16786736,37381,16786736,37381]
["2021","ERTH POWER CORPORATION","GENERAL SERVICE EQUAL TO OR GREATER THAN 50 KW","GENERAL SERVICE 1,000 TO 4,999 KW - MAIN","ERTH POWER CORPORATION_GENERAL SERVICE 1,000 TO 4,999 KW - MAIN SERVICE CLASSIFICATION","ERTH POWER CORPORATION_GENERAL SERVICE 1,000 TO 4,999 KW - MAIN SERVICE CLASSIFICATION",12680413,26902,0,0,64699476,141229,0,0,0,0,64699476,141229,77379889,168131]
["2021","ERTH POWER CORPORATION","GENERAL SERVICE EQUAL TO OR GREATER THAN 50 KW","GENERAL SERVICE 50 TO 499 KW - GODERICH","ERTH POWER CORPORATION_GENERAL SERVICE 50 TO 499 KW - GODERICH SERVICE CLASSIFICATION","ERTH POWER CORPORATION_GENERAL SERVICE 50 TO 499 KW - GODERICH SERVICE CLASSIFICATION",4994746,12537,3288945,0,10750517,29238,0,0,0,0,14039462,29238,19034208,41775]
["2021","ERTH POWER CORPORATION","GENERAL SERVICE EQUAL TO OR GREATER THAN 50 KW","GENERAL SERVICE 50 TO 999 KW - MAIN","ERTH POWER CORPORATION_GENERAL SERVICE 50 TO 999 KW - MAIN SERVICE CLASSIFICATION","ERTH POWER CORPORATION_GENERAL SERVICE 50 TO 999 KW - MAIN SERVICE CLASSIFICATION",24316753,72088,5543145,21323,52203185,148076,2543704,25676,0,0,60290034,195075,84606787,267163]
["2021","ERTH POWER CORPORATION","GENERAL SERVICE EQUAL TO OR GREATER THAN 50 KW","GENERAL SERVICE 500 TO 4,999 KW - GODERICH","ERTH POWER CORPORATION_GENERAL SERVICE 500 TO 4,999 KW - GODERICH SERVICE CLASSIFICATION","ERTH POWER CORPORATION_GENERAL SERVICE 500 TO 4,999 KW - GODERICH SERVICE CLASSIFICATION",7993287,14900,0,0,12689021,33567,0,0,0,0,12689021,33567,20682308,48467]
["2021","ERTH POWER CORPORATION","GENERAL SERVICE LESS THAN 50 KW","GENERAL SERVICE LESS THAN 50 KW - GODERICH","ERTH POWER CORPORATION_GENERAL SERVICE LESS THAN 50 KW - GODERICH SERVICE CLASSIFICATION","ERTH POWER CORPORATION_GENERAL SERVICE LESS THAN 50 KW - GODERICH SERVICE CLASSIFICATION",2606139,0,10432876,9043,0,0,0,0,0,0,10432876,9043,13039015,9043]
["2021","ERTH POWER CORPORATION","GENERAL SERVICE LESS THAN 50 KW","GENERAL SERVICE LESS THAN 50 KW - MAIN","ERTH POWER CORPORATION_GENERAL SERVICE LESS THAN 50 KW - MAIN SERVICE CLASSIFICATION","ERTH POWER CORPORATION_GENERAL SERVICE LESS THAN 50 KW - MAIN SERVICE CLASSIFICATION",9080441,0,38824687,0,149107,0,0,0,0,0,38973794,0,48054235,0]
["2021","ERTH POWER CORPORATION","LARGE USER","LARGE USE - GODERICH","ERTH POWER CORPORATION_LARGE USE - GODERICH SERVICE CLASSIFICATION","ERTH POWER CORPORATION_LARGE USE - GODERICH SERVICE CLASSIFICATION",0,0,0,0,0,0,0,0,0,0,0,0,0,0]
["2021","ERTH POWER CORPORATION","LARGE USER","LARGE USE- MAIN","ERTH POWER CORPORATION_LARGE USE- MAIN SERVICE CLASSIFICATION","ERTH POWER CORPORATION_LARGE USE- MAIN SERVICE CLASSIFICATION",0,0,0,0,118380051,219868,72019856,172097,0,0,190399909,391965,190399909,391965]
["2021","ERTH POWER CORPORATION","NO RATE CLASS","NO RATE CLASS","ERTH POWER CORPORATION_NO RATE CLASS SERVICE CLASSIFICATION","ERTH POWER CORPORATION_NO RATE CLASS SERVICE CLASSIFICATION",0,0,0,0,0,0,0,0,216950288,429387.75,0,0,0,0]
["2021","ERTH POWER CORPORATION","RESIDENTIAL","RESIDENTIAL - GODERICH","ERTH POWER CORPORATION_RESIDENTIAL - GODERICH SERVICE CLASSIFICATION","ERTH POWER CORPORATION_RESIDENTIAL - GODERICH SERVICE CLASSIFICATION",609635,0,25814517,0,0,0,0,0,0,0,25814517,0,26424152,0]
["2021","ERTH POWER CORPORATION","RESIDENTIAL","RESIDENTIAL - MAIN","ERTH POWER CORPORATION_RESIDENTIAL - MAIN SERVICE CLASSIFICATION","ERTH POWER CORPORATION_RESIDENTIAL - MAIN SERVICE CLASSIFICATION",5013173,0,146161514,0,0,0,0,0,0,0,146161514,0,151174687,0]
["2021","ERTH POWER CORPORATION","SENTINEL LIGHTING CONNECTIONS","SENTINEL LIGHTING - GODERICH","ERTH POWER CORPORATION_SENTINEL LIGHTING - GODERICH SERVICE CLASSIFICATION","ERTH POWER CORPORATION_SENTINEL LIGHTING - GODERICH SERVICE CLASSIFICATION",0,0,1932,0,0,0,0,0,0,0,1932,0,1932,0]
["2021","ERTH POWER CORPORATION","SENTINEL LIGHTING CONNECTIONS","SENTINEL LIGHTING - MAIN","ERTH POWER CORPORATION_SENTINEL LIGHTING - MAIN SERVICE CLASSIFICATION","ERTH POWER CORPORATION_SENTINEL LIGHTING - MAIN SERVICE CLASSIFICATION",27997,0,16914,0,0,0,0,0,0,0,16914,0,44911,0]
["2021","ERTH POWER CORPORATION","STREET LIGHTING CONNECTIONS","STREET LIGHTING - GODERICH","ERTH POWER CORPORATION_STREET LIGHTING - GODERICH SERVICE CLASSIFICATION","ERTH POWER CORPORATION_STREET LIGHTING - GODERICH SERVICE CLASSIFICATION",314857,784,77588,8,0,0,0,0,0,0,77588,8,392445,792]
["2021","ERTH POWER CORPORATION","STREET LIGHTING CONNECTIONS","STREET LIGHTING - MAIN","ERTH POWER CORPORATION_STREET LIGHTING - MAIN SERVICE CLASSIFICATION","ERTH POWER CORPORATION_STREET LIGHTING - MAIN SERVICE CLASSIFICATION",322348,414,665891,1800,829977,2243,0,0,0,0,1495868,4043,1818216,4457]
["2021","ERTH POWER CORPORATION","UNMETERED SCATTERED LOAD CONNECTIONS","UNMETERED SCATTERED LOAD - GODERICH","ERTH POWER CORPORATION_UNMETERED SCATTERED LOAD - GODERICH SERVICE CLASSIFICATION","ERTH POWER CORPORATION_UNMETERED SCATTERED LOAD - GODERICH SERVICE CLASSIFICATION",0,0,83100,0,0,0,0,0,0,0,83100,0,83100,0]
["2021","ERTH POWER CORPORATION","UNMETERED SCATTERED LOAD CONNECTIONS","UNMETERED SCATTERED LOAD - MAIN","ERTH POWER CORPORATION_UNMETERED SCATTERED LOAD - MAIN SERVICE CLASSIFICATION","ERTH POWER CORPORATION_UNMETERED SCATTERED LOAD - MAIN SERVICE CLASSIFICATION",51696,0,376169,0,0,0,0,0,0,0,376169,0,427865,0]
["2021","ESSEX POWERLINES CORPORATION","EMBEDDED DISTRIBUTOR(S)","EMBEDDED DISTRIBUTOR","ESSEX POWERLINES CORPORATION_EMBEDDED DISTRIBUTOR SERVICE CLASSIFICATION","ESSEX POWERLINES CORPORATION_EMBEDDED DISTRIBUTOR SERVICE CLASSIFICATION",0,0,0,0,28434550.989999998,89413.4,0,0,0,0,28434550.989999998,89413.4,28434550.989999998,89413.4]
["2021","ESSEX POWERLINES CORPORATION","GENERAL SERVICE EQUAL TO OR GREATER THAN 50 KW","GENERAL SERVICE 50 TO 4,999 KW","ESSEX POWERLINES CORPORATION_GENERAL SERVICE 50 TO 4,999 KW SERVICE CLASSIFICATION","ESSEX POWERLINES CORPORATION_GENERAL SERVICE 50 TO 4,999 KW SERVICE CLASSIFICATION",41993213.799999997,130069,23006333.359999999,68288.350000000006,96348377.890000001,285985.26,10003470,18968.349609375,0,0,129358181.28,373241.96,171351395.08000001,503311.95]
["2021","ESSEX POWERLINES CORPORATION","GENERAL SERVICE LESS THAN 50 KW","GENERAL SERVICE LESS THAN 50 KW","ESSEX POWERLINES CORPORATION_GENERAL SERVICE LESS THAN 50 KW SERVICE CLASSIFICATION","ESSEX POWERLINES CORPORATION_GENERAL SERVICE LESS THAN 50 KW SERVICE CLASSIFICATION",12345596.08,35787,46820586.700000003,0,1773891.99,0,0,0,0,0,48594478.689999998,0,60940074.770000003,35787.51]
["2021","ESSEX POWERLINES CORPORATION","NO RATE CLASS","NO RATE CLASS","ESSEX POWERLINES CORPORATION_NO RATE CLASS SERVICE CLASSIFICATION","ESSEX POWERLINES CORPORATION_NO RATE CLASS SERVICE CLASSIFICATION",0,0,0,0,0,0,0,0,28696444,69594.953125,0,0,0,0]
["2021","ESSEX POWERLINES CORPORATION","RESIDENTIAL","RESIDENTIAL","ESSEX POWERLINES CORPORATION_RESIDENTIAL SERVICE CLASSIFICATION","ESSEX POWERLINES CORPORATION_RESIDENTIAL SERVICE CLASSIFICATION",5509748.25,0,265824927.68000001,0,0,0,0,0,0,0,265824927.68000001,0,271334675.93000001,0]
["2021","ESSEX POWERLINES CORPORATION","SENTINEL LIGHTING CONNECTIONS","SENTINEL LIGHTING","ESSEX POWERLINES CORPORATION_SENTINEL LIGHTING SERVICE CLASSIFICATION","ESSEX POWERLINES CORPORATION_SENTINEL LIGHTING SERVICE CLASSIFICATION",23766.32,0,256885.26,765.89,0,0,0,0,0,0,256885.26,765.89,280651.58,765.89]
["2021","ESSEX POWERLINES CORPORATION","STREET LIGHTING CONNECTIONS","STREET LIGHTING","ESSEX POWERLINES CORPORATION_STREET LIGHTING SERVICE CLASSIFICATION","ESSEX POWERLINES CORPORATION_STREET LIGHTING SERVICE CLASSIFICATION",1583421.96,4779,0,0,872272.53,2629.34,0,0,0,0,872272.53,2629.34,2455694.4900000002,7408.7]
["2021","ESSEX POWERLINES CORPORATION","UNMETERED SCATTERED LOAD CONNECTIONS","UNMETERED SCATTERED LOAD","ESSEX POWERLINES CORPORATION_UNMETERED SCATTERED LOAD SERVICE CLASSIFICATION","ESSEX POWERLINES CORPORATION_UNMETERED SCATTERED LOAD SERVICE CLASSIFICATION",758940.37,0,629910.75,0,0,0,0,0,0,0,629910.75,0,1388851.12,0]
["2021","FESTIVAL HYDRO INC.","GENERAL SERVICE EQUAL TO OR GREATER THAN 50 KW","GENERAL SERVICE 50 TO 4,999 KW","FESTIVAL HYDRO INC._GENERAL SERVICE 50 TO 4,999 KW SERVICE CLASSIFICATION","FESTIVAL HYDRO INC._GENERAL SERVICE 50 TO 4,999 KW SERVICE CLASSIFICATION",60938208,202657,14845775.039999999,41423.56,274929678.82999998,622197.68999999994,2919537,5391.31982421875,0,0,292694990.94,669012.56999999995,353633198.94,871669.57]
["2021","FESTIVAL HYDRO INC.","GENERAL SERVICE LESS THAN 50 KW","GENERAL SERVICE LESS THAN 50 KW","FESTIVAL HYDRO INC._GENERAL SERVICE LESS THAN 50 KW SERVICE CLASSIFICATION","FESTIVAL HYDRO INC._GENERAL SERVICE LESS THAN 50 KW SERVICE CLASSIFICATION",14786577,0,43373116.82,0,0,0,0,0,0,0,43373116.82,0,58159693.82,0]
["2021","FESTIVAL HYDRO INC.","LARGE USER","LARGE USE","FESTIVAL HYDRO INC._LARGE USE SERVICE CLASSIFICATION","FESTIVAL HYDRO INC._LARGE USE SERVICE CLASSIFICATION",0,0,0,0,27495993.800000001,41219.25,427517.375,50241.078125,0,0,27923511.190000001,91460.33,27923511.190000001,91460.33]
["2021","FESTIVAL HYDRO INC.","NO RATE CLASS","NO RATE CLASS","FESTIVAL HYDRO INC._NO RATE CLASS SERVICE CLASSIFICATION","FESTIVAL HYDRO INC._NO RATE CLASS SERVICE CLASSIFICATION",0,0,0,0,0,0,0,0,250809328,561209.5625,0,0,0,0]
["2021","FESTIVAL HYDRO INC.","RESIDENTIAL","RESIDENTIAL","FESTIVAL HYDRO INC._RESIDENTIAL SERVICE CLASSIFICATION","FESTIVAL HYDRO INC._RESIDENTIAL SERVICE CLASSIFICATION",4340563,0,146878796.99000001,0,0,0,0,0,0,0,146878796.99000001,0,151219359.99000001,0]
["2021","FESTIVAL HYDRO INC.","SENTINEL LIGHTING CONNECTIONS","SENTINEL LIGHTING","FESTIVAL HYDRO INC._SENTINEL LIGHTING SERVICE CLASSIFICATION","FESTIVAL HYDRO INC._SENTINEL LIGHTING SERVICE CLASSIFICATION",75,0,95035.12,264.19,0,0,0,0,0,0,95035.12,264.19,95110.12,264.19]
["2021","FESTIVAL HYDRO INC.","STREET LIGHTING CONNECTIONS","STREET LIGHTING","FESTIVAL HYDRO INC._STREET LIGHTING SERVICE CLASSIFICATION","FESTIVAL HYDRO INC._STREET LIGHTING SERVICE CLASSIFICATION",2217322,6011,177586.37,370.3,0,0,0,0,0,0,177586.37,370.3,2394908.37,6381.3]
["2021","FESTIVAL HYDRO INC.","UNMETERED SCATTERED LOAD CONNECTIONS","UNMETERED SCATTERED LOAD","FESTIVAL HYDRO INC._UNMETERED SCATTERED LOAD SERVICE CLASSIFICATION","FESTIVAL HYDRO INC._UNMETERED SCATTERED LOAD SERVICE CLASSIFICATION",60804,0,264537.53999999998,0,346056.44,0,0,0,0,0,610593.98,0,671397.98,0]
["2021","FORT FRANCES POWER CORPORATION","GENERAL SERVICE EQUAL TO OR GREATER THAN 50 KW","GENERAL SERVICE 50 TO 4,999 KW","FORT FRANCES POWER CORPORATION_GENERAL SERVICE 50 TO 4,999 KW SERVICE CLASSIFICATION","FORT FRANCES POWER CORPORATION_GENERAL SERVICE 50 TO 4,999 KW SERVICE CLASSIFICATION",0,0,4181000,0,15150777,46554,0,0,0,0,19331777,46554,19331777,46554]
["2021","FORT FRANCES POWER CORPORATION","GENERAL SERVICE LESS THAN 50 KW","GENERAL SERVICE LESS THAN 50 KW","FORT FRANCES POWER CORPORATION_GENERAL SERVICE LESS THAN 50 KW SERVICE CLASSIFICATION","FORT FRANCES POWER CORPORATION_GENERAL SERVICE LESS THAN 50 KW SERVICE CLASSIFICATION",312468.03000000003,0,13884225,0,0,0,0,0,0,0,13884225,0,14196693.029999999,0]
["2021","FORT FRANCES POWER CORPORATION","NO RATE CLASS","NO RATE CLASS","FORT FRANCES POWER CORPORATION_NO RATE CLASS SERVICE CLASSIFICATION","FORT FRANCES POWER CORPORATION_NO RATE CLASS SERVICE CLASSIFICATION",0,0,0,0,0,0,0,0,null,null,0,0,0,0]
["2021","FORT FRANCES POWER CORPORATION","RESIDENTIAL","RESIDENTIAL","FORT FRANCES POWER CORPORATION_RESIDENTIAL SERVICE CLASSIFICATION","FORT FRANCES POWER CORPORATION_RESIDENTIAL SERVICE CLASSIFICATION",70644.11,0,36936646,0,0,0,0,0,0,0,36936646,0,37007290.109999999,0]
["2021","FORT FRANCES POWER CORPORATION","STREET LIGHTING CONNECTIONS","STREET LIGHTING","FORT FRANCES POWER CORPORATION_STREET LIGHTING SERVICE CLASSIFICATION","FORT FRANCES POWER CORPORATION_STREET LIGHTING SERVICE CLASSIFICATION",0,0,0,0,433533,1159,0,0,0,0,433533,1159,433533,1159]
["2021","FORT FRANCES POWER CORPORATION","UNMETERED SCATTERED LOAD CONNECTIONS","UNMETERED SCATTERED LOAD","FORT FRANCES POWER CORPORATION_UNMETERED SCATTERED LOAD SERVICE CLASSIFICATION","FORT FRANCES POWER CORPORATION_UNMETERED SCATTERED LOAD SERVICE CLASSIFICATION",0,0,62628,0,0,0,0,0,0,0,62628,0,62628,0]
["2021","GREATER SUDBURY HYDRO INC.","GENERAL SERVICE EQUAL TO OR GREATER THAN 50 KW","GENERAL SERVICE 50 TO 4,999 KW","GREATER SUDBURY HYDRO INC._GENERAL SERVICE 50 TO 4,999 KW SERVICE CLASSIFICATION","GREATER SUDBURY HYDRO INC._GENERAL SERVICE 50 TO 4,999 KW SERVICE CLASSIFICATION",52093805.590000004,125576,57658036.060000002,149085.01999999999,206907392.21000001,493394.04,3291003.5,6257.4599609375,0,0,267856431.69999999,648736.52,319950237.29000002,774313.29]
["2021","GREATER SUDBURY HYDRO INC.","GENERAL SERVICE LESS THAN 50 KW","GENERAL SERVICE LESS THAN 50 KW","GREATER SUDBURY HYDRO INC._GENERAL SERVICE LESS THAN 50 KW SERVICE CLASSIFICATION","GREATER SUDBURY HYDRO INC._GENERAL SERVICE LESS THAN 50 KW SERVICE CLASSIFICATION",22370021.010000002,0,105764637.92,0,162549.94,0,0,0,0,0,105927187.86,0,128297208.87,0]
["2021","GREATER SUDBURY HYDRO INC.","NO RATE CLASS","NO RATE CLASS","GREATER SUDBURY HYDRO INC._NO RATE CLASS SERVICE CLASSIFICATION","GREATER SUDBURY HYDRO INC._NO RATE CLASS SERVICE CLASSIFICATION",0,0,0,0,0,0,0,0,63842840,127307.3515625,0,0,0,0]
["2021","GREATER SUDBURY HYDRO INC.","RESIDENTIAL","RESIDENTIAL","GREATER SUDBURY HYDRO INC._RESIDENTIAL SERVICE CLASSIFICATION","GREATER SUDBURY HYDRO INC._RESIDENTIAL SERVICE CLASSIFICATION",6352261.0899999999,0,375597284.63999999,0,0,0,0,0,0,0,375597284.63999999,0,381949545.73000002,0]
["2021","GREATER SUDBURY HYDRO INC.","SENTINEL LIGHTING CONNECTIONS","SENTINEL LIGHTING","GREATER SUDBURY HYDRO INC._SENTINEL LIGHTING SERVICE CLASSIFICATION","GREATER SUDBURY HYDRO INC._SENTINEL LIGHTING SERVICE CLASSIFICATION",32391,88,330863.59999999998,909.8,0,0,0,0,0,0,330863.59999999998,909.8,363254.6,998.48]
["2021","GREATER SUDBURY HYDRO INC.","STREET LIGHTING CONNECTIONS","STREET LIGHTING","GREATER SUDBURY HYDRO INC._STREET LIGHTING SERVICE CLASSIFICATION","GREATER SUDBURY HYDRO INC._STREET LIGHTING SERVICE CLASSIFICATION",0,0,0,0,6391575.9500000002,18315.38,0,0,0,0,6391575.9500000002,18315.38,6391575.9500000002,18315.38]
["2021","GREATER SUDBURY HYDRO INC.","UNMETERED SCATTERED LOAD CONNECTIONS","UNMETERED SCATTERED LOAD","GREATER SUDBURY HYDRO INC._UNMETERED SCATTERED LOAD SERVICE CLASSIFICATION","GREATER SUDBURY HYDRO INC._UNMETERED SCATTERED LOAD SERVICE CLASSIFICATION",3947,0,1028956,0,0,0,0,0,0,0,1028956,0,1032903,0]
["2021","GRIMSBY POWER INCORPORATED","EMBEDDED DISTRIBUTOR(S)","EMBEDDED DISTRIBUTOR","GRIMSBY POWER INCORPORATED_EMBEDDED DISTRIBUTOR SERVICE CLASSIFICATION","GRIMSBY POWER INCORPORATED_EMBEDDED DISTRIBUTOR SERVICE CLASSIFICATION",0,0,0,0,59182119.979999997,167587.62,0,0,0,0,59182119.979999997,167587.62,59182119.979999997,167587.62]
["2021","GRIMSBY POWER INCORPORATED","GENERAL SERVICE EQUAL TO OR GREATER THAN 50 KW","GENERAL SERVICE 50 TO 4,999 KW","GRIMSBY POWER INCORPORATED_GENERAL SERVICE 50 TO 4,999 KW SERVICE CLASSIFICATION","GRIMSBY POWER INCORPORATED_GENERAL SERVICE 50 TO 4,999 KW SERVICE CLASSIFICATION",9415715.8399999999,25346,4298109.33,13360.43,48436271.82,133523.97,3220636.5,6393.31005859375,0,0,55955017.729999997,153277.71,65370733.57,178624.47]
["2021","GRIMSBY POWER INCORPORATED","GENERAL SERVICE LESS THAN 50 KW","GENERAL SERVICE LESS THAN 50 KW","GRIMSBY POWER INCORPORATED_GENERAL SERVICE LESS THAN 50 KW SERVICE CLASSIFICATION","GRIMSBY POWER INCORPORATED_GENERAL SERVICE LESS THAN 50 KW SERVICE CLASSIFICATION",3668211,0,15482556.58,0,0,0,0,0,0,0,15482556.58,0,19150767.579999998,0]
["2021","GRIMSBY POWER INCORPORATED","NO RATE CLASS","NO RATE CLASS","GRIMSBY POWER INCORPORATED_NO RATE CLASS SERVICE CLASSIFICATION","GRIMSBY POWER INCORPORATED_NO RATE CLASS SERVICE CLASSIFICATION",0,0,0,0,0,0,0,0,5292286.5,12408.73046875,0,0,0,0]
["2021","GRIMSBY POWER INCORPORATED","RESIDENTIAL","RESIDENTIAL","GRIMSBY POWER INCORPORATED_RESIDENTIAL SERVICE CLASSIFICATION","GRIMSBY POWER INCORPORATED_RESIDENTIAL SERVICE CLASSIFICATION",1614253.6,0,100557168.13,0,0,0,0,0,0,0,100557168.13,0,102171421.73,0]
["2021","GRIMSBY POWER INCORPORATED","STREET LIGHTING CONNECTIONS","STREET LIGHTING","GRIMSBY POWER INCORPORATED_STREET LIGHTING SERVICE CLASSIFICATION","GRIMSBY POWER INCORPORATED_STREET LIGHTING SERVICE CLASSIFICATION",734947.1,2014,0,0,5285.5,12.92,0,0,0,0,5285.5,12.92,740232.6,2026.92]
["2021","GRIMSBY POWER INCORPORATED","UNMETERED SCATTERED LOAD CONNECTIONS","UNMETERED SCATTERED LOAD","GRIMSBY POWER INCORPORATED_UNMETERED SCATTERED LOAD SERVICE CLASSIFICATION","GRIMSBY POWER INCORPORATED_UNMETERED SCATTERED LOAD SERVICE CLASSIFICATION",1159.5899999999999,0,327150.8,0,0,0,0,0,0,0,327150.8,0,328310.39,0]
["2021","HALTON HILLS HYDRO INC.","GENERAL SERVICE EQUAL TO OR GREATER THAN 50 KW","GENERAL SERVICE 1,000 TO 4,999 KW","HALTON HILLS HYDRO INC._GENERAL SERVICE 1,000 TO 4,999 KW SERVICE CLASSIFICATION","HALTON HILLS HYDRO INC._GENERAL SERVICE 1,000 TO 4,999 KW SERVICE CLASSIFICATION",25859126,53707,0,0,63785673,166213,0,0,0,0,63785673,166213,89644799,219920]
["2021","HALTON HILLS HYDRO INC.","GENERAL SERVICE EQUAL TO OR GREATER THAN 50 KW","GENERAL SERVICE 50 TO 999 KW","HALTON HILLS HYDRO INC._GENERAL SERVICE 50 TO 999 KW SERVICE CLASSIFICATION","HALTON HILLS HYDRO INC._GENERAL SERVICE 50 TO 999 KW SERVICE CLASSIFICATION",19366605,58924,10760869,33688,112710362,307893,3683237,6989,0,0,127154468,348570,146521073,407494]
["2021","HALTON HILLS HYDRO INC.","GENERAL SERVICE LESS THAN 50 KW","GENERAL SERVICE LESS THAN 50 KW","HALTON HILLS HYDRO INC._GENERAL SERVICE LESS THAN 50 KW SERVICE CLASSIFICATION","HALTON HILLS HYDRO INC._GENERAL SERVICE LESS THAN 50 KW SERVICE CLASSIFICATION",6732091,0,39727320,0,0,0,0,0,0,0,39727320,0,46459411,0]
["2021","HALTON HILLS HYDRO INC.","NO RATE CLASS","NO RATE CLASS","HALTON HILLS HYDRO INC._NO RATE CLASS SERVICE CLASSIFICATION","HALTON HILLS HYDRO INC._NO RATE CLASS SERVICE CLASSIFICATION",0,0,0,0,0,0,0,0,69749928,145039,0,0,0,0]
["2021","HALTON HILLS HYDRO INC.","RESIDENTIAL","RESIDENTIAL","HALTON HILLS HYDRO INC._RESIDENTIAL SERVICE CLASSIFICATION","HALTON HILLS HYDRO INC._RESIDENTIAL SERVICE CLASSIFICATION",3114860,0,215312415,0,0,0,0,0,0,0,215312415,0,218427275,0]
["2021","HALTON HILLS HYDRO INC.","SENTINEL LIGHTING CONNECTIONS","SENTINEL LIGHTING","HALTON HILLS HYDRO INC._SENTINEL LIGHTING SERVICE CLASSIFICATION","HALTON HILLS HYDRO INC._SENTINEL LIGHTING SERVICE CLASSIFICATION",29587,83,217548,587,0,0,0,0,0,0,217548,587,247135,670]
["2021","HALTON HILLS HYDRO INC.","STREET LIGHTING CONNECTIONS","STREET LIGHTING","HALTON HILLS HYDRO INC._STREET LIGHTING SERVICE CLASSIFICATION","HALTON HILLS HYDRO INC._STREET LIGHTING SERVICE CLASSIFICATION",0,0,0,0,1138183,3165,0,0,0,0,1138183,3165,1138183,3165]
["2021","HALTON HILLS HYDRO INC.","UNMETERED SCATTERED LOAD CONNECTIONS","UNMETERED SCATTERED LOAD","HALTON HILLS HYDRO INC._UNMETERED SCATTERED LOAD SERVICE CLASSIFICATION","HALTON HILLS HYDRO INC._UNMETERED SCATTERED LOAD SERVICE CLASSIFICATION",0,0,960745,0,0,0,0,0,0,0,960745,0,960745,0]
["2021","HEARST POWER DISTRIBUTION CO. LTD.","GENERAL SERVICE EQUAL TO OR GREATER THAN 50 KW","GENERAL SERVICE 50 TO 1,499 KW","HEARST POWER DISTRIBUTION CO. LTD._GENERAL SERVICE 50 TO 1,499 KW SERVICE CLASSIFICATION","HEARST POWER DISTRIBUTION CO. LTD._GENERAL SERVICE 50 TO 1,499 KW SERVICE CLASSIFICATION",205160,625,2481690,7880.6,20370844.91,56802.43,0,0,0,0,22852534.91,64683.03,23057694.91,65308.79]
["2021","HEARST POWER DISTRIBUTION CO. LTD.","GENERAL SERVICE EQUAL TO OR GREATER THAN 50 KW","INTERMEDIATE USER","HEARST POWER DISTRIBUTION CO. LTD._INTERMEDIATE USER SERVICE CLASSIFICATION","HEARST POWER DISTRIBUTION CO. LTD._INTERMEDIATE USER SERVICE CLASSIFICATION",0,0,0,0,18851449.710000001,58774.400000000001,0,0,0,0,18851449.710000001,58774.400000000001,18851449.710000001,58774.400000000001]
["2021","HEARST POWER DISTRIBUTION CO. LTD.","GENERAL SERVICE LESS THAN 50 KW","GENERAL SERVICE LESS THAN 50 KW","HEARST POWER DISTRIBUTION CO. LTD._GENERAL SERVICE LESS THAN 50 KW SERVICE CLASSIFICATION","HEARST POWER DISTRIBUTION CO. LTD._GENERAL SERVICE LESS THAN 50 KW SERVICE CLASSIFICATION",477020.01,0,9283374.0800000001,0,54,0,0,0,0,0,9283428.0800000001,0,9760448.0899999999,0]
["2021","HEARST POWER DISTRIBUTION CO. LTD.","NO RATE CLASS","NO RATE CLASS","HEARST POWER DISTRIBUTION CO. LTD._NO RATE CLASS SERVICE CLASSIFICATION","HEARST POWER DISTRIBUTION CO. LTD._NO RATE CLASS SERVICE CLASSIFICATION",0,0,0,0,0,0,0,0,26278010,81903.8828125,0,0,0,0]
["2021","HEARST POWER DISTRIBUTION CO. LTD.","RESIDENTIAL","RESIDENTIAL","HEARST POWER DISTRIBUTION CO. LTD._RESIDENTIAL SERVICE CLASSIFICATION","HEARST POWER DISTRIBUTION CO. LTD._RESIDENTIAL SERVICE CLASSIFICATION",53625.01,0,22212712.690000001,0,0,0,0,0,0,0,22212712.690000001,0,22266337.699999999,0]
["2021","HEARST POWER DISTRIBUTION CO. LTD.","SENTINEL LIGHTING CONNECTIONS","SENTINEL LIGHTING","HEARST POWER DISTRIBUTION CO. LTD._SENTINEL LIGHTING SERVICE CLASSIFICATION","HEARST POWER DISTRIBUTION CO. LTD._SENTINEL LIGHTING SERVICE CLASSIFICATION",0,0,9452.16,33.6,0,0,0,0,0,0,9452.16,33.6,9452.16,33.6]
["2021","HEARST POWER DISTRIBUTION CO. LTD.","STREET LIGHTING CONNECTIONS","STREET LIGHTING","HEARST POWER DISTRIBUTION CO. LTD._STREET LIGHTING SERVICE CLASSIFICATION","HEARST POWER DISTRIBUTION CO. LTD._STREET LIGHTING SERVICE CLASSIFICATION",435546.78,1338,0,0,14611.8,20.04,0,0,0,0,14611.8,20.04,450158.58,1358.64]
["2021","HYDRO 2000 INC.","GENERAL SERVICE EQUAL TO OR GREATER THAN 50 KW","GENERAL SERVICE 50 TO 4,999 KW","HYDRO 2000 INC._GENERAL SERVICE 50 TO 4,999 KW SERVICE CLASSIFICATION","HYDRO 2000 INC._GENERAL SERVICE 50 TO 4,999 KW SERVICE CLASSIFICATION",215175,0,516680,0,2941017,9248.5,0,0,0,0,3457697,9248.5,3672872,9248.5]
["2021","HYDRO 2000 INC.","GENERAL SERVICE LESS THAN 50 KW","GENERAL SERVICE LESS THAN 50 KW","HYDRO 2000 INC._GENERAL SERVICE LESS THAN 50 KW SERVICE CLASSIFICATION","HYDRO 2000 INC._GENERAL SERVICE LESS THAN 50 KW SERVICE CLASSIFICATION",448360,0,3209130,0,0,0,0,0,0,0,3209130,0,3657490,0]
["2021","HYDRO 2000 INC.","NO RATE CLASS","NO RATE CLASS","HYDRO 2000 INC._NO RATE CLASS SERVICE CLASSIFICATION","HYDRO 2000 INC._NO RATE CLASS SERVICE CLASSIFICATION",0,0,0,0,0,0,0,0,0,0,0,0,0,0]
["2021","HYDRO 2000 INC.","RESIDENTIAL","RESIDENTIAL","HYDRO 2000 INC._RESIDENTIAL SERVICE CLASSIFICATION","HYDRO 2000 INC._RESIDENTIAL SERVICE CLASSIFICATION",122406,0,12800770,0,0,0,0,0,0,0,12800770,0,12923176,0]
["2021","HYDRO 2000 INC.","STREET LIGHTING CONNECTIONS","STREET LIGHTING","HYDRO 2000 INC._STREET LIGHTING SERVICE CLASSIFICATION","HYDRO 2000 INC._STREET LIGHTING SERVICE CLASSIFICATION",0,0,0,0,152559,424.8,0,0,0,0,152559,424.8,152559,424.8]
["2021","HYDRO 2000 INC.","UNMETERED SCATTERED LOAD CONNECTIONS","UNMETERED SCATTERED LOAD","HYDRO 2000 INC._UNMETERED SCATTERED LOAD SERVICE CLASSIFICATION","HYDRO 2000 INC._UNMETERED SCATTERED LOAD SERVICE CLASSIFICATION",0,0,17912,0,0,0,0,0,0,0,17912,0,17912,0]
["2021","HYDRO HAWKESBURY INC.","GENERAL SERVICE EQUAL TO OR GREATER THAN 50 KW","GENERAL SERVICE 50 TO 4,999 KW","HYDRO HAWKESBURY INC._GENERAL SERVICE 50 TO 4,999 KW SERVICE CLASSIFICATION","HYDRO HAWKESBURY INC._GENERAL SERVICE 50 TO 4,999 KW SERVICE CLASSIFICATION",11167140,24497,0,0,58390591,152206,0,0,0,0,58390591,152206,69557731,176703.03]
["2021","HYDRO HAWKESBURY INC.","GENERAL SERVICE LESS THAN 50 KW","GENERAL SERVICE LESS THAN 50 KW","HYDRO HAWKESBURY INC._GENERAL SERVICE LESS THAN 50 KW SERVICE CLASSIFICATION","HYDRO HAWKESBURY INC._GENERAL SERVICE LESS THAN 50 KW SERVICE CLASSIFICATION",3411154.55,0,13090682,0,0,0,0,0,0,0,13090682,0,16501836.550000001,0]
["2021","HYDRO HAWKESBURY INC.","NO RATE CLASS","NO RATE CLASS","HYDRO HAWKESBURY INC._NO RATE CLASS SERVICE CLASSIFICATION","HYDRO HAWKESBURY INC._NO RATE CLASS SERVICE CLASSIFICATION",0,0,0,0,0,0,0,0,13664277,32248,0,0,0,0]
["2021","HYDRO HAWKESBURY INC.","RESIDENTIAL","RESIDENTIAL","HYDRO HAWKESBURY INC._RESIDENTIAL SERVICE CLASSIFICATION","HYDRO HAWKESBURY INC._RESIDENTIAL SERVICE CLASSIFICATION",566633.16,0,49566755,0,0,0,0,0,0,0,49566755,0,50133388.159999996,0]
["2021","HYDRO HAWKESBURY INC.","SENTINEL LIGHTING CONNECTIONS","SENTINEL LIGHTING","HYDRO HAWKESBURY INC._SENTINEL LIGHTING SERVICE CLASSIFICATION","HYDRO HAWKESBURY INC._SENTINEL LIGHTING SERVICE CLASSIFICATION",5028.4799999999996,0,41564,136,0,0,0,0,0,0,41564,136,46592.480000000003,136]
["2021","HYDRO HAWKESBURY INC.","STREET LIGHTING CONNECTIONS","STREET LIGHTING","HYDRO HAWKESBURY INC._STREET LIGHTING SERVICE CLASSIFICATION","HYDRO HAWKESBURY INC._STREET LIGHTING SERVICE CLASSIFICATION",0,0,0,0,503195,1391,0,0,0,0,503195,1391,503195,1391]
["2021","HYDRO HAWKESBURY INC.","UNMETERED SCATTERED LOAD CONNECTIONS","UNMETERED SCATTERED LOAD","HYDRO HAWKESBURY INC._UNMETERED SCATTERED LOAD SERVICE CLASSIFICATION","HYDRO HAWKESBURY INC._UNMETERED SCATTERED LOAD SERVICE CLASSIFICATION",199824,0,132180,0,0,0,0,0,0,0,132180,0,332004,0]
["2021","HYDRO ONE NETWORKS INC.","EMBEDDED DISTRIBUTOR(S)","EMBEDDED DISTRIBUTOR (HALDIMAND COUNTY) - HYDRO ONE","HYDRO ONE NETWORKS INC._EMBEDDED DISTRIBUTOR (HALDIMAND COUNTY) - HYDRO ONE SERVICE CLASSIFICATION","HYDRO ONE NETWORKS INC._EMBEDDED DISTRIBUTOR (HALDIMAND COUNTY) - HYDRO ONE SERVICE CLASSIFICATION",0,0,0,0,0,0,0,0,0,0,0,0,0,0]
["2021","HYDRO ONE NETWORKS INC.","EMBEDDED DISTRIBUTOR(S)","EMBEDDED DISTRIBUTOR – NORFOLK POWER","HYDRO ONE NETWORKS INC._EMBEDDED DISTRIBUTOR – NORFOLK POWER SERVICE CLASSIFICATION","HYDRO ONE NETWORKS INC._EMBEDDED DISTRIBUTOR – NORFOLK POWER SERVICE CLASSIFICATION",0,0,0,0,0,0,0,0,0,0,0,0,0,0]
["2021","HYDRO ONE NETWORKS INC.","EMBEDDED DISTRIBUTOR(S)","SUB TRANSMISSION – EMBEDDED DISTRIBUTOR - HYDRO ONE NETWORKS","HYDRO ONE NETWORKS INC._SUB TRANSMISSION – EMBEDDED DISTRIBUTOR - HYDRO ONE NETWORKS SERVICE CLASSIFICATION","HYDRO ONE NETWORKS INC._SUB TRANSMISSION – EMBEDDED DISTRIBUTOR - HYDRO ONE NETWORKS SERVICE CLASSIFICATION",0,0,0,0,1311283280.2,5064711.71,9109449728,18045516,0,0,10420732879.200001,23110228.710000001,10420732879.200001,23110228.710000001]
["2021","HYDRO ONE NETWORKS INC.","GENERAL SERVICE EQUAL TO OR GREATER THAN 50 KW","DISTRIBUTED GENERATION - DGEN - HYDRO ONE NETWORKS","HYDRO ONE NETWORKS INC._DISTRIBUTED GENERATION - DGEN - HYDRO ONE NETWORKS SERVICE CLASSIFICATION","HYDRO ONE NETWORKS INC._DISTRIBUTED GENERATION - DGEN - HYDRO ONE NETWORKS SERVICE CLASSIFICATION",213939,1848,0,0,27754440,184382,111566,5174,0,0,27866006,189556,28079945,191404]
["2021","HYDRO ONE NETWORKS INC.","GENERAL SERVICE EQUAL TO OR GREATER THAN 50 KW","GENERAL SERVICE 50 TO 4,999 KW - 1937680 ONTARIO INC.","HYDRO ONE NETWORKS INC._GENERAL SERVICE 50 TO 4,999 KW - 1937680 ONTARIO INC. SERVICE CLASSIFICATION","HYDRO ONE NETWORKS INC._GENERAL SERVICE 50 TO 4,999 KW - 1937680 ONTARIO INC. SERVICE CLASSIFICATION",0,0,0,0,0,0,0,0,0,0,0,0,0,0]
["2021","HYDRO ONE NETWORKS INC.","GENERAL SERVICE EQUAL TO OR GREATER THAN 50 KW","GENERAL SERVICE 50 TO 4,999 KW - HALDIMAND COUNTY","HYDRO ONE NETWORKS INC._GENERAL SERVICE 50 TO 4,999 KW - HALDIMAND COUNTY SERVICE CLASSIFICATION","HYDRO ONE NETWORKS INC._GENERAL SERVICE 50 TO 4,999 KW - HALDIMAND COUNTY SERVICE CLASSIFICATION",41391749,99793,8670507,28478,80894676,224078,2593568,4992,0,0,92158751,257548,133550500,357341]
["2021","HYDRO ONE NETWORKS INC.","GENERAL SERVICE EQUAL TO OR GREATER THAN 50 KW","GENERAL SERVICE 50 TO 4,999 KW - NORFOLK POWER","HYDRO ONE NETWORKS INC._GENERAL SERVICE 50 TO 4,999 KW - NORFOLK POWER SERVICE CLASSIFICATION","HYDRO ONE NETWORKS INC._GENERAL SERVICE 50 TO 4,999 KW - NORFOLK POWER SERVICE CLASSIFICATION",46418043,131077,5603929,21930,72687504,187606,3290474,6072,0,0,81581907,215608,127999950,346685]
["2021","HYDRO ONE NETWORKS INC.","GENERAL SERVICE EQUAL TO OR GREATER THAN 50 KW","GENERAL SERVICE 50 TO 999 KW - WOODSTOCK HYDRO","HYDRO ONE NETWORKS INC._GENERAL SERVICE 50 TO 999 KW - WOODSTOCK HYDRO SERVICE CLASSIFICATION","HYDRO ONE NETWORKS INC._GENERAL SERVICE 50 TO 999 KW - WOODSTOCK HYDRO SERVICE CLASSIFICATION",26844351,76529,13790665,36895,91419432,249215,2872671,5271,0,0,108082768,291381,134927119,367910]
["2021","HYDRO ONE NETWORKS INC.","GENERAL SERVICE EQUAL TO OR GREATER THAN 50 KW","GENERAL SERVICE DEMAND BILLED (50 KW AND ABOVE) - GSD - HYDRO ONE NETWORKS","HYDRO ONE NETWORKS INC._GENERAL SERVICE DEMAND BILLED (50 KW AND ABOVE) - GSD - HYDRO ONE NETWORKS SERVICE CLASSIFICATION","HYDRO ONE NETWORKS INC._GENERAL SERVICE DEMAND BILLED (50 KW AND ABOVE) - GSD - HYDRO ONE NETWORKS SERVICE CLASSIFICATION",567250697,2144598,280524614,1270087,1533837174,5019849,8109782,14664,0,0,1822471570,6304600,2389722267,8449198]
["2021","HYDRO ONE NETWORKS INC.","GENERAL SERVICE EQUAL TO OR GREATER THAN 50 KW","GENERAL SERVICE GREATER THAN 1,000 KW - WOODSTOCK HYDRO","HYDRO ONE NETWORKS INC._GENERAL SERVICE GREATER THAN 1,000 KW - WOODSTOCK HYDRO SERVICE CLASSIFICATION","HYDRO ONE NETWORKS INC._GENERAL SERVICE GREATER THAN 1,000 KW - WOODSTOCK HYDRO SERVICE CLASSIFICATION",15712043,58941,0,0,38140689,98336,0,0,0,0,38140689,98336,53852732,157277]
["2021","HYDRO ONE NETWORKS INC.","GENERAL SERVICE EQUAL TO OR GREATER THAN 50 KW","URBAN GENERAL SERVICE DEMAND BILLED (50 KW AND ABOVE) - UGD - HYDRO ONE NETWORKS","HYDRO ONE NETWORKS INC._URBAN GENERAL SERVICE DEMAND BILLED (50 KW AND ABOVE) - UGD - HYDRO ONE NETWORKS SERVICE CLASSIFICATION","HYDRO ONE NETWORKS INC._URBAN GENERAL SERVICE DEMAND BILLED (50 KW AND ABOVE) - UGD - HYDRO ONE NETWORKS SERVICE CLASSIFICATION",173350962,545966,128927251,406082,639185931,1826039,2369023,4279,0,0,770482205,2236400,943833167,2782366]
["2021","HYDRO ONE NETWORKS INC.","GENERAL SERVICE LESS THAN 50 KW","GENERAL SERVICE ENERGY BILLED (LESS THAN 50 KW) - GSE METERED - HYDRO ONE NETWORKS","HYDRO ONE NETWORKS INC._GENERAL SERVICE ENERGY BILLED (LESS THAN 50 KW) - GSE METERED - HYDRO ONE NETWORKS SERVICE CLASSIFICATION","HYDRO ONE NETWORKS INC._GENERAL SERVICE ENERGY BILLED (LESS THAN 50 KW) - GSE METERED - HYDRO ONE NETWORKS SERVICE CLASSIFICATION",435815038,0,1759119066,0,41160466,0,0,0,0,0,1800279532,0,2236094570,0]
["2021","HYDRO ONE NETWORKS INC.","GENERAL SERVICE LESS THAN 50 KW","GENERAL SERVICE LESS THAN 50 KW - 1937680 ONTARIO INC.","HYDRO ONE NETWORKS INC._GENERAL SERVICE LESS THAN 50 KW - 1937680 ONTARIO INC. SERVICE CLASSIFICATION","HYDRO ONE NETWORKS INC._GENERAL SERVICE LESS THAN 50 KW - 1937680 ONTARIO INC. SERVICE CLASSIFICATION",0,0,0,0,0,0,0,0,0,0,0,0,0,0]
["2021","HYDRO ONE NETWORKS INC.","GENERAL SERVICE LESS THAN 50 KW","GENERAL SERVICE LESS THAN 50 KW - HALDIMAND COUNTY","HYDRO ONE NETWORKS INC._GENERAL SERVICE LESS THAN 50 KW - HALDIMAND COUNTY SERVICE CLASSIFICATION","HYDRO ONE NETWORKS INC._GENERAL SERVICE LESS THAN 50 KW - HALDIMAND COUNTY SERVICE CLASSIFICATION",19650798,0,43240359,0,226762,0,0,0,0,0,43467121,0,63117919,0]
["2021","HYDRO ONE NETWORKS INC.","GENERAL SERVICE LESS THAN 50 KW","GENERAL SERVICE LESS THAN 50 KW - NORFOLK POWER","HYDRO ONE NETWORKS INC._GENERAL SERVICE LESS THAN 50 KW - NORFOLK POWER SERVICE CLASSIFICATION","HYDRO ONE NETWORKS INC._GENERAL SERVICE LESS THAN 50 KW - NORFOLK POWER SERVICE CLASSIFICATION",14942303,0,39597579,0,2783776,0,0,0,0,0,42381355,0,57323658,0]
["2021","HYDRO ONE NETWORKS INC.","GENERAL SERVICE LESS THAN 50 KW","GENERAL SERVICE LESS THAN 50 KW - WOODSTOCK HYDRO","HYDRO ONE NETWORKS INC._GENERAL SERVICE LESS THAN 50 KW - WOODSTOCK HYDRO SERVICE CLASSIFICATION","HYDRO ONE NETWORKS INC._GENERAL SERVICE LESS THAN 50 KW - WOODSTOCK HYDRO SERVICE CLASSIFICATION",7166017,0,34197400,0,1948164,0,0,0,0,0,36145564,0,43311581,0]
["2021","HYDRO ONE NETWORKS INC.","GENERAL SERVICE LESS THAN 50 KW","URBAN GENERAL SERVICE ENERGY BILLED (LESS THAN 50 KW) - UGE - HYDRO ONE NETWORKS","HYDRO ONE NETWORKS INC._URBAN GENERAL SERVICE ENERGY BILLED (LESS THAN 50 KW) - UGE - HYDRO ONE NETWORKS SERVICE CLASSIFICATION","HYDRO ONE NETWORKS INC._URBAN GENERAL SERVICE ENERGY BILLED (LESS THAN 50 KW) - UGE - HYDRO ONE NETWORKS SERVICE CLASSIFICATION",116427037,0,444327161,0,10148205,0,0,0,0,0,454475366,0,570902403,0]
["2021","HYDRO ONE NETWORKS INC.","LARGE USER","LARGE USE - 1937680 ONTARIO INC.","HYDRO ONE NETWORKS INC._LARGE USE - 1937680 ONTARIO INC. SERVICE CLASSIFICATION","HYDRO ONE NETWORKS INC._LARGE USE - 1937680 ONTARIO INC. SERVICE CLASSIFICATION",0,0,0,0,0,0,0,0,0,0,0,0,0,0]
["2021","HYDRO ONE NETWORKS INC.","NO RATE CLASS","NO RATE CLASS","HYDRO ONE NETWORKS INC._NO RATE CLASS SERVICE CLASSIFICATION","HYDRO ONE NETWORKS INC._NO RATE CLASS SERVICE CLASSIFICATION",0,0,0,0,0,0,0,0,4186146304,9522855,0,0,0,0]
["2021","HYDRO ONE NETWORKS INC.","RESIDENTIAL","RESIDENTIAL - 1937680 ONTARIO INC.","HYDRO ONE NETWORKS INC._RESIDENTIAL - 1937680 ONTARIO INC. SERVICE CLASSIFICATION","HYDRO ONE NETWORKS INC._RESIDENTIAL - 1937680 ONTARIO INC. SERVICE CLASSIFICATION",0,0,0,0,0,0,0,0,0,0,0,0,0,0]
["2021","HYDRO ONE NETWORKS INC.","RESIDENTIAL","RESIDENTIAL - HALDIMAND COUNTY","HYDRO ONE NETWORKS INC._RESIDENTIAL - HALDIMAND COUNTY SERVICE CLASSIFICATION","HYDRO ONE NETWORKS INC._RESIDENTIAL - HALDIMAND COUNTY SERVICE CLASSIFICATION",7308467,0,184788979.44,0,0,0,0,0,0,0,184788979.44,0,192097446.44,0]
["2021","HYDRO ONE NETWORKS INC.","RESIDENTIAL","RESIDENTIAL - LOW DENSITY (R2) - HYDRO ONE NETWORKS","HYDRO ONE NETWORKS INC._RESIDENTIAL - LOW DENSITY (R2) - HYDRO ONE NETWORKS SERVICE CLASSIFICATION","HYDRO ONE NETWORKS INC._RESIDENTIAL - LOW DENSITY (R2) - HYDRO ONE NETWORKS SERVICE CLASSIFICATION",223264477,0,4721589724.5299997,0,1849103.2,0,0,0,0,0,4723438827.7299995,0,4946703304.7299995,0]
["2021","HYDRO ONE NETWORKS INC.","RESIDENTIAL","RESIDENTIAL - MEDIUM DENSITY (R1) - HYDRO ONE NETWORKS","HYDRO ONE NETWORKS INC._RESIDENTIAL - MEDIUM DENSITY (R1) - HYDRO ONE NETWORKS SERVICE CLASSIFICATION","HYDRO ONE NETWORKS INC._RESIDENTIAL - MEDIUM DENSITY (R1) - HYDRO ONE NETWORKS SERVICE CLASSIFICATION",106724313,0,5090041642.5,0,576665.72,0,0,0,0,0,5090618308.2200003,0,5197342621.2200003,0]
["2021","HYDRO ONE NETWORKS INC.","RESIDENTIAL","RESIDENTIAL - NORFOLK POWER","HYDRO ONE NETWORKS INC._RESIDENTIAL - NORFOLK POWER SERVICE CLASSIFICATION","HYDRO ONE NETWORKS INC._RESIDENTIAL - NORFOLK POWER SERVICE CLASSIFICATION",4256846,0,154110632.94,0,0,0,0,0,0,0,154110632.94,0,158367478.94,0]
["2021","HYDRO ONE NETWORKS INC.","RESIDENTIAL","RESIDENTIAL - SEASONAL - HYDRO ONE NETWORKS","HYDRO ONE NETWORKS INC._RESIDENTIAL - SEASONAL - HYDRO ONE NETWORKS SERVICE CLASSIFICATION","HYDRO ONE NETWORKS INC._RESIDENTIAL - SEASONAL - HYDRO ONE NETWORKS SERVICE CLASSIFICATION",3867339,0,713051806.04999995,0,36342.57,0,0,0,0,0,713088148.62,0,716955487.62,0]
["2021","HYDRO ONE NETWORKS INC.","RESIDENTIAL","RESIDENTIAL - URBAN (UR) - HYDRO ONE NETWORKS","HYDRO ONE NETWORKS INC._RESIDENTIAL - URBAN (UR) - HYDRO ONE NETWORKS SERVICE CLASSIFICATION","HYDRO ONE NETWORKS INC._RESIDENTIAL - URBAN (UR) - HYDRO ONE NETWORKS SERVICE CLASSIFICATION",50362622,0,2061617467.8800001,0,38582.019999999997,0,0,0,0,0,2061656049.9000001,0,2112018671.9000001,0]
["2021","HYDRO ONE NETWORKS INC.","RESIDENTIAL","RESIDENTIAL - WOODSTOCK HYDRO","HYDRO ONE NETWORKS INC._RESIDENTIAL - WOODSTOCK HYDRO SERVICE CLASSIFICATION","HYDRO ONE NETWORKS INC._RESIDENTIAL - WOODSTOCK HYDRO SERVICE CLASSIFICATION",2971613,0,121107251.72,0,0,0,0,0,0,0,121107251.72,0,124078864.72,0]
["2021","HYDRO ONE NETWORKS INC.","SENTINEL LIGHTING CONNECTIONS","SENTINEL LIGHTING - 1937680 ONTARIO INC.","HYDRO ONE NETWORKS INC._SENTINEL LIGHTING - 1937680 ONTARIO INC. SERVICE CLASSIFICATION","HYDRO ONE NETWORKS INC._SENTINEL LIGHTING - 1937680 ONTARIO INC. SERVICE CLASSIFICATION",0,0,0,0,0,0,0,0,0,0,0,0,0,0]
["2021","HYDRO ONE NETWORKS INC.","SENTINEL LIGHTING CONNECTIONS","SENTINEL LIGHTING - HALDIMAND COUNTY","HYDRO ONE NETWORKS INC._SENTINEL LIGHTING - HALDIMAND COUNTY SERVICE CLASSIFICATION","HYDRO ONE NETWORKS INC._SENTINEL LIGHTING - HALDIMAND COUNTY SERVICE CLASSIFICATION",33908,97,150920,615,0,0,0,0,0,0,150920,615,184828,712]
["2021","HYDRO ONE NETWORKS INC.","SENTINEL LIGHTING CONNECTIONS","SENTINEL LIGHTING - HYDRO ONE NETWORKS","HYDRO ONE NETWORKS INC._SENTINEL LIGHTING - HYDRO ONE NETWORKS SERVICE CLASSIFICATION","HYDRO ONE NETWORKS INC._SENTINEL LIGHTING - HYDRO ONE NETWORKS SERVICE CLASSIFICATION",610188,0,11146628,0,258242,0,0,0,0,0,11404870,0,12015058,0]
["2021","HYDRO ONE NETWORKS INC.","SENTINEL LIGHTING CONNECTIONS","SENTINEL LIGHTING - NORFOLK POWER","HYDRO ONE NETWORKS INC._SENTINEL LIGHTING - NORFOLK POWER SERVICE CLASSIFICATION","HYDRO ONE NETWORKS INC._SENTINEL LIGHTING - NORFOLK POWER SERVICE CLASSIFICATION",2576,7,135743,426,0,0,0,0,0,0,135743,426,138319,433]
["2021","HYDRO ONE NETWORKS INC.","STREET LIGHTING CONNECTIONS","STREET LIGHTING - 1937680 ONTARIO INC.","HYDRO ONE NETWORKS INC._STREET LIGHTING - 1937680 ONTARIO INC. SERVICE CLASSIFICATION","HYDRO ONE NETWORKS INC._STREET LIGHTING - 1937680 ONTARIO INC. SERVICE CLASSIFICATION",0,0,0,0,0,0,0,0,0,0,0,0,0,0]
["2021","HYDRO ONE NETWORKS INC.","STREET LIGHTING CONNECTIONS","STREET LIGHTING - HALDIMAND COUNTY","HYDRO ONE NETWORKS INC._STREET LIGHTING - HALDIMAND COUNTY SERVICE CLASSIFICATION","HYDRO ONE NETWORKS INC._STREET LIGHTING - HALDIMAND COUNTY SERVICE CLASSIFICATION",1475757.86,4043,3238.28,27.9,6969.87,16,0,0,0,0,10208.15,43.9,1485966.01,4087.08]
["2021","HYDRO ONE NETWORKS INC.","STREET LIGHTING CONNECTIONS","STREET LIGHTING - HYDRO ONE NETWORKS","HYDRO ONE NETWORKS INC._STREET LIGHTING - HYDRO ONE NETWORKS SERVICE CLASSIFICATION","HYDRO ONE NETWORKS INC._STREET LIGHTING - HYDRO ONE NETWORKS SERVICE CLASSIFICATION",23401460.850000001,0,44112721.5,0,11853037.189999999,0,0,0,0,0,55965758.689999998,0,79367219.540000007,0]
["2021","HYDRO ONE NETWORKS INC.","STREET LIGHTING CONNECTIONS","STREET LIGHTING - NORFOLK POWER","HYDRO ONE NETWORKS INC._STREET LIGHTING - NORFOLK POWER SERVICE CLASSIFICATION","HYDRO ONE NETWORKS INC._STREET LIGHTING - NORFOLK POWER SERVICE CLASSIFICATION",0,0,31863.25,85.78,1745503.25,6046.84,0,0,0,0,1777366.5,6132.62,1777366.5,6132.62]
["2021","HYDRO ONE NETWORKS INC.","STREET LIGHTING CONNECTIONS","STREET LIGHTING - WOODSTOCK HYDRO","HYDRO ONE NETWORKS INC._STREET LIGHTING - WOODSTOCK HYDRO SERVICE CLASSIFICATION","HYDRO ONE NETWORKS INC._STREET LIGHTING - WOODSTOCK HYDRO SERVICE CLASSIFICATION",9914.14,33,55041.62,151.33000000000001,2605013.61,7290.57,0,0,0,0,2660055.23,7441.9,2669969.37,7475.08]
["2021","HYDRO ONE NETWORKS INC.","SUB TRANSMISSION CUSTOMERS","SUB TRANSMISSION – END USE CUSTOMER - HYDRO ONE NETWORKS","HYDRO ONE NETWORKS INC._SUB TRANSMISSION – END USE CUSTOMER - HYDRO ONE NETWORKS SERVICE CLASSIFICATION","HYDRO ONE NETWORKS INC._SUB TRANSMISSION – END USE CUSTOMER - HYDRO ONE NETWORKS SERVICE CLASSIFICATION",453710743,1099308,0,0,3923015129,9401774,820862400,1814973,0,0,4743877559,11216747,5197588302,12316055]
["2021","HYDRO ONE NETWORKS INC.","UNMETERED SCATTERED LOAD CONNECTIONS","GENERAL SERVICE ENERGY BILLED (LESS THAN 50 KW) - GSE UNMETERED - HYDRO ONE NETWORKS","HYDRO ONE NETWORKS INC._GENERAL SERVICE ENERGY BILLED (LESS THAN 50 KW) - GSE UNMETERED - HYDRO ONE NETWORKS SERVICE CLASSIFICATION","HYDRO ONE NETWORKS INC._GENERAL SERVICE ENERGY BILLED (LESS THAN 50 KW) - GSE UNMETERED - HYDRO ONE NETWORKS SERVICE CLASSIFICATION",2290230,0,28592992,0,49625,0,0,0,0,0,28642617,0,30932847,0]
["2021","HYDRO ONE NETWORKS INC.","UNMETERED SCATTERED LOAD CONNECTIONS","UNMETERED SCATTERED LOAD - 1937680 ONTARIO INC.","HYDRO ONE NETWORKS INC._UNMETERED SCATTERED LOAD - 1937680 ONTARIO INC. SERVICE CLASSIFICATION","HYDRO ONE NETWORKS INC._UNMETERED SCATTERED LOAD - 1937680 ONTARIO INC. SERVICE CLASSIFICATION",0,0,0,0,0,0,0,0,0,0,0,0,0,0]
["2021","HYDRO ONE NETWORKS INC.","UNMETERED SCATTERED LOAD CONNECTIONS","UNMETERED SCATTERED LOAD - HALDIMAND COUNTY","HYDRO ONE NETWORKS INC._UNMETERED SCATTERED LOAD - HALDIMAND COUNTY SERVICE CLASSIFICATION","HYDRO ONE NETWORKS INC._UNMETERED SCATTERED LOAD - HALDIMAND COUNTY SERVICE CLASSIFICATION",56519,0,248951.74,0,0,0,0,0,0,0,248951.74,0,305470.74,0]
["2021","HYDRO ONE NETWORKS INC.","UNMETERED SCATTERED LOAD CONNECTIONS","UNMETERED SCATTERED LOAD - NORFOLK POWER","HYDRO ONE NETWORKS INC._UNMETERED SCATTERED LOAD - NORFOLK POWER SERVICE CLASSIFICATION","HYDRO ONE NETWORKS INC._UNMETERED SCATTERED LOAD - NORFOLK POWER SERVICE CLASSIFICATION",130518,0,334793.31,0,0,0,0,0,0,0,334793.31,0,465311.31,0]
["2021","HYDRO ONE NETWORKS INC.","UNMETERED SCATTERED LOAD CONNECTIONS","UNMETERED SCATTERED LOAD - WOODSTOCK HYDRO","HYDRO ONE NETWORKS INC._UNMETERED SCATTERED LOAD - WOODSTOCK HYDRO SERVICE CLASSIFICATION","HYDRO ONE NETWORKS INC._UNMETERED SCATTERED LOAD - WOODSTOCK HYDRO SERVICE CLASSIFICATION",1514,0,543120.9,0,0,0,0,0,0,0,543120.9,0,544634.9,0]
["2021","HYDRO ONE REMOTE COMMUNITIES INC.","GENERAL SERVICE EQUAL TO OR GREATER THAN 50 KW","NON STANDARD A GENERAL SERVICE THREE PHASE - G3","HYDRO ONE REMOTE COMMUNITIES INC._NON STANDARD A GENERAL SERVICE THREE PHASE - G3 SERVICE CLASSIFICATION","HYDRO ONE REMOTE COMMUNITIES INC._NON STANDARD A GENERAL SERVICE THREE PHASE - G3 SERVICE CLASSIFICATION",0,0,0,0,0,0,0,0,0,0,0,0,0,0]
["2021","HYDRO ONE REMOTE COMMUNITIES INC.","GENERAL SERVICE LESS THAN 50 KW","NON STANDARD A GENERAL SERVICE SINGLE PHASE - G1","HYDRO ONE REMOTE COMMUNITIES INC._NON STANDARD A GENERAL SERVICE SINGLE PHASE - G1 SERVICE CLASSIFICATION","HYDRO ONE REMOTE COMMUNITIES INC._NON STANDARD A GENERAL SERVICE SINGLE PHASE - G1 SERVICE CLASSIFICATION",0,0,0,0,0,0,0,0,0,0,0,0,0,0]
["2021","HYDRO ONE REMOTE COMMUNITIES INC.","GENERAL SERVICE LESS THAN 50 KW","STANDARD A GENERAL SERVICE AIR ACCESS","HYDRO ONE REMOTE COMMUNITIES INC._STANDARD A GENERAL SERVICE AIR ACCESS SERVICE CLASSIFICATION","HYDRO ONE REMOTE COMMUNITIES INC._STANDARD A GENERAL SERVICE AIR ACCESS SERVICE CLASSIFICATION",0,0,0,0,0,0,0,0,0,0,0,0,0,0]
["2021","HYDRO ONE REMOTE COMMUNITIES INC.","GENERAL SERVICE LESS THAN 50 KW","STANDARD A GENERAL SERVICE ROAD/RAIL ACCESS","HYDRO ONE REMOTE COMMUNITIES INC._STANDARD A GENERAL SERVICE ROAD/RAIL ACCESS SERVICE CLASSIFICATION","HYDRO ONE REMOTE COMMUNITIES INC._STANDARD A GENERAL SERVICE ROAD/RAIL ACCESS SERVICE CLASSIFICATION",0,0,0,0,0,0,0,0,0,0,0,0,0,0]
["2021","HYDRO ONE REMOTE COMMUNITIES INC.","GENERAL SERVICE LESS THAN 50 KW","STANDARD A GRID CONNECTED","HYDRO ONE REMOTE COMMUNITIES INC._STANDARD A GRID CONNECTED SERVICE CLASSIFICATION","HYDRO ONE REMOTE COMMUNITIES INC._STANDARD A GRID CONNECTED SERVICE CLASSIFICATION",0,0,0,0,0,0,0,0,0,0,0,0,0,0]
["2021","HYDRO ONE REMOTE COMMUNITIES INC.","NO RATE CLASS","NO RATE CLASS","HYDRO ONE REMOTE COMMUNITIES INC._NO RATE CLASS SERVICE CLASSIFICATION","HYDRO ONE REMOTE COMMUNITIES INC._NO RATE CLASS SERVICE CLASSIFICATION",0,0,0,0,0,0,0,0,null,null,0,0,0,0]
["2021","HYDRO ONE REMOTE COMMUNITIES INC.","RESIDENTIAL","NON STANDARD A SEASONAL RESIDENTIAL - R4","HYDRO ONE REMOTE COMMUNITIES INC._NON STANDARD A SEASONAL RESIDENTIAL - R4 SERVICE CLASSIFICATION","HYDRO ONE REMOTE COMMUNITIES INC._NON STANDARD A SEASONAL RESIDENTIAL - R4 SERVICE CLASSIFICATION",0,0,0,0,0,0,0,0,0,0,0,0,0,0]
["2021","HYDRO ONE REMOTE COMMUNITIES INC.","RESIDENTIAL","NON STANDARD A YEAR ROUND RESIDENTIAL - R2","HYDRO ONE REMOTE COMMUNITIES INC._NON STANDARD A YEAR ROUND RESIDENTIAL - R2 SERVICE CLASSIFICATION","HYDRO ONE REMOTE COMMUNITIES INC._NON STANDARD A YEAR ROUND RESIDENTIAL - R2 SERVICE CLASSIFICATION",0,0,0,0,0,0,0,0,0,0,0,0,0,0]
["2021","HYDRO ONE REMOTE COMMUNITIES INC.","RESIDENTIAL","STANDARD A RESIDENTIAL AIR ACCESS","HYDRO ONE REMOTE COMMUNITIES INC._STANDARD A RESIDENTIAL AIR ACCESS SERVICE CLASSIFICATION","HYDRO ONE REMOTE COMMUNITIES INC._STANDARD A RESIDENTIAL AIR ACCESS SERVICE CLASSIFICATION",0,0,0,0,0,0,0,0,0,0,0,0,0,0]
["2021","HYDRO ONE REMOTE COMMUNITIES INC.","RESIDENTIAL","STANDARD A RESIDENTIAL ROAD/RAIL ACCESS","HYDRO ONE REMOTE COMMUNITIES INC._STANDARD A RESIDENTIAL ROAD/RAIL ACCESS SERVICE CLASSIFICATION","HYDRO ONE REMOTE COMMUNITIES INC._STANDARD A RESIDENTIAL ROAD/RAIL ACCESS SERVICE CLASSIFICATION",0,0,0,0,0,0,0,0,0,0,0,0,0,0]
["2021","HYDRO ONE REMOTE COMMUNITIES INC.","STREET LIGHTING CONNECTIONS","STREET LIGHTING","HYDRO ONE REMOTE COMMUNITIES INC._STREET LIGHTING SERVICE CLASSIFICATION","HYDRO ONE REMOTE COMMUNITIES INC._STREET LIGHTING SERVICE CLASSIFICATION",0,0,0,0,0,0,0,0,0,0,0,0,0,0]
["2021","HYDRO OTTAWA LIMITED","GENERAL SERVICE EQUAL TO OR GREATER THAN 50 KW","GENERAL SERVICE 1,500 TO 4,999 KW","HYDRO OTTAWA LIMITED_GENERAL SERVICE 1,500 TO 4,999 KW SERVICE CLASSIFICATION","HYDRO OTTAWA LIMITED_GENERAL SERVICE 1,500 TO 4,999 KW SERVICE CLASSIFICATION",37045242,78561,1930684,23696,613739747,1335606,1022224,34389,0,0,616692655,1393691,653737897,1472252]
["2021","HYDRO OTTAWA LIMITED","GENERAL SERVICE EQUAL TO OR GREATER THAN 50 KW","GENERAL SERVICE 50 TO 1,499 KW","HYDRO OTTAWA LIMITED_GENERAL SERVICE 50 TO 1,499 KW SERVICE CLASSIFICATION","HYDRO OTTAWA LIMITED_GENERAL SERVICE 50 TO 1,499 KW SERVICE CLASSIFICATION",226818996,580697,339862573,802743,2095374792,5094136,31382096,59787,0,0,2466619460,5956666,2693438456,6537363]
["2021","HYDRO OTTAWA LIMITED","GENERAL SERVICE LESS THAN 50 KW","GENERAL SERVICE LESS THAN 50 KW","HYDRO OTTAWA LIMITED_GENERAL SERVICE LESS THAN 50 KW SERVICE CLASSIFICATION","HYDRO OTTAWA LIMITED_GENERAL SERVICE LESS THAN 50 KW SERVICE CLASSIFICATION",103198675,0,564195423,0,0,0,0,0,0,0,564195423,0,667394098,0]
["2021","HYDRO OTTAWA LIMITED","LARGE USER","LARGE USE","HYDRO OTTAWA LIMITED_LARGE USE SERVICE CLASSIFICATION","HYDRO OTTAWA LIMITED_LARGE USE SERVICE CLASSIFICATION",43285441,77228,0,0,530536974,933600,0,0,0,0,530536974,933600,573822415,1010828]
["2021","HYDRO OTTAWA LIMITED","NO RATE CLASS","NO RATE CLASS","HYDRO OTTAWA LIMITED_NO RATE CLASS SERVICE CLASSIFICATION","HYDRO OTTAWA LIMITED_NO RATE CLASS SERVICE CLASSIFICATION",0,0,0,0,0,0,0,0,1316072064,2548531,0,0,0,0]
["2021","HYDRO OTTAWA LIMITED","RESIDENTIAL","RESIDENTIAL","HYDRO OTTAWA LIMITED_RESIDENTIAL SERVICE CLASSIFICATION","HYDRO OTTAWA LIMITED_RESIDENTIAL SERVICE CLASSIFICATION",36826708,0,2404232753,0,0,0,0,0,0,0,2404232753,0,2441059461,0]
["2021","HYDRO OTTAWA LIMITED","SENTINEL LIGHTING CONNECTIONS","SENTINEL LIGHTING","HYDRO OTTAWA LIMITED_SENTINEL LIGHTING SERVICE CLASSIFICATION","HYDRO OTTAWA LIMITED_SENTINEL LIGHTING SERVICE CLASSIFICATION",0,0,46478,129,0,0,0,0,0,0,46478,129,46478,129]
["2021","HYDRO OTTAWA LIMITED","STREET LIGHTING CONNECTIONS","STREET LIGHTING","HYDRO OTTAWA LIMITED_STREET LIGHTING SERVICE CLASSIFICATION","HYDRO OTTAWA LIMITED_STREET LIGHTING SERVICE CLASSIFICATION",53691,149,0,0,22442245,62776,0,0,0,0,22442245,62776,22495936,62925]
["2021","HYDRO OTTAWA LIMITED","UNMETERED SCATTERED LOAD CONNECTIONS","UNMETERED SCATTERED LOAD","HYDRO OTTAWA LIMITED_UNMETERED SCATTERED LOAD SERVICE CLASSIFICATION","HYDRO OTTAWA LIMITED_UNMETERED SCATTERED LOAD SERVICE CLASSIFICATION",0,0,14403224,0,0,0,0,0,0,0,14403224,0,14403224,0]
["2021","INNPOWER CORPORATION","GENERAL SERVICE EQUAL TO OR GREATER THAN 50 KW","GENERAL SERVICE 50 TO 4,999 KW","INNPOWER CORPORATION_GENERAL SERVICE 50 TO 4,999 KW SERVICE CLASSIFICATION","INNPOWER CORPORATION_GENERAL SERVICE 50 TO 4,999 KW SERVICE CLASSIFICATION",3926981.14,16895,1796611.8,8382.5,54110954.020000003,128330.88,0,0,0,0,55907565.82,136713.38,59834546.960000001,153608.63]
["2021","INNPOWER CORPORATION","GENERAL SERVICE LESS THAN 50 KW","GENERAL SERVICE LESS THAN 50 KW","INNPOWER CORPORATION_GENERAL SERVICE LESS THAN 50 KW SERVICE CLASSIFICATION","INNPOWER CORPORATION_GENERAL SERVICE LESS THAN 50 KW SERVICE CLASSIFICATION",5231626.91,0,34641910.100000001,0,0,0,0,0,0,0,34641910.100000001,0,39873537.009999998,0]
["2021","INNPOWER CORPORATION","NO RATE CLASS","NO RATE CLASS","INNPOWER CORPORATION_NO RATE CLASS SERVICE CLASSIFICATION","INNPOWER CORPORATION_NO RATE CLASS SERVICE CLASSIFICATION",0,0,0,0,0,0,0,0,10131925,22716.580078125,0,0,0,0]
["2021","INNPOWER CORPORATION","RESIDENTIAL","RESIDENTIAL","INNPOWER CORPORATION_RESIDENTIAL SERVICE CLASSIFICATION","INNPOWER CORPORATION_RESIDENTIAL SERVICE CLASSIFICATION",3548632.66,0,171408966.86000001,0,0,0,0,0,0,0,171408966.86000001,0,174957599.52000001,0]
["2021","INNPOWER CORPORATION","SENTINEL LIGHTING CONNECTIONS","SENTINEL LIGHTING","INNPOWER CORPORATION_SENTINEL LIGHTING SERVICE CLASSIFICATION","INNPOWER CORPORATION_SENTINEL LIGHTING SERVICE CLASSIFICATION",10331.94,28,90637.440000000002,251.77,0,0,0,0,0,0,90637.440000000002,251.77,100969.38,280.47000000000003]
["2021","INNPOWER CORPORATION","STREET LIGHTING CONNECTIONS","STREET LIGHTING","INNPOWER CORPORATION_STREET LIGHTING SERVICE CLASSIFICATION","INNPOWER CORPORATION_STREET LIGHTING SERVICE CLASSIFICATION",3977.5,12,0,0,682224.1,2062.3200000000002,0,0,0,0,682224.1,2062.3200000000002,686201.6,2074.3200000000002]
["2021","INNPOWER CORPORATION","UNMETERED SCATTERED LOAD CONNECTIONS","UNMETERED SCATTERED LOAD","INNPOWER CORPORATION_UNMETERED SCATTERED LOAD SERVICE CLASSIFICATION","INNPOWER CORPORATION_UNMETERED SCATTERED LOAD SERVICE CLASSIFICATION",29808,0,410160,0,0,0,0,0,0,0,410160,0,439968,0]
["2021","KINGSTON HYDRO CORPORATION","GENERAL SERVICE EQUAL TO OR GREATER THAN 50 KW","GENERAL SERVICE 50 TO 4,999 KW","KINGSTON HYDRO CORPORATION_GENERAL SERVICE 50 TO 4,999 KW SERVICE CLASSIFICATION","KINGSTON HYDRO CORPORATION_GENERAL SERVICE 50 TO 4,999 KW SERVICE CLASSIFICATION",45034537.369999997,107248,38880838.560000002,92273.54,150572599.77000001,395383.22,3589567.25,6261.77978515625,0,0,193043005.46000001,493918.54,238077542.83000001,601166.81999999995]
["2021","KINGSTON HYDRO CORPORATION","GENERAL SERVICE LESS THAN 50 KW","GENERAL SERVICE LESS THAN 50 KW","KINGSTON HYDRO CORPORATION_GENERAL SERVICE LESS THAN 50 KW SERVICE CLASSIFICATION","KINGSTON HYDRO CORPORATION_GENERAL SERVICE LESS THAN 50 KW SERVICE CLASSIFICATION",12396738.380000001,0,66778141.270000003,0,1883301.32,0,0,0,0,0,68661442.590000004,0,81058180.969999999,0]
["2021","KINGSTON HYDRO CORPORATION","LARGE USER","LARGE USE","KINGSTON HYDRO CORPORATION_LARGE USE SERVICE CLASSIFICATION","KINGSTON HYDRO CORPORATION_LARGE USE SERVICE CLASSIFICATION",51810877.280000001,94971,0,0,97324634.769999996,195104.21,0,0,0,0,97324634.769999996,195104.21,149135512.05000001,290075.44]
["2021","KINGSTON HYDRO CORPORATION","NO RATE CLASS","NO RATE CLASS","KINGSTON HYDRO CORPORATION_NO RATE CLASS SERVICE CLASSIFICATION","KINGSTON HYDRO CORPORATION_NO RATE CLASS SERVICE CLASSIFICATION",0,0,0,0,0,0,0,0,190731296,408158.75,0,0,0,0]
["2021","KINGSTON HYDRO CORPORATION","RESIDENTIAL","RESIDENTIAL","KINGSTON HYDRO CORPORATION_RESIDENTIAL SERVICE CLASSIFICATION","KINGSTON HYDRO CORPORATION_RESIDENTIAL SERVICE CLASSIFICATION",2324799.7000000002,0,186030200.84999999,0,0,0,0,0,0,0,186030200.84999999,0,188355000.55000001,0]
["2021","KINGSTON HYDRO CORPORATION","STREET LIGHTING CONNECTIONS","STREET LIGHTING","KINGSTON HYDRO CORPORATION_STREET LIGHTING SERVICE CLASSIFICATION","KINGSTON HYDRO CORPORATION_STREET LIGHTING SERVICE CLASSIFICATION",0,0,0,0,2049343.55,5664,0,0,0,0,2049343.55,5664,2049343.55,5664]
["2021","KINGSTON HYDRO CORPORATION","UNMETERED SCATTERED LOAD CONNECTIONS","UNMETERED SCATTERED LOAD","KINGSTON HYDRO CORPORATION_UNMETERED SCATTERED LOAD SERVICE CLASSIFICATION","KINGSTON HYDRO CORPORATION_UNMETERED SCATTERED LOAD SERVICE CLASSIFICATION",15680.23,0,0,0,1203493.8500000001,0,0,0,0,0,1203493.8500000001,0,1219174.08,0]
["2021","KITCHENER-WILMOT HYDRO INC.","EMBEDDED DISTRIBUTOR(S)","EMBEDDED DISTRIBUTOR","KITCHENER-WILMOT HYDRO INC._EMBEDDED DISTRIBUTOR SERVICE CLASSIFICATION","KITCHENER-WILMOT HYDRO INC._EMBEDDED DISTRIBUTOR SERVICE CLASSIFICATION",0,0,0,0,0,0,17710480,40917.1015625,0,0,17710479.68,40917.1,17710479.68,40917.1]
["2021","KITCHENER-WILMOT HYDRO INC.","GENERAL SERVICE EQUAL TO OR GREATER THAN 50 KW","GENERAL SERVICE 50 TO 4,999 KW","KITCHENER-WILMOT HYDRO INC._GENERAL SERVICE 50 TO 4,999 KW SERVICE CLASSIFICATION","KITCHENER-WILMOT HYDRO INC._GENERAL SERVICE 50 TO 4,999 KW SERVICE CLASSIFICATION",130750133.59,375741,117592389.73999999,0,522645790.55000001,1651626.55,15567976,46773.73828125,0,0,655806156.24000001,1698400.29,786556289.83000004,2074142]
["2021","KITCHENER-WILMOT HYDRO INC.","GENERAL SERVICE LESS THAN 50 KW","GENERAL SERVICE LESS THAN 50 KW","KITCHENER-WILMOT HYDRO INC._GENERAL SERVICE LESS THAN 50 KW SERVICE CLASSIFICATION","KITCHENER-WILMOT HYDRO INC._GENERAL SERVICE LESS THAN 50 KW SERVICE CLASSIFICATION",31514094.449999999,0,189880233.91,0,0,0,0,0,0,0,189880233.91,0,221394328.36000001,0]
["2021","KITCHENER-WILMOT HYDRO INC.","LARGE USER","LARGE USE","KITCHENER-WILMOT HYDRO INC._LARGE USE SERVICE CLASSIFICATION","KITCHENER-WILMOT HYDRO INC._LARGE USE SERVICE CLASSIFICATION",0,0,0,0,28139705.760000002,59162.7,0,0,0,0,28139705.760000002,59162.7,28139705.760000002,59162.7]
["2021","KITCHENER-WILMOT HYDRO INC.","NO RATE CLASS","NO RATE CLASS","KITCHENER-WILMOT HYDRO INC._NO RATE CLASS SERVICE CLASSIFICATION","KITCHENER-WILMOT HYDRO INC._NO RATE CLASS SERVICE CLASSIFICATION",0,0,0,0,0,0,0,0,258991776,623261.625,0,0,0,0]
["2021","KITCHENER-WILMOT HYDRO INC.","RESIDENTIAL","RESIDENTIAL","KITCHENER-WILMOT HYDRO INC._RESIDENTIAL SERVICE CLASSIFICATION","KITCHENER-WILMOT HYDRO INC._RESIDENTIAL SERVICE CLASSIFICATION",9221816.1600000001,0,705542875.02999997,0,0,0,0,0,0,0,705542875.02999997,0,714764691.19000006,0]
["2021","KITCHENER-WILMOT HYDRO INC.","STREET LIGHTING CONNECTIONS","STREET LIGHTING","KITCHENER-WILMOT HYDRO INC._STREET LIGHTING SERVICE CLASSIFICATION","KITCHENER-WILMOT HYDRO INC._STREET LIGHTING SERVICE CLASSIFICATION",0,0,532333.06999999995,0,6684736.0599999996,20067.8,0,0,0,0,7217069.1299999999,20067.8,7217069.1299999999,20067.8]
["2021","KITCHENER-WILMOT HYDRO INC.","UNMETERED SCATTERED LOAD CONNECTIONS","UNMETERED SCATTERED LOAD","KITCHENER-WILMOT HYDRO INC._UNMETERED SCATTERED LOAD SERVICE CLASSIFICATION","KITCHENER-WILMOT HYDRO INC._UNMETERED SCATTERED LOAD SERVICE CLASSIFICATION",0,0,3978484,0,0,0,0,0,0,0,3978484,0,3978484,0]
["2021","LAKEFRONT UTILITIES INC.","GENERAL SERVICE EQUAL TO OR GREATER THAN 50 KW","GENERAL SERVICE 3,000 TO 4,999 KW","LAKEFRONT UTILITIES INC._GENERAL SERVICE 3,000 TO 4,999 KW SERVICE CLASSIFICATION","LAKEFRONT UTILITIES INC._GENERAL SERVICE 3,000 TO 4,999 KW SERVICE CLASSIFICATION",0,0,19370627.789999999,42047.43,0,0,0,0,0,0,19370627.789999999,42047.43,19370627.789999999,42047.43]
["2021","LAKEFRONT UTILITIES INC.","GENERAL SERVICE EQUAL TO OR GREATER THAN 50 KW","GENERAL SERVICE 50 TO 2,999 KW","LAKEFRONT UTILITIES INC._GENERAL SERVICE 50 TO 2,999 KW SERVICE CLASSIFICATION","LAKEFRONT UTILITIES INC._GENERAL SERVICE 50 TO 2,999 KW SERVICE CLASSIFICATION",43122584.810000002,104495,65861580.270000003,181776.08,0,0,0,0,0,0,65861580.270000003,181776.08,108984165.08,286271.81]
["2021","LAKEFRONT UTILITIES INC.","GENERAL SERVICE LESS THAN 50 KW","GENERAL SERVICE LESS THAN 50 KW","LAKEFRONT UTILITIES INC._GENERAL SERVICE LESS THAN 50 KW SERVICE CLASSIFICATION","LAKEFRONT UTILITIES INC._GENERAL SERVICE LESS THAN 50 KW SERVICE CLASSIFICATION",4636994.55,0,26894086.77,0,0,0,0,0,0,0,26894086.77,0,31531081.32,0]
["2021","LAKEFRONT UTILITIES INC.","NO RATE CLASS","NO RATE CLASS","LAKEFRONT UTILITIES INC._NO RATE CLASS SERVICE CLASSIFICATION","LAKEFRONT UTILITIES INC._NO RATE CLASS SERVICE CLASSIFICATION",0,0,0,0,0,0,0,0,64538996,146455,0,0,0,0]
["2021","LAKEFRONT UTILITIES INC.","RESIDENTIAL","RESIDENTIAL","LAKEFRONT UTILITIES INC._RESIDENTIAL SERVICE CLASSIFICATION","LAKEFRONT UTILITIES INC._RESIDENTIAL SERVICE CLASSIFICATION",1888617.19,0,76664145.769999996,0,0,0,0,0,0,0,76664145.769999996,0,78552762.959999993,0]
["2021","LAKEFRONT UTILITIES INC.","SENTINEL LIGHTING CONNECTIONS","SENTINEL LIGHTING","LAKEFRONT UTILITIES INC._SENTINEL LIGHTING SERVICE CLASSIFICATION","LAKEFRONT UTILITIES INC._SENTINEL LIGHTING SERVICE CLASSIFICATION",5781.78,15,38852.21,107.44,0,0,0,0,0,0,38852.21,107.44,44633.99,123.38]
["2021","LAKEFRONT UTILITIES INC.","STREET LIGHTING CONNECTIONS","STREET LIGHTING","LAKEFRONT UTILITIES INC._STREET LIGHTING SERVICE CLASSIFICATION","LAKEFRONT UTILITIES INC._STREET LIGHTING SERVICE CLASSIFICATION",116376.7,314,964236.58,2607.96,0,0,0,0,0,0,964236.58,2607.96,1080613.28,2922.72]
["2021","LAKEFRONT UTILITIES INC.","UNMETERED SCATTERED LOAD CONNECTIONS","UNMETERED SCATTERED LOAD","LAKEFRONT UTILITIES INC._UNMETERED SCATTERED LOAD SERVICE CLASSIFICATION","LAKEFRONT UTILITIES INC._UNMETERED SCATTERED LOAD SERVICE CLASSIFICATION",38676,0,572178.97,0,0,0,0,0,0,0,572178.97,0,610854.97,0]
["2021","LAKELAND POWER DISTRIBUTION LTD.","GENERAL SERVICE EQUAL TO OR GREATER THAN 50 KW","GENERAL SERVICE 50 TO 4,999 KW","LAKELAND POWER DISTRIBUTION LTD._GENERAL SERVICE 50 TO 4,999 KW SERVICE CLASSIFICATION","LAKELAND POWER DISTRIBUTION LTD._GENERAL SERVICE 50 TO 4,999 KW SERVICE CLASSIFICATION",10024849.800000001,26735,1661182.23,4358.58,79001090.310000002,191408.29,0,0,0,0,80662272.540000007,195766.87,90687122.340000004,222501.9]
["2021","LAKELAND POWER DISTRIBUTION LTD.","GENERAL SERVICE EQUAL TO OR GREATER THAN 50 KW","PARRY SOUND_GENERAL SERVICE 50 TO 4,999 KW","LAKELAND POWER DISTRIBUTION LTD._PARRY SOUND_GENERAL SERVICE 50 TO 4,999 KW SERVICE CLASSIFICATION","LAKELAND POWER DISTRIBUTION LTD._PARRY SOUND_GENERAL SERVICE 50 TO 4,999 KW SERVICE CLASSIFICATION",8782818.1099999994,18342,4343763.7,11286.9,14043210.619999999,38631.300000000003,0,0,0,0,18386974.32,49918.2,27169792.43,68260.78]
["2021","LAKELAND POWER DISTRIBUTION LTD.","GENERAL SERVICE LESS THAN 50 KW","GENERAL SERVICE LESS THAN 50 KW","LAKELAND POWER DISTRIBUTION LTD._GENERAL SERVICE LESS THAN 50 KW SERVICE CLASSIFICATION","LAKELAND POWER DISTRIBUTION LTD._GENERAL SERVICE LESS THAN 50 KW SERVICE CLASSIFICATION",7139279.9100000001,0,31048903.609999999,0,0,0,0,0,0,0,31048903.609999999,0,38188183.520000003,0]
["2021","LAKELAND POWER DISTRIBUTION LTD.","GENERAL SERVICE LESS THAN 50 KW","PARRY SOUND_GENERAL SERVICE LESS THAN 50 KW","LAKELAND POWER DISTRIBUTION LTD._PARRY SOUND_GENERAL SERVICE LESS THAN 50 KW SERVICE CLASSIFICATION","LAKELAND POWER DISTRIBUTION LTD._PARRY SOUND_GENERAL SERVICE LESS THAN 50 KW SERVICE CLASSIFICATION",2465397.94,0,13903766.119999999,0,0,0,0,0,0,0,13903766.119999999,0,16369164.060000001,0]
["2021","LAKELAND POWER DISTRIBUTION LTD.","NO RATE CLASS","NO RATE CLASS","LAKELAND POWER DISTRIBUTION LTD._NO RATE CLASS SERVICE CLASSIFICATION","LAKELAND POWER DISTRIBUTION LTD._NO RATE CLASS SERVICE CLASSIFICATION",0,0,0,0,0,0,0,0,47392496,101885,0,0,0,0]
["2021","LAKELAND POWER DISTRIBUTION LTD.","RESIDENTIAL","PARRY SOUND_RESIDENTIAL","LAKELAND POWER DISTRIBUTION LTD._PARRY SOUND_RESIDENTIAL SERVICE CLASSIFICATION","LAKELAND POWER DISTRIBUTION LTD._PARRY SOUND_RESIDENTIAL SERVICE CLASSIFICATION",388022.8,0,29409737.309999999,0,0,0,0,0,0,0,29409737.309999999,0,29797760.109999999,0]
["2021","LAKELAND POWER DISTRIBUTION LTD.","RESIDENTIAL","RESIDENTIAL","LAKELAND POWER DISTRIBUTION LTD._RESIDENTIAL SERVICE CLASSIFICATION","LAKELAND POWER DISTRIBUTION LTD._RESIDENTIAL SERVICE CLASSIFICATION",1370991.88,0,81291297.930000007,0,0,0,0,0,0,0,81291297.930000007,0,82662289.810000002,0]
["2021","LAKELAND POWER DISTRIBUTION LTD.","SENTINEL LIGHTING CONNECTIONS","PARRY SOUND_SENTINEL LIGHTING","LAKELAND POWER DISTRIBUTION LTD._PARRY SOUND_SENTINEL LIGHTING SERVICE CLASSIFICATION","LAKELAND POWER DISTRIBUTION LTD._PARRY SOUND_SENTINEL LIGHTING SERVICE CLASSIFICATION",0,0,4525.26,12.57,0,0,0,0,0,0,4525.26,12.57,4525.26,12.57]
["2021","LAKELAND POWER DISTRIBUTION LTD.","SENTINEL LIGHTING CONNECTIONS","SENTINEL LIGHTING","LAKELAND POWER DISTRIBUTION LTD._SENTINEL LIGHTING SERVICE CLASSIFICATION","LAKELAND POWER DISTRIBUTION LTD._SENTINEL LIGHTING SERVICE CLASSIFICATION",0,0,32766.51,91.02,0,0,0,0,0,0,32766.51,91.02,32766.51,91.02]
["2021","LAKELAND POWER DISTRIBUTION LTD.","STREET LIGHTING CONNECTIONS","PARRY SOUND_STREET LIGHTING","LAKELAND POWER DISTRIBUTION LTD._PARRY SOUND_STREET LIGHTING SERVICE CLASSIFICATION","LAKELAND POWER DISTRIBUTION LTD._PARRY SOUND_STREET LIGHTING SERVICE CLASSIFICATION",0,0,0,0,319061.84000000003,1002.51,0,0,0,0,319061.84000000003,1002.51,319061.84000000003,1002.51]
["2021","LAKELAND POWER DISTRIBUTION LTD.","STREET LIGHTING CONNECTIONS","STREET LIGHTING","LAKELAND POWER DISTRIBUTION LTD._STREET LIGHTING SERVICE CLASSIFICATION","LAKELAND POWER DISTRIBUTION LTD._STREET LIGHTING SERVICE CLASSIFICATION",137967.66,373,630185.42000000004,1704.71,0,0,0,0,0,0,630185.42000000004,1704.71,768153.08,2077.91]
["2021","LAKELAND POWER DISTRIBUTION LTD.","UNMETERED SCATTERED LOAD CONNECTIONS","PARRY SOUND_UNMETERED SCATTERED LOAD","LAKELAND POWER DISTRIBUTION LTD._PARRY SOUND_UNMETERED SCATTERED LOAD SERVICE CLASSIFICATION","LAKELAND POWER DISTRIBUTION LTD._PARRY SOUND_UNMETERED SCATTERED LOAD SERVICE CLASSIFICATION",0,0,56184,0,0,0,0,0,0,0,56184,0,56184,0]
["2021","LAKELAND POWER DISTRIBUTION LTD.","UNMETERED SCATTERED LOAD CONNECTIONS","UNMETERED SCATTERED LOAD","LAKELAND POWER DISTRIBUTION LTD._UNMETERED SCATTERED LOAD SERVICE CLASSIFICATION","LAKELAND POWER DISTRIBUTION LTD._UNMETERED SCATTERED LOAD SERVICE CLASSIFICATION",600.05999999999995,0,116783.77,0,0,0,0,0,0,0,116783.77,0,117383.83,0]
["2021","LONDON HYDRO INC.","GENERAL SERVICE EQUAL TO OR GREATER THAN 50 KW","GENERAL SERVICE 50 TO 4,999 KW","LONDON HYDRO INC._GENERAL SERVICE 50 TO 4,999 KW SERVICE CLASSIFICATION","LONDON HYDRO INC._GENERAL SERVICE 50 TO 4,999 KW SERVICE CLASSIFICATION",175486225.66999999,457645,163413539.71000001,424866.9,1017830007.6,2523525.4700000002,15014914,26918.609375,0,0,1196258461.1400001,2975310.98,1371744686.8099999,3432956.5]
["2021","LONDON HYDRO INC.","GENERAL SERVICE EQUAL TO OR GREATER THAN 50 KW","GENERAL SERVICE 1,000 TO 4,999 KW (CO-GENERATION)","LONDON HYDRO INC._GENERAL SERVICE 1,000 TO 4,999 KW (CO-GENERATION) SERVICE CLASSIFICATION","LONDON HYDRO INC._GENERAL SERVICE 1,000 TO 4,999 KW (CO-GENERATION) SERVICE CLASSIFICATION",0,0,0,0,36196176.609999999,239951.38,81614,2105.93994140625,0,0,36277790.609999999,242057.32,36277790.609999999,242057.32]
["2021","LONDON HYDRO INC.","GENERAL SERVICE LESS THAN 50 KW","GENERAL SERVICE LESS THAN 50 KW","LONDON HYDRO INC._GENERAL SERVICE LESS THAN 50 KW SERVICE CLASSIFICATION","LONDON HYDRO INC._GENERAL SERVICE LESS THAN 50 KW SERVICE CLASSIFICATION",52759617.75,0,316985906.38,0,4746500.16,0,0,0,0,0,321732406.54000002,0,374492024.29000002,0]
["2021","LONDON HYDRO INC.","LARGE USER","LARGE USE","LONDON HYDRO INC._LARGE USE SERVICE CLASSIFICATION","LONDON HYDRO INC._LARGE USE SERVICE CLASSIFICATION",0,0,0,0,103009408.48,189813.83,0,0,0,0,103009408.48,189813.83,103009408.48,189813.83]
["2021","LONDON HYDRO INC.","NO RATE CLASS","NO RATE CLASS","LONDON HYDRO INC._NO RATE CLASS SERVICE CLASSIFICATION","LONDON HYDRO INC._NO RATE CLASS SERVICE CLASSIFICATION",0,0,0,0,0,0,0,0,507754496,1193453.25,0,0,0,0]
["2021","LONDON HYDRO INC.","RESIDENTIAL","RESIDENTIAL","LONDON HYDRO INC._RESIDENTIAL SERVICE CLASSIFICATION","LONDON HYDRO INC._RESIDENTIAL SERVICE CLASSIFICATION",22822365.489999998,0,1151649755.05,0,98630.12,0,0,0,0,0,1151748385.1700001,0,1174570750.6600001,0]
["2021","LONDON HYDRO INC.","SENTINEL LIGHTING CONNECTIONS","SENTINEL LIGHTING","LONDON HYDRO INC._SENTINEL LIGHTING SERVICE CLASSIFICATION","LONDON HYDRO INC._SENTINEL LIGHTING SERVICE CLASSIFICATION",5610.88,15,528749.31000000006,1436.11,0,0,0,0,0,0,528749.31000000006,1436.11,534360.18999999994,1451.52]
["2021","LONDON HYDRO INC.","STREET LIGHTING CONNECTIONS","STREET LIGHTING","LONDON HYDRO INC._STREET LIGHTING SERVICE CLASSIFICATION","LONDON HYDRO INC._STREET LIGHTING SERVICE CLASSIFICATION",0,0,0,0,16908317.239999998,47272.4,0,0,0,0,16908317.239999998,47272.4,16908317.239999998,47272.4]
["2021","LONDON HYDRO INC.","UNMETERED SCATTERED LOAD CONNECTIONS","UNMETERED SCATTERED LOAD","LONDON HYDRO INC._UNMETERED SCATTERED LOAD SERVICE CLASSIFICATION","LONDON HYDRO INC._UNMETERED SCATTERED LOAD SERVICE CLASSIFICATION",0,0,5417919.1600000001,0,0,0,0,0,0,0,5417919.1600000001,0,5417919.1600000001,0]
["2021","MILTON HYDRO DISTRIBUTION INC.","GENERAL SERVICE EQUAL TO OR GREATER THAN 50 KW","GENERAL SERVICE 1,000 TO 4,999 KW","MILTON HYDRO DISTRIBUTION INC._GENERAL SERVICE 1,000 TO 4,999 KW SERVICE CLASSIFICATION","MILTON HYDRO DISTRIBUTION INC._GENERAL SERVICE 1,000 TO 4,999 KW SERVICE CLASSIFICATION",11955775,24557,0,0,116242184,253847,0,0,0,0,116242184,253847,128197959,278404]
["2021","MILTON HYDRO DISTRIBUTION INC.","GENERAL SERVICE EQUAL TO OR GREATER THAN 50 KW","GENERAL SERVICE 50 TO 999 KW","MILTON HYDRO DISTRIBUTION INC._GENERAL SERVICE 50 TO 999 KW SERVICE CLASSIFICATION","MILTON HYDRO DISTRIBUTION INC._GENERAL SERVICE 50 TO 999 KW SERVICE CLASSIFICATION",18138808,56166,26635154,69504,165225112,433023,4342865,9041,0,0,196203131,511568,214341939,567734]
["2021","MILTON HYDRO DISTRIBUTION INC.","GENERAL SERVICE LESS THAN 50 KW","GENERAL SERVICE LESS THAN 50 KW","MILTON HYDRO DISTRIBUTION INC._GENERAL SERVICE LESS THAN 50 KW SERVICE CLASSIFICATION","MILTON HYDRO DISTRIBUTION INC._GENERAL SERVICE LESS THAN 50 KW SERVICE CLASSIFICATION",12366527,0,67198615,0,383158,0,0,0,0,0,67581773,0,79948300,0]
["2021","MILTON HYDRO DISTRIBUTION INC.","LARGE USER","LARGE USE","MILTON HYDRO DISTRIBUTION INC._LARGE USE SERVICE CLASSIFICATION","MILTON HYDRO DISTRIBUTION INC._LARGE USE SERVICE CLASSIFICATION",0,0,0,0,129192650,268251,0,0,0,0,129192650,268251,129192650,268251]
["2021","MILTON HYDRO DISTRIBUTION INC.","NO RATE CLASS","NO RATE CLASS","MILTON HYDRO DISTRIBUTION INC._NO RATE CLASS SERVICE CLASSIFICATION","MILTON HYDRO DISTRIBUTION INC._NO RATE CLASS SERVICE CLASSIFICATION",0,0,0,0,0,0,0,0,263205120,517046,0,0,0,0]
["2021","MILTON HYDRO DISTRIBUTION INC.","RESIDENTIAL","RESIDENTIAL","MILTON HYDRO DISTRIBUTION INC._RESIDENTIAL SERVICE CLASSIFICATION","MILTON HYDRO DISTRIBUTION INC._RESIDENTIAL SERVICE CLASSIFICATION",5576430,0,349871119,0,18104,0,0,0,0,0,349889223,0,355465653,0]
["2021","MILTON HYDRO DISTRIBUTION INC.","SENTINEL LIGHTING CONNECTIONS","SENTINEL LIGHTING","MILTON HYDRO DISTRIBUTION INC._SENTINEL LIGHTING SERVICE CLASSIFICATION","MILTON HYDRO DISTRIBUTION INC._SENTINEL LIGHTING SERVICE CLASSIFICATION",0,0,143264,398,0,0,0,0,0,0,143264,398,143264,398]
["2021","MILTON HYDRO DISTRIBUTION INC.","STREET LIGHTING CONNECTIONS","STREET LIGHTING","MILTON HYDRO DISTRIBUTION INC._STREET LIGHTING SERVICE CLASSIFICATION","MILTON HYDRO DISTRIBUTION INC._STREET LIGHTING SERVICE CLASSIFICATION",0,0,0,0,5438441,15143,0,0,0,0,5438441,15143,5438441,15143]
["2021","MILTON HYDRO DISTRIBUTION INC.","UNMETERED SCATTERED LOAD CONNECTIONS","UNMETERED SCATTERED LOAD","MILTON HYDRO DISTRIBUTION INC._UNMETERED SCATTERED LOAD SERVICE CLASSIFICATION","MILTON HYDRO DISTRIBUTION INC._UNMETERED SCATTERED LOAD SERVICE CLASSIFICATION",137247,0,930627,0,0,0,0,0,0,0,930627,0,1067874,0]
["2021","NEWMARKET-TAY POWER DISTRIBUTION LTD.","GENERAL SERVICE EQUAL TO OR GREATER THAN 50 KW","GENERAL SERVICE 50 TO 4,999 KW - INTERVAL METER - NEWMARKET-TAY POWER","NEWMARKET-TAY POWER DISTRIBUTION LTD._GENERAL SERVICE 50 TO 4,999 KW - INTERVAL METER - NEWMARKET-TAY POWER SERVICE CLASSIFICATION","NEWMARKET-TAY POWER DISTRIBUTION LTD._GENERAL SERVICE 50 TO 4,999 KW - INTERVAL METER - NEWMARKET-TAY POWER SERVICE CLASSIFICATION",26757890.379999999,62798,3513062,0,127179692.5,275399.24,8886232,48809,0,0,139578986.5,324208.24,166336876.88,387007]
["2021","NEWMARKET-TAY POWER DISTRIBUTION LTD.","GENERAL SERVICE EQUAL TO OR GREATER THAN 50 KW","GENERAL SERVICE 50 TO 4,999 KW - MIDLAND POWER","NEWMARKET-TAY POWER DISTRIBUTION LTD._GENERAL SERVICE 50 TO 4,999 KW - MIDLAND POWER SERVICE CLASSIFICATION","NEWMARKET-TAY POWER DISTRIBUTION LTD._GENERAL SERVICE 50 TO 4,999 KW - MIDLAND POWER SERVICE CLASSIFICATION",22416479.420000002,61479,9988673.1500000004,0,66104305.880000003,191225.8,3626286,6808,0,0,79719265.030000001,198033.8,102135744.45,259512.83]
["2021","NEWMARKET-TAY POWER DISTRIBUTION LTD.","GENERAL SERVICE EQUAL TO OR GREATER THAN 50 KW","GENERAL SERVICE 50 TO 4,999 KW - THERMAL METER - NEWMARKET-TAY POWER","NEWMARKET-TAY POWER DISTRIBUTION LTD._GENERAL SERVICE 50 TO 4,999 KW - THERMAL METER - NEWMARKET-TAY POWER SERVICE CLASSIFICATION","NEWMARKET-TAY POWER DISTRIBUTION LTD._GENERAL SERVICE 50 TO 4,999 KW - THERMAL METER - NEWMARKET-TAY POWER SERVICE CLASSIFICATION",16423289.449999999,38544,22548270,55500.76,59925287,173464.38,0,0,0,0,82473557,228965.14,98896846.450000003,267509.36]
["2021","NEWMARKET-TAY POWER DISTRIBUTION LTD.","GENERAL SERVICE LESS THAN 50 KW","GENERAL SERVICE LESS THAN 50 KW - MIDLAND POWER","NEWMARKET-TAY POWER DISTRIBUTION LTD._GENERAL SERVICE LESS THAN 50 KW - MIDLAND POWER SERVICE CLASSIFICATION","NEWMARKET-TAY POWER DISTRIBUTION LTD._GENERAL SERVICE LESS THAN 50 KW - MIDLAND POWER SERVICE CLASSIFICATION",4564659,9640,17172368,0,0,45130.38,0,0,0,0,17172368,45130.38,21737027,54771.33]
["2021","NEWMARKET-TAY POWER DISTRIBUTION LTD.","GENERAL SERVICE LESS THAN 50 KW","GENERAL SERVICE LESS THAN 50 KW - NEWMARKET-TAY POWER","NEWMARKET-TAY POWER DISTRIBUTION LTD._GENERAL SERVICE LESS THAN 50 KW - NEWMARKET-TAY POWER SERVICE CLASSIFICATION","NEWMARKET-TAY POWER DISTRIBUTION LTD._GENERAL SERVICE LESS THAN 50 KW - NEWMARKET-TAY POWER SERVICE CLASSIFICATION",12696070,0,67952093,0,320765,0,0,0,0,0,68272858,0,80968928,0]
["2021","NEWMARKET-TAY POWER DISTRIBUTION LTD.","NO RATE CLASS","NO RATE CLASS","NEWMARKET-TAY POWER DISTRIBUTION LTD._NO RATE CLASS SERVICE CLASSIFICATION","NEWMARKET-TAY POWER DISTRIBUTION LTD._NO RATE CLASS SERVICE CLASSIFICATION",0,0,0,0,0,0,0,0,91273936,255956.09375,0,0,0,0]
["2021","NEWMARKET-TAY POWER DISTRIBUTION LTD.","RESIDENTIAL","RESIDENTIAL - MIDLAND POWER","NEWMARKET-TAY POWER DISTRIBUTION LTD._RESIDENTIAL - MIDLAND POWER SERVICE CLASSIFICATION","NEWMARKET-TAY POWER DISTRIBUTION LTD._RESIDENTIAL - MIDLAND POWER SERVICE CLASSIFICATION",1985218,0,50175945,0,0,0,0,0,0,0,50175945,0,52161163,0]
["2021","NEWMARKET-TAY POWER DISTRIBUTION LTD.","RESIDENTIAL","RESIDENTIAL - NEWMARKET-TAY POWER","NEWMARKET-TAY POWER DISTRIBUTION LTD._RESIDENTIAL - NEWMARKET-TAY POWER SERVICE CLASSIFICATION","NEWMARKET-TAY POWER DISTRIBUTION LTD._RESIDENTIAL - NEWMARKET-TAY POWER SERVICE CLASSIFICATION",5453122,0,288679938,0,0,0,0,0,0,0,288679938,0,294133060,0]
["2021","NEWMARKET-TAY POWER DISTRIBUTION LTD.","SENTINEL LIGHTING CONNECTIONS","SENTINEL LIGHTING - NEWMARKET-TAY POWER","NEWMARKET-TAY POWER DISTRIBUTION LTD._SENTINEL LIGHTING - NEWMARKET-TAY POWER SERVICE CLASSIFICATION","NEWMARKET-TAY POWER DISTRIBUTION LTD._SENTINEL LIGHTING - NEWMARKET-TAY POWER SERVICE CLASSIFICATION",0,0,65605.08,182.24,0,0,0,0,0,0,65605.08,182.24,65605.08,182.24]
["2021","NEWMARKET-TAY POWER DISTRIBUTION LTD.","STREET LIGHTING CONNECTIONS","STREET LIGHTING - MIDLAND POWER","NEWMARKET-TAY POWER DISTRIBUTION LTD._STREET LIGHTING - MIDLAND POWER SERVICE CLASSIFICATION","NEWMARKET-TAY POWER DISTRIBUTION LTD._STREET LIGHTING - MIDLAND POWER SERVICE CLASSIFICATION",489729.98,1324,0,0,34195.69,93,0,0,0,0,34195.69,93,523925.67,1417.56]
["2021","NEWMARKET-TAY POWER DISTRIBUTION LTD.","STREET LIGHTING CONNECTIONS","STREET LIGHTING - NEWMARKET-TAY POWER","NEWMARKET-TAY POWER DISTRIBUTION LTD._STREET LIGHTING - NEWMARKET-TAY POWER SERVICE CLASSIFICATION","NEWMARKET-TAY POWER DISTRIBUTION LTD._STREET LIGHTING - NEWMARKET-TAY POWER SERVICE CLASSIFICATION",0,0,23984.65,0,2425844.0299999998,0,0,0,0,0,2449828.6800000002,0,2449828.6800000002,0]
["2021","NEWMARKET-TAY POWER DISTRIBUTION LTD.","UNMETERED SCATTERED LOAD CONNECTIONS","UNMETERED SCATTERED LOAD - NEWMARKET-TAY POWER","NEWMARKET-TAY POWER DISTRIBUTION LTD._ UNMETERED SCATTERED LOAD - NEWMARKET-TAY POWER SERVICE CLASSIFICATION","NEWMARKET-TAY POWER DISTRIBUTION LTD._ UNMETERED SCATTERED LOAD - NEWMARKET-TAY POWER SERVICE CLASSIFICATION",0,0,552036.98,0,0,0,0,0,0,0,552036.98,0,552036.98,0]
["2021","NEWMARKET-TAY POWER DISTRIBUTION LTD.","UNMETERED SCATTERED LOAD CONNECTIONS","UNMETERED SCATTERED LOAD - MIDLAND POWER","NEWMARKET-TAY POWER DISTRIBUTION LTD._UNMETERED SCATTERED LOAD - MIDLAND POWER SERVICE CLASSIFICATION","NEWMARKET-TAY POWER DISTRIBUTION LTD._UNMETERED SCATTERED LOAD - MIDLAND POWER SERVICE CLASSIFICATION",94343.85,0,302652.93,0,0,0,0,0,0,0,302652.93,0,396996.78,0]
["2021","NIAGARA PENINSULA ENERGY INC.","GENERAL SERVICE EQUAL TO OR GREATER THAN 50 KW","GENERAL SERVICE 50 TO 4,999 KW","NIAGARA PENINSULA ENERGY INC._GENERAL SERVICE 50 TO 4,999 KW SERVICE CLASSIFICATION","NIAGARA PENINSULA ENERGY INC._GENERAL SERVICE 50 TO 4,999 KW SERVICE CLASSIFICATION",51177541,133698,111500,291,500622817,1306430,2939507,5663,0,0,503673824,1312384,554851365,1446082]
["2021","NIAGARA PENINSULA ENERGY INC.","GENERAL SERVICE LESS THAN 50 KW","GENERAL SERVICE LESS THAN 50 KW","NIAGARA PENINSULA ENERGY INC._GENERAL SERVICE LESS THAN 50 KW SERVICE CLASSIFICATION","NIAGARA PENINSULA ENERGY INC._GENERAL SERVICE LESS THAN 50 KW SERVICE CLASSIFICATION",15703277,0,82379347,0,17304819,0,0,0,0,0,99684166,0,115387443,0]
["2021","NIAGARA PENINSULA ENERGY INC.","NO RATE CLASS","NO RATE CLASS","NIAGARA PENINSULA ENERGY INC._NO RATE CLASS SERVICE CLASSIFICATION","NIAGARA PENINSULA ENERGY INC._NO RATE CLASS SERVICE CLASSIFICATION",0,0,0,0,0,0,0,0,143401856,343288,0,0,0,0]
["2021","NIAGARA PENINSULA ENERGY INC.","RESIDENTIAL","RESIDENTIAL","NIAGARA PENINSULA ENERGY INC._RESIDENTIAL SERVICE CLASSIFICATION","NIAGARA PENINSULA ENERGY INC._RESIDENTIAL SERVICE CLASSIFICATION",11578033,0,460906989,0,0,0,0,0,0,0,460906989,0,472485022,0]
["2021","NIAGARA PENINSULA ENERGY INC.","SENTINEL LIGHTING CONNECTIONS","SENTINEL LIGHTING","NIAGARA PENINSULA ENERGY INC._SENTINEL LIGHTING SERVICE CLASSIFICATION","NIAGARA PENINSULA ENERGY INC._SENTINEL LIGHTING SERVICE CLASSIFICATION",0,0,216493,620,0,0,0,0,0,0,216493,620,216493,620]
["2021","NIAGARA PENINSULA ENERGY INC.","STREET LIGHTING CONNECTIONS","STREET LIGHTING","NIAGARA PENINSULA ENERGY INC._STREET LIGHTING SERVICE CLASSIFICATION","NIAGARA PENINSULA ENERGY INC._STREET LIGHTING SERVICE CLASSIFICATION",0,0,0,0,4511017,12463,0,0,0,0,4511017,12463,4511017,12463]
["2021","NIAGARA PENINSULA ENERGY INC.","UNMETERED SCATTERED LOAD CONNECTIONS","UNMETERED SCATTERED LOAD","NIAGARA PENINSULA ENERGY INC._UNMETERED SCATTERED LOAD SERVICE CLASSIFICATION","NIAGARA PENINSULA ENERGY INC._UNMETERED SCATTERED LOAD SERVICE CLASSIFICATION",0,0,1516177,0,0,0,0,0,0,0,1516177,0,1516177,0]
["2021","NIAGARA-ON-THE-LAKE HYDRO INC.","GENERAL SERVICE EQUAL TO OR GREATER THAN 50 KW","GENERAL SERVICE 50 TO 4,999 KW","NIAGARA-ON-THE-LAKE HYDRO INC._GENERAL SERVICE 50 TO 4,999 KW SERVICE CLASSIFICATION","NIAGARA-ON-THE-LAKE HYDRO INC._GENERAL SERVICE 50 TO 4,999 KW SERVICE CLASSIFICATION",12314464.48,37027,4310471.6100000003,10556.04,58865269.700000003,145117.51,0,0,0,0,63175741.310000002,155673.54999999999,75490205.790000007,192701]
["2021","NIAGARA-ON-THE-LAKE HYDRO INC.","GENERAL SERVICE LESS THAN 50 KW","GENERAL SERVICE LESS THAN 50 KW","NIAGARA-ON-THE-LAKE HYDRO INC._GENERAL SERVICE LESS THAN 50 KW SERVICE CLASSIFICATION","NIAGARA-ON-THE-LAKE HYDRO INC._GENERAL SERVICE LESS THAN 50 KW SERVICE CLASSIFICATION",4529947.78,0,35419071.640000001,0,0,0,0,0,0,0,35419071.640000001,0,39949019.420000002,0]
["2021","NIAGARA-ON-THE-LAKE HYDRO INC.","LARGE USER","LARGE USE","NIAGARA-ON-THE-LAKE HYDRO INC._LARGE USE SERVICE CLASSIFICATION","NIAGARA-ON-THE-LAKE HYDRO INC._LARGE USE SERVICE CLASSIFICATION",0,0,0,0,25776833.699999999,87942.399999999994,0,0,0,0,25776833.699999999,87942.399999999994,25776833.699999999,87942.399999999994]
["2021","NIAGARA-ON-THE-LAKE HYDRO INC.","NO RATE CLASS","NO RATE CLASS","NIAGARA-ON-THE-LAKE HYDRO INC._NO RATE CLASS SERVICE CLASSIFICATION","NIAGARA-ON-THE-LAKE HYDRO INC._NO RATE CLASS SERVICE CLASSIFICATION",0,0,0,0,0,0,0,0,30407916,97952.1015625,0,0,0,0]
["2021","NIAGARA-ON-THE-LAKE HYDRO INC.","RESIDENTIAL","RESIDENTIAL","NIAGARA-ON-THE-LAKE HYDRO INC._RESIDENTIAL SERVICE CLASSIFICATION","NIAGARA-ON-THE-LAKE HYDRO INC._RESIDENTIAL SERVICE CLASSIFICATION",1046102.93,0,78711704.030000001,0,0,0,0,0,0,0,78711704.030000001,0,79757806.959999993,0]
["2021","NIAGARA-ON-THE-LAKE HYDRO INC.","STREET LIGHTING CONNECTIONS","STREET LIGHTING","NIAGARA-ON-THE-LAKE HYDRO INC._STREET LIGHTING SERVICE CLASSIFICATION","NIAGARA-ON-THE-LAKE HYDRO INC._STREET LIGHTING SERVICE CLASSIFICATION",0,0,71099.91,198,769074.95,2140.8000000000002,0,0,0,0,840174.86,2338.8000000000002,840174.86,2338.8000000000002]
["2021","NIAGARA-ON-THE-LAKE HYDRO INC.","UNMETERED SCATTERED LOAD CONNECTIONS","UNMETERED SCATTERED LOAD","NIAGARA-ON-THE-LAKE HYDRO INC._UNMETERED SCATTERED LOAD SERVICE CLASSIFICATION","NIAGARA-ON-THE-LAKE HYDRO INC._UNMETERED SCATTERED LOAD SERVICE CLASSIFICATION",117792,0,129283.17,0,0,0,0,0,0,0,129283.17,0,247075.17,0]
["2021","NORTH BAY HYDRO DISTRIBUTION LIMITED","GENERAL SERVICE EQUAL TO OR GREATER THAN 50 KW","GENERAL SERVICE 3,000 TO 4,999 KW","NORTH BAY HYDRO DISTRIBUTION LIMITED_GENERAL SERVICE 3,000 TO 4,999 KW SERVICE CLASSIFICATION","NORTH BAY HYDRO DISTRIBUTION LIMITED_GENERAL SERVICE 3,000 TO 4,999 KW SERVICE CLASSIFICATION",0,0,0,0,15304771.9,28622.7,0,0,0,0,15304771.9,28622.7,15304771.9,28622.7]
["2021","NORTH BAY HYDRO DISTRIBUTION LIMITED","GENERAL SERVICE EQUAL TO OR GREATER THAN 50 KW","GENERAL SERVICE 50 TO 2,999 KW","NORTH BAY HYDRO DISTRIBUTION LIMITED_GENERAL SERVICE 50 TO 2,999 KW SERVICE CLASSIFICATION","NORTH BAY HYDRO DISTRIBUTION LIMITED_GENERAL SERVICE 50 TO 2,999 KW SERVICE CLASSIFICATION",28621294.879999999,86413,13707852.109999999,47610.99,141888704.97,359211.46,0,0,0,0,155596557.08000001,406822.45,184217851.96000001,493235.8]
["2021","NORTH BAY HYDRO DISTRIBUTION LIMITED","GENERAL SERVICE LESS THAN 50 KW","GENERAL SERVICE LESS THAN 50 KW","NORTH BAY HYDRO DISTRIBUTION LIMITED_GENERAL SERVICE LESS THAN 50 KW SERVICE CLASSIFICATION","NORTH BAY HYDRO DISTRIBUTION LIMITED_GENERAL SERVICE LESS THAN 50 KW SERVICE CLASSIFICATION",12589721.17,0,61781053.170000002,0,316521.74,0,0,0,0,0,62097574.909999996,0,74687296.079999998,0]
["2021","NORTH BAY HYDRO DISTRIBUTION LIMITED","NO RATE CLASS","NO RATE CLASS","NORTH BAY HYDRO DISTRIBUTION LIMITED_NO RATE CLASS SERVICE CLASSIFICATION","NORTH BAY HYDRO DISTRIBUTION LIMITED_NO RATE CLASS SERVICE CLASSIFICATION",0,0,0,0,0,0,0,0,40971372,89566.390625,0,0,0,0]
["2021","NORTH BAY HYDRO DISTRIBUTION LIMITED","RESIDENTIAL","RESIDENTIAL","NORTH BAY HYDRO DISTRIBUTION LIMITED_RESIDENTIAL SERVICE CLASSIFICATION","NORTH BAY HYDRO DISTRIBUTION LIMITED_RESIDENTIAL SERVICE CLASSIFICATION",3989382.65,0,196247768.66,0,0,0,0,0,0,0,196247768.66,0,200237151.31,0]
["2021","NORTH BAY HYDRO DISTRIBUTION LIMITED","SENTINEL LIGHTING CONNECTIONS","SENTINEL LIGHTING","NORTH BAY HYDRO DISTRIBUTION LIMITED_SENTINEL LIGHTING SERVICE CLASSIFICATION","NORTH BAY HYDRO DISTRIBUTION LIMITED_SENTINEL LIGHTING SERVICE CLASSIFICATION",13959.35,37,107198.1,270.12,0,0,0,0,0,0,107198.1,270.12,121157.45,307.17]
["2021","NORTH BAY HYDRO DISTRIBUTION LIMITED","STREET LIGHTING CONNECTIONS","STREET LIGHTING","NORTH BAY HYDRO DISTRIBUTION LIMITED_STREET LIGHTING SERVICE CLASSIFICATION","NORTH BAY HYDRO DISTRIBUTION LIMITED_STREET LIGHTING SERVICE CLASSIFICATION",0,0,0,0,2042501.58,5690.28,0,0,0,0,2042501.58,5690.28,2042501.58,5690.28]
["2021","NORTH BAY HYDRO DISTRIBUTION LIMITED","UNMETERED SCATTERED LOAD CONNECTIONS","UNMETERED SCATTERED LOAD","NORTH BAY HYDRO DISTRIBUTION LIMITED_UNMETERED SCATTERED LOAD SERVICE CLASSIFICATION","NORTH BAY HYDRO DISTRIBUTION LIMITED_UNMETERED SCATTERED LOAD SERVICE CLASSIFICATION",0,0,39489.68,0,0,0,0,0,0,0,39489.68,0,39489.68,0]
["2021","NORTHERN ONTARIO WIRES INC.","GENERAL SERVICE EQUAL TO OR GREATER THAN 50 KW","GENERAL SERVICE 50 TO 4,999 KW","NORTHERN ONTARIO WIRES INC._GENERAL SERVICE 50 TO 4,999 KW SERVICE CLASSIFICATION","NORTHERN ONTARIO WIRES INC._GENERAL SERVICE 50 TO 4,999 KW SERVICE CLASSIFICATION",10816369,29003,0,0,46782861,132084,0,0,0,0,46782861,132084,57599230,161087]
["2021","NORTHERN ONTARIO WIRES INC.","GENERAL SERVICE LESS THAN 50 KW","GENERAL SERVICE LESS THAN 50 KW","NORTHERN ONTARIO WIRES INC._GENERAL SERVICE LESS THAN 50 KW SERVICE CLASSIFICATION","NORTHERN ONTARIO WIRES INC._GENERAL SERVICE LESS THAN 50 KW SERVICE CLASSIFICATION",3198972,0,13387761,0,0,0,0,0,0,0,13387761,0,16586733,0]
["2021","NORTHERN ONTARIO WIRES INC.","NO RATE CLASS","NO RATE CLASS","NORTHERN ONTARIO WIRES INC._NO RATE CLASS SERVICE CLASSIFICATION","NORTHERN ONTARIO WIRES INC._NO RATE CLASS SERVICE CLASSIFICATION",0,0,0,0,0,0,0,0,24067488,71690,0,0,0,0]
["2021","NORTHERN ONTARIO WIRES INC.","RESIDENTIAL","RESIDENTIAL","NORTHERN ONTARIO WIRES INC._RESIDENTIAL SERVICE CLASSIFICATION","NORTHERN ONTARIO WIRES INC._RESIDENTIAL SERVICE CLASSIFICATION",659724,0,39467257,0,0,0,0,0,0,0,39467257,0,40126981,0]
["2021","NORTHERN ONTARIO WIRES INC.","STREET LIGHTING CONNECTIONS","STREET LIGHTING","NORTHERN ONTARIO WIRES INC._STREET LIGHTING SERVICE CLASSIFICATION","NORTHERN ONTARIO WIRES INC._STREET LIGHTING SERVICE CLASSIFICATION",526417,1500,0,0,0,0,0,0,0,0,0,0,526417,1500]
["2021","NORTHERN ONTARIO WIRES INC.","UNMETERED SCATTERED LOAD CONNECTIONS","UNMETERED SCATTERED LOAD","NORTHERN ONTARIO WIRES INC._UNMETERED SCATTERED LOAD SERVICE CLASSIFICATION","NORTHERN ONTARIO WIRES INC._UNMETERED SCATTERED LOAD SERVICE CLASSIFICATION",19637,0,144541,0,0,0,0,0,0,0,144541,0,164178,0]
["2021","OAKVILLE HYDRO ELECTRICITY DISTRIBUTION INC.","EMBEDDED DISTRIBUTOR(S)","EMBEDDED DISTRIBUTOR","OAKVILLE HYDRO ELECTRICITY DISTRIBUTION INC._EMBEDDED DISTRIBUTOR SERVICE CLASSIFICATION","OAKVILLE HYDRO ELECTRICITY DISTRIBUTION INC._EMBEDDED DISTRIBUTOR SERVICE CLASSIFICATION",0,0,0,0,41916895.149999999,87685.98,0,0,0,0,41916895.149999999,87685.98,41916895.149999999,87685.98]
["2021","OAKVILLE HYDRO ELECTRICITY DISTRIBUTION INC.","GENERAL SERVICE EQUAL TO OR GREATER THAN 50 KW","GENERAL SERVICE 1,000 KW AND GREATER","OAKVILLE HYDRO ELECTRICITY DISTRIBUTION INC._GENERAL SERVICE 1,000 KW AND GREATER SERVICE CLASSIFICATION","OAKVILLE HYDRO ELECTRICITY DISTRIBUTION INC._GENERAL SERVICE 1,000 KW AND GREATER SERVICE CLASSIFICATION",42909400.07,89698,0,0,167493048.03999999,351540.43,0,0,0,0,167493048.03999999,351540.43,210402448.11000001,441239.34]
["2021","OAKVILLE HYDRO ELECTRICITY DISTRIBUTION INC.","GENERAL SERVICE EQUAL TO OR GREATER THAN 50 KW","GENERAL SERVICE 50 TO 999 KW","OAKVILLE HYDRO ELECTRICITY DISTRIBUTION INC._GENERAL SERVICE 50 TO 999 KW SERVICE CLASSIFICATION","OAKVILLE HYDRO ELECTRICITY DISTRIBUTION INC._GENERAL SERVICE 50 TO 999 KW SERVICE CLASSIFICATION",81696410.439999998,217816,86647509.450000003,237725.85,330247223.12,908041.91,4173859,7724.83984375,0,0,421068591.61000001,1153492.6000000001,502765002.05000001,1371309.15]
["2021","OAKVILLE HYDRO ELECTRICITY DISTRIBUTION INC.","GENERAL SERVICE LESS THAN 50 KW","GENERAL SERVICE LESS THAN 50 KW","OAKVILLE HYDRO ELECTRICITY DISTRIBUTION INC._GENERAL SERVICE LESS THAN 50 KW SERVICE CLASSIFICATION","OAKVILLE HYDRO ELECTRICITY DISTRIBUTION INC._GENERAL SERVICE LESS THAN 50 KW SERVICE CLASSIFICATION",23853265.440000001,0,142519275.56999999,0,0,0,0,0,0,0,142519275.56999999,0,166372541.00999999,0]
["2021","OAKVILLE HYDRO ELECTRICITY DISTRIBUTION INC.","NO RATE CLASS","NO RATE CLASS","OAKVILLE HYDRO ELECTRICITY DISTRIBUTION INC._NO RATE CLASS SERVICE CLASSIFICATION","OAKVILLE HYDRO ELECTRICITY DISTRIBUTION INC._NO RATE CLASS SERVICE CLASSIFICATION",0,0,0,0,0,0,0,0,null,378845,0,0,0,0]
["2021","OAKVILLE HYDRO ELECTRICITY DISTRIBUTION INC.","RESIDENTIAL","RESIDENTIAL","OAKVILLE HYDRO ELECTRICITY DISTRIBUTION INC._RESIDENTIAL SERVICE CLASSIFICATION","OAKVILLE HYDRO ELECTRICITY DISTRIBUTION INC._RESIDENTIAL SERVICE CLASSIFICATION",6159753.9699999997,0,623560661.28999996,0,0,0,0,0,0,0,623560661.28999996,0,629720415.25999999,0]
["2021","OAKVILLE HYDRO ELECTRICITY DISTRIBUTION INC.","SENTINEL LIGHTING CONNECTIONS","SENTINEL LIGHTING","OAKVILLE HYDRO ELECTRICITY DISTRIBUTION INC._SENTINEL LIGHTING SERVICE CLASSIFICATION","OAKVILLE HYDRO ELECTRICITY DISTRIBUTION INC._SENTINEL LIGHTING SERVICE CLASSIFICATION",0,0,96770.15,268.81,0,0,0,0,0,0,96770.15,268.81,96770.15,268.81]
["2021","OAKVILLE HYDRO ELECTRICITY DISTRIBUTION INC.","STREET LIGHTING CONNECTIONS","STREET LIGHTING","OAKVILLE HYDRO ELECTRICITY DISTRIBUTION INC._STREET LIGHTING SERVICE CLASSIFICATION","OAKVILLE HYDRO ELECTRICITY DISTRIBUTION INC._STREET LIGHTING SERVICE CLASSIFICATION",0,0,0,0,5734230.1900000004,16281.24,0,0,0,0,5734230.1900000004,16281.24,5734230.1900000004,16281.24]
["2021","OAKVILLE HYDRO ELECTRICITY DISTRIBUTION INC.","UNMETERED SCATTERED LOAD CONNECTIONS","UNMETERED SCATTERED LOAD","OAKVILLE HYDRO ELECTRICITY DISTRIBUTION INC._UNMETERED SCATTERED LOAD SERVICE CLASSIFICATION","OAKVILLE HYDRO ELECTRICITY DISTRIBUTION INC._UNMETERED SCATTERED LOAD SERVICE CLASSIFICATION",0,0,4872035.88,0,0,0,0,0,0,0,4872035.88,0,4872035.88,0]
["2021","ORANGEVILLE HYDRO LIMITED","GENERAL SERVICE EQUAL TO OR GREATER THAN 50 KW","GENERAL SERVICE 50 TO 4,999 KW","ORANGEVILLE HYDRO LIMITED_GENERAL SERVICE 50 TO 4,999 KW SERVICE CLASSIFICATION","ORANGEVILLE HYDRO LIMITED_GENERAL SERVICE 50 TO 4,999 KW SERVICE CLASSIFICATION",21739494.469999999,53304,7506452.7400000002,11503.81,91691044.730000004,214114.59,2833631,5460.18017578125,0,0,102031128.59,231078.58,123770623.06,284382.90000000002]
["2021","ORANGEVILLE HYDRO LIMITED","GENERAL SERVICE LESS THAN 50 KW","GENERAL SERVICE LESS THAN 50 KW","ORANGEVILLE HYDRO LIMITED_GENERAL SERVICE LESS THAN 50 KW SERVICE CLASSIFICATION","ORANGEVILLE HYDRO LIMITED_GENERAL SERVICE LESS THAN 50 KW SERVICE CLASSIFICATION",5988331.5999999996,0,27641274.300000001,0,0,122.13,0,0,0,0,27641274.300000001,122.13,33629605.899999999,122.13]
["2021","ORANGEVILLE HYDRO LIMITED","NO RATE CLASS","NO RATE CLASS","ORANGEVILLE HYDRO LIMITED_NO RATE CLASS SERVICE CLASSIFICATION","ORANGEVILLE HYDRO LIMITED_NO RATE CLASS SERVICE CLASSIFICATION",0,0,0,0,0,0,0,0,59082612,115396.7734375,0,0,0,0]
["2021","ORANGEVILLE HYDRO LIMITED","RESIDENTIAL","RESIDENTIAL","ORANGEVILLE HYDRO LIMITED_RESIDENTIAL SERVICE CLASSIFICATION","ORANGEVILLE HYDRO LIMITED_RESIDENTIAL SERVICE CLASSIFICATION",1737736.38,0,93849331.939999998,0,0,0,0,0,0,0,93849331.939999998,0,95587068.319999993,0]
["2021","ORANGEVILLE HYDRO LIMITED","SENTINEL LIGHTING CONNECTIONS","SENTINEL LIGHTING","ORANGEVILLE HYDRO LIMITED_SENTINEL LIGHTING SERVICE CLASSIFICATION","ORANGEVILLE HYDRO LIMITED_SENTINEL LIGHTING SERVICE CLASSIFICATION",0,0,102755.52,0,0,0,0,0,0,0,102755.52,0,102755.52,0]
["2021","ORANGEVILLE HYDRO LIMITED","STREET LIGHTING CONNECTIONS","STREET LIGHTING","ORANGEVILLE HYDRO LIMITED_STREET LIGHTING SERVICE CLASSIFICATION","ORANGEVILLE HYDRO LIMITED_STREET LIGHTING SERVICE CLASSIFICATION",0,0,144016.94,396.16,737673.71,2049.7600000000002,0,0,0,0,881690.65,2445.92,881690.65,2445.92]
["2021","ORANGEVILLE HYDRO LIMITED","UNMETERED SCATTERED LOAD CONNECTIONS","UNMETERED SCATTERED LOAD","ORANGEVILLE HYDRO LIMITED_UNMETERED SCATTERED LOAD SERVICE CLASSIFICATION","ORANGEVILLE HYDRO LIMITED_UNMETERED SCATTERED LOAD SERVICE CLASSIFICATION",0,0,375339.19,0,0,0,0,0,0,0,375339.19,0,375339.19,0]
["2021","ORILLIA POWER DISTRIBUTION CORPORATION","GENERAL SERVICE EQUAL TO OR GREATER THAN 50 KW","GENERAL SERVICE 50 TO 4,999 KW","ORILLIA POWER DISTRIBUTION CORPORATION_GENERAL SERVICE 50 TO 4,999 KW SERVICE CLASSIFICATION","ORILLIA POWER DISTRIBUTION CORPORATION_GENERAL SERVICE 50 TO 4,999 KW SERVICE CLASSIFICATION",23224239,57493,16811762,49139,107300095,270049,2852029,5596,0,0,126963886,324784,150188125,382277]
["2021","ORILLIA POWER DISTRIBUTION CORPORATION","GENERAL SERVICE LESS THAN 50 KW","GENERAL SERVICE LESS THAN 50 KW","ORILLIA POWER DISTRIBUTION CORPORATION_GENERAL SERVICE LESS THAN 50 KW SERVICE CLASSIFICATION","ORILLIA POWER DISTRIBUTION CORPORATION_GENERAL SERVICE LESS THAN 50 KW SERVICE CLASSIFICATION",8984610,0,31203650,0,0,0,0,0,0,0,31203650,0,40188260,0]
["2021","ORILLIA POWER DISTRIBUTION CORPORATION","NO RATE CLASS","NO RATE CLASS","ORILLIA POWER DISTRIBUTION CORPORATION_NO RATE CLASS SERVICE CLASSIFICATION","ORILLIA POWER DISTRIBUTION CORPORATION_NO RATE CLASS SERVICE CLASSIFICATION",0,0,0,0,0,0,0,0,57124368,145172,0,0,0,0]
["2021","ORILLIA POWER DISTRIBUTION CORPORATION","RESIDENTIAL","RESIDENTIAL","ORILLIA POWER DISTRIBUTION CORPORATION_RESIDENTIAL SERVICE CLASSIFICATION","ORILLIA POWER DISTRIBUTION CORPORATION_RESIDENTIAL SERVICE CLASSIFICATION",2215995,0,109776846,0,0,0,0,0,0,0,109776846,0,111992841,0]
["2021","ORILLIA POWER DISTRIBUTION CORPORATION","SENTINEL LIGHTING CONNECTIONS","SENTINEL LIGHTING","ORILLIA POWER DISTRIBUTION CORPORATION_SENTINEL LIGHTING SERVICE CLASSIFICATION","ORILLIA POWER DISTRIBUTION CORPORATION_SENTINEL LIGHTING SERVICE CLASSIFICATION",0,0,0,0,0,0,0,0,0,0,0,0,0,0]
["2021","ORILLIA POWER DISTRIBUTION CORPORATION","STREET LIGHTING CONNECTIONS","STREET LIGHTING","ORILLIA POWER DISTRIBUTION CORPORATION_STREET LIGHTING SERVICE CLASSIFICATION","ORILLIA POWER DISTRIBUTION CORPORATION_STREET LIGHTING SERVICE CLASSIFICATION",2530928,7017,0,0,0,0,0,0,0,0,0,0,2530928,7017]
["2021","ORILLIA POWER DISTRIBUTION CORPORATION","UNMETERED SCATTERED LOAD CONNECTIONS","UNMETERED SCATTERED LOAD","ORILLIA POWER DISTRIBUTION CORPORATION_UNMETERED SCATTERED LOAD SERVICE CLASSIFICATION","ORILLIA POWER DISTRIBUTION CORPORATION_UNMETERED SCATTERED LOAD SERVICE CLASSIFICATION",90375,0,640815,0,0,0,0,0,0,0,640815,0,731190,0]
["2021","OSHAWA PUC NETWORKS INC.","GENERAL SERVICE EQUAL TO OR GREATER THAN 50 KW","GENERAL SERVICE 1,000 TO 4,999 KW","OSHAWA PUC NETWORKS INC._GENERAL SERVICE 1,000 TO 4,999 KW SERVICE CLASSIFICATION","OSHAWA PUC NETWORKS INC._GENERAL SERVICE 1,000 TO 4,999 KW SERVICE CLASSIFICATION",0,0,0,0,70038261,171377,0,0,0,0,70038261,171377,70038261,171377]
["2021","OSHAWA PUC NETWORKS INC.","GENERAL SERVICE EQUAL TO OR GREATER THAN 50 KW","GENERAL SERVICE 50 TO 999 KW","OSHAWA PUC NETWORKS INC._GENERAL SERVICE 50 TO 999 KW SERVICE CLASSIFICATION","OSHAWA PUC NETWORKS INC._GENERAL SERVICE 50 TO 999 KW SERVICE CLASSIFICATION",35294711,94101,106844589,265792,156614822,403498,6595334,12747,0,0,270054745,682037,305349456,776138]
["2021","OSHAWA PUC NETWORKS INC.","GENERAL SERVICE LESS THAN 50 KW","GENERAL SERVICE LESS THAN 50 KW","OSHAWA PUC NETWORKS INC._GENERAL SERVICE LESS THAN 50 KW SERVICE CLASSIFICATION","OSHAWA PUC NETWORKS INC._GENERAL SERVICE LESS THAN 50 KW SERVICE CLASSIFICATION",17301892,0,97753215,0,0,0,0,0,0,0,97753215,0,115055107,0]
["2021","OSHAWA PUC NETWORKS INC.","LARGE USER","LARGE USE","OSHAWA PUC NETWORKS INC._LARGE USE SERVICE CLASSIFICATION","OSHAWA PUC NETWORKS INC._LARGE USE SERVICE CLASSIFICATION",0,0,0,0,30798516,69346,0,0,0,0,30798516,69346,30798516,69346]
["2021","OSHAWA PUC NETWORKS INC.","NO RATE CLASS","NO RATE CLASS","OSHAWA PUC NETWORKS INC._NO RATE CLASS SERVICE CLASSIFICATION","OSHAWA PUC NETWORKS INC._NO RATE CLASS SERVICE CLASSIFICATION",0,0,0,0,0,0,0,0,83195960,189436,0,0,0,0]
["2021","OSHAWA PUC NETWORKS INC.","RESIDENTIAL","RESIDENTIAL","OSHAWA PUC NETWORKS INC._RESIDENTIAL SERVICE CLASSIFICATION","OSHAWA PUC NETWORKS INC._RESIDENTIAL SERVICE CLASSIFICATION",11757289,0,504050726,0,0,0,0,0,0,0,504050726,0,515808015,0]
["2021","OSHAWA PUC NETWORKS INC.","SENTINEL LIGHTING CONNECTIONS","SENTINEL LIGHTING","OSHAWA PUC NETWORKS INC._SENTINEL LIGHTING SERVICE CLASSIFICATION","OSHAWA PUC NETWORKS INC._SENTINEL LIGHTING SERVICE CLASSIFICATION",0,0,25016,83,0,0,0,0,0,0,25016,83,25016,83]
["2021","OSHAWA PUC NETWORKS INC.","STREET LIGHTING CONNECTIONS","STREET LIGHTING","OSHAWA PUC NETWORKS INC._STREET LIGHTING SERVICE CLASSIFICATION","OSHAWA PUC NETWORKS INC._STREET LIGHTING SERVICE CLASSIFICATION",0,0,0,0,4357194,18325,0,0,0,0,4357194,18325,4357194,18325]
["2021","OSHAWA PUC NETWORKS INC.","UNMETERED SCATTERED LOAD CONNECTIONS","UNMETERED SCATTERED LOAD","OSHAWA PUC NETWORKS INC._UNMETERED SCATTERED LOAD SERVICE CLASSIFICATION","OSHAWA PUC NETWORKS INC._UNMETERED SCATTERED LOAD SERVICE CLASSIFICATION",0,0,837636,0,0,0,0,0,0,0,837636,0,837636,0]
["2021","OTTAWA RIVER POWER CORPORATION","GENERAL SERVICE EQUAL TO OR GREATER THAN 50 KW","GENERAL SERVICE 50 TO 4,999 KW","OTTAWA RIVER POWER CORPORATION_GENERAL SERVICE 50 TO 4,999 KW SERVICE CLASSIFICATION","OTTAWA RIVER POWER CORPORATION_GENERAL SERVICE 50 TO 4,999 KW SERVICE CLASSIFICATION",14484772,30568,13006239,38034.14,37670079,147990.1,0,0,0,0,50676318,186024.24,65161090,216593.1]
["2021","OTTAWA RIVER POWER CORPORATION","GENERAL SERVICE LESS THAN 50 KW","GENERAL SERVICE LESS THAN 50 KW","OTTAWA RIVER POWER CORPORATION_GENERAL SERVICE LESS THAN 50 KW SERVICE CLASSIFICATION","OTTAWA RIVER POWER CORPORATION_GENERAL SERVICE LESS THAN 50 KW SERVICE CLASSIFICATION",5049669,0,21183731,0,0,0,0,0,0,0,21183731,0,26233400,0]
["2021","OTTAWA RIVER POWER CORPORATION","NO RATE CLASS","NO RATE CLASS","OTTAWA RIVER POWER CORPORATION_NO RATE CLASS SERVICE CLASSIFICATION","OTTAWA RIVER POWER CORPORATION_NO RATE CLASS SERVICE CLASSIFICATION",0,0,0,0,0,0,0,0,3066582,9971.0400390625,0,0,0,0]
["2021","OTTAWA RIVER POWER CORPORATION","RESIDENTIAL","RESIDENTIAL","OTTAWA RIVER POWER CORPORATION_RESIDENTIAL SERVICE CLASSIFICATION","OTTAWA RIVER POWER CORPORATION_RESIDENTIAL SERVICE CLASSIFICATION",1241192,0,83900665,0,0,0,0,0,0,0,83900665,0,85141857,0]
["2021","OTTAWA RIVER POWER CORPORATION","SENTINEL LIGHTING CONNECTIONS","SENTINEL LIGHTING","OTTAWA RIVER POWER CORPORATION_SENTINEL LIGHTING SERVICE CLASSIFICATION","OTTAWA RIVER POWER CORPORATION_SENTINEL LIGHTING SERVICE CLASSIFICATION",39461,88,159663,429.18,0,0,0,0,0,0,159663,429.18,199124,517.98]
["2021","OTTAWA RIVER POWER CORPORATION","STREET LIGHTING CONNECTIONS","STREET LIGHTING","OTTAWA RIVER POWER CORPORATION_STREET LIGHTING SERVICE CLASSIFICATION","OTTAWA RIVER POWER CORPORATION_STREET LIGHTING SERVICE CLASSIFICATION",199223,579,52836,147.24,763608,2099.16,0,0,0,0,816444,2246.4,1015667,2826]
["2021","OTTAWA RIVER POWER CORPORATION","UNMETERED SCATTERED LOAD CONNECTIONS","UNMETERED SCATTERED LOAD","OTTAWA RIVER POWER CORPORATION_UNMETERED SCATTERED LOAD SERVICE CLASSIFICATION","OTTAWA RIVER POWER CORPORATION_UNMETERED SCATTERED LOAD SERVICE CLASSIFICATION",397118,0,204982,0,0,0,0,0,0,0,204982,0,602100,0]
["2021","RENFREW HYDRO INC.","GENERAL SERVICE EQUAL TO OR GREATER THAN 50 KW","GENERAL SERVICE 50 TO 4,999 KW","RENFREW HYDRO INC._GENERAL SERVICE 50 TO 4,999 KW SERVICE CLASSIFICATION","RENFREW HYDRO INC._GENERAL SERVICE 50 TO 4,999 KW SERVICE CLASSIFICATION",4329083,10043,3871474,0,31941389,81705,0,0,0,0,35812863,81705,40141946,91748.72]
["2021","RENFREW HYDRO INC.","GENERAL SERVICE LESS THAN 50 KW","GENERAL SERVICE LESS THAN 50 KW","RENFREW HYDRO INC._GENERAL SERVICE LESS THAN 50 KW SERVICE CLASSIFICATION","RENFREW HYDRO INC._GENERAL SERVICE LESS THAN 50 KW SERVICE CLASSIFICATION",2306095.37,0,9889489,0,0,0,0,0,0,0,9889489,0,12195584.369999999,0]
["2021","RENFREW HYDRO INC.","NO RATE CLASS","NO RATE CLASS","RENFREW HYDRO INC._NO RATE CLASS SERVICE CLASSIFICATION","RENFREW HYDRO INC._NO RATE CLASS SERVICE CLASSIFICATION",0,0,0,0,0,0,0,0,13146992,25099.08984375,0,0,0,0]
["2021","RENFREW HYDRO INC.","RESIDENTIAL","RESIDENTIAL","RENFREW HYDRO INC._RESIDENTIAL SERVICE CLASSIFICATION","RENFREW HYDRO INC._RESIDENTIAL SERVICE CLASSIFICATION",400993,0,30572976,0,3708,0,0,0,0,0,30576684,0,30977677,0]
["2021","RENFREW HYDRO INC.","STREET LIGHTING CONNECTIONS","STREET LIGHTING","RENFREW HYDRO INC._STREET LIGHTING SERVICE CLASSIFICATION","RENFREW HYDRO INC._STREET LIGHTING SERVICE CLASSIFICATION",0,0,0,0,1073512,2981,0,0,0,0,1073512,2981,1073512,2981]
["2021","RENFREW HYDRO INC.","UNMETERED SCATTERED LOAD CONNECTIONS","UNMETERED SCATTERED LOAD","RENFREW HYDRO INC._UNMETERED SCATTERED LOAD SERVICE CLASSIFICATION","RENFREW HYDRO INC._UNMETERED SCATTERED LOAD SERVICE CLASSIFICATION",0,0,0,0,224089,0,0,0,0,0,224089,0,224089,0]
["2021","RIDEAU ST. LAWRENCE DISTRIBUTION INC.","GENERAL SERVICE EQUAL TO OR GREATER THAN 50 KW","GENERAL SERVICE 50 TO 4,999 KW","RIDEAU ST. LAWRENCE DISTRIBUTION INC._GENERAL SERVICE 50 TO 4,999 KW SERVICE CLASSIFICATION","RIDEAU ST. LAWRENCE DISTRIBUTION INC._GENERAL SERVICE 50 TO 4,999 KW SERVICE CLASSIFICATION",3414386,10148,2672665,6971,30020913,92027,0,0,0,0,32693578,98998,36107964,109146.85]
["2021","RIDEAU ST. LAWRENCE DISTRIBUTION INC.","GENERAL SERVICE LESS THAN 50 KW","GENERAL SERVICE LESS THAN 50 KW","RIDEAU ST. LAWRENCE DISTRIBUTION INC._GENERAL SERVICE LESS THAN 50 KW SERVICE CLASSIFICATION","RIDEAU ST. LAWRENCE DISTRIBUTION INC._GENERAL SERVICE LESS THAN 50 KW SERVICE CLASSIFICATION",3120931,0,15351205,0,0,0,0,0,0,0,15351205,0,18472136,0]
["2021","RIDEAU ST. LAWRENCE DISTRIBUTION INC.","NO RATE CLASS","NO RATE CLASS","RIDEAU ST. LAWRENCE DISTRIBUTION INC._NO RATE CLASS SERVICE CLASSIFICATION","RIDEAU ST. LAWRENCE DISTRIBUTION INC._NO RATE CLASS SERVICE CLASSIFICATION",0,0,0,0,0,0,0,0,919193472,29177,0,0,0,0]
["2021","RIDEAU ST. LAWRENCE DISTRIBUTION INC.","RESIDENTIAL","RESIDENTIAL","RIDEAU ST. LAWRENCE DISTRIBUTION INC._RESIDENTIAL SERVICE CLASSIFICATION","RIDEAU ST. LAWRENCE DISTRIBUTION INC._RESIDENTIAL SERVICE CLASSIFICATION",581399,0,43005685,0,0,0,0,0,0,0,43005685,0,43587084,0]
["2021","RIDEAU ST. LAWRENCE DISTRIBUTION INC.","SENTINEL LIGHTING CONNECTIONS","SENTINEL LIGHTING","RIDEAU ST. LAWRENCE DISTRIBUTION INC._SENTINEL LIGHTING SERVICE CLASSIFICATION","RIDEAU ST. LAWRENCE DISTRIBUTION INC._SENTINEL LIGHTING SERVICE CLASSIFICATION",4555,12,92105,256.39999999999998,0,0,0,0,0,0,92105,256.39999999999998,96660,268.45999999999998]
["2021","RIDEAU ST. LAWRENCE DISTRIBUTION INC.","STREET LIGHTING CONNECTIONS","STREET LIGHTING","RIDEAU ST. LAWRENCE DISTRIBUTION INC._STREET LIGHTING SERVICE CLASSIFICATION","RIDEAU ST. LAWRENCE DISTRIBUTION INC._STREET LIGHTING SERVICE CLASSIFICATION",71256,192,81239,220,492260,1332,0,0,0,0,573499,1552,644755,1744.72]
["2021","RIDEAU ST. LAWRENCE DISTRIBUTION INC.","UNMETERED SCATTERED LOAD CONNECTIONS","UNMETERED SCATTERED LOAD","RIDEAU ST. LAWRENCE DISTRIBUTION INC._UNMETERED SCATTERED LOAD SERVICE CLASSIFICATION","RIDEAU ST. LAWRENCE DISTRIBUTION INC._UNMETERED SCATTERED LOAD SERVICE CLASSIFICATION",51612,0,483704,0,0,0,0,0,0,0,483704,0,535316,0]
["2021","SIOUX LOOKOUT HYDRO INC.","GENERAL SERVICE EQUAL TO OR GREATER THAN 50 KW","GENERAL SERVICE 50 TO 4,999 KW","SIOUX LOOKOUT HYDRO INC._GENERAL SERVICE 50 TO 4,999 KW SERVICE CLASSIFICATION","SIOUX LOOKOUT HYDRO INC._GENERAL SERVICE 50 TO 4,999 KW SERVICE CLASSIFICATION",754330.35,2406,2668424.15,8896.25,23747555.530000001,55988.62,0,0,0,0,26415979.68,64884.87,27170310.030000001,67291.58]
["2021","SIOUX LOOKOUT HYDRO INC.","GENERAL SERVICE LESS THAN 50 KW","GENERAL SERVICE LESS THAN 50 KW","SIOUX LOOKOUT HYDRO INC._GENERAL SERVICE LESS THAN 50 KW SERVICE CLASSIFICATION","SIOUX LOOKOUT HYDRO INC._GENERAL SERVICE LESS THAN 50 KW SERVICE CLASSIFICATION",680906.6,0,12470664.060000001,0,0,0,0,0,0,0,12470664.060000001,0,13151570.66,0]
["2021","SIOUX LOOKOUT HYDRO INC.","NO RATE CLASS","NO RATE CLASS","SIOUX LOOKOUT HYDRO INC._NO RATE CLASS SERVICE CLASSIFICATION","SIOUX LOOKOUT HYDRO INC._NO RATE CLASS SERVICE CLASSIFICATION",0,0,0,0,0,0,0,0,null,null,0,0,0,0]
["2021","SIOUX LOOKOUT HYDRO INC.","RESIDENTIAL","RESIDENTIAL","SIOUX LOOKOUT HYDRO INC._RESIDENTIAL SERVICE CLASSIFICATION","SIOUX LOOKOUT HYDRO INC._RESIDENTIAL SERVICE CLASSIFICATION",194062.58,0,37873587.700000003,0,0,0,0,0,0,0,37873587.700000003,0,38067650.280000001,0]
["2021","SIOUX LOOKOUT HYDRO INC.","STREET LIGHTING CONNECTIONS","STREET LIGHTING","SIOUX LOOKOUT HYDRO INC._STREET LIGHTING SERVICE CLASSIFICATION","SIOUX LOOKOUT HYDRO INC._STREET LIGHTING SERVICE CLASSIFICATION",0,0,9232.14,25.8,140764.47,393,0,0,0,0,149996.60999999999,418.8,149996.60999999999,418.8]
["2021","SYNERGY NORTH CORPORATION","GENERAL SERVICE EQUAL TO OR GREATER THAN 50 KW","GENERAL SERVICE 1,000 OR GREATER - THUNDER BAY","SYNERGY NORTH CORPORATION_GENERAL SERVICE 1,000 OR GREATER - THUNDER BAY SERVICE CLASSIFICATION","SYNERGY NORTH CORPORATION_GENERAL SERVICE 1,000 OR GREATER - THUNDER BAY SERVICE CLASSIFICATION",0,0,0,0,148353499.99000001,467383.52,0,0,0,0,148353499.99000001,467383.52,148353499.99000001,467383.52]
["2021","SYNERGY NORTH CORPORATION","GENERAL SERVICE EQUAL TO OR GREATER THAN 50 KW","GENERAL SERVICE 50 TO 999 KW - THUNDER BAY","SYNERGY NORTH CORPORATION_GENERAL SERVICE 50 TO 999 KW - THUNDER BAY SERVICE CLASSIFICATION","SYNERGY NORTH CORPORATION_GENERAL SERVICE 50 TO 999 KW - THUNDER BAY SERVICE CLASSIFICATION",4118668.52,10974,33900466.700000003,88821.14,199648263.18000001,495849.98,0,0,0,0,233548729.88,584671.12,237667398.40000001,595646.05000000005]
["2021","SYNERGY NORTH CORPORATION","GENERAL SERVICE EQUAL TO OR GREATER THAN 50 KW","GENERAL SERVICE EQUAL TO OR GREATER THAN 50 KW - KENORA","SYNERGY NORTH CORPORATION_GENERAL SERVICE EQUAL TO OR GREATER THAN 50 KW - KENORA SERVICE CLASSIFICATION","SYNERGY NORTH CORPORATION_GENERAL SERVICE EQUAL TO OR GREATER THAN 50 KW - KENORA SERVICE CLASSIFICATION",13271764.720000001,32626,4828127.43,12389.36,15929619.300000001,39126.94,0,0,0,0,20757746.73,51516.3,34029511.450000003,84142.86]
["2021","SYNERGY NORTH CORPORATION","GENERAL SERVICE LESS THAN 50 KW","GENERAL SERVICE < 50 KW - KENORA","SYNERGY NORTH CORPORATION_GENERAL SERVICE < 50 KW - KENORA SERVICE CLASSIFICATION","SYNERGY NORTH CORPORATION_GENERAL SERVICE < 50 KW - KENORA SERVICE CLASSIFICATION",3990194.18,0,17306599.940000001,0,0,0,0,0,0,0,17306599.940000001,0,21296794.120000001,0]
["2021","SYNERGY NORTH CORPORATION","GENERAL SERVICE LESS THAN 50 KW","GENERAL SERVICE LESS THAN 50 KW - THUNDER BAY","SYNERGY NORTH CORPORATION_GENERAL SERVICE LESS THAN 50 KW - THUNDER BAY SERVICE CLASSIFICATION","SYNERGY NORTH CORPORATION_GENERAL SERVICE LESS THAN 50 KW - THUNDER BAY SERVICE CLASSIFICATION",15535603,0,108772468.18000001,0,0,0,0,0,0,0,108772468.18000001,0,124308071.18000001,0]
["2021","SYNERGY NORTH CORPORATION","NO RATE CLASS","NO RATE CLASS","SYNERGY NORTH CORPORATION_NO RATE CLASS SERVICE CLASSIFICATION","SYNERGY NORTH CORPORATION_NO RATE CLASS SERVICE CLASSIFICATION",0,0,0,0,0,0,0,0,124175832,334200.46875,0,0,0,0]
["2021","SYNERGY NORTH CORPORATION","RESIDENTIAL","RESIDENTIAL - KENORA","SYNERGY NORTH CORPORATION_RESIDENTIAL - KENORA SERVICE CLASSIFICATION","SYNERGY NORTH CORPORATION_RESIDENTIAL - KENORA SERVICE CLASSIFICATION",258685.07,0,37640192.100000001,0,0,0,0,0,0,0,37640192.100000001,0,37898877.170000002,0]
["2021","SYNERGY NORTH CORPORATION","RESIDENTIAL","RESIDENTIAL - THUNDER BAY","SYNERGY NORTH CORPORATION_RESIDENTIAL - THUNDER BAY SERVICE CLASSIFICATION","SYNERGY NORTH CORPORATION_RESIDENTIAL - THUNDER BAY SERVICE CLASSIFICATION",2419988.0699999998,0,329215412.00999999,0,0,0,0,0,0,0,329215412.00999999,0,331635400.07999998,0]
["2021","SYNERGY NORTH CORPORATION","SENTINEL LIGHTING CONNECTIONS","SENTINEL LIGHTING - THUNDER BAY","SYNERGY NORTH CORPORATION_SENTINEL LIGHTING - THUNDER BAY SERVICE CLASSIFICATION","SYNERGY NORTH CORPORATION_SENTINEL LIGHTING - THUNDER BAY SERVICE CLASSIFICATION",0,0,0,0,112347,335,0,0,0,0,112347,335,112347,335]
["2021","SYNERGY NORTH CORPORATION","STREET LIGHTING CONNECTIONS","STREET LIGHTING - THUNDER BAY","SYNERGY NORTH CORPORATION_STREET LIGHTING - THUNDER BAY SERVICE CLASSIFICATION","SYNERGY NORTH CORPORATION_STREET LIGHTING - THUNDER BAY SERVICE CLASSIFICATION",0,0,68679.75,193.92,6255780.2800000003,17671.8,0,0,0,0,6324460.0300000003,17865.72,6324460.0300000003,17865.72]
["2021","SYNERGY NORTH CORPORATION","STREET LIGHTING CONNECTIONS","STREET LIGHTING CONNECTIONS - KENORA","SYNERGY NORTH CORPORATION_STREET LIGHTING CONNECTIONS - KENORA SERVICE CLASSIFICATION","SYNERGY NORTH CORPORATION_STREET LIGHTING CONNECTIONS - KENORA SERVICE CLASSIFICATION",376841.34,1164,0,0,0,0,0,0,0,0,0,0,376841.34,1164]
["2021","SYNERGY NORTH CORPORATION","UNMETERED SCATTERED LOAD CONNECTIONS","UNMETERED SCATTERED LOAD - THUNDER BAY","SYNERGY NORTH CORPORATION_UNMETERED SCATTERED LOAD - THUNDER BAY SERVICE CLASSIFICATION","SYNERGY NORTH CORPORATION_UNMETERED SCATTERED LOAD - THUNDER BAY SERVICE CLASSIFICATION",313777.75,0,1673296.71,0,0,0,0,0,0,0,1673296.71,0,1987074.46,0]
["2021","SYNERGY NORTH CORPORATION","UNMETERED SCATTERED LOAD CONNECTIONS","UNMETERED SCATTERED LOAD CONNECTIONS - KENORA","SYNERGY NORTH CORPORATION_UNMETERED SCATTERED LOAD CONNECTIONS - KENORA SERVICE CLASSIFICATION","SYNERGY NORTH CORPORATION_UNMETERED SCATTERED LOAD CONNECTIONS - KENORA SERVICE CLASSIFICATION",18359.45,0,147569.57999999999,0,0,0,0,0,0,0,147569.57999999999,0,165929.03,0]
["2021","TILLSONBURG HYDRO INC.","GENERAL SERVICE EQUAL TO OR GREATER THAN 50 KW","GENERAL SERVICE 50 TO 499 KW","TILLSONBURG HYDRO INC._GENERAL SERVICE 50 TO 499 KW SERVICE CLASSIFICATION","TILLSONBURG HYDRO INC._GENERAL SERVICE 50 TO 499 KW SERVICE CLASSIFICATION",11156533.109999999,33947,6651608.2199999997,81960.160000000003,28710634.489999998,16056.08,0,0,0,0,35362242.710000001,98016.24,46518775.82,131963.88]
["2021","TILLSONBURG HYDRO INC.","GENERAL SERVICE EQUAL TO OR GREATER THAN 50 KW","GENERAL SERVICE 500 TO 1,499 KW","TILLSONBURG HYDRO INC._GENERAL SERVICE 500 TO 1,499 KW SERVICE CLASSIFICATION","TILLSONBURG HYDRO INC._GENERAL SERVICE 500 TO 1,499 KW SERVICE CLASSIFICATION",4766995.53,17910,0,0,19901889.109999999,50939,0,0,0,0,19901889.109999999,50939,24668884.640000001,68849.399999999994]
["2021","TILLSONBURG HYDRO INC.","GENERAL SERVICE EQUAL TO OR GREATER THAN 50 KW","GENERAL SERVICE EQUAL TO OR GREATER THAN 1,500 KW","TILLSONBURG HYDRO INC._GENERAL SERVICE EQUAL TO OR GREATER THAN 1,500 KW SERVICE CLASSIFICATION","TILLSONBURG HYDRO INC._GENERAL SERVICE EQUAL TO OR GREATER THAN 1,500 KW SERVICE CLASSIFICATION",7359317.1799999997,15110,0,0,13890281.15,37996.800000000003,0,0,0,0,13890281.15,37996.800000000003,21249598.329999998,53107.199999999997]
["2021","TILLSONBURG HYDRO INC.","GENERAL SERVICE LESS THAN 50 KW","GENERAL SERVICE LESS THAN 50 KW","TILLSONBURG HYDRO INC._GENERAL SERVICE LESS THAN 50 KW SERVICE CLASSIFICATION","TILLSONBURG HYDRO INC._GENERAL SERVICE LESS THAN 50 KW SERVICE CLASSIFICATION",4051423.5,1751,16702417.74,8322.3700000000008,0,0,0,0,0,0,16702417.74,8322.3700000000008,20753841.239999998,10073.51]
["2021","TILLSONBURG HYDRO INC.","NO RATE CLASS","NO RATE CLASS","TILLSONBURG HYDRO INC._NO RATE CLASS SERVICE CLASSIFICATION","TILLSONBURG HYDRO INC._NO RATE CLASS SERVICE CLASSIFICATION",0,0,0,0,0,0,0,0,34626840,94370,0,0,0,0]
["2021","TILLSONBURG HYDRO INC.","RESIDENTIAL","RESIDENTIAL","TILLSONBURG HYDRO INC._RESIDENTIAL SERVICE CLASSIFICATION","TILLSONBURG HYDRO INC._RESIDENTIAL SERVICE CLASSIFICATION",1208069.6299999999,0,54933568.369999997,0,0,0,0,0,0,0,54933568.369999997,0,56141638,0]
["2021","TILLSONBURG HYDRO INC.","SENTINEL LIGHTING CONNECTIONS","SENTINEL LIGHTING","TILLSONBURG HYDRO INC._SENTINEL LIGHTING SERVICE CLASSIFICATION","TILLSONBURG HYDRO INC._SENTINEL LIGHTING SERVICE CLASSIFICATION",0,0,23079.27,0,0,0,0,0,0,0,23079.27,0,23079.27,0]
["2021","TILLSONBURG HYDRO INC.","STREET LIGHTING CONNECTIONS","STREET LIGHTING","TILLSONBURG HYDRO INC._STREET LIGHTING SERVICE CLASSIFICATION","TILLSONBURG HYDRO INC._STREET LIGHTING SERVICE CLASSIFICATION",0,0,0,0,545207.31000000006,88.5,0,0,0,0,545207.31000000006,88.5,545207.31000000006,88.5]
["2021","TILLSONBURG HYDRO INC.","UNMETERED SCATTERED LOAD CONNECTIONS","UNMETERED SCATTERED LOAD","TILLSONBURG HYDRO INC._UNMETERED SCATTERED LOAD SERVICE CLASSIFICATION","TILLSONBURG HYDRO INC._UNMETERED SCATTERED LOAD SERVICE CLASSIFICATION",0,0,350685.95,0,0,0,0,0,0,0,350685.95,0,350685.95,0]
["2021","TORONTO HYDRO-ELECTRIC SYSTEM LIMITED","GENERAL SERVICE EQUAL TO OR GREATER THAN 50 KW","GENERAL SERVICE 1,000 TO 4,999 KW","TORONTO HYDRO-ELECTRIC SYSTEM LIMITED_GENERAL SERVICE 1,000 TO 4,999 KW SERVICE CLASSIFICATION","TORONTO HYDRO-ELECTRIC SYSTEM LIMITED_GENERAL SERVICE 1,000 TO 4,999 KW SERVICE CLASSIFICATION",663578993.74000001,1363611,134242943.72,275220.77,3409781962.2399998,7550394.9299999997,1363959.5,22053.279296875,0,0,3545388865.48,7847668.9800000004,4208967859.2199998,9211280.6400000006]
["2021","TORONTO HYDRO-ELECTRIC SYSTEM LIMITED","GENERAL SERVICE EQUAL TO OR GREATER THAN 50 KW","GENERAL SERVICE 50 TO 999 KW","TORONTO HYDRO-ELECTRIC SYSTEM LIMITED_GENERAL SERVICE 50 TO 999 KW SERVICE CLASSIFICATION","TORONTO HYDRO-ELECTRIC SYSTEM LIMITED_GENERAL SERVICE 50 TO 999 KW SERVICE CLASSIFICATION",892681953.10000002,2579576,2994835122.79,7052590.25,5365858726.6599998,13821984.789999999,51643992,102547.6796875,0,0,8412337841.3400002,20977122.719999999,9305019794.4400005,23556699.690000001]
["2021","TORONTO HYDRO-ELECTRIC SYSTEM LIMITED","GENERAL SERVICE LESS THAN 50 KW","GENERAL SERVICE LESS THAN 50 KW","TORONTO HYDRO-ELECTRIC SYSTEM LIMITED_GENERAL SERVICE LESS THAN 50 KW SERVICE CLASSIFICATION","TORONTO HYDRO-ELECTRIC SYSTEM LIMITED_GENERAL SERVICE LESS THAN 50 KW SERVICE CLASSIFICATION",319530516.06,0,1846332752.23,0,10818960.99,0,0,0,0,0,1857151713.22,0,2176682229.2800002,0]
["2021","TORONTO HYDRO-ELECTRIC SYSTEM LIMITED","LARGE USER","LARGE USE","TORONTO HYDRO-ELECTRIC SYSTEM LIMITED_LARGE USE SERVICE CLASSIFICATION","TORONTO HYDRO-ELECTRIC SYSTEM LIMITED_LARGE USE SERVICE CLASSIFICATION",264592985.03,495992,0,0,1538305424.02,3294632.27,245850320,449842.78125,0,0,1784155750.29,3744475.05,2048748735.3199999,4240467.2300000004]
["2021","TORONTO HYDRO-ELECTRIC SYSTEM LIMITED","NO RATE CLASS","NO RATE CLASS","TORONTO HYDRO-ELECTRIC SYSTEM LIMITED_NO RATE CLASS SERVICE CLASSIFICATION","TORONTO HYDRO-ELECTRIC SYSTEM LIMITED_NO RATE CLASS SERVICE CLASSIFICATION",0,0,0,0,0,0,0,0,5196986880,10790059,0,0,0,0]
["2021","TORONTO HYDRO-ELECTRIC SYSTEM LIMITED","RESIDENTIAL","RESIDENTIAL","TORONTO HYDRO-ELECTRIC SYSTEM LIMITED_RESIDENTIAL SERVICE CLASSIFICATION","TORONTO HYDRO-ELECTRIC SYSTEM LIMITED_RESIDENTIAL SERVICE CLASSIFICATION",87150469.469999999,0,4968061991.2700005,0,8710.1,0,0,0,0,0,4968070701.3699999,0,5055221170.8400002,0]
["2021","TORONTO HYDRO-ELECTRIC SYSTEM LIMITED","RESIDENTIAL","RESIDENTIAL - COMPETITIVE SECTOR MULTI-UNIT","TORONTO HYDRO-ELECTRIC SYSTEM LIMITED_RESIDENTIAL - COMPETITIVE SECTOR MULTI-UNIT SERVICE CLASSIFICATION","TORONTO HYDRO-ELECTRIC SYSTEM LIMITED_RESIDENTIAL - COMPETITIVE SECTOR MULTI-UNIT SERVICE CLASSIFICATION",648228.5,0,302074569.54000002,0,0,0,0,0,0,0,302074569.54000002,0,302722798.04000002,0]
["2021","TORONTO HYDRO-ELECTRIC SYSTEM LIMITED","STREET LIGHTING CONNECTIONS","STREET LIGHTING","TORONTO HYDRO-ELECTRIC SYSTEM LIMITED_STREET LIGHTING SERVICE CLASSIFICATION","TORONTO HYDRO-ELECTRIC SYSTEM LIMITED_STREET LIGHTING SERVICE CLASSIFICATION",0,0,0,0,114931041.33,330988.15000000002,0,0,0,0,114931041.33,330988.15000000002,114931041.33,330988.15000000002]
["2021","TORONTO HYDRO-ELECTRIC SYSTEM LIMITED","UNMETERED SCATTERED LOAD CONNECTIONS","UNMETERED SCATTERED LOAD","TORONTO HYDRO-ELECTRIC SYSTEM LIMITED_UNMETERED SCATTERED LOAD SERVICE CLASSIFICATION","TORONTO HYDRO-ELECTRIC SYSTEM LIMITED_UNMETERED SCATTERED LOAD SERVICE CLASSIFICATION",121621.47,0,39997113.57,0,0,0,0,0,0,0,39997113.57,0,40118735.039999999,0]
["2021","WASAGA DISTRIBUTION INC.","GENERAL SERVICE EQUAL TO OR GREATER THAN 50 KW","GENERAL SERVICE 50 TO 4,999 KW","WASAGA DISTRIBUTION INC._GENERAL SERVICE 50 TO 4,999 KW SERVICE CLASSIFICATION","WASAGA DISTRIBUTION INC._GENERAL SERVICE 50 TO 4,999 KW SERVICE CLASSIFICATION",2646194,8141,843518,1592.64,12912249,32793.040000000001,2734869.5,5526.1201171875,0,0,16490636.57,39911.800000000003,19136830.57,48053.54]
["2021","WASAGA DISTRIBUTION INC.","GENERAL SERVICE LESS THAN 50 KW","GENERAL SERVICE LESS THAN 50 KW","WASAGA DISTRIBUTION INC._GENERAL SERVICE LESS THAN 50 KW SERVICE CLASSIFICATION","WASAGA DISTRIBUTION INC._GENERAL SERVICE LESS THAN 50 KW SERVICE CLASSIFICATION",1513678,0,15307021,0,0,0,0,0,0,0,15307021,0,16820699,0]
["2021","WASAGA DISTRIBUTION INC.","NO RATE CLASS","NO RATE CLASS","WASAGA DISTRIBUTION INC._NO RATE CLASS SERVICE CLASSIFICATION","WASAGA DISTRIBUTION INC._NO RATE CLASS SERVICE CLASSIFICATION",0,0,0,0,0,0,0,0,0,0,0,0,0,0]
["2021","WASAGA DISTRIBUTION INC.","RESIDENTIAL","RESIDENTIAL","WASAGA DISTRIBUTION INC._RESIDENTIAL SERVICE CLASSIFICATION","WASAGA DISTRIBUTION INC._RESIDENTIAL SERVICE CLASSIFICATION",876918,0,101691000,0,0,0,0,0,0,0,101691000,0,102567918,0]
["2021","WASAGA DISTRIBUTION INC.","STREET LIGHTING CONNECTIONS","STREET LIGHTING","WASAGA DISTRIBUTION INC._STREET LIGHTING SERVICE CLASSIFICATION","WASAGA DISTRIBUTION INC._STREET LIGHTING SERVICE CLASSIFICATION",0,0,0,0,803024,2328,0,0,0,0,803024,2328,803024,2328]
["2021","WASAGA DISTRIBUTION INC.","UNMETERED SCATTERED LOAD CONNECTIONS","UNMETERED SCATTERED LOAD","WASAGA DISTRIBUTION INC._UNMETERED SCATTERED LOAD SERVICE CLASSIFICATION","WASAGA DISTRIBUTION INC._UNMETERED SCATTERED LOAD SERVICE CLASSIFICATION",0,0,153122,0,0,0,0,0,0,0,153122,0,153122,0]
["2021","WATERLOO NORTH HYDRO INC.","EMBEDDED DISTRIBUTOR(S)","EMBEDDED DISTRIBUTOR","WATERLOO NORTH HYDRO INC._EMBEDDED DISTRIBUTOR SERVICE CLASSIFICATION","WATERLOO NORTH HYDRO INC._EMBEDDED DISTRIBUTOR SERVICE CLASSIFICATION",0,0,0,0,38023841,88101,0,0,0,0,38023841,88101,38023841,88101]
["2021","WATERLOO NORTH HYDRO INC.","GENERAL SERVICE EQUAL TO OR GREATER THAN 50 KW","GENERAL SERVICE 50 TO 4,999 KW","WATERLOO NORTH HYDRO INC._GENERAL SERVICE 50 TO 4,999 KW SERVICE CLASSIFICATION","WATERLOO NORTH HYDRO INC._GENERAL SERVICE 50 TO 4,999 KW SERVICE CLASSIFICATION",91343517,0,97971968,254154,446521335,1381163,7939234,16282,0,0,552432537,1651599,643776054,1651599]
["2021","WATERLOO NORTH HYDRO INC.","GENERAL SERVICE LESS THAN 50 KW","GENERAL SERVICE LESS THAN 50 KW","WATERLOO NORTH HYDRO INC._GENERAL SERVICE LESS THAN 50 KW SERVICE CLASSIFICATION","WATERLOO NORTH HYDRO INC._GENERAL SERVICE LESS THAN 50 KW SERVICE CLASSIFICATION",30820782,0,156246076,0,852531,0,0,0,0,0,157098607,0,187919389,0]
["2021","WATERLOO NORTH HYDRO INC.","LARGE USER","LARGE USE","WATERLOO NORTH HYDRO INC._LARGE USE SERVICE CLASSIFICATION","WATERLOO NORTH HYDRO INC._LARGE USE SERVICE CLASSIFICATION",0,0,0,0,83578703,140823,0,0,0,0,83578703,140823,83578703,140823]
["2021","WATERLOO NORTH HYDRO INC.","NO RATE CLASS","NO RATE CLASS","WATERLOO NORTH HYDRO INC._NO RATE CLASS SERVICE CLASSIFICATION","WATERLOO NORTH HYDRO INC._NO RATE CLASS SERVICE CLASSIFICATION",0,0,0,0,0,0,0,0,263652000,null,0,0,0,0]
["2021","WATERLOO NORTH HYDRO INC.","RESIDENTIAL","RESIDENTIAL","WATERLOO NORTH HYDRO INC._RESIDENTIAL SERVICE CLASSIFICATION","WATERLOO NORTH HYDRO INC._RESIDENTIAL SERVICE CLASSIFICATION",6289342,0,425769936,0,0,0,0,0,0,0,425769936,0,432059278,0]
["2021","WATERLOO NORTH HYDRO INC.","STREET LIGHTING CONNECTIONS","STREET LIGHTING","WATERLOO NORTH HYDRO INC._STREET LIGHTING SERVICE CLASSIFICATION","WATERLOO NORTH HYDRO INC._STREET LIGHTING SERVICE CLASSIFICATION",0,0,0,0,3567185,9889,0,0,0,0,3567185,9889,3567185,9889]
["2021","WATERLOO NORTH HYDRO INC.","UNMETERED SCATTERED LOAD CONNECTIONS","UNMETERED SCATTERED LOAD","WATERLOO NORTH HYDRO INC._UNMETERED SCATTERED LOAD SERVICE CLASSIFICATION","WATERLOO NORTH HYDRO INC._UNMETERED SCATTERED LOAD SERVICE CLASSIFICATION",0,0,3004753,0,0,0,0,0,0,0,3004753,0,3004753,0]
["2021","WELLAND HYDRO-ELECTRIC SYSTEM CORP.","GENERAL SERVICE EQUAL TO OR GREATER THAN 50 KW","GENERAL SERVICE 50 TO 4,999 KW","WELLAND HYDRO-ELECTRIC SYSTEM CORP._GENERAL SERVICE 50 TO 4,999 KW SERVICE CLASSIFICATION","WELLAND HYDRO-ELECTRIC SYSTEM CORP._GENERAL SERVICE 50 TO 4,999 KW SERVICE CLASSIFICATION",6404289,17061,738999,1638,123383347,358098,2757773,4924,0,0,126880119,364660,133284408,381721]
["2021","WELLAND HYDRO-ELECTRIC SYSTEM CORP.","GENERAL SERVICE LESS THAN 50 KW","GENERAL SERVICE LESS THAN 50 KW","WELLAND HYDRO-ELECTRIC SYSTEM CORP._GENERAL SERVICE LESS THAN 50 KW SERVICE CLASSIFICATION","WELLAND HYDRO-ELECTRIC SYSTEM CORP._GENERAL SERVICE LESS THAN 50 KW SERVICE CLASSIFICATION",7992672,0,40544834,0,0,0,0,0,0,0,40544834,0,48537506,0]
["2021","WELLAND HYDRO-ELECTRIC SYSTEM CORP.","NO RATE CLASS","NO RATE CLASS","WELLAND HYDRO-ELECTRIC SYSTEM CORP._NO RATE CLASS SERVICE CLASSIFICATION","WELLAND HYDRO-ELECTRIC SYSTEM CORP._NO RATE CLASS SERVICE CLASSIFICATION",0,0,0,0,0,0,0,0,32842150,118895,0,0,0,0]
["2021","WELLAND HYDRO-ELECTRIC SYSTEM CORP.","RESIDENTIAL","RESIDENTIAL","WELLAND HYDRO-ELECTRIC SYSTEM CORP._RESIDENTIAL SERVICE CLASSIFICATION","WELLAND HYDRO-ELECTRIC SYSTEM CORP._RESIDENTIAL SERVICE CLASSIFICATION",2832824,0,177081646,0,0,0,0,0,0,0,177081646,0,179914470,0]
["2021","WELLAND HYDRO-ELECTRIC SYSTEM CORP.","SENTINEL LIGHTING CONNECTIONS","SENTINEL LIGHTING","WELLAND HYDRO-ELECTRIC SYSTEM CORP._SENTINEL LIGHTING SERVICE CLASSIFICATION","WELLAND HYDRO-ELECTRIC SYSTEM CORP._SENTINEL LIGHTING SERVICE CLASSIFICATION",59226,161,476709,1313,0,0,0,0,0,0,476709,1313,535935,1474]
["2021","WELLAND HYDRO-ELECTRIC SYSTEM CORP.","STREET LIGHTING CONNECTIONS","STREET LIGHTING","WELLAND HYDRO-ELECTRIC SYSTEM CORP._STREET LIGHTING SERVICE CLASSIFICATION","WELLAND HYDRO-ELECTRIC SYSTEM CORP._STREET LIGHTING SERVICE CLASSIFICATION",0,0,0,0,1423808,3960,0,0,0,0,1423808,3960,1423808,3960]
["2021","WELLAND HYDRO-ELECTRIC SYSTEM CORP.","UNMETERED SCATTERED LOAD CONNECTIONS","UNMETERED SCATTERED LOAD","WELLAND HYDRO-ELECTRIC SYSTEM CORP._UNMETERED SCATTERED LOAD SERVICE CLASSIFICATION","WELLAND HYDRO-ELECTRIC SYSTEM CORP._UNMETERED SCATTERED LOAD SERVICE CLASSIFICATION",5537,0,824634,0,110808,0,0,0,0,0,935442,0,940979,0]
["2021","WELLINGTON NORTH POWER INC.","GENERAL SERVICE EQUAL TO OR GREATER THAN 50 KW","GENERAL SERVICE 1,000 TO 4,999 KW","WELLINGTON NORTH POWER INC._GENERAL SERVICE 1,000 TO 4,999 KW SERVICE CLASSIFICATION","WELLINGTON NORTH POWER INC._GENERAL SERVICE 1,000 TO 4,999 KW SERVICE CLASSIFICATION",23918469.030000001,52914,0,0,14915452.4,38567.96,0,0,0,0,14915452.4,38567.96,38833921.43,91482.69]
["2021","WELLINGTON NORTH POWER INC.","GENERAL SERVICE EQUAL TO OR GREATER THAN 50 KW","GENERAL SERVICE 50 TO 999 KW","WELLINGTON NORTH POWER INC._GENERAL SERVICE 50 TO 999 KW SERVICE CLASSIFICATION","WELLINGTON NORTH POWER INC._GENERAL SERVICE 50 TO 999 KW SERVICE CLASSIFICATION",2213280.79,5927,0,0,15896438.51,45235.79,0,0,0,0,15896438.51,45235.79,18109719.300000001,51163.55]
["2021","WELLINGTON NORTH POWER INC.","GENERAL SERVICE LESS THAN 50 KW","GENERAL SERVICE LESS THAN 50 KW","WELLINGTON NORTH POWER INC._GENERAL SERVICE LESS THAN 50 KW SERVICE CLASSIFICATION","WELLINGTON NORTH POWER INC._GENERAL SERVICE LESS THAN 50 KW SERVICE CLASSIFICATION",1791303.37,0,8608689.3200000003,0,0,0,0,0,0,0,8608689.3200000003,0,10399992.689999999,0]
["2021","WELLINGTON NORTH POWER INC.","NO RATE CLASS","NO RATE CLASS","WELLINGTON NORTH POWER INC._NO RATE CLASS SERVICE CLASSIFICATION","WELLINGTON NORTH POWER INC._NO RATE CLASS SERVICE CLASSIFICATION",0,0,0,0,0,0,0,0,43533656,98239.6015625,0,0,0,0]
["2021","WELLINGTON NORTH POWER INC.","RESIDENTIAL","RESIDENTIAL","WELLINGTON NORTH POWER INC._RESIDENTIAL SERVICE CLASSIFICATION","WELLINGTON NORTH POWER INC._RESIDENTIAL SERVICE CLASSIFICATION",700608.27,0,26037287.710000001,0,0,0,0,0,0,0,26037287.710000001,0,26737895.98,0]
["2021","WELLINGTON NORTH POWER INC.","SENTINEL LIGHTING CONNECTIONS","SENTINEL LIGHTING","WELLINGTON NORTH POWER INC._SENTINEL LIGHTING SERVICE CLASSIFICATION","WELLINGTON NORTH POWER INC._SENTINEL LIGHTING SERVICE CLASSIFICATION",1415.83,3,17616.740000000002,48.94,0,0,0,0,0,0,17616.740000000002,48.94,19032.57,52.87]
["2021","WELLINGTON NORTH POWER INC.","STREET LIGHTING CONNECTIONS","STREET LIGHTING","WELLINGTON NORTH POWER INC._STREET LIGHTING SERVICE CLASSIFICATION","WELLINGTON NORTH POWER INC._STREET LIGHTING SERVICE CLASSIFICATION",12599.29,34,0,0,217853.54,597.55999999999995,0,0,0,0,217853.54,597.55999999999995,230452.83,632.12]
["2021","WELLINGTON NORTH POWER INC.","UNMETERED SCATTERED LOAD CONNECTIONS","UNMETERED SCATTERED LOAD","WELLINGTON NORTH POWER INC._UNMETERED SCATTERED LOAD SERVICE CLASSIFICATION","WELLINGTON NORTH POWER INC._UNMETERED SCATTERED LOAD SERVICE CLASSIFICATION",1068.02,0,5733.01,0,0,0,0,0,0,0,5733.01,0,6801.03,0]
["2021","WESTARIO POWER INC.","GENERAL SERVICE EQUAL TO OR GREATER THAN 50 KW","GENERAL SERVICE 50 TO 4,999 KW","WESTARIO POWER INC._GENERAL SERVICE 50 TO 4,999 KW SERVICE CLASSIFICATION","WESTARIO POWER INC._GENERAL SERVICE 50 TO 4,999 KW SERVICE CLASSIFICATION",58821621,140578,5336290,14907,105393725,266505,1921209,4601,0,0,112651224,286013,171472845,426591]
["2021","WESTARIO POWER INC.","GENERAL SERVICE LESS THAN 50 KW","GENERAL SERVICE LESS THAN 50 KW","WESTARIO POWER INC._GENERAL SERVICE LESS THAN 50 KW SERVICE CLASSIFICATION","WESTARIO POWER INC._GENERAL SERVICE LESS THAN 50 KW SERVICE CLASSIFICATION",19830327,0,48262421,0,0,0,0,0,0,0,48262421,0,68092748,0]
["2021","WESTARIO POWER INC.","NO RATE CLASS","NO RATE CLASS","WESTARIO POWER INC._NO RATE CLASS SERVICE CLASSIFICATION","WESTARIO POWER INC._NO RATE CLASS SERVICE CLASSIFICATION",0,0,0,0,0,0,0,0,86104848,198081,0,0,0,0]
["2021","WESTARIO POWER INC.","RESIDENTIAL","RESIDENTIAL","WESTARIO POWER INC._RESIDENTIAL SERVICE CLASSIFICATION","WESTARIO POWER INC._RESIDENTIAL SERVICE CLASSIFICATION",3713049,0,191317030,0,0,0,0,0,0,0,191317030,0,195030079,0]
["2021","WESTARIO POWER INC.","SENTINEL LIGHTING CONNECTIONS","SENTINEL LIGHTING","WESTARIO POWER INC._SENTINEL LIGHTING SERVICE CLASSIFICATION","WESTARIO POWER INC._SENTINEL LIGHTING SERVICE CLASSIFICATION",0,0,18762,48,0,0,0,0,0,0,18762,48,18762,48]
["2021","WESTARIO POWER INC.","STREET LIGHTING CONNECTIONS","STREET LIGHTING","WESTARIO POWER INC._STREET LIGHTING SERVICE CLASSIFICATION","WESTARIO POWER INC._STREET LIGHTING SERVICE CLASSIFICATION",1729275,4641,0,0,592175,1594,0,0,0,0,592175,1594,2321450,6235]
["2021","WESTARIO POWER INC.","UNMETERED SCATTERED LOAD CONNECTIONS","UNMETERED SCATTERED LOAD","WESTARIO POWER INC._UNMETERED SCATTERED LOAD SERVICE CLASSIFICATION","WESTARIO POWER INC._UNMETERED SCATTERED LOAD SERVICE CLASSIFICATION",34438,0,188606,0,0,0,0,0,0,0,188606,0,223044,0]
[""]
["Filing_Year is equal to / is in 2021"]

{"sheet":"hidden1","index":13,"n_rows":22,"n_cols":2,"rows_kept":22,"cut":false,"hidden":true,"merged":[]}
[{"$f":"IF('DELETE 3. Rate Classes'!L17=1, 'DELETE 3. Rate Classes'!#REF!, \"\")","v":""},1]
[{"$f":"IF('DELETE 3. Rate Classes'!L18=1, 'DELETE 3. Rate Classes'!#REF!, \"\")","v":""},2]
[{"$f":"IF('DELETE 3. Rate Classes'!L19=1, 'DELETE 3. Rate Classes'!#REF!, \"\")","v":""},3]
[{"$f":"IF('DELETE 3. Rate Classes'!L20=1, 'DELETE 3. Rate Classes'!#REF!, \"\")","v":""},4]
[{"$f":"IF('DELETE 3. Rate Classes'!L21=1, 'DELETE 3. Rate Classes'!#REF!, \"\")","v":""},5]
[{"$f":"IF('DELETE 3. Rate Classes'!L22=1, 'DELETE 3. Rate Classes'!#REF!, \"\")","v":""},6]
[{"$f":"IF('DELETE 3. Rate Classes'!L23=1, 'DELETE 3. Rate Classes'!#REF!, \"\")","v":""},7]
[{"$f":"IF('DELETE 3. Rate Classes'!L24=1, 'DELETE 3. Rate Classes'!#REF!, \"\")","v":""},8]
[{"$f":"IF('DELETE 3. Rate Classes'!L25=1, 'DELETE 3. Rate Classes'!#REF!, \"\")","v":""},9]
[{"$f":"IF('DELETE 3. Rate Classes'!L26=1, 'DELETE 3. Rate Classes'!#REF!, \"\")","v":""},10]
[{"$f":"IF('DELETE 3. Rate Classes'!L27=1, 'DELETE 3. Rate Classes'!#REF!, \"\")","v":""},11]
[{"$f":"IF('DELETE 3. Rate Classes'!L28=1, 'DELETE 3. Rate Classes'!#REF!, \"\")","v":""},12]
[{"$f":"IF('DELETE 3. Rate Classes'!L29=1, 'DELETE 3. Rate Classes'!#REF!, \"\")","v":""},13]
[{"$f":"IF('DELETE 3. Rate Classes'!L30=1, 'DELETE 3. Rate Classes'!#REF!, \"\")","v":""},14]
[{"$f":"IF('DELETE 3. Rate Classes'!L31=1, 'DELETE 3. Rate Classes'!#REF!, \"\")","v":""},15]
[{"$f":"IF('DELETE 3. Rate Classes'!L32=1, 'DELETE 3. Rate Classes'!#REF!, \"\")","v":""},16]
[{"$f":"IF('DELETE 3. Rate Classes'!L33=1, 'DELETE 3. Rate Classes'!#REF!, \"\")","v":""},17]
[{"$f":"IF('DELETE 3. Rate Classes'!L34=1, 'DELETE 3. Rate Classes'!#REF!, \"\")","v":""},18]
[{"$f":"IF('DELETE 3. Rate Classes'!L35=1, 'DELETE 3. Rate Classes'!#REF!, \"\")","v":""},19]
[{"$f":"IF('DELETE 3. Rate Classes'!L36=1, 'DELETE 3. Rate Classes'!#REF!, \"\")","v":""},20]
[{"$f":"IF('DELETE 3. Rate Classes'!L37=1, 'DELETE 3. Rate Classes'!#REF!, \"\")","v":""},21]
[{"$f":"IF('DELETE 3. Rate Classes'!L38=1, 'DELETE 3. Rate Classes'!#REF!, \"\")","v":""},22]